Workbook

Sheet 試験問題（関数）
A1: ='関数（書き）'!$C$2 -> 171 | B1: ='関数（書き）'!$C$3 -> 118 | C1: ='関数（書き）'!$C$4 -> 114 | D1: ='関数（書き）'!$C$5 -> 110 | E1: ='関数（書き）'!$C$6 -> 85 | F1: ='関数（書き）'!$C$7 -> 44 | G1: ='関数（書き）'!$C$8 -> 6 | H1: ='関数（書き）'!$C$9 -> 50 | I1: ='関数（書き）'!$C$10 -> 8 | J1: ='関数（書き）'!$C$11 -> 123 | K1: ='関数（読み）'!$C$2 -> 182 | L1: ='関数（読み）'!$C$3 -> 24 | M1: ='関数（読み）'!$C$4 -> 171 | N1: ='関数（読み）'!$C$5 -> 153 | O1: ='関数（読み）'!$C$6 -> 184 | P1: ='関数（読み）'!$C$7 -> 172 | Q1: ='関数（読み）'!$C$8 -> 23 | R1: ='関数（読み）'!$C$9 -> 164 | S1: ='関数（読み）'!$C$10 -> 104 | T1: ='関数（読み）'!$C$11 -> 174
A2: ⑳ | B2: ⑲ | C2: ⑱ | D2: ⑰ | E2: ⑯ | F2: ⑮ | G2: ⑭ | H2: ⑬ | I2: ⑫ | J2: ⑪ | K2: ⑩ | L2: ⑨ | M2: ⑧ | N2: ⑦ | O2: ⑥ | P2: ⑤ | Q2: ④ | R2: ③ | S2: ② | T2: ① | U2: 次の［ ］の部分の漢字には読みがなをひらがなで書き、カタカナは漢字に直しなさい。 | V2: 15 | W2: 「漢字の博士検定試験」練習問題
A3: =IF(A1="","",VLOOKUP(A1,漢字書き!$A$2:$N$506,6,0)) -> ［チカラ］いっぱい | B3: =IF(B1="","",VLOOKUP(B1,漢字書き!$A$2:$N$506,6,0)) -> にわの［クサ］とり | C3: =IF(C1="","",VLOOKUP(C1,漢字書き!$A$2:$N$506,6,0)) -> ［ソウ］ちょう | D3: =IF(D1="","",VLOOKUP(D1,漢字書き!$A$2:$N$506,6,0)) -> ふかい［カワ］ | E3: =IF(E1="","",VLOOKUP(E1,漢字書き!$A$2:$N$506,6,0)) -> ［ジョウ］たつする | F3: =IF(F1="","",VLOOKUP(F1,漢字書き!$A$2:$N$506,6,0)) -> こわい［イヌ］ | G3: =IF(G1="","",VLOOKUP(G1,漢字書き!$A$2:$N$506,6,0)) -> ［アメ］がふる | H3: =IF(H1="","",VLOOKUP(H1,漢字書き!$A$2:$N$506,6,0)) -> ［クチ］に入れる | I3: =IF(I1="","",VLOOKUP(I1,漢字書き!$A$2:$N$506,6,0)) -> ［イチエン］玉 | J3: =IF(J1="","",VLOOKUP(J1,漢字書き!$A$2:$N$506,6,0)) -> ［ムラ］のまつり | K3: =IF(K1="","",VLOOKUP(K1,漢字読み!$A$2:$O$506,6,0)) -> ［力］いっぱい | L3: =IF(L1="","",VLOOKUP(L1,漢字読み!$A$2:$O$506,6,0)) -> ［貝］のもよう | M3: =IF(M1="","",VLOOKUP(M1,漢字読み!$A$2:$O$506,6,0)) -> ［本気］をだす | N3: =IF(N1="","",VLOOKUP(N1,漢字読み!$A$2:$O$506,6,0)) -> ［入学］手つづき | O3: =IF(O1="","",VLOOKUP(O1,漢字読み!$A$2:$O$506,6,0)) -> ［林］をあるく | P3: =IF(P1="","",VLOOKUP(P1,漢字読み!$A$2:$O$506,6,0)) -> ［本］をよむ | Q3: =IF(Q1="","",VLOOKUP(Q1,漢字読み!$A$2:$O$506,6,0)) -> ［貝］がらをあつめる | R3: =IF(R1="","",VLOOKUP(R1,漢字読み!$A$2:$O$506,6,0)) -> ［百］てんのテスト | S3: =IF(S1="","",VLOOKUP(S1,漢字読み!$A$2:$O$506,6,0)) -> ［生］クリーム | T3: =IF(T1="","",VLOOKUP(T1,漢字読み!$A$2:$O$506,6,0)) -> ［名字］をきく | V3: 級
V4: 名前
A5: =IF(A1="","",IF(VLOOKUP(A1,漢字書き!$A$2:$N$502,7,0)=0,"",VLOOKUP(A1,漢字書き!$A$2:$N$502,7,0))) ->  | B5: =IF(B1="","",IF(VLOOKUP(B1,漢字書き!$A$2:$N$502,7,0)=0,"",VLOOKUP(B1,漢字書き!$A$2:$N$502,7,0))) -> とり | C5: =IF(C1="","",IF(VLOOKUP(C1,漢字書き!$A$2:$N$502,7,0)=0,"",VLOOKUP(C1,漢字書き!$A$2:$N$502,7,0))) -> ちょう | D5: =IF(D1="","",IF(VLOOKUP(D1,漢字書き!$A$2:$N$502,7,0)=0,"",VLOOKUP(D1,漢字書き!$A$2:$N$502,7,0))) ->  | E5: =IF(E1="","",IF(VLOOKUP(E1,漢字書き!$A$2:$N$502,7,0)=0,"",VLOOKUP(E1,漢字書き!$A$2:$N$502,7,0))) -> たつ | F5: =IF(F1="","",IF(VLOOKUP(F1,漢字書き!$A$2:$N$502,7,0)=0,"",VLOOKUP(F1,漢字書き!$A$2:$N$502,7,0))) ->  | G5: =IF(G1="","",IF(VLOOKUP(G1,漢字書き!$A$2:$N$502,7,0)=0,"",VLOOKUP(G1,漢字書き!$A$2:$N$502,7,0))) ->  | H5: =IF(H1="","",IF(VLOOKUP(H1,漢字書き!$A$2:$N$502,7,0)=0,"",VLOOKUP(H1,漢字書き!$A$2:$N$502,7,0))) ->  | I5: =IF(I1="","",IF(VLOOKUP(I1,漢字書き!$A$2:$N$502,7,0)=0,"",VLOOKUP(I1,漢字書き!$A$2:$N$502,7,0))) -> 玉 | J5: =IF(J1="","",IF(VLOOKUP(J1,漢字書き!$A$2:$N$502,7,0)=0,"",VLOOKUP(J1,漢字書き!$A$2:$N$502,7,0))) ->  | K5: =IF(K1="","",IF(VLOOKUP(K1,漢字読み!$A$2:$O$502,7,0)=0,"",VLOOKUP(K1,漢字読み!$A$2:$O$502,7,0))) ->  | L5: =IF(L1="","",IF(VLOOKUP(L1,漢字読み!$A$2:$O$502,7,0)=0,"",VLOOKUP(L1,漢字読み!$A$2:$O$502,7,0))) ->  | M5: =IF(M1="","",IF(VLOOKUP(M1,漢字読み!$A$2:$O$502,7,0)=0,"",VLOOKUP(M1,漢字読み!$A$2:$O$502,7,0))) ->  | N5: =IF(N1="","",IF(VLOOKUP(N1,漢字読み!$A$2:$O$502,7,0)=0,"",VLOOKUP(N1,漢字読み!$A$2:$O$502,7,0))) ->  | O5: =IF(O1="","",IF(VLOOKUP(O1,漢字読み!$A$2:$O$502,7,0)=0,"",VLOOKUP(O1,漢字読み!$A$2:$O$502,7,0))) ->  | P5: =IF(P1="","",IF(VLOOKUP(P1,漢字読み!$A$2:$O$502,7,0)=0,"",VLOOKUP(P1,漢字読み!$A$2:$O$502,7,0))) ->  | Q5: =IF(Q1="","",IF(VLOOKUP(Q1,漢字読み!$A$2:$O$502,7,0)=0,"",VLOOKUP(Q1,漢字読み!$A$2:$O$502,7,0))) -> がら | R5: =IF(R1="","",IF(VLOOKUP(R1,漢字読み!$A$2:$O$502,7,0)=0,"",VLOOKUP(R1,漢字読み!$A$2:$O$502,7,0))) -> てん | S5: =IF(S1="","",IF(VLOOKUP(S1,漢字読み!$A$2:$O$502,7,0)=0,"",VLOOKUP(S1,漢字読み!$A$2:$O$502,7,0))) -> クリーム | T5: =IF(T1="","",IF(VLOOKUP(T1,漢字読み!$A$2:$O$502,7,0)=0,"",VLOOKUP(T1,漢字読み!$A$2:$O$502,7,0))) ->  | W5: 和歌山県教育委員会
A6: ='関数（書き）'!$C$12 -> 88 | B6: ='関数（書き）'!$C$13 -> 41 | C6: ='関数（書き）'!$C$14 -> 151 | D6: ='関数（書き）'!$C$15 -> 158 | E6: ='関数（書き）'!$C$16 -> 40 | F6: ='関数（書き）'!$C$17 -> 112 | G6: ='関数（書き）'!$C$18 -> 46 | H6: ='関数（書き）'!$C$19 -> 75 | I6: ='関数（書き）'!$C$20 -> 175 | J6: ='関数（書き）'!$C$21 -> 141 | K6: ='関数（読み）'!$C$12 -> 159 | L6: ='関数（読み）'!$C$13 -> 160 | M6: ='関数（読み）'!$C$14 -> 91 | N6: ='関数（読み）'!$C$15 -> 167 | O6: ='関数（読み）'!$C$16 -> 66 | P6: ='関数（読み）'!$C$17 -> 72 | Q6: ='関数（読み）'!$C$18 -> 110 | R6: ='関数（読み）'!$C$19 -> 127 | S6: ='関数（読み）'!$C$20 -> 139 | T6: ='関数（読み）'!$C$21 -> 12
A7: ⑳ | B7: ⑲ | C7: ⑱ | D7: ⑰ | E7: ⑯ | F7: ⑮ | G7: ⑭ | H7: ⑬ | I7: ⑫ | J7: ⑪ | K7: ⑩ | L7: ⑨ | M7: ⑧ | N7: ⑦ | O7: ⑥ | P7: ⑤ | Q7: ④ | R7: ③ | S7: ② | T7: ① | U7: 次の［ ］の部分の漢字には読みがなをひらがなで書き、カタカナは漢字に直しなさい。 | V7: 15 | W7: 「漢字の博士検定試験」練習問題
A8: =IF(A6="","",VLOOKUP(A6,漢字書き!$A$2:$N$506,6,0)) -> ［モリ］のくまさん | B8: =IF(B6="","",VLOOKUP(B6,漢字書き!$A$2:$N$506,6,0)) -> ［ツキ］へのたび | C8: =IF(C6="","",VLOOKUP(C6,漢字書き!$A$2:$N$506,6,0)) -> あたらしい［トシ］ | D8: =IF(D6="","",VLOOKUP(D6,漢字書き!$A$2:$N$506,6,0)) -> ［ブンガク］をよむ | E8: =IF(E6="","",VLOOKUP(E6,漢字書き!$A$2:$N$506,6,0)) -> ［ゲツ］よう日 | F8: =IF(F6="","",VLOOKUP(F6,漢字書き!$A$2:$N$506,6,0)) -> ［センセイ］にはなす | G8: =IF(G6="","",VLOOKUP(G6,漢字書き!$A$2:$N$506,6,0)) -> まえを［ミ］る | H8: =IF(H6="","",VLOOKUP(H6,漢字書き!$A$2:$N$506,6,0)) -> ［ジュウネン］先 | I8: =IF(I6="","",VLOOKUP(I6,漢字書き!$A$2:$N$506,6,0)) -> ［ロク］年生 | J8: =IF(J6="","",VLOOKUP(J6,漢字書き!$A$2:$N$506,6,0)) -> ねん［ド］であそぶ | K8: =IF(K6="","",VLOOKUP(K6,漢字読み!$A$2:$O$506,6,0)) -> ［白］いくも | L8: =IF(L6="","",VLOOKUP(L6,漢字読み!$A$2:$O$506,6,0)) -> ［八月］がすき | M8: =IF(M6="","",VLOOKUP(M6,漢字読み!$A$2:$O$506,6,0)) -> ［日本人］ | N8: =IF(N6="","",VLOOKUP(N6,漢字読み!$A$2:$O$506,6,0)) -> ［木目］にそう | O8: =IF(O6="","",VLOOKUP(O6,漢字読み!$A$2:$O$506,6,0)) -> ［糸］でんわ | P8: =IF(P6="","",VLOOKUP(P6,漢字読み!$A$2:$O$506,6,0)) -> きゅうきゅう［車］ | Q8: =IF(Q6="","",VLOOKUP(Q6,漢字読み!$A$2:$O$506,6,0)) -> ［石］たんをほる | R8: =IF(R6="","",VLOOKUP(R6,漢字読み!$A$2:$O$506,6,0)) -> ［村］ちょうさん | S8: =IF(S6="","",VLOOKUP(S6,漢字読み!$A$2:$O$506,6,0)) -> ［虫］をとる | T8: =IF(T6="","",VLOOKUP(T6,漢字読み!$A$2:$O$506,6,0)) -> ［音］がくしつ | V8: 級
V9: 名前
A10: =IF(A6="","",IF(VLOOKUP(A6,漢字書き!$A$2:$N$502,7,0)=0,"",VLOOKUP(A6,漢字書き!$A$2:$N$502,7,0))) ->  | B10: =IF(B6="","",IF(VLOOKUP(B6,漢字書き!$A$2:$N$502,7,0)=0,"",VLOOKUP(B6,漢字書き!$A$2:$N$502,7,0))) ->  | C10: =IF(C6="","",IF(VLOOKUP(C6,漢字書き!$A$2:$N$502,7,0)=0,"",VLOOKUP(C6,漢字書き!$A$2:$N$502,7,0))) ->  | D10: =IF(D6="","",IF(VLOOKUP(D6,漢字書き!$A$2:$N$502,7,0)=0,"",VLOOKUP(D6,漢字書き!$A$2:$N$502,7,0))) ->  | E10: =IF(E6="","",IF(VLOOKUP(E6,漢字書き!$A$2:$N$502,7,0)=0,"",VLOOKUP(E6,漢字書き!$A$2:$N$502,7,0))) -> よう | F10: =IF(F6="","",IF(VLOOKUP(F6,漢字書き!$A$2:$N$502,7,0)=0,"",VLOOKUP(F6,漢字書き!$A$2:$N$502,7,0))) ->  | G10: =IF(G6="","",IF(VLOOKUP(G6,漢字書き!$A$2:$N$502,7,0)=0,"",VLOOKUP(G6,漢字書き!$A$2:$N$502,7,0))) -> る | H10: =IF(H6="","",IF(VLOOKUP(H6,漢字書き!$A$2:$N$502,7,0)=0,"",VLOOKUP(H6,漢字書き!$A$2:$N$502,7,0))) -> 先 | I10: =IF(I6="","",IF(VLOOKUP(I6,漢字書き!$A$2:$N$502,7,0)=0,"",VLOOKUP(I6,漢字書き!$A$2:$N$502,7,0))) -> 年 | J10: =IF(J6="","",IF(VLOOKUP(J6,漢字書き!$A$2:$N$502,7,0)=0,"",VLOOKUP(J6,漢字書き!$A$2:$N$502,7,0))) ->  | K10: =IF(K6="","",IF(VLOOKUP(K6,漢字読み!$A$2:$O$502,7,0)=0,"",VLOOKUP(K6,漢字読み!$A$2:$O$502,7,0))) -> い | L10: =IF(L6="","",IF(VLOOKUP(L6,漢字読み!$A$2:$O$502,7,0)=0,"",VLOOKUP(L6,漢字読み!$A$2:$O$502,7,0))) ->  | M10: =IF(M6="","",IF(VLOOKUP(M6,漢字読み!$A$2:$O$502,7,0)=0,"",VLOOKUP(M6,漢字読み!$A$2:$O$502,7,0))) ->  | N10: =IF(N6="","",IF(VLOOKUP(N6,漢字読み!$A$2:$O$502,7,0)=0,"",VLOOKUP(N6,漢字読み!$A$2:$O$502,7,0))) ->  | O10: =IF(O6="","",IF(VLOOKUP(O6,漢字読み!$A$2:$O$502,7,0)=0,"",VLOOKUP(O6,漢字読み!$A$2:$O$502,7,0))) ->  | P10: =IF(P6="","",IF(VLOOKUP(P6,漢字読み!$A$2:$O$502,7,0)=0,"",VLOOKUP(P6,漢字読み!$A$2:$O$502,7,0))) ->  | Q10: =IF(Q6="","",IF(VLOOKUP(Q6,漢字読み!$A$2:$O$502,7,0)=0,"",VLOOKUP(Q6,漢字読み!$A$2:$O$502,7,0))) -> たん | R10: =IF(R6="","",IF(VLOOKUP(R6,漢字読み!$A$2:$O$502,7,0)=0,"",VLOOKUP(R6,漢字読み!$A$2:$O$502,7,0))) -> ちょうさん | S10: =IF(S6="","",IF(VLOOKUP(S6,漢字読み!$A$2:$O$502,7,0)=0,"",VLOOKUP(S6,漢字読み!$A$2:$O$502,7,0))) ->  | T10: =IF(T6="","",IF(VLOOKUP(T6,漢字読み!$A$2:$O$502,7,0)=0,"",VLOOKUP(T6,漢字読み!$A$2:$O$502,7,0))) -> がく | W10: 和歌山県教育委員会
A11: ='関数（書き）'!$C$2 -> 171 | B11: ='関数（書き）'!$C$3 -> 118 | C11: ='関数（書き）'!$C$4 -> 114 | D11: ='関数（書き）'!$C$5 -> 110 | E11: ='関数（書き）'!$C$6 -> 85 | F11: ='関数（書き）'!$C$7 -> 44 | G11: ='関数（書き）'!$C$8 -> 6 | H11: ='関数（書き）'!$C$9 -> 50 | I11: ='関数（書き）'!$C$10 -> 8 | J11: ='関数（書き）'!$C$11 -> 123 | K11: ='関数（読み）'!$C$2 -> 182 | L11: ='関数（読み）'!$C$3 -> 24 | M11: ='関数（読み）'!$C$4 -> 171 | N11: ='関数（読み）'!$C$5 -> 153 | O11: ='関数（読み）'!$C$6 -> 184 | P11: ='関数（読み）'!$C$7 -> 172 | Q11: ='関数（読み）'!$C$8 -> 23 | R11: ='関数（読み）'!$C$9 -> 164 | S11: ='関数（読み）'!$C$10 -> 104 | T11: ='関数（読み）'!$C$11 -> 174
A12: ⑳ | B12: ⑲ | C12: ⑱ | D12: ⑰ | E12: ⑯ | F12: ⑮ | G12: ⑭ | H12: ⑬ | I12: ⑫ | J12: ⑪ | K12: ⑩ | L12: ⑨ | M12: ⑧ | N12: ⑦ | O12: ⑥ | P12: ⑤ | Q12: ④ | R12: ③ | S12: ② | T12: ① | U12: 次の［ ］の部分の漢字には読みがなをひらがなで書き、カタカナは漢字に直しなさい。 | V12: 15 | W12: 「漢字の博士検定試験」練習問題
A13: =IF(A11="","",VLOOKUP(A11,漢字書き!$A$2:$N$506,6,0)) -> ［チカラ］いっぱい | B13: =IF(B11="","",VLOOKUP(B11,漢字書き!$A$2:$N$506,6,0)) -> にわの［クサ］とり | C13: =IF(C11="","",VLOOKUP(C11,漢字書き!$A$2:$N$506,6,0)) -> ［ソウ］ちょう | D13: =IF(D11="","",VLOOKUP(D11,漢字書き!$A$2:$N$506,6,0)) -> ふかい［カワ］ | E13: =IF(E11="","",VLOOKUP(E11,漢字書き!$A$2:$N$506,6,0)) -> ［ジョウ］たつする | F13: =IF(F11="","",VLOOKUP(F11,漢字書き!$A$2:$N$506,6,0)) -> こわい［イヌ］ | G13: =IF(G11="","",VLOOKUP(G11,漢字書き!$A$2:$N$506,6,0)) -> ［アメ］がふる | H13: =IF(H11="","",VLOOKUP(H11,漢字書き!$A$2:$N$506,6,0)) -> ［クチ］に入れる | I13: =IF(I11="","",VLOOKUP(I11,漢字書き!$A$2:$N$506,6,0)) -> ［イチエン］玉 | J13: =IF(J11="","",VLOOKUP(J11,漢字書き!$A$2:$N$506,6,0)) -> ［ムラ］のまつり | K13: =IF(K11="","",VLOOKUP(K11,漢字読み!$A$2:$O$506,6,0)) -> ［力］いっぱい | L13: =IF(L11="","",VLOOKUP(L11,漢字読み!$A$2:$O$506,6,0)) -> ［貝］のもよう | M13: =IF(M11="","",VLOOKUP(M11,漢字読み!$A$2:$O$506,6,0)) -> ［本気］をだす | N13: =IF(N11="","",VLOOKUP(N11,漢字読み!$A$2:$O$506,6,0)) -> ［入学］手つづき | O13: =IF(O11="","",VLOOKUP(O11,漢字読み!$A$2:$O$506,6,0)) -> ［林］をあるく | P13: =IF(P11="","",VLOOKUP(P11,漢字読み!$A$2:$O$506,6,0)) -> ［本］をよむ | Q13: =IF(Q11="","",VLOOKUP(Q11,漢字読み!$A$2:$O$506,6,0)) -> ［貝］がらをあつめる | R13: =IF(R11="","",VLOOKUP(R11,漢字読み!$A$2:$O$506,6,0)) -> ［百］てんのテスト | S13: =IF(S11="","",VLOOKUP(S11,漢字読み!$A$2:$O$506,6,0)) -> ［生］クリーム | T13: =IF(T11="","",VLOOKUP(T11,漢字読み!$A$2:$O$506,6,0)) -> ［名字］をきく | V13: 級
A14: =IF(A$11="","",VLOOKUP(A$11,漢字書き!$A$2:$O$506,8,0)) -> 力 | B14: =IF(B$11="","",VLOOKUP(B$11,漢字書き!$A$2:$O$506,8,0)) -> 草 | C14: =IF(C$11="","",VLOOKUP(C$11,漢字書き!$A$2:$O$506,8,0)) -> 早 | D14: =IF(D$11="","",VLOOKUP(D$11,漢字書き!$A$2:$O$506,8,0)) -> 川 | E14: =IF(E$11="","",VLOOKUP(E$11,漢字書き!$A$2:$O$506,8,0)) -> 上 | F14: =IF(F$11="","",VLOOKUP(F$11,漢字書き!$A$2:$O$506,8,0)) -> 犬 | G14: =IF(G$11="","",VLOOKUP(G$11,漢字書き!$A$2:$O$506,8,0)) -> 雨 | H14: =IF(H$11="","",VLOOKUP(H$11,漢字書き!$A$2:$O$506,8,0)) -> 口 | I14: =IF(I$11="","",VLOOKUP(I$11,漢字書き!$A$2:$O$506,8,0)) -> 一円 | J14: =IF(J$11="","",VLOOKUP(J$11,漢字書き!$A$2:$O$506,8,0)) -> 村 | K14: =IF(K$11="","",VLOOKUP(K$11,漢字読み!$A$2:$O$506,8,0)) -> ちから | L14: =IF(L$11="","",VLOOKUP(L$11,漢字読み!$A$2:$O$506,8,0)) -> かい | M14: =IF(M$11="","",VLOOKUP(M$11,漢字読み!$A$2:$O$506,8,0)) -> ほんき | N14: =IF(N$11="","",VLOOKUP(N$11,漢字読み!$A$2:$O$506,8,0)) -> にゅうがく | O14: =IF(O$11="","",VLOOKUP(O$11,漢字読み!$A$2:$O$506,8,0)) -> はやし | P14: =IF(P$11="","",VLOOKUP(P$11,漢字読み!$A$2:$O$506,8,0)) -> ほん | Q14: =IF(Q$11="","",VLOOKUP(Q$11,漢字読み!$A$2:$O$506,8,0)) -> かい | R14: =IF(R$11="","",VLOOKUP(R$11,漢字読み!$A$2:$O$506,8,0)) -> ひゃく | S14: =IF(S$11="","",VLOOKUP(S$11,漢字読み!$A$2:$O$506,8,0)) -> なま | T14: =IF(T$11="","",VLOOKUP(T$11,漢字読み!$A$2:$O$506,8,0)) -> みょうじ | V14: 名前
A15: =IF(A11="","",IF(VLOOKUP(A11,漢字書き!$A$2:$N$502,7,0)=0,"",VLOOKUP(A11,漢字書き!$A$2:$N$502,7,0))) ->  | B15: =IF(B11="","",IF(VLOOKUP(B11,漢字書き!$A$2:$N$502,7,0)=0,"",VLOOKUP(B11,漢字書き!$A$2:$N$502,7,0))) -> とり | C15: =IF(C11="","",IF(VLOOKUP(C11,漢字書き!$A$2:$N$502,7,0)=0,"",VLOOKUP(C11,漢字書き!$A$2:$N$502,7,0))) -> ちょう | D15: =IF(D11="","",IF(VLOOKUP(D11,漢字書き!$A$2:$N$502,7,0)=0,"",VLOOKUP(D11,漢字書き!$A$2:$N$502,7,0))) ->  | E15: =IF(E11="","",IF(VLOOKUP(E11,漢字書き!$A$2:$N$502,7,0)=0,"",VLOOKUP(E11,漢字書き!$A$2:$N$502,7,0))) -> たつ | F15: =IF(F11="","",IF(VLOOKUP(F11,漢字書き!$A$2:$N$502,7,0)=0,"",VLOOKUP(F11,漢字書き!$A$2:$N$502,7,0))) ->  | G15: =IF(G11="","",IF(VLOOKUP(G11,漢字書き!$A$2:$N$502,7,0)=0,"",VLOOKUP(G11,漢字書き!$A$2:$N$502,7,0))) ->  | H15: =IF(H11="","",IF(VLOOKUP(H11,漢字書き!$A$2:$N$502,7,0)=0,"",VLOOKUP(H11,漢字書き!$A$2:$N$502,7,0))) ->  | I15: =IF(I11="","",IF(VLOOKUP(I11,漢字書き!$A$2:$N$502,7,0)=0,"",VLOOKUP(I11,漢字書き!$A$2:$N$502,7,0))) -> 玉 | J15: =IF(J11="","",IF(VLOOKUP(J11,漢字書き!$A$2:$N$502,7,0)=0,"",VLOOKUP(J11,漢字書き!$A$2:$N$502,7,0))) ->  | K15: =IF(K11="","",IF(VLOOKUP(K11,漢字読み!$A$2:$O$502,7,0)=0,"",VLOOKUP(K11,漢字読み!$A$2:$O$502,7,0))) ->  | L15: =IF(L11="","",IF(VLOOKUP(L11,漢字読み!$A$2:$O$502,7,0)=0,"",VLOOKUP(L11,漢字読み!$A$2:$O$502,7,0))) ->  | M15: =IF(M11="","",IF(VLOOKUP(M11,漢字読み!$A$2:$O$502,7,0)=0,"",VLOOKUP(M11,漢字読み!$A$2:$O$502,7,0))) ->  | N15: =IF(N11="","",IF(VLOOKUP(N11,漢字読み!$A$2:$O$502,7,0)=0,"",VLOOKUP(N11,漢字読み!$A$2:$O$502,7,0))) ->  | O15: =IF(O11="","",IF(VLOOKUP(O11,漢字読み!$A$2:$O$502,7,0)=0,"",VLOOKUP(O11,漢字読み!$A$2:$O$502,7,0))) ->  | P15: =IF(P11="","",IF(VLOOKUP(P11,漢字読み!$A$2:$O$502,7,0)=0,"",VLOOKUP(P11,漢字読み!$A$2:$O$502,7,0))) ->  | Q15: =IF(Q11="","",IF(VLOOKUP(Q11,漢字読み!$A$2:$O$502,7,0)=0,"",VLOOKUP(Q11,漢字読み!$A$2:$O$502,7,0))) -> がら | R15: =IF(R11="","",IF(VLOOKUP(R11,漢字読み!$A$2:$O$502,7,0)=0,"",VLOOKUP(R11,漢字読み!$A$2:$O$502,7,0))) -> てん | S15: =IF(S11="","",IF(VLOOKUP(S11,漢字読み!$A$2:$O$502,7,0)=0,"",VLOOKUP(S11,漢字読み!$A$2:$O$502,7,0))) -> クリーム | T15: =IF(T11="","",IF(VLOOKUP(T11,漢字読み!$A$2:$O$502,7,0)=0,"",VLOOKUP(T11,漢字読み!$A$2:$O$502,7,0))) ->  | W15: 和歌山県教育委員会
A16: ='関数（書き）'!$C$12 -> 88 | B16: ='関数（書き）'!$C$13 -> 41 | C16: ='関数（書き）'!$C$14 -> 151 | D16: ='関数（書き）'!$C$15 -> 158 | E16: ='関数（書き）'!$C$16 -> 40 | F16: ='関数（書き）'!$C$17 -> 112 | G16: ='関数（書き）'!$C$18 -> 46 | H16: ='関数（書き）'!$C$19 -> 75 | I16: ='関数（書き）'!$C$20 -> 175 | J16: ='関数（書き）'!$C$21 -> 141 | K16: ='関数（読み）'!$C$12 -> 159 | L16: ='関数（読み）'!$C$13 -> 160 | M16: ='関数（読み）'!$C$14 -> 91 | N16: ='関数（読み）'!$C$15 -> 167 | O16: ='関数（読み）'!$C$16 -> 66 | P16: ='関数（読み）'!$C$17 -> 72 | Q16: ='関数（読み）'!$C$18 -> 110 | R16: ='関数（読み）'!$C$19 -> 127 | S16: ='関数（読み）'!$C$20 -> 139 | T16: ='関数（読み）'!$C$21 -> 12
A17: ⑳ | B17: ⑲ | C17: ⑱ | D17: ⑰ | E17: ⑯ | F17: ⑮ | G17: ⑭ | H17: ⑬ | I17: ⑫ | J17: ⑪ | K17: ⑩ | L17: ⑨ | M17: ⑧ | N17: ⑦ | O17: ⑥ | P17: ⑤ | Q17: ④ | R17: ③ | S17: ② | T17: ① | U17: 次の［ ］の部分の漢字には読みがなをひらがなで書き、カタカナは漢字に直しなさい。 | V17: 15 | W17: 「漢字の博士検定試験」練習問題
A18: =IF(A16="","",VLOOKUP(A16,漢字書き!$A$2:$N$506,6,0)) -> ［モリ］のくまさん | B18: =IF(B16="","",VLOOKUP(B16,漢字書き!$A$2:$N$506,6,0)) -> ［ツキ］へのたび | C18: =IF(C16="","",VLOOKUP(C16,漢字書き!$A$2:$N$506,6,0)) -> あたらしい［トシ］ | D18: =IF(D16="","",VLOOKUP(D16,漢字書き!$A$2:$N$506,6,0)) -> ［ブンガク］をよむ | E18: =IF(E16="","",VLOOKUP(E16,漢字書き!$A$2:$N$506,6,0)) -> ［ゲツ］よう日 | F18: =IF(F16="","",VLOOKUP(F16,漢字書き!$A$2:$N$506,6,0)) -> ［センセイ］にはなす | G18: =IF(G16="","",VLOOKUP(G16,漢字書き!$A$2:$N$506,6,0)) -> まえを［ミ］る | H18: =IF(H16="","",VLOOKUP(H16,漢字書き!$A$2:$N$506,6,0)) -> ［ジュウネン］先 | I18: =IF(I16="","",VLOOKUP(I16,漢字書き!$A$2:$N$506,6,0)) -> ［ロク］年生 | J18: =IF(J16="","",VLOOKUP(J16,漢字書き!$A$2:$N$506,6,0)) -> ねん［ド］であそぶ | K18: =IF(K16="","",VLOOKUP(K16,漢字読み!$A$2:$O$506,6,0)) -> ［白］いくも | L18: =IF(L16="","",VLOOKUP(L16,漢字読み!$A$2:$O$506,6,0)) -> ［八月］がすき | M18: =IF(M16="","",VLOOKUP(M16,漢字読み!$A$2:$O$506,6,0)) -> ［日本人］ | N18: =IF(N16="","",VLOOKUP(N16,漢字読み!$A$2:$O$506,6,0)) -> ［木目］にそう | O18: =IF(O16="","",VLOOKUP(O16,漢字読み!$A$2:$O$506,6,0)) -> ［糸］でんわ | P18: =IF(P16="","",VLOOKUP(P16,漢字読み!$A$2:$O$506,6,0)) -> きゅうきゅう［車］ | Q18: =IF(Q16="","",VLOOKUP(Q16,漢字読み!$A$2:$O$506,6,0)) -> ［石］たんをほる | R18: =IF(R16="","",VLOOKUP(R16,漢字読み!$A$2:$O$506,6,0)) -> ［村］ちょうさん | S18: =IF(S16="","",VLOOKUP(S16,漢字読み!$A$2:$O$506,6,0)) -> ［虫］をとる | T18: =IF(T16="","",VLOOKUP(T16,漢字読み!$A$2:$O$506,6,0)) -> ［音］がくしつ | V18: 級
A19: =IF(A$16="","",VLOOKUP(A$16,漢字書き!$A$2:$O$506,8,0)) -> 森 | B19: =IF(B$16="","",VLOOKUP(B$16,漢字書き!$A$2:$O$506,8,0)) -> 月 | C19: =IF(C$16="","",VLOOKUP(C$16,漢字書き!$A$2:$O$506,8,0)) -> 年 | D19: =IF(D$16="","",VLOOKUP(D$16,漢字書き!$A$2:$O$506,8,0)) -> 文学 | E19: =IF(E$16="","",VLOOKUP(E$16,漢字書き!$A$2:$O$506,8,0)) -> 月 | F19: =IF(F$16="","",VLOOKUP(F$16,漢字書き!$A$2:$O$506,8,0)) -> 先生 | G19: =IF(G$16="","",VLOOKUP(G$16,漢字書き!$A$2:$O$506,8,0)) -> 見 | H19: =IF(H$16="","",VLOOKUP(H$16,漢字書き!$A$2:$O$506,8,0)) -> 十年 | I19: =IF(I$16="","",VLOOKUP(I$16,漢字書き!$A$2:$O$506,8,0)) -> 六 | J19: =IF(J$16="","",VLOOKUP(J$16,漢字書き!$A$2:$O$506,8,0)) -> 土 | K19: =IF(K$16="","",VLOOKUP(K$16,漢字読み!$A$2:$O$506,8,0)) -> しろ | L19: =IF(L$16="","",VLOOKUP(L$16,漢字読み!$A$2:$O$506,8,0)) -> はちがつ | M19: =IF(M$16="","",VLOOKUP(M$16,漢字読み!$A$2:$O$506,8,0)) -> にほんじん | N19: =IF(N$16="","",VLOOKUP(N$16,漢字読み!$A$2:$O$506,8,0)) -> もくめ | O19: =IF(O$16="","",VLOOKUP(O$16,漢字読み!$A$2:$O$506,8,0)) -> いと | P19: =IF(P$16="","",VLOOKUP(P$16,漢字読み!$A$2:$O$506,8,0)) -> しゃ | Q19: =IF(Q$16="","",VLOOKUP(Q$16,漢字読み!$A$2:$O$506,8,0)) -> せき | R19: =IF(R$16="","",VLOOKUP(R$16,漢字読み!$A$2:$O$506,8,0)) -> そん | S19: =IF(S$16="","",VLOOKUP(S$16,漢字読み!$A$2:$O$506,8,0)) -> むし | T19: =IF(T$16="","",VLOOKUP(T$16,漢字読み!$A$2:$O$506,8,0)) -> おん | V19: 名前
A20: =IF(A16="","",IF(VLOOKUP(A16,漢字書き!$A$2:$N$502,7,0)=0,"",VLOOKUP(A16,漢字書き!$A$2:$N$502,7,0))) ->  | B20: =IF(B16="","",IF(VLOOKUP(B16,漢字書き!$A$2:$N$502,7,0)=0,"",VLOOKUP(B16,漢字書き!$A$2:$N$502,7,0))) ->  | C20: =IF(C16="","",IF(VLOOKUP(C16,漢字書き!$A$2:$N$502,7,0)=0,"",VLOOKUP(C16,漢字書き!$A$2:$N$502,7,0))) ->  | D20: =IF(D16="","",IF(VLOOKUP(D16,漢字書き!$A$2:$N$502,7,0)=0,"",VLOOKUP(D16,漢字書き!$A$2:$N$502,7,0))) ->  | E20: =IF(E16="","",IF(VLOOKUP(E16,漢字書き!$A$2:$N$502,7,0)=0,"",VLOOKUP(E16,漢字書き!$A$2:$N$502,7,0))) -> よう | F20: =IF(F16="","",IF(VLOOKUP(F16,漢字書き!$A$2:$N$502,7,0)=0,"",VLOOKUP(F16,漢字書き!$A$2:$N$502,7,0))) ->  | G20: =IF(G16="","",IF(VLOOKUP(G16,漢字書き!$A$2:$N$502,7,0)=0,"",VLOOKUP(G16,漢字書き!$A$2:$N$502,7,0))) -> る | H20: =IF(H16="","",IF(VLOOKUP(H16,漢字書き!$A$2:$N$502,7,0)=0,"",VLOOKUP(H16,漢字書き!$A$2:$N$502,7,0))) -> 先 | I20: =IF(I16="","",IF(VLOOKUP(I16,漢字書き!$A$2:$N$502,7,0)=0,"",VLOOKUP(I16,漢字書き!$A$2:$N$502,7,0))) -> 年 | J20: =IF(J16="","",IF(VLOOKUP(J16,漢字書き!$A$2:$N$502,7,0)=0,"",VLOOKUP(J16,漢字書き!$A$2:$N$502,7,0))) ->  | K20: =IF(K16="","",IF(VLOOKUP(K16,漢字読み!$A$2:$O$502,7,0)=0,"",VLOOKUP(K16,漢字読み!$A$2:$O$502,7,0))) -> い | L20: =IF(L16="","",IF(VLOOKUP(L16,漢字読み!$A$2:$O$502,7,0)=0,"",VLOOKUP(L16,漢字読み!$A$2:$O$502,7,0))) ->  | M20: =IF(M16="","",IF(VLOOKUP(M16,漢字読み!$A$2:$O$502,7,0)=0,"",VLOOKUP(M16,漢字読み!$A$2:$O$502,7,0))) ->  | N20: =IF(N16="","",IF(VLOOKUP(N16,漢字読み!$A$2:$O$502,7,0)=0,"",VLOOKUP(N16,漢字読み!$A$2:$O$502,7,0))) ->  | O20: =IF(O16="","",IF(VLOOKUP(O16,漢字読み!$A$2:$O$502,7,0)=0,"",VLOOKUP(O16,漢字読み!$A$2:$O$502,7,0))) ->  | P20: =IF(P16="","",IF(VLOOKUP(P16,漢字読み!$A$2:$O$502,7,0)=0,"",VLOOKUP(P16,漢字読み!$A$2:$O$502,7,0))) ->  | Q20: =IF(Q16="","",IF(VLOOKUP(Q16,漢字読み!$A$2:$O$502,7,0)=0,"",VLOOKUP(Q16,漢字読み!$A$2:$O$502,7,0))) -> たん | R20: =IF(R16="","",IF(VLOOKUP(R16,漢字読み!$A$2:$O$502,7,0)=0,"",VLOOKUP(R16,漢字読み!$A$2:$O$502,7,0))) -> ちょうさん | S20: =IF(S16="","",IF(VLOOKUP(S16,漢字読み!$A$2:$O$502,7,0)=0,"",VLOOKUP(S16,漢字読み!$A$2:$O$502,7,0))) ->  | T20: =IF(T16="","",IF(VLOOKUP(T16,漢字読み!$A$2:$O$502,7,0)=0,"",VLOOKUP(T16,漢字読み!$A$2:$O$502,7,0))) -> がく | W20: 和歌山県教育委員会

Sheet 網羅問題（関数）
A1: =INDIRECT("'関数（書き）'!C" & COLUMN(B$1)+SUM($AD$2:$AD2)) -> 171 | B1: =INDIRECT("'関数（書き）'!C" & COLUMN(C$1)+SUM($AD$2:$AD2)) -> 118 | C1: =INDIRECT("'関数（書き）'!C" & COLUMN(D$1)+SUM($AD$2:$AD2)) -> 114 | D1: =INDIRECT("'関数（書き）'!C" & COLUMN(E$1)+SUM($AD$2:$AD2)) -> 110 | E1: =INDIRECT("'関数（書き）'!C" & COLUMN(F$1)+SUM($AD$2:$AD2)) -> 85 | F1: =INDIRECT("'関数（書き）'!C" & COLUMN(G$1)+SUM($AD$2:$AD2)) -> 44 | G1: =INDIRECT("'関数（書き）'!C" & COLUMN(H$1)+SUM($AD$2:$AD2)) -> 6 | H1: =INDIRECT("'関数（書き）'!C" & COLUMN(I$1)+SUM($AD$2:$AD2)) -> 50 | I1: =INDIRECT("'関数（書き）'!C" & COLUMN(J$1)+SUM($AD$2:$AD2)) -> 8 | J1: =INDIRECT("'関数（書き）'!C" & COLUMN(K$1)+SUM($AD$2:$AD2)) -> 123 | K1: =INDIRECT("'関数（読み）'!C" & COLUMN(B$1)+SUM($AD$2:$AD2)) -> 182 | L1: =INDIRECT("'関数（読み）'!C" & COLUMN(C$1)+SUM($AD$2:$AD2)) -> 24 | M1: =INDIRECT("'関数（読み）'!C" & COLUMN(D$1)+SUM($AD$2:$AD2)) -> 171 | N1: =INDIRECT("'関数（読み）'!C" & COLUMN(E$1)+SUM($AD$2:$AD2)) -> 153 | O1: =INDIRECT("'関数（読み）'!C" & COLUMN(F$1)+SUM($AD$2:$AD2)) -> 184 | P1: =INDIRECT("'関数（読み）'!C" & COLUMN(G$1)+SUM($AD$2:$AD2)) -> 172 | Q1: =INDIRECT("'関数（読み）'!C" & COLUMN(H$1)+SUM($AD$2:$AD2)) -> 23 | R1: =INDIRECT("'関数（読み）'!C" & COLUMN(I$1)+SUM($AD$2:$AD2)) -> 164 | S1: =INDIRECT("'関数（読み）'!C" & COLUMN(J$1)+SUM($AD$2:$AD2)) -> 104 | T1: =INDIRECT("'関数（読み）'!C" & COLUMN(K$1)+SUM($AD$2:$AD2)) -> 174
A2: ⑳ | B2: ⑲ | C2: ⑱ | D2: ⑰ | E2: ⑯ | F2: ⑮ | G2: ⑭ | H2: ⑬ | I2: ⑫ | J2: ⑪ | K2: ⑩ | L2: ⑨ | M2: ⑧ | N2: ⑦ | O2: ⑥ | P2: ⑤ | Q2: ④ | R2: ③ | S2: ② | T2: ① | U2: 次の［ ］の部分の漢字には読みがなをひらがなで書き、カタカナは漢字に直しなさい。 | V2: 15 | W2: 「漢字の博士検定試験」練習問題 | AD2: 0 | AE2: 問 | AF2: 1 | AG2: ～ | AH2: =SUM($AD$2:$AD2)+10 -> 10 | AI2: 問まで | AJ2: =COUNTIF($A$1:$T$200,T3) -> 2
A3: =IF(A1="","",VLOOKUP(A1,漢字書き!$A$2:$N$506,6,0)) -> ［チカラ］いっぱい | B3: =IF(B1="","",VLOOKUP(B1,漢字書き!$A$2:$N$506,6,0)) -> にわの［クサ］とり | C3: =IF(C1="","",VLOOKUP(C1,漢字書き!$A$2:$N$506,6,0)) -> ［ソウ］ちょう | D3: =IF(D1="","",VLOOKUP(D1,漢字書き!$A$2:$N$506,6,0)) -> ふかい［カワ］ | E3: =IF(E1="","",VLOOKUP(E1,漢字書き!$A$2:$N$506,6,0)) -> ［ジョウ］たつする | F3: =IF(F1="","",VLOOKUP(F1,漢字書き!$A$2:$N$506,6,0)) -> こわい［イヌ］ | G3: =IF(G1="","",VLOOKUP(G1,漢字書き!$A$2:$N$506,6,0)) -> ［アメ］がふる | H3: =IF(H1="","",VLOOKUP(H1,漢字書き!$A$2:$N$506,6,0)) -> ［クチ］に入れる | I3: =IF(I1="","",VLOOKUP(I1,漢字書き!$A$2:$N$506,6,0)) -> ［イチエン］玉 | J3: =IF(J1="","",VLOOKUP(J1,漢字書き!$A$2:$N$506,6,0)) -> ［ムラ］のまつり | K3: =IF(K1="","",VLOOKUP(K1,漢字読み!$A$2:$O$506,6,0)) -> ［力］いっぱい | L3: =IF(L1="","",VLOOKUP(L1,漢字読み!$A$2:$O$506,6,0)) -> ［貝］のもよう | M3: =IF(M1="","",VLOOKUP(M1,漢字読み!$A$2:$O$506,6,0)) -> ［本気］をだす | N3: =IF(N1="","",VLOOKUP(N1,漢字読み!$A$2:$O$506,6,0)) -> ［入学］手つづき | O3: =IF(O1="","",VLOOKUP(O1,漢字読み!$A$2:$O$506,6,0)) -> ［林］をあるく | P3: =IF(P1="","",VLOOKUP(P1,漢字読み!$A$2:$O$506,6,0)) -> ［本］をよむ | Q3: =IF(Q1="","",VLOOKUP(Q1,漢字読み!$A$2:$O$506,6,0)) -> ［貝］がらをあつめる | R3: =IF(R1="","",VLOOKUP(R1,漢字読み!$A$2:$O$506,6,0)) -> ［百］てんのテスト | S3: =IF(S1="","",VLOOKUP(S1,漢字読み!$A$2:$O$506,6,0)) -> ［生］クリーム | T3: =IF(T1="","",VLOOKUP(T1,漢字読み!$A$2:$O$506,6,0)) -> ［名字］をきく | V3: 級
V4: 名前
A5: =IF(A1="","",IF(VLOOKUP(A1,漢字書き!$A$2:$N$502,7,0)=0,"",VLOOKUP(A1,漢字書き!$A$2:$N$502,7,0))) ->  | B5: =IF(B1="","",IF(VLOOKUP(B1,漢字書き!$A$2:$N$502,7,0)=0,"",VLOOKUP(B1,漢字書き!$A$2:$N$502,7,0))) -> とり | C5: =IF(C1="","",IF(VLOOKUP(C1,漢字書き!$A$2:$N$502,7,0)=0,"",VLOOKUP(C1,漢字書き!$A$2:$N$502,7,0))) -> ちょう | D5: =IF(D1="","",IF(VLOOKUP(D1,漢字書き!$A$2:$N$502,7,0)=0,"",VLOOKUP(D1,漢字書き!$A$2:$N$502,7,0))) ->  | E5: =IF(E1="","",IF(VLOOKUP(E1,漢字書き!$A$2:$N$502,7,0)=0,"",VLOOKUP(E1,漢字書き!$A$2:$N$502,7,0))) -> たつ | F5: =IF(F1="","",IF(VLOOKUP(F1,漢字書き!$A$2:$N$502,7,0)=0,"",VLOOKUP(F1,漢字書き!$A$2:$N$502,7,0))) ->  | G5: =IF(G1="","",IF(VLOOKUP(G1,漢字書き!$A$2:$N$502,7,0)=0,"",VLOOKUP(G1,漢字書き!$A$2:$N$502,7,0))) ->  | H5: =IF(H1="","",IF(VLOOKUP(H1,漢字書き!$A$2:$N$502,7,0)=0,"",VLOOKUP(H1,漢字書き!$A$2:$N$502,7,0))) ->  | I5: =IF(I1="","",IF(VLOOKUP(I1,漢字書き!$A$2:$N$502,7,0)=0,"",VLOOKUP(I1,漢字書き!$A$2:$N$502,7,0))) -> 玉 | J5: =IF(J1="","",IF(VLOOKUP(J1,漢字書き!$A$2:$N$502,7,0)=0,"",VLOOKUP(J1,漢字書き!$A$2:$N$502,7,0))) ->  | K5: =IF(K1="","",IF(VLOOKUP(K1,漢字読み!$A$2:$O$502,7,0)=0,"",VLOOKUP(K1,漢字読み!$A$2:$O$502,7,0))) ->  | L5: =IF(L1="","",IF(VLOOKUP(L1,漢字読み!$A$2:$O$502,7,0)=0,"",VLOOKUP(L1,漢字読み!$A$2:$O$502,7,0))) ->  | M5: =IF(M1="","",IF(VLOOKUP(M1,漢字読み!$A$2:$O$502,7,0)=0,"",VLOOKUP(M1,漢字読み!$A$2:$O$502,7,0))) ->  | N5: =IF(N1="","",IF(VLOOKUP(N1,漢字読み!$A$2:$O$502,7,0)=0,"",VLOOKUP(N1,漢字読み!$A$2:$O$502,7,0))) ->  | O5: =IF(O1="","",IF(VLOOKUP(O1,漢字読み!$A$2:$O$502,7,0)=0,"",VLOOKUP(O1,漢字読み!$A$2:$O$502,7,0))) ->  | P5: =IF(P1="","",IF(VLOOKUP(P1,漢字読み!$A$2:$O$502,7,0)=0,"",VLOOKUP(P1,漢字読み!$A$2:$O$502,7,0))) ->  | Q5: =IF(Q1="","",IF(VLOOKUP(Q1,漢字読み!$A$2:$O$502,7,0)=0,"",VLOOKUP(Q1,漢字読み!$A$2:$O$502,7,0))) -> がら | R5: =IF(R1="","",IF(VLOOKUP(R1,漢字読み!$A$2:$O$502,7,0)=0,"",VLOOKUP(R1,漢字読み!$A$2:$O$502,7,0))) -> てん | S5: =IF(S1="","",IF(VLOOKUP(S1,漢字読み!$A$2:$O$502,7,0)=0,"",VLOOKUP(S1,漢字読み!$A$2:$O$502,7,0))) -> クリーム | T5: =IF(T1="","",IF(VLOOKUP(T1,漢字読み!$A$2:$O$502,7,0)=0,"",VLOOKUP(T1,漢字読み!$A$2:$O$502,7,0))) ->  | W5: 和歌山県教育委員会
A6: =INDIRECT("'関数（書き）'!C" & COLUMN(B$1)+SUM($AD$2:$AD7)) -> 88 | B6: =INDIRECT("'関数（書き）'!C" & COLUMN(C$1)+SUM($AD$2:$AD7)) -> 41 | C6: =INDIRECT("'関数（書き）'!C" & COLUMN(D$1)+SUM($AD$2:$AD7)) -> 151 | D6: =INDIRECT("'関数（書き）'!C" & COLUMN(E$1)+SUM($AD$2:$AD7)) -> 158 | E6: =INDIRECT("'関数（書き）'!C" & COLUMN(F$1)+SUM($AD$2:$AD7)) -> 40 | F6: =INDIRECT("'関数（書き）'!C" & COLUMN(G$1)+SUM($AD$2:$AD7)) -> 112 | G6: =INDIRECT("'関数（書き）'!C" & COLUMN(H$1)+SUM($AD$2:$AD7)) -> 46 | H6: =INDIRECT("'関数（書き）'!C" & COLUMN(I$1)+SUM($AD$2:$AD7)) -> 75 | I6: =INDIRECT("'関数（書き）'!C" & COLUMN(J$1)+SUM($AD$2:$AD7)) -> 175 | J6: =INDIRECT("'関数（書き）'!C" & COLUMN(K$1)+SUM($AD$2:$AD7)) -> 141 | K6: =INDIRECT("'関数（読み）'!C" & COLUMN(B$1)+SUM($AD$2:$AD7)) -> 159 | L6: =INDIRECT("'関数（読み）'!C" & COLUMN(C$1)+SUM($AD$2:$AD7)) -> 160 | M6: =INDIRECT("'関数（読み）'!C" & COLUMN(D$1)+SUM($AD$2:$AD7)) -> 91 | N6: =INDIRECT("'関数（読み）'!C" & COLUMN(E$1)+SUM($AD$2:$AD7)) -> 167 | O6: =INDIRECT("'関数（読み）'!C" & COLUMN(F$1)+SUM($AD$2:$AD7)) -> 66 | P6: =INDIRECT("'関数（読み）'!C" & COLUMN(G$1)+SUM($AD$2:$AD7)) -> 72 | Q6: =INDIRECT("'関数（読み）'!C" & COLUMN(H$1)+SUM($AD$2:$AD7)) -> 110 | R6: =INDIRECT("'関数（読み）'!C" & COLUMN(I$1)+SUM($AD$2:$AD7)) -> 127 | S6: =INDIRECT("'関数（読み）'!C" & COLUMN(J$1)+SUM($AD$2:$AD7)) -> 139 | T6: =INDIRECT("'関数（読み）'!C" & COLUMN(K$1)+SUM($AD$2:$AD7)) -> 12
A7: ⑳ | B7: ⑲ | C7: ⑱ | D7: ⑰ | E7: ⑯ | F7: ⑮ | G7: ⑭ | H7: ⑬ | I7: ⑫ | J7: ⑪ | K7: ⑩ | L7: ⑨ | M7: ⑧ | N7: ⑦ | O7: ⑥ | P7: ⑤ | Q7: ④ | R7: ③ | S7: ② | T7: ① | U7: 次の［ ］の部分の漢字には読みがなをひらがなで書き、カタカナは漢字に直しなさい。 | V7: 15 | W7: 「漢字の博士検定試験」練習問題 | AC7: ← | AD7: 10 | AE7: 問 | AF7: =AH2+1 -> 11 | AG7: ～ | AH7: =SUM($AD$2:$AD7)+10 -> 20 | AI7: 問まで | AJ7: =COUNTIF($A$1:$T$200,T8) -> 2
A8: =IF(A6="","",VLOOKUP(A6,漢字書き!$A$2:$N$506,6,0)) -> ［モリ］のくまさん | B8: =IF(B6="","",VLOOKUP(B6,漢字書き!$A$2:$N$506,6,0)) -> ［ツキ］へのたび | C8: =IF(C6="","",VLOOKUP(C6,漢字書き!$A$2:$N$506,6,0)) -> あたらしい［トシ］ | D8: =IF(D6="","",VLOOKUP(D6,漢字書き!$A$2:$N$506,6,0)) -> ［ブンガク］をよむ | E8: =IF(E6="","",VLOOKUP(E6,漢字書き!$A$2:$N$506,6,0)) -> ［ゲツ］よう日 | F8: =IF(F6="","",VLOOKUP(F6,漢字書き!$A$2:$N$506,6,0)) -> ［センセイ］にはなす | G8: =IF(G6="","",VLOOKUP(G6,漢字書き!$A$2:$N$506,6,0)) -> まえを［ミ］る | H8: =IF(H6="","",VLOOKUP(H6,漢字書き!$A$2:$N$506,6,0)) -> ［ジュウネン］先 | I8: =IF(I6="","",VLOOKUP(I6,漢字書き!$A$2:$N$506,6,0)) -> ［ロク］年生 | J8: =IF(J6="","",VLOOKUP(J6,漢字書き!$A$2:$N$506,6,0)) -> ねん［ド］であそぶ | K8: =IF(K6="","",VLOOKUP(K6,漢字読み!$A$2:$O$506,6,0)) -> ［白］いくも | L8: =IF(L6="","",VLOOKUP(L6,漢字読み!$A$2:$O$506,6,0)) -> ［八月］がすき | M8: =IF(M6="","",VLOOKUP(M6,漢字読み!$A$2:$O$506,6,0)) -> ［日本人］ | N8: =IF(N6="","",VLOOKUP(N6,漢字読み!$A$2:$O$506,6,0)) -> ［木目］にそう | O8: =IF(O6="","",VLOOKUP(O6,漢字読み!$A$2:$O$506,6,0)) -> ［糸］でんわ | P8: =IF(P6="","",VLOOKUP(P6,漢字読み!$A$2:$O$506,6,0)) -> きゅうきゅう［車］ | Q8: =IF(Q6="","",VLOOKUP(Q6,漢字読み!$A$2:$O$506,6,0)) -> ［石］たんをほる | R8: =IF(R6="","",VLOOKUP(R6,漢字読み!$A$2:$O$506,6,0)) -> ［村］ちょうさん | S8: =IF(S6="","",VLOOKUP(S6,漢字読み!$A$2:$O$506,6,0)) -> ［虫］をとる | T8: =IF(T6="","",VLOOKUP(T6,漢字読み!$A$2:$O$506,6,0)) -> ［音］がくしつ | V8: 級
V9: 名前
A10: =IF(A6="","",IF(VLOOKUP(A6,漢字書き!$A$2:$N$502,7,0)=0,"",VLOOKUP(A6,漢字書き!$A$2:$N$502,7,0))) ->  | B10: =IF(B6="","",IF(VLOOKUP(B6,漢字書き!$A$2:$N$502,7,0)=0,"",VLOOKUP(B6,漢字書き!$A$2:$N$502,7,0))) ->  | C10: =IF(C6="","",IF(VLOOKUP(C6,漢字書き!$A$2:$N$502,7,0)=0,"",VLOOKUP(C6,漢字書き!$A$2:$N$502,7,0))) ->  | D10: =IF(D6="","",IF(VLOOKUP(D6,漢字書き!$A$2:$N$502,7,0)=0,"",VLOOKUP(D6,漢字書き!$A$2:$N$502,7,0))) ->  | E10: =IF(E6="","",IF(VLOOKUP(E6,漢字書き!$A$2:$N$502,7,0)=0,"",VLOOKUP(E6,漢字書き!$A$2:$N$502,7,0))) -> よう | F10: =IF(F6="","",IF(VLOOKUP(F6,漢字書き!$A$2:$N$502,7,0)=0,"",VLOOKUP(F6,漢字書き!$A$2:$N$502,7,0))) ->  | G10: =IF(G6="","",IF(VLOOKUP(G6,漢字書き!$A$2:$N$502,7,0)=0,"",VLOOKUP(G6,漢字書き!$A$2:$N$502,7,0))) -> る | H10: =IF(H6="","",IF(VLOOKUP(H6,漢字書き!$A$2:$N$502,7,0)=0,"",VLOOKUP(H6,漢字書き!$A$2:$N$502,7,0))) -> 先 | I10: =IF(I6="","",IF(VLOOKUP(I6,漢字書き!$A$2:$N$502,7,0)=0,"",VLOOKUP(I6,漢字書き!$A$2:$N$502,7,0))) -> 年 | J10: =IF(J6="","",IF(VLOOKUP(J6,漢字書き!$A$2:$N$502,7,0)=0,"",VLOOKUP(J6,漢字書き!$A$2:$N$502,7,0))) ->  | K10: =IF(K6="","",IF(VLOOKUP(K6,漢字読み!$A$2:$O$502,7,0)=0,"",VLOOKUP(K6,漢字読み!$A$2:$O$502,7,0))) -> い | L10: =IF(L6="","",IF(VLOOKUP(L6,漢字読み!$A$2:$O$502,7,0)=0,"",VLOOKUP(L6,漢字読み!$A$2:$O$502,7,0))) ->  | M10: =IF(M6="","",IF(VLOOKUP(M6,漢字読み!$A$2:$O$502,7,0)=0,"",VLOOKUP(M6,漢字読み!$A$2:$O$502,7,0))) ->  | N10: =IF(N6="","",IF(VLOOKUP(N6,漢字読み!$A$2:$O$502,7,0)=0,"",VLOOKUP(N6,漢字読み!$A$2:$O$502,7,0))) ->  | O10: =IF(O6="","",IF(VLOOKUP(O6,漢字読み!$A$2:$O$502,7,0)=0,"",VLOOKUP(O6,漢字読み!$A$2:$O$502,7,0))) ->  | P10: =IF(P6="","",IF(VLOOKUP(P6,漢字読み!$A$2:$O$502,7,0)=0,"",VLOOKUP(P6,漢字読み!$A$2:$O$502,7,0))) ->  | Q10: =IF(Q6="","",IF(VLOOKUP(Q6,漢字読み!$A$2:$O$502,7,0)=0,"",VLOOKUP(Q6,漢字読み!$A$2:$O$502,7,0))) -> たん | R10: =IF(R6="","",IF(VLOOKUP(R6,漢字読み!$A$2:$O$502,7,0)=0,"",VLOOKUP(R6,漢字読み!$A$2:$O$502,7,0))) -> ちょうさん | S10: =IF(S6="","",IF(VLOOKUP(S6,漢字読み!$A$2:$O$502,7,0)=0,"",VLOOKUP(S6,漢字読み!$A$2:$O$502,7,0))) ->  | T10: =IF(T6="","",IF(VLOOKUP(T6,漢字読み!$A$2:$O$502,7,0)=0,"",VLOOKUP(T6,漢字読み!$A$2:$O$502,7,0))) -> がく | W10: 和歌山県教育委員会
A11: =A1 -> 171 | B11: =B1 -> 118 | C11: 114 | D11: 110 | E11: 85 | F11: 44 | G11: 6 | H11: 50 | I11: 8 | J11: 123 | K11: 182 | L11: 24 | M11: 171 | N11: 153 | O11: 184 | P11: 172 | Q11: 23 | R11: 164 | S11: 104 | T11: 174
A12: ⑳ | B12: ⑲ | C12: ⑱ | D12: ⑰ | E12: ⑯ | F12: ⑮ | G12: ⑭ | H12: ⑬ | I12: ⑫ | J12: ⑪ | K12: ⑩ | L12: ⑨ | M12: ⑧ | N12: ⑦ | O12: ⑥ | P12: ⑤ | Q12: ④ | R12: ③ | S12: ② | T12: ① | U12: 次の［ ］の部分の漢字には読みがなをひらがなで書き、カタカナは漢字に直しなさい。 | V12: 15 | W12: 「漢字の博士検定試験」練習問題
A13: =IF(A11="","",VLOOKUP(A11,漢字書き!$A$2:$N$506,6,0)) -> ［チカラ］いっぱい | B13: =IF(B11="","",VLOOKUP(B11,漢字書き!$A$2:$N$506,6,0)) -> にわの［クサ］とり | C13: =IF(C11="","",VLOOKUP(C11,漢字書き!$A$2:$N$506,6,0)) -> ［ソウ］ちょう | D13: =IF(D11="","",VLOOKUP(D11,漢字書き!$A$2:$N$506,6,0)) -> ふかい［カワ］ | E13: =IF(E11="","",VLOOKUP(E11,漢字書き!$A$2:$N$506,6,0)) -> ［ジョウ］たつする | F13: =IF(F11="","",VLOOKUP(F11,漢字書き!$A$2:$N$506,6,0)) -> こわい［イヌ］ | G13: =IF(G11="","",VLOOKUP(G11,漢字書き!$A$2:$N$506,6,0)) -> ［アメ］がふる | H13: =IF(H11="","",VLOOKUP(H11,漢字書き!$A$2:$N$506,6,0)) -> ［クチ］に入れる | I13: =IF(I11="","",VLOOKUP(I11,漢字書き!$A$2:$N$506,6,0)) -> ［イチエン］玉 | J13: =IF(J11="","",VLOOKUP(J11,漢字書き!$A$2:$N$506,6,0)) -> ［ムラ］のまつり | K13: =IF(K11="","",VLOOKUP(K11,漢字読み!$A$2:$O$506,6,0)) -> ［力］いっぱい | L13: =IF(L11="","",VLOOKUP(L11,漢字読み!$A$2:$O$506,6,0)) -> ［貝］のもよう | M13: =IF(M11="","",VLOOKUP(M11,漢字読み!$A$2:$O$506,6,0)) -> ［本気］をだす | N13: =IF(N11="","",VLOOKUP(N11,漢字読み!$A$2:$O$506,6,0)) -> ［入学］手つづき | O13: =IF(O11="","",VLOOKUP(O11,漢字読み!$A$2:$O$506,6,0)) -> ［林］をあるく | P13: =IF(P11="","",VLOOKUP(P11,漢字読み!$A$2:$O$506,6,0)) -> ［本］をよむ | Q13: =IF(Q11="","",VLOOKUP(Q11,漢字読み!$A$2:$O$506,6,0)) -> ［貝］がらをあつめる | R13: =IF(R11="","",VLOOKUP(R11,漢字読み!$A$2:$O$506,6,0)) -> ［百］てんのテスト | S13: =IF(S11="","",VLOOKUP(S11,漢字読み!$A$2:$O$506,6,0)) -> ［生］クリーム | T13: =IF(T11="","",VLOOKUP(T11,漢字読み!$A$2:$O$506,6,0)) -> ［名字］をきく | V13: 級
A14: =IF(A$11="","",VLOOKUP(A11,漢字書き!$A$2:$O$506,8,0)) -> 力 | B14: =IF(B$11="","",VLOOKUP(B11,漢字書き!$A$2:$O$506,8,0)) -> 草 | C14: =IF(C$11="","",VLOOKUP(C11,漢字書き!$A$2:$O$506,8,0)) -> 早 | D14: =IF(D$11="","",VLOOKUP(D11,漢字書き!$A$2:$O$506,8,0)) -> 川 | E14: =IF(E$11="","",VLOOKUP(E11,漢字書き!$A$2:$O$506,8,0)) -> 上 | F14: =IF(F$11="","",VLOOKUP(F11,漢字書き!$A$2:$O$506,8,0)) -> 犬 | G14: =IF(G$11="","",VLOOKUP(G11,漢字書き!$A$2:$O$506,8,0)) -> 雨 | H14: =IF(H$11="","",VLOOKUP(H11,漢字書き!$A$2:$O$506,8,0)) -> 口 | I14: =IF(I$11="","",VLOOKUP(I11,漢字書き!$A$2:$O$506,8,0)) -> 一円 | J14: =IF(J$11="","",VLOOKUP(J11,漢字書き!$A$2:$O$506,8,0)) -> 村 | K14: =IF(K$11="","",VLOOKUP(K11,漢字読み!$A$2:$O$506,8,0)) -> ちから | L14: =IF(L$11="","",VLOOKUP(L11,漢字読み!$A$2:$O$506,8,0)) -> かい | M14: =IF(M$11="","",VLOOKUP(M11,漢字読み!$A$2:$O$506,8,0)) -> ほんき | N14: =IF(N$11="","",VLOOKUP(N11,漢字読み!$A$2:$O$506,8,0)) -> にゅうがく | O14: =IF(O$11="","",VLOOKUP(O11,漢字読み!$A$2:$O$506,8,0)) -> はやし | P14: =IF(P$11="","",VLOOKUP(P11,漢字読み!$A$2:$O$506,8,0)) -> ほん | Q14: =IF(Q$11="","",VLOOKUP(Q11,漢字読み!$A$2:$O$506,8,0)) -> かい | R14: =IF(R$11="","",VLOOKUP(R11,漢字読み!$A$2:$O$506,8,0)) -> ひゃく | S14: =IF(S$11="","",VLOOKUP(S11,漢字読み!$A$2:$O$506,8,0)) -> なま | T14: =IF(T$11="","",VLOOKUP(T11,漢字読み!$A$2:$O$506,8,0)) -> みょうじ | V14: 名前
A15: =IF(A11="","",IF(VLOOKUP(A11,漢字書き!$A$2:$N$502,7,0)=0,"",VLOOKUP(A11,漢字書き!$A$2:$N$502,7,0))) ->  | B15: =IF(B11="","",IF(VLOOKUP(B11,漢字書き!$A$2:$N$502,7,0)=0,"",VLOOKUP(B11,漢字書き!$A$2:$N$502,7,0))) -> とり | C15: =IF(C11="","",IF(VLOOKUP(C11,漢字書き!$A$2:$N$502,7,0)=0,"",VLOOKUP(C11,漢字書き!$A$2:$N$502,7,0))) -> ちょう | D15: =IF(D11="","",IF(VLOOKUP(D11,漢字書き!$A$2:$N$502,7,0)=0,"",VLOOKUP(D11,漢字書き!$A$2:$N$502,7,0))) ->  | E15: =IF(E11="","",IF(VLOOKUP(E11,漢字書き!$A$2:$N$502,7,0)=0,"",VLOOKUP(E11,漢字書き!$A$2:$N$502,7,0))) -> たつ | F15: =IF(F11="","",IF(VLOOKUP(F11,漢字書き!$A$2:$N$502,7,0)=0,"",VLOOKUP(F11,漢字書き!$A$2:$N$502,7,0))) ->  | G15: =IF(G11="","",IF(VLOOKUP(G11,漢字書き!$A$2:$N$502,7,0)=0,"",VLOOKUP(G11,漢字書き!$A$2:$N$502,7,0))) ->  | H15: =IF(H11="","",IF(VLOOKUP(H11,漢字書き!$A$2:$N$502,7,0)=0,"",VLOOKUP(H11,漢字書き!$A$2:$N$502,7,0))) ->  | I15: =IF(I11="","",IF(VLOOKUP(I11,漢字書き!$A$2:$N$502,7,0)=0,"",VLOOKUP(I11,漢字書き!$A$2:$N$502,7,0))) -> 玉 | J15: =IF(J11="","",IF(VLOOKUP(J11,漢字書き!$A$2:$N$502,7,0)=0,"",VLOOKUP(J11,漢字書き!$A$2:$N$502,7,0))) ->  | K15: =IF(K11="","",IF(VLOOKUP(K11,漢字読み!$A$2:$O$502,7,0)=0,"",VLOOKUP(K11,漢字読み!$A$2:$O$502,7,0))) ->  | L15: =IF(L11="","",IF(VLOOKUP(L11,漢字読み!$A$2:$O$502,7,0)=0,"",VLOOKUP(L11,漢字読み!$A$2:$O$502,7,0))) ->  | M15: =IF(M11="","",IF(VLOOKUP(M11,漢字読み!$A$2:$O$502,7,0)=0,"",VLOOKUP(M11,漢字読み!$A$2:$O$502,7,0))) ->  | N15: =IF(N11="","",IF(VLOOKUP(N11,漢字読み!$A$2:$O$502,7,0)=0,"",VLOOKUP(N11,漢字読み!$A$2:$O$502,7,0))) ->  | O15: =IF(O11="","",IF(VLOOKUP(O11,漢字読み!$A$2:$O$502,7,0)=0,"",VLOOKUP(O11,漢字読み!$A$2:$O$502,7,0))) ->  | P15: =IF(P11="","",IF(VLOOKUP(P11,漢字読み!$A$2:$O$502,7,0)=0,"",VLOOKUP(P11,漢字読み!$A$2:$O$502,7,0))) ->  | Q15: =IF(Q11="","",IF(VLOOKUP(Q11,漢字読み!$A$2:$O$502,7,0)=0,"",VLOOKUP(Q11,漢字読み!$A$2:$O$502,7,0))) -> がら | R15: =IF(R11="","",IF(VLOOKUP(R11,漢字読み!$A$2:$O$502,7,0)=0,"",VLOOKUP(R11,漢字読み!$A$2:$O$502,7,0))) -> てん | S15: =IF(S11="","",IF(VLOOKUP(S11,漢字読み!$A$2:$O$502,7,0)=0,"",VLOOKUP(S11,漢字読み!$A$2:$O$502,7,0))) -> クリーム | T15: =IF(T11="","",IF(VLOOKUP(T11,漢字読み!$A$2:$O$502,7,0)=0,"",VLOOKUP(T11,漢字読み!$A$2:$O$502,7,0))) ->  | W15: 和歌山県教育委員会
A16: =A6 -> 88 | B16: =B6 -> 41 | C16: 151 | D16: 158 | E16: 40 | F16: 112 | G16: 46 | H16: 75 | I16: 175 | J16: 141 | K16: 159 | L16: 160 | M16: 91 | N16: 167 | O16: 66 | P16: 72 | Q16: 110 | R16: 127 | S16: 139 | T16: 12
A17: ⑳ | B17: ⑲ | C17: ⑱ | D17: ⑰ | E17: ⑯ | F17: ⑮ | G17: ⑭ | H17: ⑬ | I17: ⑫ | J17: ⑪ | K17: ⑩ | L17: ⑨ | M17: ⑧ | N17: ⑦ | O17: ⑥ | P17: ⑤ | Q17: ④ | R17: ③ | S17: ② | T17: ① | U17: 次の［ ］の部分の漢字には読みがなをひらがなで書き、カタカナは漢字に直しなさい。 | V17: 15 | W17: 「漢字の博士検定試験」練習問題
A18: =IF(A16="","",VLOOKUP(A16,漢字書き!$A$2:$N$506,6,0)) -> ［モリ］のくまさん | B18: =IF(B16="","",VLOOKUP(B16,漢字書き!$A$2:$N$506,6,0)) -> ［ツキ］へのたび | C18: =IF(C16="","",VLOOKUP(C16,漢字書き!$A$2:$N$506,6,0)) -> あたらしい［トシ］ | D18: =IF(D16="","",VLOOKUP(D16,漢字書き!$A$2:$N$506,6,0)) -> ［ブンガク］をよむ | E18: =IF(E16="","",VLOOKUP(E16,漢字書き!$A$2:$N$506,6,0)) -> ［ゲツ］よう日 | F18: =IF(F16="","",VLOOKUP(F16,漢字書き!$A$2:$N$506,6,0)) -> ［センセイ］にはなす | G18: =IF(G16="","",VLOOKUP(G16,漢字書き!$A$2:$N$506,6,0)) -> まえを［ミ］る | H18: =IF(H16="","",VLOOKUP(H16,漢字書き!$A$2:$N$506,6,0)) -> ［ジュウネン］先 | I18: =IF(I16="","",VLOOKUP(I16,漢字書き!$A$2:$N$506,6,0)) -> ［ロク］年生 | J18: =IF(J16="","",VLOOKUP(J16,漢字書き!$A$2:$N$506,6,0)) -> ねん［ド］であそぶ | K18: =IF(K16="","",VLOOKUP(K16,漢字読み!$A$2:$O$506,6,0)) -> ［白］いくも | L18: =IF(L16="","",VLOOKUP(L16,漢字読み!$A$2:$O$506,6,0)) -> ［八月］がすき | M18: =IF(M16="","",VLOOKUP(M16,漢字読み!$A$2:$O$506,6,0)) -> ［日本人］ | N18: =IF(N16="","",VLOOKUP(N16,漢字読み!$A$2:$O$506,6,0)) -> ［木目］にそう | O18: =IF(O16="","",VLOOKUP(O16,漢字読み!$A$2:$O$506,6,0)) -> ［糸］でんわ | P18: =IF(P16="","",VLOOKUP(P16,漢字読み!$A$2:$O$506,6,0)) -> きゅうきゅう［車］ | Q18: =IF(Q16="","",VLOOKUP(Q16,漢字読み!$A$2:$O$506,6,0)) -> ［石］たんをほる | R18: =IF(R16="","",VLOOKUP(R16,漢字読み!$A$2:$O$506,6,0)) -> ［村］ちょうさん | S18: =IF(S16="","",VLOOKUP(S16,漢字読み!$A$2:$O$506,6,0)) -> ［虫］をとる | T18: =IF(T16="","",VLOOKUP(T16,漢字読み!$A$2:$O$506,6,0)) -> ［音］がくしつ | V18: 級
A19: =IF(A$16="","",VLOOKUP(A16,漢字書き!$A$2:$O$506,8,0)) -> 森 | B19: =IF(B$16="","",VLOOKUP(B16,漢字書き!$A$2:$O$506,8,0)) -> 月 | C19: =IF(C$16="","",VLOOKUP(C16,漢字書き!$A$2:$O$506,8,0)) -> 年 | D19: =IF(D$16="","",VLOOKUP(D16,漢字書き!$A$2:$O$506,8,0)) -> 文学 | E19: =IF(E$16="","",VLOOKUP(E16,漢字書き!$A$2:$O$506,8,0)) -> 月 | F19: =IF(F$16="","",VLOOKUP(F16,漢字書き!$A$2:$O$506,8,0)) -> 先生 | G19: =IF(G$16="","",VLOOKUP(G16,漢字書き!$A$2:$O$506,8,0)) -> 見 | H19: =IF(H$16="","",VLOOKUP(H16,漢字書き!$A$2:$O$506,8,0)) -> 十年 | I19: =IF(I$16="","",VLOOKUP(I16,漢字書き!$A$2:$O$506,8,0)) -> 六 | J19: =IF(J$16="","",VLOOKUP(J16,漢字書き!$A$2:$O$506,8,0)) -> 土 | K19: =IF(K$16="","",VLOOKUP(K16,漢字読み!$A$2:$O$506,8,0)) -> しろ | L19: =IF(L$16="","",VLOOKUP(L16,漢字読み!$A$2:$O$506,8,0)) -> はちがつ | M19: =IF(M$16="","",VLOOKUP(M16,漢字読み!$A$2:$O$506,8,0)) -> にほんじん | N19: =IF(N$16="","",VLOOKUP(N16,漢字読み!$A$2:$O$506,8,0)) -> もくめ | O19: =IF(O$16="","",VLOOKUP(O16,漢字読み!$A$2:$O$506,8,0)) -> いと | P19: =IF(P$16="","",VLOOKUP(P16,漢字読み!$A$2:$O$506,8,0)) -> しゃ | Q19: =IF(Q$16="","",VLOOKUP(Q16,漢字読み!$A$2:$O$506,8,0)) -> せき | R19: =IF(R$16="","",VLOOKUP(R16,漢字読み!$A$2:$O$506,8,0)) -> そん | S19: =IF(S$16="","",VLOOKUP(S16,漢字読み!$A$2:$O$506,8,0)) -> むし | T19: =IF(T$16="","",VLOOKUP(T16,漢字読み!$A$2:$O$506,8,0)) -> おん | V19: 名前
A20: =IF(A16="","",IF(VLOOKUP(A16,漢字書き!$A$2:$N$502,7,0)=0,"",VLOOKUP(A16,漢字書き!$A$2:$N$502,7,0))) ->  | B20: =IF(B16="","",IF(VLOOKUP(B16,漢字書き!$A$2:$N$502,7,0)=0,"",VLOOKUP(B16,漢字書き!$A$2:$N$502,7,0))) ->  | C20: =IF(C16="","",IF(VLOOKUP(C16,漢字書き!$A$2:$N$502,7,0)=0,"",VLOOKUP(C16,漢字書き!$A$2:$N$502,7,0))) ->  | D20: =IF(D16="","",IF(VLOOKUP(D16,漢字書き!$A$2:$N$502,7,0)=0,"",VLOOKUP(D16,漢字書き!$A$2:$N$502,7,0))) ->  | E20: =IF(E16="","",IF(VLOOKUP(E16,漢字書き!$A$2:$N$502,7,0)=0,"",VLOOKUP(E16,漢字書き!$A$2:$N$502,7,0))) -> よう | F20: =IF(F16="","",IF(VLOOKUP(F16,漢字書き!$A$2:$N$502,7,0)=0,"",VLOOKUP(F16,漢字書き!$A$2:$N$502,7,0))) ->  | G20: =IF(G16="","",IF(VLOOKUP(G16,漢字書き!$A$2:$N$502,7,0)=0,"",VLOOKUP(G16,漢字書き!$A$2:$N$502,7,0))) -> る | H20: =IF(H16="","",IF(VLOOKUP(H16,漢字書き!$A$2:$N$502,7,0)=0,"",VLOOKUP(H16,漢字書き!$A$2:$N$502,7,0))) -> 先 | I20: =IF(I16="","",IF(VLOOKUP(I16,漢字書き!$A$2:$N$502,7,0)=0,"",VLOOKUP(I16,漢字書き!$A$2:$N$502,7,0))) -> 年 | J20: =IF(J16="","",IF(VLOOKUP(J16,漢字書き!$A$2:$N$502,7,0)=0,"",VLOOKUP(J16,漢字書き!$A$2:$N$502,7,0))) ->  | K20: =IF(K16="","",IF(VLOOKUP(K16,漢字読み!$A$2:$O$502,7,0)=0,"",VLOOKUP(K16,漢字読み!$A$2:$O$502,7,0))) -> い | L20: =IF(L16="","",IF(VLOOKUP(L16,漢字読み!$A$2:$O$502,7,0)=0,"",VLOOKUP(L16,漢字読み!$A$2:$O$502,7,0))) ->  | M20: =IF(M16="","",IF(VLOOKUP(M16,漢字読み!$A$2:$O$502,7,0)=0,"",VLOOKUP(M16,漢字読み!$A$2:$O$502,7,0))) ->  | N20: =IF(N16="","",IF(VLOOKUP(N16,漢字読み!$A$2:$O$502,7,0)=0,"",VLOOKUP(N16,漢字読み!$A$2:$O$502,7,0))) ->  | O20: =IF(O16="","",IF(VLOOKUP(O16,漢字読み!$A$2:$O$502,7,0)=0,"",VLOOKUP(O16,漢字読み!$A$2:$O$502,7,0))) ->  | P20: =IF(P16="","",IF(VLOOKUP(P16,漢字読み!$A$2:$O$502,7,0)=0,"",VLOOKUP(P16,漢字読み!$A$2:$O$502,7,0))) ->  | Q20: =IF(Q16="","",IF(VLOOKUP(Q16,漢字読み!$A$2:$O$502,7,0)=0,"",VLOOKUP(Q16,漢字読み!$A$2:$O$502,7,0))) -> たん | R20: =IF(R16="","",IF(VLOOKUP(R16,漢字読み!$A$2:$O$502,7,0)=0,"",VLOOKUP(R16,漢字読み!$A$2:$O$502,7,0))) -> ちょうさん | S20: =IF(S16="","",IF(VLOOKUP(S16,漢字読み!$A$2:$O$502,7,0)=0,"",VLOOKUP(S16,漢字読み!$A$2:$O$502,7,0))) ->  | T20: =IF(T16="","",IF(VLOOKUP(T16,漢字読み!$A$2:$O$502,7,0)=0,"",VLOOKUP(T16,漢字読み!$A$2:$O$502,7,0))) -> がく | W20: 和歌山県教育委員会
A21: =INDIRECT("'関数（書き）'!C" & COLUMN(B$1)+SUM($AD$2:$AD22)) -> 11 | B21: =INDIRECT("'関数（書き）'!C" & COLUMN(C$1)+SUM($AD$2:$AD22)) -> 169 | C21: =INDIRECT("'関数（書き）'!C" & COLUMN(D$1)+SUM($AD$2:$AD22)) -> 156 | D21: =INDIRECT("'関数（書き）'!C" & COLUMN(E$1)+SUM($AD$2:$AD22)) -> 127 | E21: =INDIRECT("'関数（書き）'!C" & COLUMN(F$1)+SUM($AD$2:$AD22)) -> 132 | F21: =INDIRECT("'関数（書き）'!C" & COLUMN(G$1)+SUM($AD$2:$AD22)) -> 60 | G21: =INDIRECT("'関数（書き）'!C" & COLUMN(H$1)+SUM($AD$2:$AD22)) -> 116 | H21: =INDIRECT("'関数（書き）'!C" & COLUMN(I$1)+SUM($AD$2:$AD22)) -> 9 | I21: =INDIRECT("'関数（書き）'!C" & COLUMN(J$1)+SUM($AD$2:$AD22)) -> 21 | J21: =INDIRECT("'関数（書き）'!C" & COLUMN(K$1)+SUM($AD$2:$AD22)) -> 133 | K21: =INDIRECT("'関数（読み）'!C" & COLUMN(B$1)+SUM($AD$2:$AD22)) -> 2 | L21: =INDIRECT("'関数（読み）'!C" & COLUMN(C$1)+SUM($AD$2:$AD22)) -> 100 | M21: =INDIRECT("'関数（読み）'!C" & COLUMN(D$1)+SUM($AD$2:$AD22)) -> 152 | N21: =INDIRECT("'関数（読み）'!C" & COLUMN(E$1)+SUM($AD$2:$AD22)) -> 105 | O21: =INDIRECT("'関数（読み）'!C" & COLUMN(F$1)+SUM($AD$2:$AD22)) -> 25 | P21: =INDIRECT("'関数（読み）'!C" & COLUMN(G$1)+SUM($AD$2:$AD22)) -> 106 | Q21: =INDIRECT("'関数（読み）'!C" & COLUMN(H$1)+SUM($AD$2:$AD22)) -> 121 | R21: =INDIRECT("'関数（読み）'!C" & COLUMN(I$1)+SUM($AD$2:$AD22)) -> 85 | S21: =INDIRECT("'関数（読み）'!C" & COLUMN(J$1)+SUM($AD$2:$AD22)) -> 131 | T21: =INDIRECT("'関数（読み）'!C" & COLUMN(K$1)+SUM($AD$2:$AD22)) -> 52
A22: ⑳ | B22: ⑲ | C22: ⑱ | D22: ⑰ | E22: ⑯ | F22: ⑮ | G22: ⑭ | H22: ⑬ | I22: ⑫ | J22: ⑪ | K22: ⑩ | L22: ⑨ | M22: ⑧ | N22: ⑦ | O22: ⑥ | P22: ⑤ | Q22: ④ | R22: ③ | S22: ② | T22: ① | U22: 次の［ ］の部分の漢字には読みがなをひらがなで書き、カタカナは漢字に直しなさい。 | V22: 15 | W22: 「漢字の博士検定試験」練習問題 | AC22: ← | AD22: 10 | AE22: 問 | AF22: =AH7+1 -> 21 | AG22: ～ | AH22: =SUM($AD$2:$AD22)+10 -> 30 | AI22: 問まで | AJ22: =COUNTIF($A$1:$T$200,T23) -> 2
A23: =IF(A21="","",VLOOKUP(A21,漢字書き!$A$2:$N$506,6,0)) -> ［オン］がくしつ | B23: =IF(B21="","",VLOOKUP(B21,漢字書き!$A$2:$N$506,6,0)) -> いすから［タ］つ | C23: =IF(C21="","",VLOOKUP(C21,漢字書き!$A$2:$N$506,6,0)) -> ［ゴヒャクエン］玉 | D23: =IF(D21="","",VLOOKUP(D21,漢字書き!$A$2:$N$506,6,0)) -> ［オトコ］の子 | E23: =IF(E21="","",VLOOKUP(E21,漢字書き!$A$2:$N$506,6,0)) -> こん［チュウ］ | F23: =IF(F21="","",VLOOKUP(F21,漢字書き!$A$2:$N$506,6,0)) -> ［ダンシ］トイレ | G23: =IF(G21="","",VLOOKUP(G21,漢字書き!$A$2:$N$506,6,0)) -> ざっ［ソウ］をぬく | H23: =IF(H21="","",VLOOKUP(H21,漢字書き!$A$2:$N$506,6,0)) -> はだかの［オウ］さま | I23: =IF(I21="","",VLOOKUP(I21,漢字書き!$A$2:$N$506,6,0)) -> さくらの［ハナ］ | J23: =IF(J21="","",VLOOKUP(J21,漢字書き!$A$2:$N$506,6,0)) -> かぶと［ムシ］ | K23: =IF(K21="","",VLOOKUP(K21,漢字読み!$A$2:$O$506,6,0)) -> ［一］つの花 | L23: =IF(L21="","",VLOOKUP(L21,漢字読み!$A$2:$O$506,6,0)) -> たん［生日］をいわう | M23: =IF(M21="","",VLOOKUP(M21,漢字読み!$A$2:$O$506,6,0)) -> ［日本］のくに | N23: =IF(N21="","",VLOOKUP(N21,漢字読み!$A$2:$O$506,6,0)) -> 百さいまで[生]きる | O23: =IF(O21="","",VLOOKUP(O21,漢字読み!$A$2:$O$506,6,0)) -> ［見学］する | P23: =IF(P21="","",VLOOKUP(P21,漢字読み!$A$2:$O$506,6,0)) -> ［青］しゅんの日々 | Q23: =IF(Q21="","",VLOOKUP(Q21,漢字読み!$A$2:$O$506,6,0)) -> あさ［早］くおきる | R23: =IF(R21="","",VLOOKUP(R21,漢字読み!$A$2:$O$506,6,0)) -> ［小］とりをかう | S23: =IF(S21="","",VLOOKUP(S21,漢字読み!$A$2:$O$506,6,0)) -> ［大］きなかぶ | T23: =IF(T21="","",VLOOKUP(T21,漢字読み!$A$2:$O$506,6,0)) -> ［五］つ子 | V23: 級
V24: 名前
A25: =IF(A21="","",IF(VLOOKUP(A21,漢字書き!$A$2:$N$502,7,0)=0,"",VLOOKUP(A21,漢字書き!$A$2:$N$502,7,0))) -> がく | B25: =IF(B21="","",IF(VLOOKUP(B21,漢字書き!$A$2:$N$502,7,0)=0,"",VLOOKUP(B21,漢字書き!$A$2:$N$502,7,0))) -> つ | C25: =IF(C21="","",IF(VLOOKUP(C21,漢字書き!$A$2:$N$502,7,0)=0,"",VLOOKUP(C21,漢字書き!$A$2:$N$502,7,0))) -> 玉 | D25: =IF(D21="","",IF(VLOOKUP(D21,漢字書き!$A$2:$N$502,7,0)=0,"",VLOOKUP(D21,漢字書き!$A$2:$N$502,7,0))) ->  | E25: =IF(E21="","",IF(VLOOKUP(E21,漢字書き!$A$2:$N$502,7,0)=0,"",VLOOKUP(E21,漢字書き!$A$2:$N$502,7,0))) ->  | F25: =IF(F21="","",IF(VLOOKUP(F21,漢字書き!$A$2:$N$502,7,0)=0,"",VLOOKUP(F21,漢字書き!$A$2:$N$502,7,0))) -> トイレ | G25: =IF(G21="","",IF(VLOOKUP(G21,漢字書き!$A$2:$N$502,7,0)=0,"",VLOOKUP(G21,漢字書き!$A$2:$N$502,7,0))) ->  | H25: =IF(H21="","",IF(VLOOKUP(H21,漢字書き!$A$2:$N$502,7,0)=0,"",VLOOKUP(H21,漢字書き!$A$2:$N$502,7,0))) -> さま | I25: =IF(I21="","",IF(VLOOKUP(I21,漢字書き!$A$2:$N$502,7,0)=0,"",VLOOKUP(I21,漢字書き!$A$2:$N$502,7,0))) ->  | J25: =IF(J21="","",IF(VLOOKUP(J21,漢字書き!$A$2:$N$502,7,0)=0,"",VLOOKUP(J21,漢字書き!$A$2:$N$502,7,0))) ->  | K25: =IF(K21="","",IF(VLOOKUP(K21,漢字読み!$A$2:$O$502,7,0)=0,"",VLOOKUP(K21,漢字読み!$A$2:$O$502,7,0))) -> つ | L25: =IF(L21="","",IF(VLOOKUP(L21,漢字読み!$A$2:$O$502,7,0)=0,"",VLOOKUP(L21,漢字読み!$A$2:$O$502,7,0))) ->  | M25: =IF(M21="","",IF(VLOOKUP(M21,漢字読み!$A$2:$O$502,7,0)=0,"",VLOOKUP(M21,漢字読み!$A$2:$O$502,7,0))) ->  | N25: =IF(N21="","",IF(VLOOKUP(N21,漢字読み!$A$2:$O$502,7,0)=0,"",VLOOKUP(N21,漢字読み!$A$2:$O$502,7,0))) -> きる | O25: =IF(O21="","",IF(VLOOKUP(O21,漢字読み!$A$2:$O$502,7,0)=0,"",VLOOKUP(O21,漢字読み!$A$2:$O$502,7,0))) -> する | P25: =IF(P21="","",IF(VLOOKUP(P21,漢字読み!$A$2:$O$502,7,0)=0,"",VLOOKUP(P21,漢字読み!$A$2:$O$502,7,0))) -> しゅん | Q25: =IF(Q21="","",IF(VLOOKUP(Q21,漢字読み!$A$2:$O$502,7,0)=0,"",VLOOKUP(Q21,漢字読み!$A$2:$O$502,7,0))) -> く | R25: =IF(R21="","",IF(VLOOKUP(R21,漢字読み!$A$2:$O$502,7,0)=0,"",VLOOKUP(R21,漢字読み!$A$2:$O$502,7,0))) ->  | S25: =IF(S21="","",IF(VLOOKUP(S21,漢字読み!$A$2:$O$502,7,0)=0,"",VLOOKUP(S21,漢字読み!$A$2:$O$502,7,0))) -> きな | T25: =IF(T21="","",IF(VLOOKUP(T21,漢字読み!$A$2:$O$502,7,0)=0,"",VLOOKUP(T21,漢字読み!$A$2:$O$502,7,0))) -> つ | W25: 和歌山県教育委員会
A26: =INDIRECT("'関数（書き）'!C" & COLUMN(B$1)+SUM($AD$2:$AD27)) -> 5 | B26: =INDIRECT("'関数（書き）'!C" & COLUMN(C$1)+SUM($AD$2:$AD27)) -> 172 | C26: =INDIRECT("'関数（書き）'!C" & COLUMN(D$1)+SUM($AD$2:$AD27)) -> 3 | D26: =INDIRECT("'関数（書き）'!C" & COLUMN(E$1)+SUM($AD$2:$AD27)) -> 57 | E26: =INDIRECT("'関数（書き）'!C" & COLUMN(F$1)+SUM($AD$2:$AD27)) -> 108 | F26: =INDIRECT("'関数（書き）'!C" & COLUMN(G$1)+SUM($AD$2:$AD27)) -> 87 | G26: =INDIRECT("'関数（書き）'!C" & COLUMN(H$1)+SUM($AD$2:$AD27)) -> 31 | H26: =INDIRECT("'関数（書き）'!C" & COLUMN(I$1)+SUM($AD$2:$AD27)) -> 174 | I26: =INDIRECT("'関数（書き）'!C" & COLUMN(J$1)+SUM($AD$2:$AD27)) -> 63 | J26: =INDIRECT("'関数（書き）'!C" & COLUMN(K$1)+SUM($AD$2:$AD27)) -> 153 | K26: =INDIRECT("'関数（読み）'!C" & COLUMN(B$1)+SUM($AD$2:$AD27)) -> 36 | L26: =INDIRECT("'関数（読み）'!C" & COLUMN(C$1)+SUM($AD$2:$AD27)) -> 148 | M26: =INDIRECT("'関数（読み）'!C" & COLUMN(D$1)+SUM($AD$2:$AD27)) -> 157 | N26: =INDIRECT("'関数（読み）'!C" & COLUMN(E$1)+SUM($AD$2:$AD27)) -> 11 | O26: =INDIRECT("'関数（読み）'!C" & COLUMN(F$1)+SUM($AD$2:$AD27)) -> 96 | P26: =INDIRECT("'関数（読み）'!C" & COLUMN(G$1)+SUM($AD$2:$AD27)) -> 10 | Q26: =INDIRECT("'関数（読み）'!C" & COLUMN(H$1)+SUM($AD$2:$AD27)) -> 4 | R26: =INDIRECT("'関数（読み）'!C" & COLUMN(I$1)+SUM($AD$2:$AD27)) -> 156 | S26: =INDIRECT("'関数（読み）'!C" & COLUMN(J$1)+SUM($AD$2:$AD27)) -> 144 | T26: =INDIRECT("'関数（読み）'!C" & COLUMN(K$1)+SUM($AD$2:$AD27)) -> 124
A27: ⑳ | B27: ⑲ | C27: ⑱ | D27: ⑰ | E27: ⑯ | F27: ⑮ | G27: ⑭ | H27: ⑬ | I27: ⑫ | J27: ⑪ | K27: ⑩ | L27: ⑨ | M27: ⑧ | N27: ⑦ | O27: ⑥ | P27: ⑤ | Q27: ④ | R27: ③ | S27: ② | T27: ① | U27: 次の［ ］の部分の漢字には読みがなをひらがなで書き、カタカナは漢字に直しなさい。 | V27: 15 | W27: 「漢字の博士検定試験」練習問題 | AC27: ← | AD27: 10 | AE27: 問 | AF27: =AH22+1 -> 31 | AG27: ～ | AH27: =SUM($AD$2:$AD27)+10 -> 40 | AI27: 問まで | AJ27: =COUNTIF($A$1:$T$200,T28) -> 2
A28: =IF(A26="","",VLOOKUP(A26,漢字書き!$A$2:$N$506,6,0)) -> ［ウ］りょうがふえる | B28: =IF(B26="","",VLOOKUP(B26,漢字書き!$A$2:$N$506,6,0)) -> ［リン］かん学校 | C28: =IF(C26="","",VLOOKUP(C26,漢字書き!$A$2:$N$506,6,0)) -> ［サユウ］を見る | D28: =IF(D26="","",VLOOKUP(D26,漢字書き!$A$2:$N$506,6,0)) -> ふじ［サン］ | E28: =IF(E26="","",VLOOKUP(E26,漢字書き!$A$2:$N$506,6,0)) -> ［アカ］ちゃんがなく | F28: =IF(F26="","",VLOOKUP(F26,漢字書き!$A$2:$N$506,6,0)) -> ［シンリン］こうえん | G28: =IF(G26="","",VLOOKUP(G26,漢字書き!$A$2:$N$506,6,0)) -> ［キュウ］けいじかん | H28: =IF(H26="","",VLOOKUP(H26,漢字書き!$A$2:$N$506,6,0)) -> ［ムッ］つかぞえる | I28: =IF(I26="","",VLOOKUP(I26,漢字書き!$A$2:$N$506,6,0)) -> ［ヨッ］つのやくそく | J28: =IF(J26="","",VLOOKUP(J26,漢字書き!$A$2:$N$506,6,0)) -> ［シロ］いけむり | K28: =IF(K26="","",VLOOKUP(K26,漢字読み!$A$2:$O$506,6,0)) -> しゃぼん［玉］ | L28: =IF(L26="","",VLOOKUP(L26,漢字読み!$A$2:$O$506,6,0)) -> ［二年］生になる | M28: =IF(M26="","",VLOOKUP(M26,漢字読み!$A$2:$O$506,6,0)) -> ［年］をとる | N28: =IF(N26="","",VLOOKUP(N26,漢字読み!$A$2:$O$506,6,0)) -> ［女王］のへや | O28: =IF(O26="","",VLOOKUP(O26,漢字読み!$A$2:$O$506,6,0)) -> ［正］じきな人 | P28: =IF(P26="","",VLOOKUP(P26,漢字読み!$A$2:$O$506,6,0)) -> ［王子］になる | Q28: =IF(Q26="","",VLOOKUP(Q26,漢字読み!$A$2:$O$506,6,0)) -> ［右］にまがる | R28: =IF(R26="","",VLOOKUP(R26,漢字読み!$A$2:$O$506,6,0)) -> お［年玉］ | S28: =IF(S26="","",VLOOKUP(S26,漢字読み!$A$2:$O$506,6,0)) -> ［田］えんふうけい | T28: =IF(T26="","",VLOOKUP(T26,漢字読み!$A$2:$O$506,6,0)) -> ねこの［足］あと | V28: 級
V29: 名前
A30: =IF(A26="","",IF(VLOOKUP(A26,漢字書き!$A$2:$N$502,7,0)=0,"",VLOOKUP(A26,漢字書き!$A$2:$N$502,7,0))) -> りょう | B30: =IF(B26="","",IF(VLOOKUP(B26,漢字書き!$A$2:$N$502,7,0)=0,"",VLOOKUP(B26,漢字書き!$A$2:$N$502,7,0))) -> かん | C30: =IF(C26="","",IF(VLOOKUP(C26,漢字書き!$A$2:$N$502,7,0)=0,"",VLOOKUP(C26,漢字書き!$A$2:$N$502,7,0))) ->  | D30: =IF(D26="","",IF(VLOOKUP(D26,漢字書き!$A$2:$N$502,7,0)=0,"",VLOOKUP(D26,漢字書き!$A$2:$N$502,7,0))) ->  | E30: =IF(E26="","",IF(VLOOKUP(E26,漢字書き!$A$2:$N$502,7,0)=0,"",VLOOKUP(E26,漢字書き!$A$2:$N$502,7,0))) -> ちゃん | F30: =IF(F26="","",IF(VLOOKUP(F26,漢字書き!$A$2:$N$502,7,0)=0,"",VLOOKUP(F26,漢字書き!$A$2:$N$502,7,0))) ->  | G30: =IF(G26="","",IF(VLOOKUP(G26,漢字書き!$A$2:$N$502,7,0)=0,"",VLOOKUP(G26,漢字書き!$A$2:$N$502,7,0))) -> けい | H30: =IF(H26="","",IF(VLOOKUP(H26,漢字書き!$A$2:$N$502,7,0)=0,"",VLOOKUP(H26,漢字書き!$A$2:$N$502,7,0))) -> つ | I30: =IF(I26="","",IF(VLOOKUP(I26,漢字書き!$A$2:$N$502,7,0)=0,"",VLOOKUP(I26,漢字書き!$A$2:$N$502,7,0))) -> つ | J30: =IF(J26="","",IF(VLOOKUP(J26,漢字書き!$A$2:$N$502,7,0)=0,"",VLOOKUP(J26,漢字書き!$A$2:$N$502,7,0))) -> い | K30: =IF(K26="","",IF(VLOOKUP(K26,漢字読み!$A$2:$O$502,7,0)=0,"",VLOOKUP(K26,漢字読み!$A$2:$O$502,7,0))) ->  | L30: =IF(L26="","",IF(VLOOKUP(L26,漢字読み!$A$2:$O$502,7,0)=0,"",VLOOKUP(L26,漢字読み!$A$2:$O$502,7,0))) -> 生 | M30: =IF(M26="","",IF(VLOOKUP(M26,漢字読み!$A$2:$O$502,7,0)=0,"",VLOOKUP(M26,漢字読み!$A$2:$O$502,7,0))) ->  | N30: =IF(N26="","",IF(VLOOKUP(N26,漢字読み!$A$2:$O$502,7,0)=0,"",VLOOKUP(N26,漢字読み!$A$2:$O$502,7,0))) ->  | O30: =IF(O26="","",IF(VLOOKUP(O26,漢字読み!$A$2:$O$502,7,0)=0,"",VLOOKUP(O26,漢字読み!$A$2:$O$502,7,0))) -> じき | P30: =IF(P26="","",IF(VLOOKUP(P26,漢字読み!$A$2:$O$502,7,0)=0,"",VLOOKUP(P26,漢字読み!$A$2:$O$502,7,0))) ->  | Q30: =IF(Q26="","",IF(VLOOKUP(Q26,漢字読み!$A$2:$O$502,7,0)=0,"",VLOOKUP(Q26,漢字読み!$A$2:$O$502,7,0))) ->  | R30: =IF(R26="","",IF(VLOOKUP(R26,漢字読み!$A$2:$O$502,7,0)=0,"",VLOOKUP(R26,漢字読み!$A$2:$O$502,7,0))) ->  | S30: =IF(S26="","",IF(VLOOKUP(S26,漢字読み!$A$2:$O$502,7,0)=0,"",VLOOKUP(S26,漢字読み!$A$2:$O$502,7,0))) -> えん | T30: =IF(T26="","",IF(VLOOKUP(T26,漢字読み!$A$2:$O$502,7,0)=0,"",VLOOKUP(T26,漢字読み!$A$2:$O$502,7,0))) -> あと | W30: 和歌山県教育委員会
A31: =A21 -> 11 | B31: =B21 -> 169 | C31: 156 | D31: 127 | E31: 132 | F31: 60 | G31: 116 | H31: 9 | I31: 21 | J31: 133 | K31: 2 | L31: 100 | M31: 152 | N31: 105 | O31: 25 | P31: 106 | Q31: 121 | R31: 85 | S31: 131 | T31: 52
A32: ⑳ | B32: ⑲ | C32: ⑱ | D32: ⑰ | E32: ⑯ | F32: ⑮ | G32: ⑭ | H32: ⑬ | I32: ⑫ | J32: ⑪ | K32: ⑩ | L32: ⑨ | M32: ⑧ | N32: ⑦ | O32: ⑥ | P32: ⑤ | Q32: ④ | R32: ③ | S32: ② | T32: ① | U32: 次の［ ］の部分の漢字には読みがなをひらがなで書き、カタカナは漢字に直しなさい。 | V32: 15 | W32: 「漢字の博士検定試験」練習問題
A33: =IF(A31="","",VLOOKUP(A31,漢字書き!$A$2:$N$506,6,0)) -> ［オン］がくしつ | B33: =IF(B31="","",VLOOKUP(B31,漢字書き!$A$2:$N$506,6,0)) -> いすから［タ］つ | C33: =IF(C31="","",VLOOKUP(C31,漢字書き!$A$2:$N$506,6,0)) -> ［ゴヒャクエン］玉 | D33: =IF(D31="","",VLOOKUP(D31,漢字書き!$A$2:$N$506,6,0)) -> ［オトコ］の子 | E33: =IF(E31="","",VLOOKUP(E31,漢字書き!$A$2:$N$506,6,0)) -> こん［チュウ］ | F33: =IF(F31="","",VLOOKUP(F31,漢字書き!$A$2:$N$506,6,0)) -> ［ダンシ］トイレ | G33: =IF(G31="","",VLOOKUP(G31,漢字書き!$A$2:$N$506,6,0)) -> ざっ［ソウ］をぬく | H33: =IF(H31="","",VLOOKUP(H31,漢字書き!$A$2:$N$506,6,0)) -> はだかの［オウ］さま | I33: =IF(I31="","",VLOOKUP(I31,漢字書き!$A$2:$N$506,6,0)) -> さくらの［ハナ］ | J33: =IF(J31="","",VLOOKUP(J31,漢字書き!$A$2:$N$506,6,0)) -> かぶと［ムシ］ | K33: =IF(K31="","",VLOOKUP(K31,漢字読み!$A$2:$O$506,6,0)) -> ［一］つの花 | L33: =IF(L31="","",VLOOKUP(L31,漢字読み!$A$2:$O$506,6,0)) -> たん［生日］をいわう | M33: =IF(M31="","",VLOOKUP(M31,漢字読み!$A$2:$O$506,6,0)) -> ［日本］のくに | N33: =IF(N31="","",VLOOKUP(N31,漢字読み!$A$2:$O$506,6,0)) -> 百さいまで[生]きる | O33: =IF(O31="","",VLOOKUP(O31,漢字読み!$A$2:$O$506,6,0)) -> ［見学］する | P33: =IF(P31="","",VLOOKUP(P31,漢字読み!$A$2:$O$506,6,0)) -> ［青］しゅんの日々 | Q33: =IF(Q31="","",VLOOKUP(Q31,漢字読み!$A$2:$O$506,6,0)) -> あさ［早］くおきる | R33: =IF(R31="","",VLOOKUP(R31,漢字読み!$A$2:$O$506,6,0)) -> ［小］とりをかう | S33: =IF(S31="","",VLOOKUP(S31,漢字読み!$A$2:$O$506,6,0)) -> ［大］きなかぶ | T33: =IF(T31="","",VLOOKUP(T31,漢字読み!$A$2:$O$506,6,0)) -> ［五］つ子 | V33: 級
A34: =IF(A$11="","",VLOOKUP(A31,漢字書き!$A$2:$O$506,8,0)) -> 音 | B34: =IF(B$11="","",VLOOKUP(B31,漢字書き!$A$2:$O$506,8,0)) -> 立 | C34: =IF(C$11="","",VLOOKUP(C31,漢字書き!$A$2:$O$506,8,0)) -> 五百円 | D34: =IF(D$11="","",VLOOKUP(D31,漢字書き!$A$2:$O$506,8,0)) -> 男 | E34: =IF(E$11="","",VLOOKUP(E31,漢字書き!$A$2:$O$506,8,0)) -> 虫 | F34: =IF(F$11="","",VLOOKUP(F31,漢字書き!$A$2:$O$506,8,0)) -> 男子 | G34: =IF(G$11="","",VLOOKUP(G31,漢字書き!$A$2:$O$506,8,0)) -> 草 | H34: =IF(H$11="","",VLOOKUP(H31,漢字書き!$A$2:$O$506,8,0)) -> 王 | I34: =IF(I$11="","",VLOOKUP(I31,漢字書き!$A$2:$O$506,8,0)) -> 花 | J34: =IF(J$11="","",VLOOKUP(J31,漢字書き!$A$2:$O$506,8,0)) -> 虫 | K34: =IF(K$11="","",VLOOKUP(K31,漢字読み!$A$2:$O$506,8,0)) -> ひと | L34: =IF(L$11="","",VLOOKUP(L31,漢字読み!$A$2:$O$506,8,0)) -> じょうび | M34: =IF(M$11="","",VLOOKUP(M31,漢字読み!$A$2:$O$506,8,0)) -> にほん | N34: =IF(N$11="","",VLOOKUP(N31,漢字読み!$A$2:$O$506,8,0)) -> い | O34: =IF(O$11="","",VLOOKUP(O31,漢字読み!$A$2:$O$506,8,0)) -> けんがく | P34: =IF(P$11="","",VLOOKUP(P31,漢字読み!$A$2:$O$506,8,0)) -> せい | Q34: =IF(Q$11="","",VLOOKUP(Q31,漢字読み!$A$2:$O$506,8,0)) -> はや | R34: =IF(R$11="","",VLOOKUP(R31,漢字読み!$A$2:$O$506,8,0)) -> こ | S34: =IF(S$11="","",VLOOKUP(S31,漢字読み!$A$2:$O$506,8,0)) -> おお | T34: =IF(T$11="","",VLOOKUP(T31,漢字読み!$A$2:$O$506,8,0)) -> いつ | V34: 名前
A35: =IF(A31="","",IF(VLOOKUP(A31,漢字書き!$A$2:$N$502,7,0)=0,"",VLOOKUP(A31,漢字書き!$A$2:$N$502,7,0))) -> がく | B35: =IF(B31="","",IF(VLOOKUP(B31,漢字書き!$A$2:$N$502,7,0)=0,"",VLOOKUP(B31,漢字書き!$A$2:$N$502,7,0))) -> つ | C35: =IF(C31="","",IF(VLOOKUP(C31,漢字書き!$A$2:$N$502,7,0)=0,"",VLOOKUP(C31,漢字書き!$A$2:$N$502,7,0))) -> 玉 | D35: =IF(D31="","",IF(VLOOKUP(D31,漢字書き!$A$2:$N$502,7,0)=0,"",VLOOKUP(D31,漢字書き!$A$2:$N$502,7,0))) ->  | E35: =IF(E31="","",IF(VLOOKUP(E31,漢字書き!$A$2:$N$502,7,0)=0,"",VLOOKUP(E31,漢字書き!$A$2:$N$502,7,0))) ->  | F35: =IF(F31="","",IF(VLOOKUP(F31,漢字書き!$A$2:$N$502,7,0)=0,"",VLOOKUP(F31,漢字書き!$A$2:$N$502,7,0))) -> トイレ | G35: =IF(G31="","",IF(VLOOKUP(G31,漢字書き!$A$2:$N$502,7,0)=0,"",VLOOKUP(G31,漢字書き!$A$2:$N$502,7,0))) ->  | H35: =IF(H31="","",IF(VLOOKUP(H31,漢字書き!$A$2:$N$502,7,0)=0,"",VLOOKUP(H31,漢字書き!$A$2:$N$502,7,0))) -> さま | I35: =IF(I31="","",IF(VLOOKUP(I31,漢字書き!$A$2:$N$502,7,0)=0,"",VLOOKUP(I31,漢字書き!$A$2:$N$502,7,0))) ->  | J35: =IF(J31="","",IF(VLOOKUP(J31,漢字書き!$A$2:$N$502,7,0)=0,"",VLOOKUP(J31,漢字書き!$A$2:$N$502,7,0))) ->  | K35: =IF(K31="","",IF(VLOOKUP(K31,漢字読み!$A$2:$O$502,7,0)=0,"",VLOOKUP(K31,漢字読み!$A$2:$O$502,7,0))) -> つ | L35: =IF(L31="","",IF(VLOOKUP(L31,漢字読み!$A$2:$O$502,7,0)=0,"",VLOOKUP(L31,漢字読み!$A$2:$O$502,7,0))) ->  | M35: =IF(M31="","",IF(VLOOKUP(M31,漢字読み!$A$2:$O$502,7,0)=0,"",VLOOKUP(M31,漢字読み!$A$2:$O$502,7,0))) ->  | N35: =IF(N31="","",IF(VLOOKUP(N31,漢字読み!$A$2:$O$502,7,0)=0,"",VLOOKUP(N31,漢字読み!$A$2:$O$502,7,0))) -> きる | O35: =IF(O31="","",IF(VLOOKUP(O31,漢字読み!$A$2:$O$502,7,0)=0,"",VLOOKUP(O31,漢字読み!$A$2:$O$502,7,0))) -> する | P35: =IF(P31="","",IF(VLOOKUP(P31,漢字読み!$A$2:$O$502,7,0)=0,"",VLOOKUP(P31,漢字読み!$A$2:$O$502,7,0))) -> しゅん | Q35: =IF(Q31="","",IF(VLOOKUP(Q31,漢字読み!$A$2:$O$502,7,0)=0,"",VLOOKUP(Q31,漢字読み!$A$2:$O$502,7,0))) -> く | R35: =IF(R31="","",IF(VLOOKUP(R31,漢字読み!$A$2:$O$502,7,0)=0,"",VLOOKUP(R31,漢字読み!$A$2:$O$502,7,0))) ->  | S35: =IF(S31="","",IF(VLOOKUP(S31,漢字読み!$A$2:$O$502,7,0)=0,"",VLOOKUP(S31,漢字読み!$A$2:$O$502,7,0))) -> きな | T35: =IF(T31="","",IF(VLOOKUP(T31,漢字読み!$A$2:$O$502,7,0)=0,"",VLOOKUP(T31,漢字読み!$A$2:$O$502,7,0))) -> つ | W35: 和歌山県教育委員会
A36: =A26 -> 5 | B36: =B26 -> 172 | C36: 3 | D36: 57 | E36: 108 | F36: 87 | G36: 31 | H36: 174 | I36: 63 | J36: 153 | K36: 36 | L36: 148 | M36: 157 | N36: 11 | O36: 96 | P36: 10 | Q36: 4 | R36: 156 | S36: 144 | T36: 124
A37: ⑳ | B37: ⑲ | C37: ⑱ | D37: ⑰ | E37: ⑯ | F37: ⑮ | G37: ⑭ | H37: ⑬ | I37: ⑫ | J37: ⑪ | K37: ⑩ | L37: ⑨ | M37: ⑧ | N37: ⑦ | O37: ⑥ | P37: ⑤ | Q37: ④ | R37: ③ | S37: ② | T37: ① | U37: 次の［ ］の部分の漢字には読みがなをひらがなで書き、カタカナは漢字に直しなさい。 | V37: 15 | W37: 「漢字の博士検定試験」練習問題
A38: =IF(A36="","",VLOOKUP(A36,漢字書き!$A$2:$N$506,6,0)) -> ［ウ］りょうがふえる | B38: =IF(B36="","",VLOOKUP(B36,漢字書き!$A$2:$N$506,6,0)) -> ［リン］かん学校 | C38: =IF(C36="","",VLOOKUP(C36,漢字書き!$A$2:$N$506,6,0)) -> ［サユウ］を見る | D38: =IF(D36="","",VLOOKUP(D36,漢字書き!$A$2:$N$506,6,0)) -> ふじ［サン］ | E38: =IF(E36="","",VLOOKUP(E36,漢字書き!$A$2:$N$506,6,0)) -> ［アカ］ちゃんがなく | F38: =IF(F36="","",VLOOKUP(F36,漢字書き!$A$2:$N$506,6,0)) -> ［シンリン］こうえん | G38: =IF(G36="","",VLOOKUP(G36,漢字書き!$A$2:$N$506,6,0)) -> ［キュウ］けいじかん | H38: =IF(H36="","",VLOOKUP(H36,漢字書き!$A$2:$N$506,6,0)) -> ［ムッ］つかぞえる | I38: =IF(I36="","",VLOOKUP(I36,漢字書き!$A$2:$N$506,6,0)) -> ［ヨッ］つのやくそく | J38: =IF(J36="","",VLOOKUP(J36,漢字書き!$A$2:$N$506,6,0)) -> ［シロ］いけむり | K38: =IF(K36="","",VLOOKUP(K36,漢字読み!$A$2:$O$506,6,0)) -> しゃぼん［玉］ | L38: =IF(L36="","",VLOOKUP(L36,漢字読み!$A$2:$O$506,6,0)) -> ［二年］生になる | M38: =IF(M36="","",VLOOKUP(M36,漢字読み!$A$2:$O$506,6,0)) -> ［年］をとる | N38: =IF(N36="","",VLOOKUP(N36,漢字読み!$A$2:$O$506,6,0)) -> ［女王］のへや | O38: =IF(O36="","",VLOOKUP(O36,漢字読み!$A$2:$O$506,6,0)) -> ［正］じきな人 | P38: =IF(P36="","",VLOOKUP(P36,漢字読み!$A$2:$O$506,6,0)) -> ［王子］になる | Q38: =IF(Q36="","",VLOOKUP(Q36,漢字読み!$A$2:$O$506,6,0)) -> ［右］にまがる | R38: =IF(R36="","",VLOOKUP(R36,漢字読み!$A$2:$O$506,6,0)) -> お［年玉］ | S38: =IF(S36="","",VLOOKUP(S36,漢字読み!$A$2:$O$506,6,0)) -> ［田］えんふうけい | T38: =IF(T36="","",VLOOKUP(T36,漢字読み!$A$2:$O$506,6,0)) -> ねこの［足］あと | V38: 級
A39: =IF(A$16="","",VLOOKUP(A36,漢字書き!$A$2:$O$506,8,0)) -> 雨 | B39: =IF(B$16="","",VLOOKUP(B36,漢字書き!$A$2:$O$506,8,0)) -> 林 | C39: =IF(C$16="","",VLOOKUP(C36,漢字書き!$A$2:$O$506,8,0)) -> 左右 | D39: =IF(D$16="","",VLOOKUP(D36,漢字書き!$A$2:$O$506,8,0)) -> 山 | E39: =IF(E$16="","",VLOOKUP(E36,漢字書き!$A$2:$O$506,8,0)) -> 赤 | F39: =IF(F$16="","",VLOOKUP(F36,漢字書き!$A$2:$O$506,8,0)) -> 森林 | G39: =IF(G$16="","",VLOOKUP(G36,漢字書き!$A$2:$O$506,8,0)) -> 休 | H39: =IF(H$16="","",VLOOKUP(H36,漢字書き!$A$2:$O$506,8,0)) -> 六 | I39: =IF(I$16="","",VLOOKUP(I36,漢字書き!$A$2:$O$506,8,0)) -> 四 | J39: =IF(J$16="","",VLOOKUP(J36,漢字書き!$A$2:$O$506,8,0)) -> 白 | K39: =IF(K$16="","",VLOOKUP(K36,漢字読み!$A$2:$O$506,8,0)) -> だま | L39: =IF(L$16="","",VLOOKUP(L36,漢字読み!$A$2:$O$506,8,0)) -> にねん | M39: =IF(M$16="","",VLOOKUP(M36,漢字読み!$A$2:$O$506,8,0)) -> とし | N39: =IF(N$16="","",VLOOKUP(N36,漢字読み!$A$2:$O$506,8,0)) -> じょおう | O39: =IF(O$16="","",VLOOKUP(O36,漢字読み!$A$2:$O$506,8,0)) -> しょう | P39: =IF(P$16="","",VLOOKUP(P36,漢字読み!$A$2:$O$506,8,0)) -> おうじ | Q39: =IF(Q$16="","",VLOOKUP(Q36,漢字読み!$A$2:$O$506,8,0)) -> みぎ | R39: =IF(R$16="","",VLOOKUP(R36,漢字読み!$A$2:$O$506,8,0)) -> としだま | S39: =IF(S$16="","",VLOOKUP(S36,漢字読み!$A$2:$O$506,8,0)) -> でん | T39: =IF(T$16="","",VLOOKUP(T36,漢字読み!$A$2:$O$506,8,0)) -> あし | V39: 名前
A40: =IF(A36="","",IF(VLOOKUP(A36,漢字書き!$A$2:$N$502,7,0)=0,"",VLOOKUP(A36,漢字書き!$A$2:$N$502,7,0))) -> りょう | B40: =IF(B36="","",IF(VLOOKUP(B36,漢字書き!$A$2:$N$502,7,0)=0,"",VLOOKUP(B36,漢字書き!$A$2:$N$502,7,0))) -> かん | C40: =IF(C36="","",IF(VLOOKUP(C36,漢字書き!$A$2:$N$502,7,0)=0,"",VLOOKUP(C36,漢字書き!$A$2:$N$502,7,0))) ->  | D40: =IF(D36="","",IF(VLOOKUP(D36,漢字書き!$A$2:$N$502,7,0)=0,"",VLOOKUP(D36,漢字書き!$A$2:$N$502,7,0))) ->  | E40: =IF(E36="","",IF(VLOOKUP(E36,漢字書き!$A$2:$N$502,7,0)=0,"",VLOOKUP(E36,漢字書き!$A$2:$N$502,7,0))) -> ちゃん | F40: =IF(F36="","",IF(VLOOKUP(F36,漢字書き!$A$2:$N$502,7,0)=0,"",VLOOKUP(F36,漢字書き!$A$2:$N$502,7,0))) ->  | G40: =IF(G36="","",IF(VLOOKUP(G36,漢字書き!$A$2:$N$502,7,0)=0,"",VLOOKUP(G36,漢字書き!$A$2:$N$502,7,0))) -> けい | H40: =IF(H36="","",IF(VLOOKUP(H36,漢字書き!$A$2:$N$502,7,0)=0,"",VLOOKUP(H36,漢字書き!$A$2:$N$502,7,0))) -> つ | I40: =IF(I36="","",IF(VLOOKUP(I36,漢字書き!$A$2:$N$502,7,0)=0,"",VLOOKUP(I36,漢字書き!$A$2:$N$502,7,0))) -> つ | J40: =IF(J36="","",IF(VLOOKUP(J36,漢字書き!$A$2:$N$502,7,0)=0,"",VLOOKUP(J36,漢字書き!$A$2:$N$502,7,0))) -> い | K40: =IF(K36="","",IF(VLOOKUP(K36,漢字読み!$A$2:$O$502,7,0)=0,"",VLOOKUP(K36,漢字読み!$A$2:$O$502,7,0))) ->  | L40: =IF(L36="","",IF(VLOOKUP(L36,漢字読み!$A$2:$O$502,7,0)=0,"",VLOOKUP(L36,漢字読み!$A$2:$O$502,7,0))) -> 生 | M40: =IF(M36="","",IF(VLOOKUP(M36,漢字読み!$A$2:$O$502,7,0)=0,"",VLOOKUP(M36,漢字読み!$A$2:$O$502,7,0))) ->  | N40: =IF(N36="","",IF(VLOOKUP(N36,漢字読み!$A$2:$O$502,7,0)=0,"",VLOOKUP(N36,漢字読み!$A$2:$O$502,7,0))) ->  | O40: =IF(O36="","",IF(VLOOKUP(O36,漢字読み!$A$2:$O$502,7,0)=0,"",VLOOKUP(O36,漢字読み!$A$2:$O$502,7,0))) -> じき | P40: =IF(P36="","",IF(VLOOKUP(P36,漢字読み!$A$2:$O$502,7,0)=0,"",VLOOKUP(P36,漢字読み!$A$2:$O$502,7,0))) ->  | Q40: =IF(Q36="","",IF(VLOOKUP(Q36,漢字読み!$A$2:$O$502,7,0)=0,"",VLOOKUP(Q36,漢字読み!$A$2:$O$502,7,0))) ->  | R40: =IF(R36="","",IF(VLOOKUP(R36,漢字読み!$A$2:$O$502,7,0)=0,"",VLOOKUP(R36,漢字読み!$A$2:$O$502,7,0))) ->  | S40: =IF(S36="","",IF(VLOOKUP(S36,漢字読み!$A$2:$O$502,7,0)=0,"",VLOOKUP(S36,漢字読み!$A$2:$O$502,7,0))) -> えん | T40: =IF(T36="","",IF(VLOOKUP(T36,漢字読み!$A$2:$O$502,7,0)=0,"",VLOOKUP(T36,漢字読み!$A$2:$O$502,7,0))) -> あと | W40: 和歌山県教育委員会
A41: =INDIRECT("'関数（書き）'!C" & COLUMN(B$1)+SUM($AD$2:$AD42)) -> 93 | B41: =INDIRECT("'関数（書き）'!C" & COLUMN(C$1)+SUM($AD$2:$AD42)) -> 65 | C41: =INDIRECT("'関数（書き）'!C" & COLUMN(D$1)+SUM($AD$2:$AD42)) -> 14 | D41: =INDIRECT("'関数（書き）'!C" & COLUMN(E$1)+SUM($AD$2:$AD42)) -> 17 | E41: =INDIRECT("'関数（書き）'!C" & COLUMN(F$1)+SUM($AD$2:$AD42)) -> 139 | F41: =INDIRECT("'関数（書き）'!C" & COLUMN(G$1)+SUM($AD$2:$AD42)) -> 32 | G41: =INDIRECT("'関数（書き）'!C" & COLUMN(H$1)+SUM($AD$2:$AD42)) -> 25 | H41: =INDIRECT("'関数（書き）'!C" & COLUMN(I$1)+SUM($AD$2:$AD42)) -> 102 | I41: =INDIRECT("'関数（書き）'!C" & COLUMN(J$1)+SUM($AD$2:$AD42)) -> 164 | J41: =INDIRECT("'関数（書き）'!C" & COLUMN(K$1)+SUM($AD$2:$AD42)) -> 22 | K41: =INDIRECT("'関数（読み）'!C" & COLUMN(B$1)+SUM($AD$2:$AD42)) -> 129 | L41: =INDIRECT("'関数（読み）'!C" & COLUMN(C$1)+SUM($AD$2:$AD42)) -> 117 | M41: =INDIRECT("'関数（読み）'!C" & COLUMN(D$1)+SUM($AD$2:$AD42)) -> 107 | N41: =INDIRECT("'関数（読み）'!C" & COLUMN(E$1)+SUM($AD$2:$AD42)) -> 16 | O41: =INDIRECT("'関数（読み）'!C" & COLUMN(F$1)+SUM($AD$2:$AD42)) -> 3 | P41: =INDIRECT("'関数（読み）'!C" & COLUMN(G$1)+SUM($AD$2:$AD42)) -> 75 | Q41: =INDIRECT("'関数（読み）'!C" & COLUMN(H$1)+SUM($AD$2:$AD42)) -> 27 | R41: =INDIRECT("'関数（読み）'!C" & COLUMN(I$1)+SUM($AD$2:$AD42)) -> 76 | S41: =INDIRECT("'関数（読み）'!C" & COLUMN(J$1)+SUM($AD$2:$AD42)) -> 50 | T41: =INDIRECT("'関数（読み）'!C" & COLUMN(K$1)+SUM($AD$2:$AD42)) -> 43
A42: ⑳ | B42: ⑲ | C42: ⑱ | D42: ⑰ | E42: ⑯ | F42: ⑮ | G42: ⑭ | H42: ⑬ | I42: ⑫ | J42: ⑪ | K42: ⑩ | L42: ⑨ | M42: ⑧ | N42: ⑦ | O42: ⑥ | P42: ⑤ | Q42: ④ | R42: ③ | S42: ② | T42: ① | U42: 次の［ ］の部分の漢字には読みがなをひらがなで書き、カタカナは漢字に直しなさい。 | V42: 15 | W42: 「漢字の博士検定試験」練習問題 | AC42: ← | AD42: 10 | AE42: 問 | AF42: =AH27+1 -> 41 | AG42: ～ | AH42: =SUM($AD$2:$AD42)+10 -> 50 | AI42: 問まで | AJ42: =COUNTIF($A$1:$T$200,T43) -> 2
A43: =IF(A41="","",VLOOKUP(A41,漢字書き!$A$2:$N$506,6,0)) -> ［ミズ］がきれい | B43: =IF(B41="","",VLOOKUP(B41,漢字書き!$A$2:$N$506,6,0)) -> たぬきの［イトグルマ］ | C43: =IF(C41="","",VLOOKUP(C41,漢字書き!$A$2:$N$506,6,0)) -> ［ゲコウ］する | D43: =IF(D41="","",VLOOKUP(D41,漢字書き!$A$2:$N$506,6,0)) -> ［ヒ］のようじん | E43: =IF(E41="","",VLOOKUP(E41,漢字書き!$A$2:$N$506,6,0)) -> ［デン］えん | F43: =IF(F41="","",VLOOKUP(F41,漢字書き!$A$2:$N$506,6,0)) -> ［ヤス］みじかん | G43: =IF(G41="","",VLOOKUP(G41,漢字書き!$A$2:$N$506,6,0)) -> ［ガクリョク］があがる | H43: =IF(H41="","",VLOOKUP(H41,漢字書き!$A$2:$N$506,6,0)) -> ［ユウ］がた | I43: =IF(I41="","",VLOOKUP(I41,漢字書き!$A$2:$N$506,6,0)) -> ［ナ］ふだをつける | J43: =IF(J41="","",VLOOKUP(J41,漢字書き!$A$2:$N$506,6,0)) -> きれいな［ハナビ］ | K43: =IF(K41="","",VLOOKUP(K41,漢字読み!$A$2:$O$506,6,0)) -> ［大］すきなたべもの | L43: =IF(L41="","",VLOOKUP(L41,漢字読み!$A$2:$O$506,6,0)) -> ［小川］がながれる | M43: =IF(M41="","",VLOOKUP(M41,漢字読み!$A$2:$O$506,6,0)) -> ［青］いぼうし | N43: =IF(N41="","",VLOOKUP(N41,漢字読み!$A$2:$O$506,6,0)) -> つくえの［下］ | O43: =IF(O41="","",VLOOKUP(O41,漢字読み!$A$2:$O$506,6,0)) -> まわれ［右］ | P43: =IF(P41="","",VLOOKUP(P41,漢字読み!$A$2:$O$506,6,0)) -> ［手］をあらう | Q43: =IF(Q41="","",VLOOKUP(Q41,漢字読み!$A$2:$O$506,6,0)) -> ［学］びをふかめる | R43: =IF(R41="","",VLOOKUP(R41,漢字読み!$A$2:$O$506,6,0)) -> ［十二］までかぞえる | S43: =IF(S41="","",VLOOKUP(S41,漢字読み!$A$2:$O$506,6,0)) -> 先が［見］えない | T43: =IF(T41="","",VLOOKUP(T41,漢字読み!$A$2:$O$506,6,0)) -> ［一月］九日 | V43: 級
V44: 名前
A45: =IF(A41="","",IF(VLOOKUP(A41,漢字書き!$A$2:$N$502,7,0)=0,"",VLOOKUP(A41,漢字書き!$A$2:$N$502,7,0))) ->  | B45: =IF(B41="","",IF(VLOOKUP(B41,漢字書き!$A$2:$N$502,7,0)=0,"",VLOOKUP(B41,漢字書き!$A$2:$N$502,7,0))) ->  | C45: =IF(C41="","",IF(VLOOKUP(C41,漢字書き!$A$2:$N$502,7,0)=0,"",VLOOKUP(C41,漢字書き!$A$2:$N$502,7,0))) -> する | D45: =IF(D41="","",IF(VLOOKUP(D41,漢字書き!$A$2:$N$502,7,0)=0,"",VLOOKUP(D41,漢字書き!$A$2:$N$502,7,0))) ->  | E45: =IF(E41="","",IF(VLOOKUP(E41,漢字書き!$A$2:$N$502,7,0)=0,"",VLOOKUP(E41,漢字書き!$A$2:$N$502,7,0))) -> えん | F45: =IF(F41="","",IF(VLOOKUP(F41,漢字書き!$A$2:$N$502,7,0)=0,"",VLOOKUP(F41,漢字書き!$A$2:$N$502,7,0))) -> み | G45: =IF(G41="","",IF(VLOOKUP(G41,漢字書き!$A$2:$N$502,7,0)=0,"",VLOOKUP(G41,漢字書き!$A$2:$N$502,7,0))) ->  | H45: =IF(H41="","",IF(VLOOKUP(H41,漢字書き!$A$2:$N$502,7,0)=0,"",VLOOKUP(H41,漢字書き!$A$2:$N$502,7,0))) -> がた | I45: =IF(I41="","",IF(VLOOKUP(I41,漢字書き!$A$2:$N$502,7,0)=0,"",VLOOKUP(I41,漢字書き!$A$2:$N$502,7,0))) -> ふだ | J45: =IF(J41="","",IF(VLOOKUP(J41,漢字書き!$A$2:$N$502,7,0)=0,"",VLOOKUP(J41,漢字書き!$A$2:$N$502,7,0))) ->  | K45: =IF(K41="","",IF(VLOOKUP(K41,漢字読み!$A$2:$O$502,7,0)=0,"",VLOOKUP(K41,漢字読み!$A$2:$O$502,7,0))) -> すき | L45: =IF(L41="","",IF(VLOOKUP(L41,漢字読み!$A$2:$O$502,7,0)=0,"",VLOOKUP(L41,漢字読み!$A$2:$O$502,7,0))) ->  | M45: =IF(M41="","",IF(VLOOKUP(M41,漢字読み!$A$2:$O$502,7,0)=0,"",VLOOKUP(M41,漢字読み!$A$2:$O$502,7,0))) -> い | N45: =IF(N41="","",IF(VLOOKUP(N41,漢字読み!$A$2:$O$502,7,0)=0,"",VLOOKUP(N41,漢字読み!$A$2:$O$502,7,0))) ->  | O45: =IF(O41="","",IF(VLOOKUP(O41,漢字読み!$A$2:$O$502,7,0)=0,"",VLOOKUP(O41,漢字読み!$A$2:$O$502,7,0))) ->  | P45: =IF(P41="","",IF(VLOOKUP(P41,漢字読み!$A$2:$O$502,7,0)=0,"",VLOOKUP(P41,漢字読み!$A$2:$O$502,7,0))) ->  | Q45: =IF(Q41="","",IF(VLOOKUP(Q41,漢字読み!$A$2:$O$502,7,0)=0,"",VLOOKUP(Q41,漢字読み!$A$2:$O$502,7,0))) -> び | R45: =IF(R41="","",IF(VLOOKUP(R41,漢字読み!$A$2:$O$502,7,0)=0,"",VLOOKUP(R41,漢字読み!$A$2:$O$502,7,0))) ->  | S45: =IF(S41="","",IF(VLOOKUP(S41,漢字読み!$A$2:$O$502,7,0)=0,"",VLOOKUP(S41,漢字読み!$A$2:$O$502,7,0))) -> えない | T45: =IF(T41="","",IF(VLOOKUP(T41,漢字読み!$A$2:$O$502,7,0)=0,"",VLOOKUP(T41,漢字読み!$A$2:$O$502,7,0))) ->  | W45: 和歌山県教育委員会
A46: =INDIRECT("'関数（書き）'!C" & COLUMN(B$1)+SUM($AD$2:$AD47)) -> 142 | B46: =INDIRECT("'関数（書き）'!C" & COLUMN(C$1)+SUM($AD$2:$AD47)) -> 89 | C46: =INDIRECT("'関数（書き）'!C" & COLUMN(D$1)+SUM($AD$2:$AD47)) -> 138 | D46: =INDIRECT("'関数（書き）'!C" & COLUMN(E$1)+SUM($AD$2:$AD47)) -> 109 | E46: =INDIRECT("'関数（書き）'!C" & COLUMN(F$1)+SUM($AD$2:$AD47)) -> 2 | F46: =INDIRECT("'関数（書き）'!C" & COLUMN(G$1)+SUM($AD$2:$AD47)) -> 47 | G46: =INDIRECT("'関数（書き）'!C" & COLUMN(H$1)+SUM($AD$2:$AD47)) -> 129 | H46: =INDIRECT("'関数（書き）'!C" & COLUMN(I$1)+SUM($AD$2:$AD47)) -> 78 | I46: =INDIRECT("'関数（書き）'!C" & COLUMN(J$1)+SUM($AD$2:$AD47)) -> 99 | J46: =INDIRECT("'関数（書き）'!C" & COLUMN(K$1)+SUM($AD$2:$AD47)) -> 106 | K46: =INDIRECT("'関数（読み）'!C" & COLUMN(B$1)+SUM($AD$2:$AD47)) -> 133 | L46: =INDIRECT("'関数（読み）'!C" & COLUMN(C$1)+SUM($AD$2:$AD47)) -> 122 | M46: =INDIRECT("'関数（読み）'!C" & COLUMN(D$1)+SUM($AD$2:$AD47)) -> 87 | N46: =INDIRECT("'関数（読み）'!C" & COLUMN(E$1)+SUM($AD$2:$AD47)) -> 26 | O46: =INDIRECT("'関数（読み）'!C" & COLUMN(F$1)+SUM($AD$2:$AD47)) -> 128 | P46: =INDIRECT("'関数（読み）'!C" & COLUMN(G$1)+SUM($AD$2:$AD47)) -> 32 | Q46: =INDIRECT("'関数（読み）'!C" & COLUMN(H$1)+SUM($AD$2:$AD47)) -> 134 | R46: =INDIRECT("'関数（読み）'!C" & COLUMN(I$1)+SUM($AD$2:$AD47)) -> 79 | S46: =INDIRECT("'関数（読み）'!C" & COLUMN(J$1)+SUM($AD$2:$AD47)) -> 183 | T46: =INDIRECT("'関数（読み）'!C" & COLUMN(K$1)+SUM($AD$2:$AD47)) -> 175
A47: ⑳ | B47: ⑲ | C47: ⑱ | D47: ⑰ | E47: ⑯ | F47: ⑮ | G47: ⑭ | H47: ⑬ | I47: ⑫ | J47: ⑪ | K47: ⑩ | L47: ⑨ | M47: ⑧ | N47: ⑦ | O47: ⑥ | P47: ⑤ | Q47: ④ | R47: ③ | S47: ② | T47: ① | U47: 次の［ ］の部分の漢字には読みがなをひらがなで書き、カタカナは漢字に直しなさい。 | V47: 15 | W47: 「漢字の博士検定試験」練習問題 | AC47: ← | AD47: 10 | AE47: 問 | AF47: =AH42+1 -> 51 | AG47: ～ | AH47: =SUM($AD$2:$AD47)+10 -> 60 | AI47: 問まで | AJ47: =COUNTIF($A$1:$T$200,T48) -> 2
A48: =IF(A46="","",VLOOKUP(A46,漢字書き!$A$2:$N$506,6,0)) -> ［ツチ］をはこぶ | B48: =IF(B46="","",VLOOKUP(B46,漢字書き!$A$2:$N$506,6,0)) -> がいこく［ジン］ | C48: =IF(C46="","",VLOOKUP(C46,漢字書き!$A$2:$N$506,6,0)) -> ［アマ］の川 | D48: =IF(D46="","",VLOOKUP(D46,漢字書き!$A$2:$N$506,6,0)) -> ［セン］のかぜになる | E48: =IF(E46="","",VLOOKUP(E46,漢字書き!$A$2:$N$506,6,0)) -> ［ヒト］つの花 | F48: =IF(F46="","",VLOOKUP(F46,漢字書き!$A$2:$N$506,6,0)) -> ［ゴネン］生になる | G48: =IF(G46="","",VLOOKUP(G46,漢字書き!$A$2:$N$506,6,0)) -> ［タケ］をわる | H48: =IF(H46="","",VLOOKUP(H46,漢字書き!$A$2:$N$506,6,0)) -> ［シュツ］じょうする | I48: =IF(I46="","",VLOOKUP(I46,漢字書き!$A$2:$N$506,6,0)) -> たのしく［イ］きる | J48: =IF(J46="","",VLOOKUP(J46,漢字書き!$A$2:$N$506,6,0)) -> ［セキ］はんをたく | K48: =IF(K46="","",VLOOKUP(K46,漢字読み!$A$2:$O$506,6,0)) -> ［男］の子 | L48: =IF(L46="","",VLOOKUP(L46,漢字読み!$A$2:$O$506,6,0)) -> ［草］げんをあるく | M48: =IF(M46="","",VLOOKUP(M46,漢字読み!$A$2:$O$506,6,0)) -> ［上］をむく | N48: =IF(N46="","",VLOOKUP(N46,漢字読み!$A$2:$O$506,6,0)) -> ［入学］しき | O48: =IF(O46="","",VLOOKUP(O46,漢字読み!$A$2:$O$506,6,0)) -> ［村］にすむ | P48: =IF(P46="","",VLOOKUP(P46,漢字読み!$A$2:$O$506,6,0)) -> ［一休］さん | Q48: =IF(Q46="","",VLOOKUP(Q46,漢字読み!$A$2:$O$506,6,0)) -> ［竹］わをたべる | R48: =IF(R46="","",VLOOKUP(R46,漢字読み!$A$2:$O$506,6,0)) -> ［出］ぱつする | S48: =IF(S46="","",VLOOKUP(S46,漢字読み!$A$2:$O$506,6,0)) -> ［林］かん学校 | T48: =IF(T46="","",VLOOKUP(T46,漢字読み!$A$2:$O$506,6,0)) -> ［名］まえをかく | V48: 級
V49: 名前
A50: =IF(A46="","",IF(VLOOKUP(A46,漢字書き!$A$2:$N$502,7,0)=0,"",VLOOKUP(A46,漢字書き!$A$2:$N$502,7,0))) ->  | B50: =IF(B46="","",IF(VLOOKUP(B46,漢字書き!$A$2:$N$502,7,0)=0,"",VLOOKUP(B46,漢字書き!$A$2:$N$502,7,0))) ->  | C50: =IF(C46="","",IF(VLOOKUP(C46,漢字書き!$A$2:$N$502,7,0)=0,"",VLOOKUP(C46,漢字書き!$A$2:$N$502,7,0))) ->  | D50: =IF(D46="","",IF(VLOOKUP(D46,漢字書き!$A$2:$N$502,7,0)=0,"",VLOOKUP(D46,漢字書き!$A$2:$N$502,7,0))) ->  | E50: =IF(E46="","",IF(VLOOKUP(E46,漢字書き!$A$2:$N$502,7,0)=0,"",VLOOKUP(E46,漢字書き!$A$2:$N$502,7,0))) -> つ | F50: =IF(F46="","",IF(VLOOKUP(F46,漢字書き!$A$2:$N$502,7,0)=0,"",VLOOKUP(F46,漢字書き!$A$2:$N$502,7,0))) -> 生 | G50: =IF(G46="","",IF(VLOOKUP(G46,漢字書き!$A$2:$N$502,7,0)=0,"",VLOOKUP(G46,漢字書き!$A$2:$N$502,7,0))) ->  | H50: =IF(H46="","",IF(VLOOKUP(H46,漢字書き!$A$2:$N$502,7,0)=0,"",VLOOKUP(H46,漢字書き!$A$2:$N$502,7,0))) -> じょう | I50: =IF(I46="","",IF(VLOOKUP(I46,漢字書き!$A$2:$N$502,7,0)=0,"",VLOOKUP(I46,漢字書き!$A$2:$N$502,7,0))) -> きる | J50: =IF(J46="","",IF(VLOOKUP(J46,漢字書き!$A$2:$N$502,7,0)=0,"",VLOOKUP(J46,漢字書き!$A$2:$N$502,7,0))) -> はん | K50: =IF(K46="","",IF(VLOOKUP(K46,漢字読み!$A$2:$O$502,7,0)=0,"",VLOOKUP(K46,漢字読み!$A$2:$O$502,7,0))) -> の子 | L50: =IF(L46="","",IF(VLOOKUP(L46,漢字読み!$A$2:$O$502,7,0)=0,"",VLOOKUP(L46,漢字読み!$A$2:$O$502,7,0))) -> げん | M50: =IF(M46="","",IF(VLOOKUP(M46,漢字読み!$A$2:$O$502,7,0)=0,"",VLOOKUP(M46,漢字読み!$A$2:$O$502,7,0))) ->  | N50: =IF(N46="","",IF(VLOOKUP(N46,漢字読み!$A$2:$O$502,7,0)=0,"",VLOOKUP(N46,漢字読み!$A$2:$O$502,7,0))) -> しき | O50: =IF(O46="","",IF(VLOOKUP(O46,漢字読み!$A$2:$O$502,7,0)=0,"",VLOOKUP(O46,漢字読み!$A$2:$O$502,7,0))) ->  | P50: =IF(P46="","",IF(VLOOKUP(P46,漢字読み!$A$2:$O$502,7,0)=0,"",VLOOKUP(P46,漢字読み!$A$2:$O$502,7,0))) -> さん | Q50: =IF(Q46="","",IF(VLOOKUP(Q46,漢字読み!$A$2:$O$502,7,0)=0,"",VLOOKUP(Q46,漢字読み!$A$2:$O$502,7,0))) -> わ | R50: =IF(R46="","",IF(VLOOKUP(R46,漢字読み!$A$2:$O$502,7,0)=0,"",VLOOKUP(R46,漢字読み!$A$2:$O$502,7,0))) ->  | S50: =IF(S46="","",IF(VLOOKUP(S46,漢字読み!$A$2:$O$502,7,0)=0,"",VLOOKUP(S46,漢字読み!$A$2:$O$502,7,0))) -> かん | T50: =IF(T46="","",IF(VLOOKUP(T46,漢字読み!$A$2:$O$502,7,0)=0,"",VLOOKUP(T46,漢字読み!$A$2:$O$502,7,0))) -> まえ | W50: 和歌山県教育委員会
A51: =A41 -> 93 | B51: =B41 -> 65 | C51: 14 | D51: 17 | E51: 139 | F51: 32 | G51: 25 | H51: 102 | I51: 164 | J51: 22 | K51: 129 | L51: 117 | M51: 107 | N51: 16 | O51: 3 | P51: 75 | Q51: 27 | R51: 76 | S51: 50 | T51: 43
A52: ⑳ | B52: ⑲ | C52: ⑱ | D52: ⑰ | E52: ⑯ | F52: ⑮ | G52: ⑭ | H52: ⑬ | I52: ⑫ | J52: ⑪ | K52: ⑩ | L52: ⑨ | M52: ⑧ | N52: ⑦ | O52: ⑥ | P52: ⑤ | Q52: ④ | R52: ③ | S52: ② | T52: ① | U52: 次の［ ］の部分の漢字には読みがなをひらがなで書き、カタカナは漢字に直しなさい。 | V52: 15 | W52: 「漢字の博士検定試験」練習問題
A53: =IF(A51="","",VLOOKUP(A51,漢字書き!$A$2:$N$506,6,0)) -> ［ミズ］がきれい | B53: =IF(B51="","",VLOOKUP(B51,漢字書き!$A$2:$N$506,6,0)) -> たぬきの［イトグルマ］ | C53: =IF(C51="","",VLOOKUP(C51,漢字書き!$A$2:$N$506,6,0)) -> ［ゲコウ］する | D53: =IF(D51="","",VLOOKUP(D51,漢字書き!$A$2:$N$506,6,0)) -> ［ヒ］のようじん | E53: =IF(E51="","",VLOOKUP(E51,漢字書き!$A$2:$N$506,6,0)) -> ［デン］えん | F53: =IF(F51="","",VLOOKUP(F51,漢字書き!$A$2:$N$506,6,0)) -> ［ヤス］みじかん | G53: =IF(G51="","",VLOOKUP(G51,漢字書き!$A$2:$N$506,6,0)) -> ［ガクリョク］があがる | H53: =IF(H51="","",VLOOKUP(H51,漢字書き!$A$2:$N$506,6,0)) -> ［ユウ］がた | I53: =IF(I51="","",VLOOKUP(I51,漢字書き!$A$2:$N$506,6,0)) -> ［ナ］ふだをつける | J53: =IF(J51="","",VLOOKUP(J51,漢字書き!$A$2:$N$506,6,0)) -> きれいな［ハナビ］ | K53: =IF(K51="","",VLOOKUP(K51,漢字読み!$A$2:$O$506,6,0)) -> ［大］すきなたべもの | L53: =IF(L51="","",VLOOKUP(L51,漢字読み!$A$2:$O$506,6,0)) -> ［小川］がながれる | M53: =IF(M51="","",VLOOKUP(M51,漢字読み!$A$2:$O$506,6,0)) -> ［青］いぼうし | N53: =IF(N51="","",VLOOKUP(N51,漢字読み!$A$2:$O$506,6,0)) -> つくえの［下］ | O53: =IF(O51="","",VLOOKUP(O51,漢字読み!$A$2:$O$506,6,0)) -> まわれ［右］ | P53: =IF(P51="","",VLOOKUP(P51,漢字読み!$A$2:$O$506,6,0)) -> ［手］をあらう | Q53: =IF(Q51="","",VLOOKUP(Q51,漢字読み!$A$2:$O$506,6,0)) -> ［学］びをふかめる | R53: =IF(R51="","",VLOOKUP(R51,漢字読み!$A$2:$O$506,6,0)) -> ［十二］までかぞえる | S53: =IF(S51="","",VLOOKUP(S51,漢字読み!$A$2:$O$506,6,0)) -> 先が［見］えない | T53: =IF(T51="","",VLOOKUP(T51,漢字読み!$A$2:$O$506,6,0)) -> ［一月］九日 | V53: 級
A54: =IF(A$11="","",VLOOKUP(A51,漢字書き!$A$2:$O$506,8,0)) -> 水 | B54: =IF(B$11="","",VLOOKUP(B51,漢字書き!$A$2:$O$506,8,0)) -> 糸車 | C54: =IF(C$11="","",VLOOKUP(C51,漢字書き!$A$2:$O$506,8,0)) -> 下校 | D54: =IF(D$11="","",VLOOKUP(D51,漢字書き!$A$2:$O$506,8,0)) -> 火 | E54: =IF(E$11="","",VLOOKUP(E51,漢字書き!$A$2:$O$506,8,0)) -> 田 | F54: =IF(F$11="","",VLOOKUP(F51,漢字書き!$A$2:$O$506,8,0)) -> 休 | G54: =IF(G$11="","",VLOOKUP(G51,漢字書き!$A$2:$O$506,8,0)) -> 学力 | H54: =IF(H$11="","",VLOOKUP(H51,漢字書き!$A$2:$O$506,8,0)) -> 夕 | I54: =IF(I$11="","",VLOOKUP(I51,漢字書き!$A$2:$O$506,8,0)) -> 名 | J54: =IF(J$11="","",VLOOKUP(J51,漢字書き!$A$2:$O$506,8,0)) -> 花火 | K54: =IF(K$11="","",VLOOKUP(K51,漢字読み!$A$2:$O$506,8,0)) -> だい | L54: =IF(L$11="","",VLOOKUP(L51,漢字読み!$A$2:$O$506,8,0)) -> おがわ | M54: =IF(M$11="","",VLOOKUP(M51,漢字読み!$A$2:$O$506,8,0)) -> あお | N54: =IF(N$11="","",VLOOKUP(N51,漢字読み!$A$2:$O$506,8,0)) -> した | O54: =IF(O$11="","",VLOOKUP(O51,漢字読み!$A$2:$O$506,8,0)) -> みぎ | P54: =IF(P$11="","",VLOOKUP(P51,漢字読み!$A$2:$O$506,8,0)) -> て | Q54: =IF(Q$11="","",VLOOKUP(Q51,漢字読み!$A$2:$O$506,8,0)) -> まな | R54: =IF(R$11="","",VLOOKUP(R51,漢字読み!$A$2:$O$506,8,0)) -> じゅうに | S54: =IF(S$11="","",VLOOKUP(S51,漢字読み!$A$2:$O$506,8,0)) -> み | T54: =IF(T$11="","",VLOOKUP(T51,漢字読み!$A$2:$O$506,8,0)) -> いちがつ | V54: 名前
A55: =IF(A51="","",IF(VLOOKUP(A51,漢字書き!$A$2:$N$502,7,0)=0,"",VLOOKUP(A51,漢字書き!$A$2:$N$502,7,0))) ->  | B55: =IF(B51="","",IF(VLOOKUP(B51,漢字書き!$A$2:$N$502,7,0)=0,"",VLOOKUP(B51,漢字書き!$A$2:$N$502,7,0))) ->  | C55: =IF(C51="","",IF(VLOOKUP(C51,漢字書き!$A$2:$N$502,7,0)=0,"",VLOOKUP(C51,漢字書き!$A$2:$N$502,7,0))) -> する | D55: =IF(D51="","",IF(VLOOKUP(D51,漢字書き!$A$2:$N$502,7,0)=0,"",VLOOKUP(D51,漢字書き!$A$2:$N$502,7,0))) ->  | E55: =IF(E51="","",IF(VLOOKUP(E51,漢字書き!$A$2:$N$502,7,0)=0,"",VLOOKUP(E51,漢字書き!$A$2:$N$502,7,0))) -> えん | F55: =IF(F51="","",IF(VLOOKUP(F51,漢字書き!$A$2:$N$502,7,0)=0,"",VLOOKUP(F51,漢字書き!$A$2:$N$502,7,0))) -> み | G55: =IF(G51="","",IF(VLOOKUP(G51,漢字書き!$A$2:$N$502,7,0)=0,"",VLOOKUP(G51,漢字書き!$A$2:$N$502,7,0))) ->  | H55: =IF(H51="","",IF(VLOOKUP(H51,漢字書き!$A$2:$N$502,7,0)=0,"",VLOOKUP(H51,漢字書き!$A$2:$N$502,7,0))) -> がた | I55: =IF(I51="","",IF(VLOOKUP(I51,漢字書き!$A$2:$N$502,7,0)=0,"",VLOOKUP(I51,漢字書き!$A$2:$N$502,7,0))) -> ふだ | J55: =IF(J51="","",IF(VLOOKUP(J51,漢字書き!$A$2:$N$502,7,0)=0,"",VLOOKUP(J51,漢字書き!$A$2:$N$502,7,0))) ->  | K55: =IF(K51="","",IF(VLOOKUP(K51,漢字読み!$A$2:$O$502,7,0)=0,"",VLOOKUP(K51,漢字読み!$A$2:$O$502,7,0))) -> すき | L55: =IF(L51="","",IF(VLOOKUP(L51,漢字読み!$A$2:$O$502,7,0)=0,"",VLOOKUP(L51,漢字読み!$A$2:$O$502,7,0))) ->  | M55: =IF(M51="","",IF(VLOOKUP(M51,漢字読み!$A$2:$O$502,7,0)=0,"",VLOOKUP(M51,漢字読み!$A$2:$O$502,7,0))) -> い | N55: =IF(N51="","",IF(VLOOKUP(N51,漢字読み!$A$2:$O$502,7,0)=0,"",VLOOKUP(N51,漢字読み!$A$2:$O$502,7,0))) ->  | O55: =IF(O51="","",IF(VLOOKUP(O51,漢字読み!$A$2:$O$502,7,0)=0,"",VLOOKUP(O51,漢字読み!$A$2:$O$502,7,0))) ->  | P55: =IF(P51="","",IF(VLOOKUP(P51,漢字読み!$A$2:$O$502,7,0)=0,"",VLOOKUP(P51,漢字読み!$A$2:$O$502,7,0))) ->  | Q55: =IF(Q51="","",IF(VLOOKUP(Q51,漢字読み!$A$2:$O$502,7,0)=0,"",VLOOKUP(Q51,漢字読み!$A$2:$O$502,7,0))) -> び | R55: =IF(R51="","",IF(VLOOKUP(R51,漢字読み!$A$2:$O$502,7,0)=0,"",VLOOKUP(R51,漢字読み!$A$2:$O$502,7,0))) ->  | S55: =IF(S51="","",IF(VLOOKUP(S51,漢字読み!$A$2:$O$502,7,0)=0,"",VLOOKUP(S51,漢字読み!$A$2:$O$502,7,0))) -> えない | T55: =IF(T51="","",IF(VLOOKUP(T51,漢字読み!$A$2:$O$502,7,0)=0,"",VLOOKUP(T51,漢字読み!$A$2:$O$502,7,0))) ->  | W55: 和歌山県教育委員会
A56: =A46 -> 142 | B56: =B46 -> 89 | C56: 138 | D56: 109 | E56: 2 | F56: 47 | G56: 129 | H56: 78 | I56: 99 | J56: 106 | K56: 133 | L56: 122 | M56: 87 | N56: 26 | O56: 128 | P56: 32 | Q56: 134 | R56: 79 | S56: 183 | T56: 175
A57: ⑳ | B57: ⑲ | C57: ⑱ | D57: ⑰ | E57: ⑯ | F57: ⑮ | G57: ⑭ | H57: ⑬ | I57: ⑫ | J57: ⑪ | K57: ⑩ | L57: ⑨ | M57: ⑧ | N57: ⑦ | O57: ⑥ | P57: ⑤ | Q57: ④ | R57: ③ | S57: ② | T57: ① | U57: 次の［ ］の部分の漢字には読みがなをひらがなで書き、カタカナは漢字に直しなさい。 | V57: 15 | W57: 「漢字の博士検定試験」練習問題
A58: =IF(A56="","",VLOOKUP(A56,漢字書き!$A$2:$N$506,6,0)) -> ［ツチ］をはこぶ | B58: =IF(B56="","",VLOOKUP(B56,漢字書き!$A$2:$N$506,6,0)) -> がいこく［ジン］ | C58: =IF(C56="","",VLOOKUP(C56,漢字書き!$A$2:$N$506,6,0)) -> ［アマ］の川 | D58: =IF(D56="","",VLOOKUP(D56,漢字書き!$A$2:$N$506,6,0)) -> ［セン］のかぜになる | E58: =IF(E56="","",VLOOKUP(E56,漢字書き!$A$2:$N$506,6,0)) -> ［ヒト］つの花 | F58: =IF(F56="","",VLOOKUP(F56,漢字書き!$A$2:$N$506,6,0)) -> ［ゴネン］生になる | G58: =IF(G56="","",VLOOKUP(G56,漢字書き!$A$2:$N$506,6,0)) -> ［タケ］をわる | H58: =IF(H56="","",VLOOKUP(H56,漢字書き!$A$2:$N$506,6,0)) -> ［シュツ］じょうする | I58: =IF(I56="","",VLOOKUP(I56,漢字書き!$A$2:$N$506,6,0)) -> たのしく［イ］きる | J58: =IF(J56="","",VLOOKUP(J56,漢字書き!$A$2:$N$506,6,0)) -> ［セキ］はんをたく | K58: =IF(K56="","",VLOOKUP(K56,漢字読み!$A$2:$O$506,6,0)) -> ［男］の子 | L58: =IF(L56="","",VLOOKUP(L56,漢字読み!$A$2:$O$506,6,0)) -> ［草］げんをあるく | M58: =IF(M56="","",VLOOKUP(M56,漢字読み!$A$2:$O$506,6,0)) -> ［上］をむく | N58: =IF(N56="","",VLOOKUP(N56,漢字読み!$A$2:$O$506,6,0)) -> ［入学］しき | O58: =IF(O56="","",VLOOKUP(O56,漢字読み!$A$2:$O$506,6,0)) -> ［村］にすむ | P58: =IF(P56="","",VLOOKUP(P56,漢字読み!$A$2:$O$506,6,0)) -> ［一休］さん | Q58: =IF(Q56="","",VLOOKUP(Q56,漢字読み!$A$2:$O$506,6,0)) -> ［竹］わをたべる | R58: =IF(R56="","",VLOOKUP(R56,漢字読み!$A$2:$O$506,6,0)) -> ［出］ぱつする | S58: =IF(S56="","",VLOOKUP(S56,漢字読み!$A$2:$O$506,6,0)) -> ［林］かん学校 | T58: =IF(T56="","",VLOOKUP(T56,漢字読み!$A$2:$O$506,6,0)) -> ［名］まえをかく | V58: 級
A59: =IF(A$16="","",VLOOKUP(A56,漢字書き!$A$2:$O$506,8,0)) -> 土 | B59: =IF(B$16="","",VLOOKUP(B56,漢字書き!$A$2:$O$506,8,0)) -> 人 | C59: =IF(C$16="","",VLOOKUP(C56,漢字書き!$A$2:$O$506,8,0)) -> 天 | D59: =IF(D$16="","",VLOOKUP(D56,漢字書き!$A$2:$O$506,8,0)) -> 千 | E59: =IF(E$16="","",VLOOKUP(E56,漢字書き!$A$2:$O$506,8,0)) -> 一 | F59: =IF(F$16="","",VLOOKUP(F56,漢字書き!$A$2:$O$506,8,0)) -> 五年 | G59: =IF(G$16="","",VLOOKUP(G56,漢字書き!$A$2:$O$506,8,0)) -> 竹 | H59: =IF(H$16="","",VLOOKUP(H56,漢字書き!$A$2:$O$506,8,0)) -> 出 | I59: =IF(I$16="","",VLOOKUP(I56,漢字書き!$A$2:$O$506,8,0)) -> 生 | J59: =IF(J$16="","",VLOOKUP(J56,漢字書き!$A$2:$O$506,8,0)) -> 赤 | K59: =IF(K$16="","",VLOOKUP(K56,漢字読み!$A$2:$O$506,8,0)) -> おとこ | L59: =IF(L$16="","",VLOOKUP(L56,漢字読み!$A$2:$O$506,8,0)) -> そう | M59: =IF(M$16="","",VLOOKUP(M56,漢字読み!$A$2:$O$506,8,0)) -> うえ | N59: =IF(N$16="","",VLOOKUP(N56,漢字読み!$A$2:$O$506,8,0)) -> にゅうがく | O59: =IF(O$16="","",VLOOKUP(O56,漢字読み!$A$2:$O$506,8,0)) -> むら | P59: =IF(P$16="","",VLOOKUP(P56,漢字読み!$A$2:$O$506,8,0)) -> いっきゅう | Q59: =IF(Q$16="","",VLOOKUP(Q56,漢字読み!$A$2:$O$506,8,0)) -> ちく | R59: =IF(R$16="","",VLOOKUP(R56,漢字読み!$A$2:$O$506,8,0)) -> しゅっ | S59: =IF(S$16="","",VLOOKUP(S56,漢字読み!$A$2:$O$506,8,0)) -> りん | T59: =IF(T$16="","",VLOOKUP(T56,漢字読み!$A$2:$O$506,8,0)) -> な | V59: 名前
A60: =IF(A56="","",IF(VLOOKUP(A56,漢字書き!$A$2:$N$502,7,0)=0,"",VLOOKUP(A56,漢字書き!$A$2:$N$502,7,0))) ->  | B60: =IF(B56="","",IF(VLOOKUP(B56,漢字書き!$A$2:$N$502,7,0)=0,"",VLOOKUP(B56,漢字書き!$A$2:$N$502,7,0))) ->  | C60: =IF(C56="","",IF(VLOOKUP(C56,漢字書き!$A$2:$N$502,7,0)=0,"",VLOOKUP(C56,漢字書き!$A$2:$N$502,7,0))) ->  | D60: =IF(D56="","",IF(VLOOKUP(D56,漢字書き!$A$2:$N$502,7,0)=0,"",VLOOKUP(D56,漢字書き!$A$2:$N$502,7,0))) ->  | E60: =IF(E56="","",IF(VLOOKUP(E56,漢字書き!$A$2:$N$502,7,0)=0,"",VLOOKUP(E56,漢字書き!$A$2:$N$502,7,0))) -> つ | F60: =IF(F56="","",IF(VLOOKUP(F56,漢字書き!$A$2:$N$502,7,0)=0,"",VLOOKUP(F56,漢字書き!$A$2:$N$502,7,0))) -> 生 | G60: =IF(G56="","",IF(VLOOKUP(G56,漢字書き!$A$2:$N$502,7,0)=0,"",VLOOKUP(G56,漢字書き!$A$2:$N$502,7,0))) ->  | H60: =IF(H56="","",IF(VLOOKUP(H56,漢字書き!$A$2:$N$502,7,0)=0,"",VLOOKUP(H56,漢字書き!$A$2:$N$502,7,0))) -> じょう | I60: =IF(I56="","",IF(VLOOKUP(I56,漢字書き!$A$2:$N$502,7,0)=0,"",VLOOKUP(I56,漢字書き!$A$2:$N$502,7,0))) -> きる | J60: =IF(J56="","",IF(VLOOKUP(J56,漢字書き!$A$2:$N$502,7,0)=0,"",VLOOKUP(J56,漢字書き!$A$2:$N$502,7,0))) -> はん | K60: =IF(K56="","",IF(VLOOKUP(K56,漢字読み!$A$2:$O$502,7,0)=0,"",VLOOKUP(K56,漢字読み!$A$2:$O$502,7,0))) -> の子 | L60: =IF(L56="","",IF(VLOOKUP(L56,漢字読み!$A$2:$O$502,7,0)=0,"",VLOOKUP(L56,漢字読み!$A$2:$O$502,7,0))) -> げん | M60: =IF(M56="","",IF(VLOOKUP(M56,漢字読み!$A$2:$O$502,7,0)=0,"",VLOOKUP(M56,漢字読み!$A$2:$O$502,7,0))) ->  | N60: =IF(N56="","",IF(VLOOKUP(N56,漢字読み!$A$2:$O$502,7,0)=0,"",VLOOKUP(N56,漢字読み!$A$2:$O$502,7,0))) -> しき | O60: =IF(O56="","",IF(VLOOKUP(O56,漢字読み!$A$2:$O$502,7,0)=0,"",VLOOKUP(O56,漢字読み!$A$2:$O$502,7,0))) ->  | P60: =IF(P56="","",IF(VLOOKUP(P56,漢字読み!$A$2:$O$502,7,0)=0,"",VLOOKUP(P56,漢字読み!$A$2:$O$502,7,0))) -> さん | Q60: =IF(Q56="","",IF(VLOOKUP(Q56,漢字読み!$A$2:$O$502,7,0)=0,"",VLOOKUP(Q56,漢字読み!$A$2:$O$502,7,0))) -> わ | R60: =IF(R56="","",IF(VLOOKUP(R56,漢字読み!$A$2:$O$502,7,0)=0,"",VLOOKUP(R56,漢字読み!$A$2:$O$502,7,0))) ->  | S60: =IF(S56="","",IF(VLOOKUP(S56,漢字読み!$A$2:$O$502,7,0)=0,"",VLOOKUP(S56,漢字読み!$A$2:$O$502,7,0))) -> かん | T60: =IF(T56="","",IF(VLOOKUP(T56,漢字読み!$A$2:$O$502,7,0)=0,"",VLOOKUP(T56,漢字読み!$A$2:$O$502,7,0))) -> まえ | W60: 和歌山県教育委員会
A61: =INDIRECT("'関数（書き）'!C" & COLUMN(B$1)+SUM($AD$2:$AD62)) -> 150 | B61: =INDIRECT("'関数（書き）'!C" & COLUMN(C$1)+SUM($AD$2:$AD62)) -> 59 | C61: =INDIRECT("'関数（書き）'!C" & COLUMN(D$1)+SUM($AD$2:$AD62)) -> 86 | D61: =INDIRECT("'関数（書き）'!C" & COLUMN(E$1)+SUM($AD$2:$AD62)) -> 140 | E61: =INDIRECT("'関数（書き）'!C" & COLUMN(F$1)+SUM($AD$2:$AD62)) -> 117 | F61: =INDIRECT("'関数（書き）'!C" & COLUMN(G$1)+SUM($AD$2:$AD62)) -> 12 | G61: =INDIRECT("'関数（書き）'!C" & COLUMN(H$1)+SUM($AD$2:$AD62)) -> 7 | H61: =INDIRECT("'関数（書き）'!C" & COLUMN(I$1)+SUM($AD$2:$AD62)) -> 16 | I61: =INDIRECT("'関数（書き）'!C" & COLUMN(J$1)+SUM($AD$2:$AD62)) -> 152 | J61: =INDIRECT("'関数（書き）'!C" & COLUMN(K$1)+SUM($AD$2:$AD62)) -> 42 | K61: =INDIRECT("'関数（読み）'!C" & COLUMN(B$1)+SUM($AD$2:$AD62)) -> 89 | L61: =INDIRECT("'関数（読み）'!C" & COLUMN(C$1)+SUM($AD$2:$AD62)) -> 65 | M61: =INDIRECT("'関数（読み）'!C" & COLUMN(D$1)+SUM($AD$2:$AD62)) -> 125 | N61: =INDIRECT("'関数（読み）'!C" & COLUMN(E$1)+SUM($AD$2:$AD62)) -> 29 | O61: =INDIRECT("'関数（読み）'!C" & COLUMN(F$1)+SUM($AD$2:$AD62)) -> 7 | P61: =INDIRECT("'関数（読み）'!C" & COLUMN(G$1)+SUM($AD$2:$AD62)) -> 119 | Q61: =INDIRECT("'関数（読み）'!C" & COLUMN(H$1)+SUM($AD$2:$AD62)) -> 38 | R61: =INDIRECT("'関数（読み）'!C" & COLUMN(I$1)+SUM($AD$2:$AD62)) -> 155 | S61: =INDIRECT("'関数（読み）'!C" & COLUMN(J$1)+SUM($AD$2:$AD62)) -> 136 | T61: =INDIRECT("'関数（読み）'!C" & COLUMN(K$1)+SUM($AD$2:$AD62)) -> 64
A62: ⑳ | B62: ⑲ | C62: ⑱ | D62: ⑰ | E62: ⑯ | F62: ⑮ | G62: ⑭ | H62: ⑬ | I62: ⑫ | J62: ⑪ | K62: ⑩ | L62: ⑨ | M62: ⑧ | N62: ⑦ | O62: ⑥ | P62: ⑤ | Q62: ④ | R62: ③ | S62: ② | T62: ① | U62: 次の［ ］の部分の漢字には読みがなをひらがなで書き、カタカナは漢字に直しなさい。 | V62: 15 | W62: 「漢字の博士検定試験」練習問題 | AC62: ← | AD62: 10 | AE62: 問 | AF62: =AH47+1 -> 61 | AG62: ～ | AH62: =SUM($AD$2:$AD62)+10 -> 70 | AI62: 問まで | AJ62: =COUNTIF($A$1:$T$200,T63) -> 2
A63: =IF(A61="","",VLOOKUP(A61,漢字書き!$A$2:$N$506,6,0)) -> ［ネン］がじょう | B63: =IF(B61="","",VLOOKUP(B61,漢字書き!$A$2:$N$506,6,0)) -> ［ヤマ］にのぼる | C63: =IF(C61="","",VLOOKUP(C61,漢字書き!$A$2:$N$506,6,0)) -> つくえの［ウエ］ | D63: =IF(D61="","",VLOOKUP(D61,漢字書き!$A$2:$N$506,6,0)) -> はたけと［タ］んぼ | E63: =IF(E61="","",VLOOKUP(E61,漢字書き!$A$2:$N$506,6,0)) -> ［クサ］をかる | F63: =IF(F61="","",VLOOKUP(F61,漢字書き!$A$2:$N$506,6,0)) -> ［オト］がする | G63: =IF(G61="","",VLOOKUP(G61,漢字書き!$A$2:$N$506,6,0)) -> はげしい［アメ］ | H63: =IF(H61="","",VLOOKUP(H61,漢字書き!$A$2:$N$506,6,0)) -> ［カワシモ］の町 | I63: =IF(I61="","",VLOOKUP(I61,漢字書き!$A$2:$N$506,6,0)) -> ［ハク］まいをたべる | J63: =IF(J61="","",VLOOKUP(J61,漢字書き!$A$2:$N$506,6,0)) -> きしゅう［ケン］をかう | K63: =IF(K61="","",VLOOKUP(K61,漢字読み!$A$2:$O$506,6,0)) -> ［森林］にいく | L63: =IF(L61="","",VLOOKUP(L61,漢字読み!$A$2:$O$506,6,0)) -> ［四］つばのクローバー | M63: =IF(M61="","",VLOOKUP(M61,漢字読み!$A$2:$O$506,6,0)) -> ［足］をあらう | N63: =IF(N61="","",VLOOKUP(N61,漢字読み!$A$2:$O$506,6,0)) -> やさしい［気］もち | O63: =IF(O61="","",VLOOKUP(O61,漢字読み!$A$2:$O$506,6,0)) -> ［千円］さつ | P63: =IF(P61="","",VLOOKUP(P61,漢字読み!$A$2:$O$506,6,0)) -> ［先］にいく | Q63: =IF(Q61="","",VLOOKUP(Q61,漢字読み!$A$2:$O$506,6,0)) -> ［金］ぎょをかう | R63: =IF(R61="","",VLOOKUP(R61,漢字読み!$A$2:$O$506,6,0)) -> ［一年］生になる | S63: =IF(S61="","",VLOOKUP(S61,漢字読み!$A$2:$O$506,6,0)) -> べんきょう［中］ | T63: =IF(T61="","",VLOOKUP(T61,漢字読み!$A$2:$O$506,6,0)) -> ［四月］になる | V63: 級
V64: 名前
A65: =IF(A61="","",IF(VLOOKUP(A61,漢字書き!$A$2:$N$502,7,0)=0,"",VLOOKUP(A61,漢字書き!$A$2:$N$502,7,0))) -> がじょう | B65: =IF(B61="","",IF(VLOOKUP(B61,漢字書き!$A$2:$N$502,7,0)=0,"",VLOOKUP(B61,漢字書き!$A$2:$N$502,7,0))) ->  | C65: =IF(C61="","",IF(VLOOKUP(C61,漢字書き!$A$2:$N$502,7,0)=0,"",VLOOKUP(C61,漢字書き!$A$2:$N$502,7,0))) ->  | D65: =IF(D61="","",IF(VLOOKUP(D61,漢字書き!$A$2:$N$502,7,0)=0,"",VLOOKUP(D61,漢字書き!$A$2:$N$502,7,0))) -> んぼ | E65: =IF(E61="","",IF(VLOOKUP(E61,漢字書き!$A$2:$N$502,7,0)=0,"",VLOOKUP(E61,漢字書き!$A$2:$N$502,7,0))) ->  | F65: =IF(F61="","",IF(VLOOKUP(F61,漢字書き!$A$2:$N$502,7,0)=0,"",VLOOKUP(F61,漢字書き!$A$2:$N$502,7,0))) ->  | G65: =IF(G61="","",IF(VLOOKUP(G61,漢字書き!$A$2:$N$502,7,0)=0,"",VLOOKUP(G61,漢字書き!$A$2:$N$502,7,0))) ->  | H65: =IF(H61="","",IF(VLOOKUP(H61,漢字書き!$A$2:$N$502,7,0)=0,"",VLOOKUP(H61,漢字書き!$A$2:$N$502,7,0))) ->  | I65: =IF(I61="","",IF(VLOOKUP(I61,漢字書き!$A$2:$N$502,7,0)=0,"",VLOOKUP(I61,漢字書き!$A$2:$N$502,7,0))) -> まい | J65: =IF(J61="","",IF(VLOOKUP(J61,漢字書き!$A$2:$N$502,7,0)=0,"",VLOOKUP(J61,漢字書き!$A$2:$N$502,7,0))) ->  | K65: =IF(K61="","",IF(VLOOKUP(K61,漢字読み!$A$2:$O$502,7,0)=0,"",VLOOKUP(K61,漢字読み!$A$2:$O$502,7,0))) -> よく | L65: =IF(L61="","",IF(VLOOKUP(L61,漢字読み!$A$2:$O$502,7,0)=0,"",VLOOKUP(L61,漢字読み!$A$2:$O$502,7,0))) -> つば | M65: =IF(M61="","",IF(VLOOKUP(M61,漢字読み!$A$2:$O$502,7,0)=0,"",VLOOKUP(M61,漢字読み!$A$2:$O$502,7,0))) ->  | N65: =IF(N61="","",IF(VLOOKUP(N61,漢字読み!$A$2:$O$502,7,0)=0,"",VLOOKUP(N61,漢字読み!$A$2:$O$502,7,0))) -> もち | O65: =IF(O61="","",IF(VLOOKUP(O61,漢字読み!$A$2:$O$502,7,0)=0,"",VLOOKUP(O61,漢字読み!$A$2:$O$502,7,0))) -> さつ | P65: =IF(P61="","",IF(VLOOKUP(P61,漢字読み!$A$2:$O$502,7,0)=0,"",VLOOKUP(P61,漢字読み!$A$2:$O$502,7,0))) ->  | Q65: =IF(Q61="","",IF(VLOOKUP(Q61,漢字読み!$A$2:$O$502,7,0)=0,"",VLOOKUP(Q61,漢字読み!$A$2:$O$502,7,0))) -> ぎょ | R65: =IF(R61="","",IF(VLOOKUP(R61,漢字読み!$A$2:$O$502,7,0)=0,"",VLOOKUP(R61,漢字読み!$A$2:$O$502,7,0))) -> 生 | S65: =IF(S61="","",IF(VLOOKUP(S61,漢字読み!$A$2:$O$502,7,0)=0,"",VLOOKUP(S61,漢字読み!$A$2:$O$502,7,0))) ->  | T65: =IF(T61="","",IF(VLOOKUP(T61,漢字読み!$A$2:$O$502,7,0)=0,"",VLOOKUP(T61,漢字読み!$A$2:$O$502,7,0))) ->  | W65: 和歌山県教育委員会
A66: =INDIRECT("'関数（書き）'!C" & COLUMN(B$1)+SUM($AD$2:$AD67)) -> 113 | B66: =INDIRECT("'関数（書き）'!C" & COLUMN(C$1)+SUM($AD$2:$AD67)) -> 131 | C66: =INDIRECT("'関数（書き）'!C" & COLUMN(D$1)+SUM($AD$2:$AD67)) -> 107 | D66: =INDIRECT("'関数（書き）'!C" & COLUMN(E$1)+SUM($AD$2:$AD67)) -> 128 | E66: =INDIRECT("'関数（書き）'!C" & COLUMN(F$1)+SUM($AD$2:$AD67)) -> 167 | F66: =INDIRECT("'関数（書き）'!C" & COLUMN(G$1)+SUM($AD$2:$AD67)) -> 13 | G66: =INDIRECT("'関数（書き）'!C" & COLUMN(H$1)+SUM($AD$2:$AD67)) -> 136 | H66: =INDIRECT("'関数（書き）'!C" & COLUMN(I$1)+SUM($AD$2:$AD67)) -> 121 | I66: =INDIRECT("'関数（書き）'!C" & COLUMN(J$1)+SUM($AD$2:$AD67)) -> 35 | J66: =INDIRECT("'関数（書き）'!C" & COLUMN(K$1)+SUM($AD$2:$AD67)) -> 125 | K66: =INDIRECT("'関数（読み）'!C" & COLUMN(B$1)+SUM($AD$2:$AD67)) -> 57 | L66: =INDIRECT("'関数（読み）'!C" & COLUMN(C$1)+SUM($AD$2:$AD67)) -> 185 | M66: =INDIRECT("'関数（読み）'!C" & COLUMN(D$1)+SUM($AD$2:$AD67)) -> 95 | N66: =INDIRECT("'関数（読み）'!C" & COLUMN(E$1)+SUM($AD$2:$AD67)) -> 80 | O66: =INDIRECT("'関数（読み）'!C" & COLUMN(F$1)+SUM($AD$2:$AD67)) -> 99 | P66: =INDIRECT("'関数（読み）'!C" & COLUMN(G$1)+SUM($AD$2:$AD67)) -> 21 | Q66: =INDIRECT("'関数（読み）'!C" & COLUMN(H$1)+SUM($AD$2:$AD67)) -> 141 | R66: =INDIRECT("'関数（読み）'!C" & COLUMN(I$1)+SUM($AD$2:$AD67)) -> 14 | S66: =INDIRECT("'関数（読み）'!C" & COLUMN(J$1)+SUM($AD$2:$AD67)) -> 118 | T66: =INDIRECT("'関数（読み）'!C" & COLUMN(K$1)+SUM($AD$2:$AD67)) -> 78
A67: ⑳ | B67: ⑲ | C67: ⑱ | D67: ⑰ | E67: ⑯ | F67: ⑮ | G67: ⑭ | H67: ⑬ | I67: ⑫ | J67: ⑪ | K67: ⑩ | L67: ⑨ | M67: ⑧ | N67: ⑦ | O67: ⑥ | P67: ⑤ | Q67: ④ | R67: ③ | S67: ② | T67: ① | U67: 次の［ ］の部分の漢字には読みがなをひらがなで書き、カタカナは漢字に直しなさい。 | V67: 15 | W67: 「漢字の博士検定試験」練習問題 | AC67: ← | AD67: 10 | AE67: 問 | AF67: =AH62+1 -> 71 | AG67: ～ | AH67: =SUM($AD$2:$AD67)+10 -> 80 | AI67: 問まで | AJ67: =COUNTIF($A$1:$T$200,T68) -> 2
A68: =IF(A66="","",VLOOKUP(A66,漢字書き!$A$2:$N$506,6,0)) -> ［サキ］にいく | B68: =IF(B66="","",VLOOKUP(B66,漢字書き!$A$2:$N$506,6,0)) -> かばんの［ナカ］ | C68: =IF(C66="","",VLOOKUP(C66,漢字書き!$A$2:$N$506,6,0)) -> ［アカ］い花 | D68: =IF(D66="","",VLOOKUP(D66,漢字書き!$A$2:$N$506,6,0)) -> ［タケ］やぶやけた | E68: =IF(E66="","",VLOOKUP(E66,漢字書き!$A$2:$N$506,6,0)) -> ［メ］をさます | F68: =IF(F66="","",VLOOKUP(F66,漢字書き!$A$2:$N$506,6,0)) -> たいこの［オト］ | G68: =IF(G66="","",VLOOKUP(G66,漢字書き!$A$2:$N$506,6,0)) -> ［マチ］へいく | H68: =IF(H66="","",VLOOKUP(H66,漢字書き!$A$2:$N$506,6,0)) -> ［ソン］ちょうさん | I68: =IF(I66="","",VLOOKUP(I66,漢字書き!$A$2:$N$506,6,0)) -> ［キン］しょう | J68: =IF(J66="","",VLOOKUP(J66,漢字書き!$A$2:$N$506,6,0)) -> ［オオ］きいはこ | K68: =IF(K66="","",VLOOKUP(K66,漢字読み!$A$2:$O$506,6,0)) -> ［左右］のかくにん | L68: =IF(L66="","",VLOOKUP(L66,漢字読み!$A$2:$O$506,6,0)) -> ［六年］生をおくる | M68: =IF(M66="","",VLOOKUP(M66,漢字読み!$A$2:$O$506,6,0)) -> ［水］あそび | N68: =IF(N66="","",VLOOKUP(N66,漢字読み!$A$2:$O$506,6,0)) -> はがきを［出］す | O68: =IF(O66="","",VLOOKUP(O66,漢字読み!$A$2:$O$506,6,0)) -> あたらしい［生］めい | P68: =IF(P66="","",VLOOKUP(P66,漢字読み!$A$2:$O$506,6,0)) -> コスモスの［花］ | Q68: =IF(Q66="","",VLOOKUP(Q66,漢字読み!$A$2:$O$506,6,0)) -> ［町］にでかける | R68: =IF(R66="","",VLOOKUP(R66,漢字読み!$A$2:$O$506,6,0)) -> 川の［下］りゅう | S68: =IF(S66="","",VLOOKUP(S66,漢字読み!$A$2:$O$506,6,0)) -> ［先生］におそわる | T68: =IF(T66="","",VLOOKUP(T66,漢字読み!$A$2:$O$506,6,0)) -> ［十日］がたつ | V68: 級
V69: 名前
A70: =IF(A66="","",IF(VLOOKUP(A66,漢字書き!$A$2:$N$502,7,0)=0,"",VLOOKUP(A66,漢字書き!$A$2:$N$502,7,0))) ->  | B70: =IF(B66="","",IF(VLOOKUP(B66,漢字書き!$A$2:$N$502,7,0)=0,"",VLOOKUP(B66,漢字書き!$A$2:$N$502,7,0))) ->  | C70: =IF(C66="","",IF(VLOOKUP(C66,漢字書き!$A$2:$N$502,7,0)=0,"",VLOOKUP(C66,漢字書き!$A$2:$N$502,7,0))) -> い | D70: =IF(D66="","",IF(VLOOKUP(D66,漢字書き!$A$2:$N$502,7,0)=0,"",VLOOKUP(D66,漢字書き!$A$2:$N$502,7,0))) -> やぶ | E70: =IF(E66="","",IF(VLOOKUP(E66,漢字書き!$A$2:$N$502,7,0)=0,"",VLOOKUP(E66,漢字書き!$A$2:$N$502,7,0))) ->  | F70: =IF(F66="","",IF(VLOOKUP(F66,漢字書き!$A$2:$N$502,7,0)=0,"",VLOOKUP(F66,漢字書き!$A$2:$N$502,7,0))) ->  | G70: =IF(G66="","",IF(VLOOKUP(G66,漢字書き!$A$2:$N$502,7,0)=0,"",VLOOKUP(G66,漢字書き!$A$2:$N$502,7,0))) ->  | H70: =IF(H66="","",IF(VLOOKUP(H66,漢字書き!$A$2:$N$502,7,0)=0,"",VLOOKUP(H66,漢字書き!$A$2:$N$502,7,0))) -> ちょう | I70: =IF(I66="","",IF(VLOOKUP(I66,漢字書き!$A$2:$N$502,7,0)=0,"",VLOOKUP(I66,漢字書き!$A$2:$N$502,7,0))) -> しょう | J70: =IF(J66="","",IF(VLOOKUP(J66,漢字書き!$A$2:$N$502,7,0)=0,"",VLOOKUP(J66,漢字書き!$A$2:$N$502,7,0))) -> きい | K70: =IF(K66="","",IF(VLOOKUP(K66,漢字読み!$A$2:$O$502,7,0)=0,"",VLOOKUP(K66,漢字読み!$A$2:$O$502,7,0))) ->  | L70: =IF(L66="","",IF(VLOOKUP(L66,漢字読み!$A$2:$O$502,7,0)=0,"",VLOOKUP(L66,漢字読み!$A$2:$O$502,7,0))) -> 生 | M70: =IF(M66="","",IF(VLOOKUP(M66,漢字読み!$A$2:$O$502,7,0)=0,"",VLOOKUP(M66,漢字読み!$A$2:$O$502,7,0))) -> あそび | N70: =IF(N66="","",IF(VLOOKUP(N66,漢字読み!$A$2:$O$502,7,0)=0,"",VLOOKUP(N66,漢字読み!$A$2:$O$502,7,0))) -> す | O70: =IF(O66="","",IF(VLOOKUP(O66,漢字読み!$A$2:$O$502,7,0)=0,"",VLOOKUP(O66,漢字読み!$A$2:$O$502,7,0))) -> めい | P70: =IF(P66="","",IF(VLOOKUP(P66,漢字読み!$A$2:$O$502,7,0)=0,"",VLOOKUP(P66,漢字読み!$A$2:$O$502,7,0))) ->  | Q70: =IF(Q66="","",IF(VLOOKUP(Q66,漢字読み!$A$2:$O$502,7,0)=0,"",VLOOKUP(Q66,漢字読み!$A$2:$O$502,7,0))) ->  | R70: =IF(R66="","",IF(VLOOKUP(R66,漢字読み!$A$2:$O$502,7,0)=0,"",VLOOKUP(R66,漢字読み!$A$2:$O$502,7,0))) -> りゅう | S70: =IF(S66="","",IF(VLOOKUP(S66,漢字読み!$A$2:$O$502,7,0)=0,"",VLOOKUP(S66,漢字読み!$A$2:$O$502,7,0))) ->  | T70: =IF(T66="","",IF(VLOOKUP(T66,漢字読み!$A$2:$O$502,7,0)=0,"",VLOOKUP(T66,漢字読み!$A$2:$O$502,7,0))) ->  | W70: 和歌山県教育委員会
A71: =A61 -> 150 | B71: =B61 -> 59 | C71: 86 | D71: 140 | E71: 117 | F71: 12 | G71: 7 | H71: 16 | I71: 152 | J71: 42 | K71: 89 | L71: 65 | M71: 125 | N71: 29 | O71: 7 | P71: 119 | Q71: 38 | R71: 155 | S71: 136 | T71: 64
A72: ⑳ | B72: ⑲ | C72: ⑱ | D72: ⑰ | E72: ⑯ | F72: ⑮ | G72: ⑭ | H72: ⑬ | I72: ⑫ | J72: ⑪ | K72: ⑩ | L72: ⑨ | M72: ⑧ | N72: ⑦ | O72: ⑥ | P72: ⑤ | Q72: ④ | R72: ③ | S72: ② | T72: ① | U72: 次の［ ］の部分の漢字には読みがなをひらがなで書き、カタカナは漢字に直しなさい。 | V72: 15 | W72: 「漢字の博士検定試験」練習問題
A73: =IF(A71="","",VLOOKUP(A71,漢字書き!$A$2:$N$506,6,0)) -> ［ネン］がじょう | B73: =IF(B71="","",VLOOKUP(B71,漢字書き!$A$2:$N$506,6,0)) -> ［ヤマ］にのぼる | C73: =IF(C71="","",VLOOKUP(C71,漢字書き!$A$2:$N$506,6,0)) -> つくえの［ウエ］ | D73: =IF(D71="","",VLOOKUP(D71,漢字書き!$A$2:$N$506,6,0)) -> はたけと［タ］んぼ | E73: =IF(E71="","",VLOOKUP(E71,漢字書き!$A$2:$N$506,6,0)) -> ［クサ］をかる | F73: =IF(F71="","",VLOOKUP(F71,漢字書き!$A$2:$N$506,6,0)) -> ［オト］がする | G73: =IF(G71="","",VLOOKUP(G71,漢字書き!$A$2:$N$506,6,0)) -> はげしい［アメ］ | H73: =IF(H71="","",VLOOKUP(H71,漢字書き!$A$2:$N$506,6,0)) -> ［カワシモ］の町 | I73: =IF(I71="","",VLOOKUP(I71,漢字書き!$A$2:$N$506,6,0)) -> ［ハク］まいをたべる | J73: =IF(J71="","",VLOOKUP(J71,漢字書き!$A$2:$N$506,6,0)) -> きしゅう［ケン］をかう | K73: =IF(K71="","",VLOOKUP(K71,漢字読み!$A$2:$O$506,6,0)) -> ［森林］にいく | L73: =IF(L71="","",VLOOKUP(L71,漢字読み!$A$2:$O$506,6,0)) -> ［四］つばのクローバー | M73: =IF(M71="","",VLOOKUP(M71,漢字読み!$A$2:$O$506,6,0)) -> ［足］をあらう | N73: =IF(N71="","",VLOOKUP(N71,漢字読み!$A$2:$O$506,6,0)) -> やさしい［気］もち | O73: =IF(O71="","",VLOOKUP(O71,漢字読み!$A$2:$O$506,6,0)) -> ［千円］さつ | P73: =IF(P71="","",VLOOKUP(P71,漢字読み!$A$2:$O$506,6,0)) -> ［先］にいく | Q73: =IF(Q71="","",VLOOKUP(Q71,漢字読み!$A$2:$O$506,6,0)) -> ［金］ぎょをかう | R73: =IF(R71="","",VLOOKUP(R71,漢字読み!$A$2:$O$506,6,0)) -> ［一年］生になる | S73: =IF(S71="","",VLOOKUP(S71,漢字読み!$A$2:$O$506,6,0)) -> べんきょう［中］ | T73: =IF(T71="","",VLOOKUP(T71,漢字読み!$A$2:$O$506,6,0)) -> ［四月］になる | V73: 級
A74: =IF(A$11="","",VLOOKUP(A71,漢字書き!$A$2:$O$506,8,0)) -> 年 | B74: =IF(B$11="","",VLOOKUP(B71,漢字書き!$A$2:$O$506,8,0)) -> 山 | C74: =IF(C$11="","",VLOOKUP(C71,漢字書き!$A$2:$O$506,8,0)) -> 上 | D74: =IF(D$11="","",VLOOKUP(D71,漢字書き!$A$2:$O$506,8,0)) -> 田 | E74: =IF(E$11="","",VLOOKUP(E71,漢字書き!$A$2:$O$506,8,0)) -> 草 | F74: =IF(F$11="","",VLOOKUP(F71,漢字書き!$A$2:$O$506,8,0)) -> 音 | G74: =IF(G$11="","",VLOOKUP(G71,漢字書き!$A$2:$O$506,8,0)) -> 雨 | H74: =IF(H$11="","",VLOOKUP(H71,漢字書き!$A$2:$O$506,8,0)) -> 川下 | I74: =IF(I$11="","",VLOOKUP(I71,漢字書き!$A$2:$O$506,8,0)) -> 白 | J74: =IF(J$11="","",VLOOKUP(J71,漢字書き!$A$2:$O$506,8,0)) -> 犬 | K74: =IF(K$11="","",VLOOKUP(K71,漢字読み!$A$2:$O$506,8,0)) -> しんりん | L74: =IF(L$11="","",VLOOKUP(L71,漢字読み!$A$2:$O$506,8,0)) -> よ | M74: =IF(M$11="","",VLOOKUP(M71,漢字読み!$A$2:$O$506,8,0)) -> あし | N74: =IF(N$11="","",VLOOKUP(N71,漢字読み!$A$2:$O$506,8,0)) -> き | O74: =IF(O$11="","",VLOOKUP(O71,漢字読み!$A$2:$O$506,8,0)) -> せんえん | P74: =IF(P$11="","",VLOOKUP(P71,漢字読み!$A$2:$O$506,8,0)) -> さき | Q74: =IF(Q$11="","",VLOOKUP(Q71,漢字読み!$A$2:$O$506,8,0)) -> きん | R74: =IF(R$11="","",VLOOKUP(R71,漢字読み!$A$2:$O$506,8,0)) -> いちねん | S74: =IF(S$11="","",VLOOKUP(S71,漢字読み!$A$2:$O$506,8,0)) -> ちゅう | T74: =IF(T$11="","",VLOOKUP(T71,漢字読み!$A$2:$O$506,8,0)) -> しがつ | V74: 名前
A75: =IF(A71="","",IF(VLOOKUP(A71,漢字書き!$A$2:$N$502,7,0)=0,"",VLOOKUP(A71,漢字書き!$A$2:$N$502,7,0))) -> がじょう | B75: =IF(B71="","",IF(VLOOKUP(B71,漢字書き!$A$2:$N$502,7,0)=0,"",VLOOKUP(B71,漢字書き!$A$2:$N$502,7,0))) ->  | C75: =IF(C71="","",IF(VLOOKUP(C71,漢字書き!$A$2:$N$502,7,0)=0,"",VLOOKUP(C71,漢字書き!$A$2:$N$502,7,0))) ->  | D75: =IF(D71="","",IF(VLOOKUP(D71,漢字書き!$A$2:$N$502,7,0)=0,"",VLOOKUP(D71,漢字書き!$A$2:$N$502,7,0))) -> んぼ | E75: =IF(E71="","",IF(VLOOKUP(E71,漢字書き!$A$2:$N$502,7,0)=0,"",VLOOKUP(E71,漢字書き!$A$2:$N$502,7,0))) ->  | F75: =IF(F71="","",IF(VLOOKUP(F71,漢字書き!$A$2:$N$502,7,0)=0,"",VLOOKUP(F71,漢字書き!$A$2:$N$502,7,0))) ->  | G75: =IF(G71="","",IF(VLOOKUP(G71,漢字書き!$A$2:$N$502,7,0)=0,"",VLOOKUP(G71,漢字書き!$A$2:$N$502,7,0))) ->  | H75: =IF(H71="","",IF(VLOOKUP(H71,漢字書き!$A$2:$N$502,7,0)=0,"",VLOOKUP(H71,漢字書き!$A$2:$N$502,7,0))) ->  | I75: =IF(I71="","",IF(VLOOKUP(I71,漢字書き!$A$2:$N$502,7,0)=0,"",VLOOKUP(I71,漢字書き!$A$2:$N$502,7,0))) -> まい | J75: =IF(J71="","",IF(VLOOKUP(J71,漢字書き!$A$2:$N$502,7,0)=0,"",VLOOKUP(J71,漢字書き!$A$2:$N$502,7,0))) ->  | K75: =IF(K71="","",IF(VLOOKUP(K71,漢字読み!$A$2:$O$502,7,0)=0,"",VLOOKUP(K71,漢字読み!$A$2:$O$502,7,0))) -> よく | L75: =IF(L71="","",IF(VLOOKUP(L71,漢字読み!$A$2:$O$502,7,0)=0,"",VLOOKUP(L71,漢字読み!$A$2:$O$502,7,0))) -> つば | M75: =IF(M71="","",IF(VLOOKUP(M71,漢字読み!$A$2:$O$502,7,0)=0,"",VLOOKUP(M71,漢字読み!$A$2:$O$502,7,0))) ->  | N75: =IF(N71="","",IF(VLOOKUP(N71,漢字読み!$A$2:$O$502,7,0)=0,"",VLOOKUP(N71,漢字読み!$A$2:$O$502,7,0))) -> もち | O75: =IF(O71="","",IF(VLOOKUP(O71,漢字読み!$A$2:$O$502,7,0)=0,"",VLOOKUP(O71,漢字読み!$A$2:$O$502,7,0))) -> さつ | P75: =IF(P71="","",IF(VLOOKUP(P71,漢字読み!$A$2:$O$502,7,0)=0,"",VLOOKUP(P71,漢字読み!$A$2:$O$502,7,0))) ->  | Q75: =IF(Q71="","",IF(VLOOKUP(Q71,漢字読み!$A$2:$O$502,7,0)=0,"",VLOOKUP(Q71,漢字読み!$A$2:$O$502,7,0))) -> ぎょ | R75: =IF(R71="","",IF(VLOOKUP(R71,漢字読み!$A$2:$O$502,7,0)=0,"",VLOOKUP(R71,漢字読み!$A$2:$O$502,7,0))) -> 生 | S75: =IF(S71="","",IF(VLOOKUP(S71,漢字読み!$A$2:$O$502,7,0)=0,"",VLOOKUP(S71,漢字読み!$A$2:$O$502,7,0))) ->  | T75: =IF(T71="","",IF(VLOOKUP(T71,漢字読み!$A$2:$O$502,7,0)=0,"",VLOOKUP(T71,漢字読み!$A$2:$O$502,7,0))) ->  | W75: 和歌山県教育委員会
A76: =A66 -> 113 | B76: =B66 -> 131 | C76: 107 | D76: 128 | E76: 167 | F76: 13 | G76: 136 | H76: 121 | I76: 35 | J76: 125 | K76: 57 | L76: 185 | M76: 95 | N76: 80 | O76: 99 | P76: 21 | Q76: 141 | R76: 14 | S76: 118 | T76: 78
A77: ⑳ | B77: ⑲ | C77: ⑱ | D77: ⑰ | E77: ⑯ | F77: ⑮ | G77: ⑭ | H77: ⑬ | I77: ⑫ | J77: ⑪ | K77: ⑩ | L77: ⑨ | M77: ⑧ | N77: ⑦ | O77: ⑥ | P77: ⑤ | Q77: ④ | R77: ③ | S77: ② | T77: ① | U77: 次の［ ］の部分の漢字には読みがなをひらがなで書き、カタカナは漢字に直しなさい。 | V77: 15 | W77: 「漢字の博士検定試験」練習問題
A78: =IF(A76="","",VLOOKUP(A76,漢字書き!$A$2:$N$506,6,0)) -> ［サキ］にいく | B78: =IF(B76="","",VLOOKUP(B76,漢字書き!$A$2:$N$506,6,0)) -> かばんの［ナカ］ | C78: =IF(C76="","",VLOOKUP(C76,漢字書き!$A$2:$N$506,6,0)) -> ［アカ］い花 | D78: =IF(D76="","",VLOOKUP(D76,漢字書き!$A$2:$N$506,6,0)) -> ［タケ］やぶやけた | E78: =IF(E76="","",VLOOKUP(E76,漢字書き!$A$2:$N$506,6,0)) -> ［メ］をさます | F78: =IF(F76="","",VLOOKUP(F76,漢字書き!$A$2:$N$506,6,0)) -> たいこの［オト］ | G78: =IF(G76="","",VLOOKUP(G76,漢字書き!$A$2:$N$506,6,0)) -> ［マチ］へいく | H78: =IF(H76="","",VLOOKUP(H76,漢字書き!$A$2:$N$506,6,0)) -> ［ソン］ちょうさん | I78: =IF(I76="","",VLOOKUP(I76,漢字書き!$A$2:$N$506,6,0)) -> ［キン］しょう | J78: =IF(J76="","",VLOOKUP(J76,漢字書き!$A$2:$N$506,6,0)) -> ［オオ］きいはこ | K78: =IF(K76="","",VLOOKUP(K76,漢字読み!$A$2:$O$506,6,0)) -> ［左右］のかくにん | L78: =IF(L76="","",VLOOKUP(L76,漢字読み!$A$2:$O$506,6,0)) -> ［六年］生をおくる | M78: =IF(M76="","",VLOOKUP(M76,漢字読み!$A$2:$O$506,6,0)) -> ［水］あそび | N78: =IF(N76="","",VLOOKUP(N76,漢字読み!$A$2:$O$506,6,0)) -> はがきを［出］す | O78: =IF(O76="","",VLOOKUP(O76,漢字読み!$A$2:$O$506,6,0)) -> あたらしい［生］めい | P78: =IF(P76="","",VLOOKUP(P76,漢字読み!$A$2:$O$506,6,0)) -> コスモスの［花］ | Q78: =IF(Q76="","",VLOOKUP(Q76,漢字読み!$A$2:$O$506,6,0)) -> ［町］にでかける | R78: =IF(R76="","",VLOOKUP(R76,漢字読み!$A$2:$O$506,6,0)) -> 川の［下］りゅう | S78: =IF(S76="","",VLOOKUP(S76,漢字読み!$A$2:$O$506,6,0)) -> ［先生］におそわる | T78: =IF(T76="","",VLOOKUP(T76,漢字読み!$A$2:$O$506,6,0)) -> ［十日］がたつ | V78: 級
A79: =IF(A$16="","",VLOOKUP(A76,漢字書き!$A$2:$O$506,8,0)) -> 先 | B79: =IF(B$16="","",VLOOKUP(B76,漢字書き!$A$2:$O$506,8,0)) -> 中 | C79: =IF(C$16="","",VLOOKUP(C76,漢字書き!$A$2:$O$506,8,0)) -> 赤 | D79: =IF(D$16="","",VLOOKUP(D76,漢字書き!$A$2:$O$506,8,0)) -> 竹 | E79: =IF(E$16="","",VLOOKUP(E76,漢字書き!$A$2:$O$506,8,0)) -> 目 | F79: =IF(F$16="","",VLOOKUP(F76,漢字書き!$A$2:$O$506,8,0)) -> 音 | G79: =IF(G$16="","",VLOOKUP(G76,漢字書き!$A$2:$O$506,8,0)) -> 町 | H79: =IF(H$16="","",VLOOKUP(H76,漢字書き!$A$2:$O$506,8,0)) -> 村 | I79: =IF(I$16="","",VLOOKUP(I76,漢字書き!$A$2:$O$506,8,0)) -> 金 | J79: =IF(J$16="","",VLOOKUP(J76,漢字書き!$A$2:$O$506,8,0)) -> 大 | K79: =IF(K$16="","",VLOOKUP(K76,漢字読み!$A$2:$O$506,8,0)) -> さゆう | L79: =IF(L$16="","",VLOOKUP(L76,漢字読み!$A$2:$O$506,8,0)) -> ろくねん | M79: =IF(M$16="","",VLOOKUP(M76,漢字読み!$A$2:$O$506,8,0)) -> みず | N79: =IF(N$16="","",VLOOKUP(N76,漢字読み!$A$2:$O$506,8,0)) -> だ | O79: =IF(O$16="","",VLOOKUP(O76,漢字読み!$A$2:$O$506,8,0)) -> せい | P79: =IF(P$16="","",VLOOKUP(P76,漢字読み!$A$2:$O$506,8,0)) -> はな | Q79: =IF(Q$16="","",VLOOKUP(Q76,漢字読み!$A$2:$O$506,8,0)) -> まち | R79: =IF(R$16="","",VLOOKUP(R76,漢字読み!$A$2:$O$506,8,0)) -> か | S79: =IF(S$16="","",VLOOKUP(S76,漢字読み!$A$2:$O$506,8,0)) -> せんせい | T79: =IF(T$16="","",VLOOKUP(T76,漢字読み!$A$2:$O$506,8,0)) -> とうか | V79: 名前
A80: =IF(A76="","",IF(VLOOKUP(A76,漢字書き!$A$2:$N$502,7,0)=0,"",VLOOKUP(A76,漢字書き!$A$2:$N$502,7,0))) ->  | B80: =IF(B76="","",IF(VLOOKUP(B76,漢字書き!$A$2:$N$502,7,0)=0,"",VLOOKUP(B76,漢字書き!$A$2:$N$502,7,0))) ->  | C80: =IF(C76="","",IF(VLOOKUP(C76,漢字書き!$A$2:$N$502,7,0)=0,"",VLOOKUP(C76,漢字書き!$A$2:$N$502,7,0))) -> い | D80: =IF(D76="","",IF(VLOOKUP(D76,漢字書き!$A$2:$N$502,7,0)=0,"",VLOOKUP(D76,漢字書き!$A$2:$N$502,7,0))) -> やぶ | E80: =IF(E76="","",IF(VLOOKUP(E76,漢字書き!$A$2:$N$502,7,0)=0,"",VLOOKUP(E76,漢字書き!$A$2:$N$502,7,0))) ->  | F80: =IF(F76="","",IF(VLOOKUP(F76,漢字書き!$A$2:$N$502,7,0)=0,"",VLOOKUP(F76,漢字書き!$A$2:$N$502,7,0))) ->  | G80: =IF(G76="","",IF(VLOOKUP(G76,漢字書き!$A$2:$N$502,7,0)=0,"",VLOOKUP(G76,漢字書き!$A$2:$N$502,7,0))) ->  | H80: =IF(H76="","",IF(VLOOKUP(H76,漢字書き!$A$2:$N$502,7,0)=0,"",VLOOKUP(H76,漢字書き!$A$2:$N$502,7,0))) -> ちょう | I80: =IF(I76="","",IF(VLOOKUP(I76,漢字書き!$A$2:$N$502,7,0)=0,"",VLOOKUP(I76,漢字書き!$A$2:$N$502,7,0))) -> しょう | J80: =IF(J76="","",IF(VLOOKUP(J76,漢字書き!$A$2:$N$502,7,0)=0,"",VLOOKUP(J76,漢字書き!$A$2:$N$502,7,0))) -> きい | K80: =IF(K76="","",IF(VLOOKUP(K76,漢字読み!$A$2:$O$502,7,0)=0,"",VLOOKUP(K76,漢字読み!$A$2:$O$502,7,0))) ->  | L80: =IF(L76="","",IF(VLOOKUP(L76,漢字読み!$A$2:$O$502,7,0)=0,"",VLOOKUP(L76,漢字読み!$A$2:$O$502,7,0))) -> 生 | M80: =IF(M76="","",IF(VLOOKUP(M76,漢字読み!$A$2:$O$502,7,0)=0,"",VLOOKUP(M76,漢字読み!$A$2:$O$502,7,0))) -> あそび | N80: =IF(N76="","",IF(VLOOKUP(N76,漢字読み!$A$2:$O$502,7,0)=0,"",VLOOKUP(N76,漢字読み!$A$2:$O$502,7,0))) -> す | O80: =IF(O76="","",IF(VLOOKUP(O76,漢字読み!$A$2:$O$502,7,0)=0,"",VLOOKUP(O76,漢字読み!$A$2:$O$502,7,0))) -> めい | P80: =IF(P76="","",IF(VLOOKUP(P76,漢字読み!$A$2:$O$502,7,0)=0,"",VLOOKUP(P76,漢字読み!$A$2:$O$502,7,0))) ->  | Q80: =IF(Q76="","",IF(VLOOKUP(Q76,漢字読み!$A$2:$O$502,7,0)=0,"",VLOOKUP(Q76,漢字読み!$A$2:$O$502,7,0))) ->  | R80: =IF(R76="","",IF(VLOOKUP(R76,漢字読み!$A$2:$O$502,7,0)=0,"",VLOOKUP(R76,漢字読み!$A$2:$O$502,7,0))) -> りゅう | S80: =IF(S76="","",IF(VLOOKUP(S76,漢字読み!$A$2:$O$502,7,0)=0,"",VLOOKUP(S76,漢字読み!$A$2:$O$502,7,0))) ->  | T80: =IF(T76="","",IF(VLOOKUP(T76,漢字読み!$A$2:$O$502,7,0)=0,"",VLOOKUP(T76,漢字読み!$A$2:$O$502,7,0))) ->  | W80: 和歌山県教育委員会
A81: =INDIRECT("'関数（書き）'!C" & COLUMN(B$1)+SUM($AD$2:$AD82)) -> 104 | B81: =INDIRECT("'関数（書き）'!C" & COLUMN(C$1)+SUM($AD$2:$AD82)) -> 1 | C81: =INDIRECT("'関数（書き）'!C" & COLUMN(D$1)+SUM($AD$2:$AD82)) -> 90 | D81: =INDIRECT("'関数（書き）'!C" & COLUMN(E$1)+SUM($AD$2:$AD82)) -> 84 | E81: =INDIRECT("'関数（書き）'!C" & COLUMN(F$1)+SUM($AD$2:$AD82)) -> 173 | F81: =INDIRECT("'関数（書き）'!C" & COLUMN(G$1)+SUM($AD$2:$AD82)) -> 18 | G81: =INDIRECT("'関数（書き）'!C" & COLUMN(H$1)+SUM($AD$2:$AD82)) -> 146 | H81: =INDIRECT("'関数（書き）'!C" & COLUMN(I$1)+SUM($AD$2:$AD82)) -> 148 | I81: =INDIRECT("'関数（書き）'!C" & COLUMN(J$1)+SUM($AD$2:$AD82)) -> 53 | J81: =INDIRECT("'関数（書き）'!C" & COLUMN(K$1)+SUM($AD$2:$AD82)) -> 62 | K81: =INDIRECT("'関数（読み）'!C" & COLUMN(B$1)+SUM($AD$2:$AD82)) -> 111 | L81: =INDIRECT("'関数（読み）'!C" & COLUMN(C$1)+SUM($AD$2:$AD82)) -> 74 | M81: =INDIRECT("'関数（読み）'!C" & COLUMN(D$1)+SUM($AD$2:$AD82)) -> 145 | N81: =INDIRECT("'関数（読み）'!C" & COLUMN(E$1)+SUM($AD$2:$AD82)) -> 173 | O81: =INDIRECT("'関数（読み）'!C" & COLUMN(F$1)+SUM($AD$2:$AD82)) -> 6 | P81: =INDIRECT("'関数（読み）'!C" & COLUMN(G$1)+SUM($AD$2:$AD82)) -> 18 | Q81: =INDIRECT("'関数（読み）'!C" & COLUMN(H$1)+SUM($AD$2:$AD82)) -> 177 | R81: =INDIRECT("'関数（読み）'!C" & COLUMN(I$1)+SUM($AD$2:$AD82)) -> 180 | S81: =INDIRECT("'関数（読み）'!C" & COLUMN(J$1)+SUM($AD$2:$AD82)) -> 98 | T81: =INDIRECT("'関数（読み）'!C" & COLUMN(K$1)+SUM($AD$2:$AD82)) -> 93
A82: ⑳ | B82: ⑲ | C82: ⑱ | D82: ⑰ | E82: ⑯ | F82: ⑮ | G82: ⑭ | H82: ⑬ | I82: ⑫ | J82: ⑪ | K82: ⑩ | L82: ⑨ | M82: ⑧ | N82: ⑦ | O82: ⑥ | P82: ⑤ | Q82: ④ | R82: ③ | S82: ② | T82: ① | U82: 次の［ ］の部分の漢字には読みがなをひらがなで書き、カタカナは漢字に直しなさい。 | V82: 15 | W82: 「漢字の博士検定試験」練習問題 | AC82: ← | AD82: 10 | AE82: 問 | AF82: =AH67+1 -> 81 | AG82: ～ | AH82: =SUM($AD$2:$AD82)+10 -> 90 | AI82: 問まで | AJ82: =COUNTIF($A$1:$T$200,T83) -> 2
A83: =IF(A81="","",VLOOKUP(A81,漢字書き!$A$2:$N$506,6,0)) -> ［セキ］ゆを大せつに | B83: =IF(B81="","",VLOOKUP(B81,漢字書き!$A$2:$N$506,6,0)) -> ［イチ］ばんぼし | C83: =IF(C81="","",VLOOKUP(C81,漢字書き!$A$2:$N$506,6,0)) -> ［ヒャクニン］ならぶ | D83: =IF(D81="","",VLOOKUP(D81,漢字書き!$A$2:$N$506,6,0)) -> ［チイ］さな子 | E83: =IF(E81="","",VLOOKUP(E81,漢字書き!$A$2:$N$506,6,0)) -> すぎの［ハヤシ］ | F83: =IF(F81="","",VLOOKUP(F81,漢字書き!$A$2:$N$506,6,0)) -> ［カリョク］がよわい | G83: =IF(G81="","",VLOOKUP(G81,漢字書き!$A$2:$N$506,6,0)) -> まい［ニチ］あそぶ | H83: =IF(H81="","",VLOOKUP(H81,漢字書き!$A$2:$N$506,6,0)) -> ［ニュウガク］しき | I83: =IF(I81="","",VLOOKUP(I81,漢字書き!$A$2:$N$506,6,0)) -> ［サユウ］を見る | J83: =IF(J81="","",VLOOKUP(J81,漢字書き!$A$2:$N$506,6,0)) -> ［シ］かくのず | K83: =IF(K81="","",VLOOKUP(K81,漢字読み!$A$2:$O$506,6,0)) -> ［石］をける | L83: =IF(L81="","",VLOOKUP(L81,漢字読み!$A$2:$O$506,6,0)) -> あく［手］をする | M83: =IF(M81="","",VLOOKUP(M81,漢字読み!$A$2:$O$506,6,0)) -> ［田］うえをする | N83: =IF(N81="","",VLOOKUP(N81,漢字読み!$A$2:$O$506,6,0)) -> しょうぎの［名人］ | O83: =IF(O81="","",VLOOKUP(O81,漢字読み!$A$2:$O$506,6,0)) -> ［雨］がふる | P83: =IF(P81="","",VLOOKUP(P81,漢字読み!$A$2:$O$506,6,0)) -> ［火］よう日 | Q83: =IF(Q81="","",VLOOKUP(Q81,漢字読み!$A$2:$O$506,6,0)) -> ［目］がさめる | R83: =IF(R81="","",VLOOKUP(R81,漢字読み!$A$2:$O$506,6,0)) -> ［学力］がつく | S83: =IF(S81="","",VLOOKUP(S81,漢字読み!$A$2:$O$506,6,0)) -> ［正］しいこたえ | T83: =IF(T81="","",VLOOKUP(T81,漢字読み!$A$2:$O$506,6,0)) -> ［人］がおおい | V83: 級
V84: 名前
A85: =IF(A81="","",IF(VLOOKUP(A81,漢字書き!$A$2:$N$502,7,0)=0,"",VLOOKUP(A81,漢字書き!$A$2:$N$502,7,0))) -> ゆ | B85: =IF(B81="","",IF(VLOOKUP(B81,漢字書き!$A$2:$N$502,7,0)=0,"",VLOOKUP(B81,漢字書き!$A$2:$N$502,7,0))) -> ばん | C85: =IF(C81="","",IF(VLOOKUP(C81,漢字書き!$A$2:$N$502,7,0)=0,"",VLOOKUP(C81,漢字書き!$A$2:$N$502,7,0))) ->  | D85: =IF(D81="","",IF(VLOOKUP(D81,漢字書き!$A$2:$N$502,7,0)=0,"",VLOOKUP(D81,漢字書き!$A$2:$N$502,7,0))) -> さな | E85: =IF(E81="","",IF(VLOOKUP(E81,漢字書き!$A$2:$N$502,7,0)=0,"",VLOOKUP(E81,漢字書き!$A$2:$N$502,7,0))) ->  | F85: =IF(F81="","",IF(VLOOKUP(F81,漢字書き!$A$2:$N$502,7,0)=0,"",VLOOKUP(F81,漢字書き!$A$2:$N$502,7,0))) ->  | G85: =IF(G81="","",IF(VLOOKUP(G81,漢字書き!$A$2:$N$502,7,0)=0,"",VLOOKUP(G81,漢字書き!$A$2:$N$502,7,0))) ->  | H85: =IF(H81="","",IF(VLOOKUP(H81,漢字書き!$A$2:$N$502,7,0)=0,"",VLOOKUP(H81,漢字書き!$A$2:$N$502,7,0))) -> しき | I85: =IF(I81="","",IF(VLOOKUP(I81,漢字書き!$A$2:$N$502,7,0)=0,"",VLOOKUP(I81,漢字書き!$A$2:$N$502,7,0))) ->  | J85: =IF(J81="","",IF(VLOOKUP(J81,漢字書き!$A$2:$N$502,7,0)=0,"",VLOOKUP(J81,漢字書き!$A$2:$N$502,7,0))) -> かく | K85: =IF(K81="","",IF(VLOOKUP(K81,漢字読み!$A$2:$O$502,7,0)=0,"",VLOOKUP(K81,漢字読み!$A$2:$O$502,7,0))) ->  | L85: =IF(L81="","",IF(VLOOKUP(L81,漢字読み!$A$2:$O$502,7,0)=0,"",VLOOKUP(L81,漢字読み!$A$2:$O$502,7,0))) ->  | M85: =IF(M81="","",IF(VLOOKUP(M81,漢字読み!$A$2:$O$502,7,0)=0,"",VLOOKUP(M81,漢字読み!$A$2:$O$502,7,0))) -> うえ | N85: =IF(N81="","",IF(VLOOKUP(N81,漢字読み!$A$2:$O$502,7,0)=0,"",VLOOKUP(N81,漢字読み!$A$2:$O$502,7,0))) ->  | O85: =IF(O81="","",IF(VLOOKUP(O81,漢字読み!$A$2:$O$502,7,0)=0,"",VLOOKUP(O81,漢字読み!$A$2:$O$502,7,0))) ->  | P85: =IF(P81="","",IF(VLOOKUP(P81,漢字読み!$A$2:$O$502,7,0)=0,"",VLOOKUP(P81,漢字読み!$A$2:$O$502,7,0))) -> よう | Q85: =IF(Q81="","",IF(VLOOKUP(Q81,漢字読み!$A$2:$O$502,7,0)=0,"",VLOOKUP(Q81,漢字読み!$A$2:$O$502,7,0))) ->  | R85: =IF(R81="","",IF(VLOOKUP(R81,漢字読み!$A$2:$O$502,7,0)=0,"",VLOOKUP(R81,漢字読み!$A$2:$O$502,7,0))) ->  | S85: =IF(S81="","",IF(VLOOKUP(S81,漢字読み!$A$2:$O$502,7,0)=0,"",VLOOKUP(S81,漢字読み!$A$2:$O$502,7,0))) -> しい | T85: =IF(T81="","",IF(VLOOKUP(T81,漢字読み!$A$2:$O$502,7,0)=0,"",VLOOKUP(T81,漢字読み!$A$2:$O$502,7,0))) ->  | W85: 和歌山県教育委員会
A86: =INDIRECT("'関数（書き）'!C" & COLUMN(B$1)+SUM($AD$2:$AD87)) -> 4 | B86: =INDIRECT("'関数（書き）'!C" & COLUMN(C$1)+SUM($AD$2:$AD87)) -> 69 | C86: =INDIRECT("'関数（書き）'!C" & COLUMN(D$1)+SUM($AD$2:$AD87)) -> 160 | D86: =INDIRECT("'関数（書き）'!C" & COLUMN(E$1)+SUM($AD$2:$AD87)) -> 20 | E86: =INDIRECT("'関数（書き）'!C" & COLUMN(F$1)+SUM($AD$2:$AD87)) -> 80 | F86: =INDIRECT("'関数（書き）'!C" & COLUMN(G$1)+SUM($AD$2:$AD87)) -> 38 | G86: =INDIRECT("'関数（書き）'!C" & COLUMN(H$1)+SUM($AD$2:$AD87)) -> 120 | H86: =INDIRECT("'関数（書き）'!C" & COLUMN(I$1)+SUM($AD$2:$AD87)) -> 134 | I86: =INDIRECT("'関数（書き）'!C" & COLUMN(J$1)+SUM($AD$2:$AD87)) -> 29 | J86: =INDIRECT("'関数（書き）'!C" & COLUMN(K$1)+SUM($AD$2:$AD87)) -> 39 | K86: =INDIRECT("'関数（読み）'!C" & COLUMN(B$1)+SUM($AD$2:$AD87)) -> 77 | L86: =INDIRECT("'関数（読み）'!C" & COLUMN(C$1)+SUM($AD$2:$AD87)) -> 8 | M86: =INDIRECT("'関数（読み）'!C" & COLUMN(D$1)+SUM($AD$2:$AD87)) -> 68 | N86: =INDIRECT("'関数（読み）'!C" & COLUMN(E$1)+SUM($AD$2:$AD87)) -> 130 | O86: =INDIRECT("'関数（読み）'!C" & COLUMN(F$1)+SUM($AD$2:$AD87)) -> 17 | P86: =INDIRECT("'関数（読み）'!C" & COLUMN(G$1)+SUM($AD$2:$AD87)) -> 126 | Q86: =INDIRECT("'関数（読み）'!C" & COLUMN(H$1)+SUM($AD$2:$AD87)) -> 108 | R86: =INDIRECT("'関数（読み）'!C" & COLUMN(I$1)+SUM($AD$2:$AD87)) -> 20 | S86: =INDIRECT("'関数（読み）'!C" & COLUMN(J$1)+SUM($AD$2:$AD87)) -> 70 | T86: =INDIRECT("'関数（読み）'!C" & COLUMN(K$1)+SUM($AD$2:$AD87)) -> 90
A87: ⑳ | B87: ⑲ | C87: ⑱ | D87: ⑰ | E87: ⑯ | F87: ⑮ | G87: ⑭ | H87: ⑬ | I87: ⑫ | J87: ⑪ | K87: ⑩ | L87: ⑨ | M87: ⑧ | N87: ⑦ | O87: ⑥ | P87: ⑤ | Q87: ④ | R87: ③ | S87: ② | T87: ① | U87: 次の［ ］の部分の漢字には読みがなをひらがなで書き、カタカナは漢字に直しなさい。 | V87: 15 | W87: 「漢字の博士検定試験」練習問題 | AC87: ← | AD87: 10 | AE87: 問 | AF87: =AH82+1 -> 91 | AG87: ～ | AH87: =SUM($AD$2:$AD87)+10 -> 100 | AI87: 問まで | AJ87: =COUNTIF($A$1:$T$200,T88) -> 2
A88: =IF(A86="","",VLOOKUP(A86,漢字書き!$A$2:$N$506,6,0)) -> ［ミギ］にまがる | B88: =IF(B86="","",VLOOKUP(B86,漢字書き!$A$2:$N$506,6,0)) -> ［シチ］ならべ | C88: =IF(C86="","",VLOOKUP(C86,漢字書き!$A$2:$N$506,6,0)) -> 大きな［キ］の下 | D88: =IF(D86="","",VLOOKUP(D86,漢字書き!$A$2:$N$506,6,0)) -> ［カ］だんの水やり | E88: =IF(E86="","",VLOOKUP(E86,漢字書き!$A$2:$N$506,6,0)) -> ［ジョシ］のれつ | F88: =IF(F86="","",VLOOKUP(F86,漢字書き!$A$2:$N$506,6,0)) -> ［クウキ］がきれい | G88: =IF(G86="","",VLOOKUP(G86,漢字書き!$A$2:$N$506,6,0)) -> ［ミギアシ］をあげる | H88: =IF(H86="","",VLOOKUP(H86,漢字書き!$A$2:$N$506,6,0)) -> ［ムシ］をさがす | I88: =IF(I86="","",VLOOKUP(I86,漢字書き!$A$2:$N$506,6,0)) -> ［キュウ］かんちょう | J88: =IF(J86="","",VLOOKUP(J86,漢字書き!$A$2:$N$506,6,0)) -> 青い［ソラ］ | K88: =IF(K86="","",VLOOKUP(K86,漢字読み!$A$2:$O$506,6,0)) -> おはじきが［十］こ | L88: =IF(L86="","",VLOOKUP(L86,漢字読み!$A$2:$O$506,6,0)) -> ［円］のかたち | M88: =IF(M86="","",VLOOKUP(M86,漢字読み!$A$2:$O$506,6,0)) -> きれいな［字］ | N88: =IF(N86="","",VLOOKUP(N86,漢字読み!$A$2:$O$506,6,0)) -> ［大学］にすすむ | O88: =IF(O86="","",VLOOKUP(O86,漢字読み!$A$2:$O$506,6,0)) -> 気おんが［下］がる | P88: =IF(P86="","",VLOOKUP(P86,漢字読み!$A$2:$O$506,6,0)) -> ［土足］はきんしだ | Q88: =IF(Q86="","",VLOOKUP(Q86,漢字読み!$A$2:$O$506,6,0)) -> ［夕］がたの空 | R88: =IF(R86="","",VLOOKUP(R86,漢字読み!$A$2:$O$506,6,0)) -> ［花］だんのせわ | S88: =IF(S86="","",VLOOKUP(S86,漢字読み!$A$2:$O$506,6,0)) -> ［七］ならべをする | T88: =IF(T86="","",VLOOKUP(T86,漢字読み!$A$2:$O$506,6,0)) -> ［森］の中 | V88: 級
V89: 名前
A90: =IF(A86="","",IF(VLOOKUP(A86,漢字書き!$A$2:$N$502,7,0)=0,"",VLOOKUP(A86,漢字書き!$A$2:$N$502,7,0))) ->  | B90: =IF(B86="","",IF(VLOOKUP(B86,漢字書き!$A$2:$N$502,7,0)=0,"",VLOOKUP(B86,漢字書き!$A$2:$N$502,7,0))) -> ならべ | C90: =IF(C86="","",IF(VLOOKUP(C86,漢字書き!$A$2:$N$502,7,0)=0,"",VLOOKUP(C86,漢字書き!$A$2:$N$502,7,0))) ->  | D90: =IF(D86="","",IF(VLOOKUP(D86,漢字書き!$A$2:$N$502,7,0)=0,"",VLOOKUP(D86,漢字書き!$A$2:$N$502,7,0))) -> だん | E90: =IF(E86="","",IF(VLOOKUP(E86,漢字書き!$A$2:$N$502,7,0)=0,"",VLOOKUP(E86,漢字書き!$A$2:$N$502,7,0))) ->  | F90: =IF(F86="","",IF(VLOOKUP(F86,漢字書き!$A$2:$N$502,7,0)=0,"",VLOOKUP(F86,漢字書き!$A$2:$N$502,7,0))) ->  | G90: =IF(G86="","",IF(VLOOKUP(G86,漢字書き!$A$2:$N$502,7,0)=0,"",VLOOKUP(G86,漢字書き!$A$2:$N$502,7,0))) ->  | H90: =IF(H86="","",IF(VLOOKUP(H86,漢字書き!$A$2:$N$502,7,0)=0,"",VLOOKUP(H86,漢字書き!$A$2:$N$502,7,0))) ->  | I90: =IF(I86="","",IF(VLOOKUP(I86,漢字書き!$A$2:$N$502,7,0)=0,"",VLOOKUP(I86,漢字書き!$A$2:$N$502,7,0))) -> かんちょう | J90: =IF(J86="","",IF(VLOOKUP(J86,漢字書き!$A$2:$N$502,7,0)=0,"",VLOOKUP(J86,漢字書き!$A$2:$N$502,7,0))) ->  | K90: =IF(K86="","",IF(VLOOKUP(K86,漢字読み!$A$2:$O$502,7,0)=0,"",VLOOKUP(K86,漢字読み!$A$2:$O$502,7,0))) -> こ | L90: =IF(L86="","",IF(VLOOKUP(L86,漢字読み!$A$2:$O$502,7,0)=0,"",VLOOKUP(L86,漢字読み!$A$2:$O$502,7,0))) ->  | M90: =IF(M86="","",IF(VLOOKUP(M86,漢字読み!$A$2:$O$502,7,0)=0,"",VLOOKUP(M86,漢字読み!$A$2:$O$502,7,0))) ->  | N90: =IF(N86="","",IF(VLOOKUP(N86,漢字読み!$A$2:$O$502,7,0)=0,"",VLOOKUP(N86,漢字読み!$A$2:$O$502,7,0))) ->  | O90: =IF(O86="","",IF(VLOOKUP(O86,漢字読み!$A$2:$O$502,7,0)=0,"",VLOOKUP(O86,漢字読み!$A$2:$O$502,7,0))) -> がる | P90: =IF(P86="","",IF(VLOOKUP(P86,漢字読み!$A$2:$O$502,7,0)=0,"",VLOOKUP(P86,漢字読み!$A$2:$O$502,7,0))) ->  | Q90: =IF(Q86="","",IF(VLOOKUP(Q86,漢字読み!$A$2:$O$502,7,0)=0,"",VLOOKUP(Q86,漢字読み!$A$2:$O$502,7,0))) -> がた | R90: =IF(R86="","",IF(VLOOKUP(R86,漢字読み!$A$2:$O$502,7,0)=0,"",VLOOKUP(R86,漢字読み!$A$2:$O$502,7,0))) -> だん | S90: =IF(S86="","",IF(VLOOKUP(S86,漢字読み!$A$2:$O$502,7,0)=0,"",VLOOKUP(S86,漢字読み!$A$2:$O$502,7,0))) -> ならべ | T90: =IF(T86="","",IF(VLOOKUP(T86,漢字読み!$A$2:$O$502,7,0)=0,"",VLOOKUP(T86,漢字読み!$A$2:$O$502,7,0))) ->  | W90: 和歌山県教育委員会
A91: =A81 -> 104 | B91: =B81 -> 1 | C91: 90 | D91: 84 | E91: 173 | F91: 18 | G91: 146 | H91: 148 | I91: 53 | J91: 62 | K91: 111 | L91: 74 | M91: 145 | N91: 173 | O91: 6 | P91: 18 | Q91: 177 | R91: 180 | S91: 98 | T91: 93
A92: ⑳ | B92: ⑲ | C92: ⑱ | D92: ⑰ | E92: ⑯ | F92: ⑮ | G92: ⑭ | H92: ⑬ | I92: ⑫ | J92: ⑪ | K92: ⑩ | L92: ⑨ | M92: ⑧ | N92: ⑦ | O92: ⑥ | P92: ⑤ | Q92: ④ | R92: ③ | S92: ② | T92: ① | U92: 次の［ ］の部分の漢字には読みがなをひらがなで書き、カタカナは漢字に直しなさい。 | V92: 15 | W92: 「漢字の博士検定試験」練習問題
A93: =IF(A91="","",VLOOKUP(A91,漢字書き!$A$2:$N$506,6,0)) -> ［セキ］ゆを大せつに | B93: =IF(B91="","",VLOOKUP(B91,漢字書き!$A$2:$N$506,6,0)) -> ［イチ］ばんぼし | C93: =IF(C91="","",VLOOKUP(C91,漢字書き!$A$2:$N$506,6,0)) -> ［ヒャクニン］ならぶ | D93: =IF(D91="","",VLOOKUP(D91,漢字書き!$A$2:$N$506,6,0)) -> ［チイ］さな子 | E93: =IF(E91="","",VLOOKUP(E91,漢字書き!$A$2:$N$506,6,0)) -> すぎの［ハヤシ］ | F93: =IF(F91="","",VLOOKUP(F91,漢字書き!$A$2:$N$506,6,0)) -> ［カリョク］がよわい | G93: =IF(G91="","",VLOOKUP(G91,漢字書き!$A$2:$N$506,6,0)) -> まい［ニチ］あそぶ | H93: =IF(H91="","",VLOOKUP(H91,漢字書き!$A$2:$N$506,6,0)) -> ［ニュウガク］しき | I93: =IF(I91="","",VLOOKUP(I91,漢字書き!$A$2:$N$506,6,0)) -> ［サユウ］を見る | J93: =IF(J91="","",VLOOKUP(J91,漢字書き!$A$2:$N$506,6,0)) -> ［シ］かくのず | K93: =IF(K91="","",VLOOKUP(K91,漢字読み!$A$2:$O$506,6,0)) -> ［石］をける | L93: =IF(L91="","",VLOOKUP(L91,漢字読み!$A$2:$O$506,6,0)) -> あく［手］をする | M93: =IF(M91="","",VLOOKUP(M91,漢字読み!$A$2:$O$506,6,0)) -> ［田］うえをする | N93: =IF(N91="","",VLOOKUP(N91,漢字読み!$A$2:$O$506,6,0)) -> しょうぎの［名人］ | O93: =IF(O91="","",VLOOKUP(O91,漢字読み!$A$2:$O$506,6,0)) -> ［雨］がふる | P93: =IF(P91="","",VLOOKUP(P91,漢字読み!$A$2:$O$506,6,0)) -> ［火］よう日 | Q93: =IF(Q91="","",VLOOKUP(Q91,漢字読み!$A$2:$O$506,6,0)) -> ［目］がさめる | R93: =IF(R91="","",VLOOKUP(R91,漢字読み!$A$2:$O$506,6,0)) -> ［学力］がつく | S93: =IF(S91="","",VLOOKUP(S91,漢字読み!$A$2:$O$506,6,0)) -> ［正］しいこたえ | T93: =IF(T91="","",VLOOKUP(T91,漢字読み!$A$2:$O$506,6,0)) -> ［人］がおおい | V93: 級
A94: =IF(A$11="","",VLOOKUP(A91,漢字書き!$A$2:$O$506,8,0)) -> 石 | B94: =IF(B$11="","",VLOOKUP(B91,漢字書き!$A$2:$O$506,8,0)) -> 一 | C94: =IF(C$11="","",VLOOKUP(C91,漢字書き!$A$2:$O$506,8,0)) -> 百人 | D94: =IF(D$11="","",VLOOKUP(D91,漢字書き!$A$2:$O$506,8,0)) -> 小 | E94: =IF(E$11="","",VLOOKUP(E91,漢字書き!$A$2:$O$506,8,0)) -> 林 | F94: =IF(F$11="","",VLOOKUP(F91,漢字書き!$A$2:$O$506,8,0)) -> 火力 | G94: =IF(G$11="","",VLOOKUP(G91,漢字書き!$A$2:$O$506,8,0)) -> 日 | H94: =IF(H$11="","",VLOOKUP(H91,漢字書き!$A$2:$O$506,8,0)) -> 入学 | I94: =IF(I$11="","",VLOOKUP(I91,漢字書き!$A$2:$O$506,8,0)) -> 左右 | J94: =IF(J$11="","",VLOOKUP(J91,漢字書き!$A$2:$O$506,8,0)) -> 四 | K94: =IF(K$11="","",VLOOKUP(K91,漢字読み!$A$2:$O$506,8,0)) -> いし | L94: =IF(L$11="","",VLOOKUP(L91,漢字読み!$A$2:$O$506,8,0)) -> しゅ | M94: =IF(M$11="","",VLOOKUP(M91,漢字読み!$A$2:$O$506,8,0)) -> た | N94: =IF(N$11="","",VLOOKUP(N91,漢字読み!$A$2:$O$506,8,0)) -> めいじん | O94: =IF(O$11="","",VLOOKUP(O91,漢字読み!$A$2:$O$506,8,0)) -> あめ | P94: =IF(P$11="","",VLOOKUP(P91,漢字読み!$A$2:$O$506,8,0)) -> か | Q94: =IF(Q$11="","",VLOOKUP(Q91,漢字読み!$A$2:$O$506,8,0)) -> め | R94: =IF(R$11="","",VLOOKUP(R91,漢字読み!$A$2:$O$506,8,0)) -> がくりょく | S94: =IF(S$11="","",VLOOKUP(S91,漢字読み!$A$2:$O$506,8,0)) -> ただ | T94: =IF(T$11="","",VLOOKUP(T91,漢字読み!$A$2:$O$506,8,0)) -> ひと | V94: 名前
A95: =IF(A91="","",IF(VLOOKUP(A91,漢字書き!$A$2:$N$502,7,0)=0,"",VLOOKUP(A91,漢字書き!$A$2:$N$502,7,0))) -> ゆ | B95: =IF(B91="","",IF(VLOOKUP(B91,漢字書き!$A$2:$N$502,7,0)=0,"",VLOOKUP(B91,漢字書き!$A$2:$N$502,7,0))) -> ばん | C95: =IF(C91="","",IF(VLOOKUP(C91,漢字書き!$A$2:$N$502,7,0)=0,"",VLOOKUP(C91,漢字書き!$A$2:$N$502,7,0))) ->  | D95: =IF(D91="","",IF(VLOOKUP(D91,漢字書き!$A$2:$N$502,7,0)=0,"",VLOOKUP(D91,漢字書き!$A$2:$N$502,7,0))) -> さな | E95: =IF(E91="","",IF(VLOOKUP(E91,漢字書き!$A$2:$N$502,7,0)=0,"",VLOOKUP(E91,漢字書き!$A$2:$N$502,7,0))) ->  | F95: =IF(F91="","",IF(VLOOKUP(F91,漢字書き!$A$2:$N$502,7,0)=0,"",VLOOKUP(F91,漢字書き!$A$2:$N$502,7,0))) ->  | G95: =IF(G91="","",IF(VLOOKUP(G91,漢字書き!$A$2:$N$502,7,0)=0,"",VLOOKUP(G91,漢字書き!$A$2:$N$502,7,0))) ->  | H95: =IF(H91="","",IF(VLOOKUP(H91,漢字書き!$A$2:$N$502,7,0)=0,"",VLOOKUP(H91,漢字書き!$A$2:$N$502,7,0))) -> しき | I95: =IF(I91="","",IF(VLOOKUP(I91,漢字書き!$A$2:$N$502,7,0)=0,"",VLOOKUP(I91,漢字書き!$A$2:$N$502,7,0))) ->  | J95: =IF(J91="","",IF(VLOOKUP(J91,漢字書き!$A$2:$N$502,7,0)=0,"",VLOOKUP(J91,漢字書き!$A$2:$N$502,7,0))) -> かく | K95: =IF(K91="","",IF(VLOOKUP(K91,漢字読み!$A$2:$O$502,7,0)=0,"",VLOOKUP(K91,漢字読み!$A$2:$O$502,7,0))) ->  | L95: =IF(L91="","",IF(VLOOKUP(L91,漢字読み!$A$2:$O$502,7,0)=0,"",VLOOKUP(L91,漢字読み!$A$2:$O$502,7,0))) ->  | M95: =IF(M91="","",IF(VLOOKUP(M91,漢字読み!$A$2:$O$502,7,0)=0,"",VLOOKUP(M91,漢字読み!$A$2:$O$502,7,0))) -> うえ | N95: =IF(N91="","",IF(VLOOKUP(N91,漢字読み!$A$2:$O$502,7,0)=0,"",VLOOKUP(N91,漢字読み!$A$2:$O$502,7,0))) ->  | O95: =IF(O91="","",IF(VLOOKUP(O91,漢字読み!$A$2:$O$502,7,0)=0,"",VLOOKUP(O91,漢字読み!$A$2:$O$502,7,0))) ->  | P95: =IF(P91="","",IF(VLOOKUP(P91,漢字読み!$A$2:$O$502,7,0)=0,"",VLOOKUP(P91,漢字読み!$A$2:$O$502,7,0))) -> よう | Q95: =IF(Q91="","",IF(VLOOKUP(Q91,漢字読み!$A$2:$O$502,7,0)=0,"",VLOOKUP(Q91,漢字読み!$A$2:$O$502,7,0))) ->  | R95: =IF(R91="","",IF(VLOOKUP(R91,漢字読み!$A$2:$O$502,7,0)=0,"",VLOOKUP(R91,漢字読み!$A$2:$O$502,7,0))) ->  | S95: =IF(S91="","",IF(VLOOKUP(S91,漢字読み!$A$2:$O$502,7,0)=0,"",VLOOKUP(S91,漢字読み!$A$2:$O$502,7,0))) -> しい | T95: =IF(T91="","",IF(VLOOKUP(T91,漢字読み!$A$2:$O$502,7,0)=0,"",VLOOKUP(T91,漢字読み!$A$2:$O$502,7,0))) ->  | W95: 和歌山県教育委員会
A96: =A86 -> 4 | B96: =B86 -> 69 | C96: 160 | D96: 20 | E96: 80 | F96: 38 | G96: 120 | H96: 134 | I96: 29 | J96: 39 | K96: 77 | L96: 8 | M96: 68 | N96: 130 | O96: 17 | P96: 126 | Q96: 108 | R96: 20 | S96: 70 | T96: 90
A97: ⑳ | B97: ⑲ | C97: ⑱ | D97: ⑰ | E97: ⑯ | F97: ⑮ | G97: ⑭ | H97: ⑬ | I97: ⑫ | J97: ⑪ | K97: ⑩ | L97: ⑨ | M97: ⑧ | N97: ⑦ | O97: ⑥ | P97: ⑤ | Q97: ④ | R97: ③ | S97: ② | T97: ① | U97: 次の［ ］の部分の漢字には読みがなをひらがなで書き、カタカナは漢字に直しなさい。 | V97: 15 | W97: 「漢字の博士検定試験」練習問題
A98: =IF(A96="","",VLOOKUP(A96,漢字書き!$A$2:$N$506,6,0)) -> ［ミギ］にまがる | B98: =IF(B96="","",VLOOKUP(B96,漢字書き!$A$2:$N$506,6,0)) -> ［シチ］ならべ | C98: =IF(C96="","",VLOOKUP(C96,漢字書き!$A$2:$N$506,6,0)) -> 大きな［キ］の下 | D98: =IF(D96="","",VLOOKUP(D96,漢字書き!$A$2:$N$506,6,0)) -> ［カ］だんの水やり | E98: =IF(E96="","",VLOOKUP(E96,漢字書き!$A$2:$N$506,6,0)) -> ［ジョシ］のれつ | F98: =IF(F96="","",VLOOKUP(F96,漢字書き!$A$2:$N$506,6,0)) -> ［クウキ］がきれい | G98: =IF(G96="","",VLOOKUP(G96,漢字書き!$A$2:$N$506,6,0)) -> ［ミギアシ］をあげる | H98: =IF(H96="","",VLOOKUP(H96,漢字書き!$A$2:$N$506,6,0)) -> ［ムシ］をさがす | I98: =IF(I96="","",VLOOKUP(I96,漢字書き!$A$2:$N$506,6,0)) -> ［キュウ］かんちょう | J98: =IF(J96="","",VLOOKUP(J96,漢字書き!$A$2:$N$506,6,0)) -> 青い［ソラ］ | K98: =IF(K96="","",VLOOKUP(K96,漢字読み!$A$2:$O$506,6,0)) -> おはじきが［十］こ | L98: =IF(L96="","",VLOOKUP(L96,漢字読み!$A$2:$O$506,6,0)) -> ［円］のかたち | M98: =IF(M96="","",VLOOKUP(M96,漢字読み!$A$2:$O$506,6,0)) -> きれいな［字］ | N98: =IF(N96="","",VLOOKUP(N96,漢字読み!$A$2:$O$506,6,0)) -> ［大学］にすすむ | O98: =IF(O96="","",VLOOKUP(O96,漢字読み!$A$2:$O$506,6,0)) -> 気おんが［下］がる | P98: =IF(P96="","",VLOOKUP(P96,漢字読み!$A$2:$O$506,6,0)) -> ［土足］はきんしだ | Q98: =IF(Q96="","",VLOOKUP(Q96,漢字読み!$A$2:$O$506,6,0)) -> ［夕］がたの空 | R98: =IF(R96="","",VLOOKUP(R96,漢字読み!$A$2:$O$506,6,0)) -> ［花］だんのせわ | S98: =IF(S96="","",VLOOKUP(S96,漢字読み!$A$2:$O$506,6,0)) -> ［七］ならべをする | T98: =IF(T96="","",VLOOKUP(T96,漢字読み!$A$2:$O$506,6,0)) -> ［森］の中 | V98: 級
A99: =IF(A$16="","",VLOOKUP(A96,漢字書き!$A$2:$O$506,8,0)) -> 右 | B99: =IF(B$16="","",VLOOKUP(B96,漢字書き!$A$2:$O$506,8,0)) -> 七 | C99: =IF(C$16="","",VLOOKUP(C96,漢字書き!$A$2:$O$506,8,0)) -> 木 | D99: =IF(D$16="","",VLOOKUP(D96,漢字書き!$A$2:$O$506,8,0)) -> 花 | E99: =IF(E$16="","",VLOOKUP(E96,漢字書き!$A$2:$O$506,8,0)) -> 女子 | F99: =IF(F$16="","",VLOOKUP(F96,漢字書き!$A$2:$O$506,8,0)) -> 空気 | G99: =IF(G$16="","",VLOOKUP(G96,漢字書き!$A$2:$O$506,8,0)) -> 右足 | H99: =IF(H$16="","",VLOOKUP(H96,漢字書き!$A$2:$O$506,8,0)) -> 虫 | I99: =IF(I$16="","",VLOOKUP(I96,漢字書き!$A$2:$O$506,8,0)) -> 九 | J99: =IF(J$16="","",VLOOKUP(J96,漢字書き!$A$2:$O$506,8,0)) -> 空 | K99: =IF(K$16="","",VLOOKUP(K96,漢字読み!$A$2:$O$506,8,0)) -> じっ | L99: =IF(L$16="","",VLOOKUP(L96,漢字読み!$A$2:$O$506,8,0)) -> えん | M99: =IF(M$16="","",VLOOKUP(M96,漢字読み!$A$2:$O$506,8,0)) -> じ | N99: =IF(N$16="","",VLOOKUP(N96,漢字読み!$A$2:$O$506,8,0)) -> だいがく | O99: =IF(O$16="","",VLOOKUP(O96,漢字読み!$A$2:$O$506,8,0)) -> さ | P99: =IF(P$16="","",VLOOKUP(P96,漢字読み!$A$2:$O$506,8,0)) -> どそく | Q99: =IF(Q$16="","",VLOOKUP(Q96,漢字読み!$A$2:$O$506,8,0)) -> ゆう | R99: =IF(R$16="","",VLOOKUP(R96,漢字読み!$A$2:$O$506,8,0)) -> か | S99: =IF(S$16="","",VLOOKUP(S96,漢字読み!$A$2:$O$506,8,0)) -> しち | T99: =IF(T$16="","",VLOOKUP(T96,漢字読み!$A$2:$O$506,8,0)) -> もり | V99: 名前
A100: =IF(A96="","",IF(VLOOKUP(A96,漢字書き!$A$2:$N$502,7,0)=0,"",VLOOKUP(A96,漢字書き!$A$2:$N$502,7,0))) ->  | B100: =IF(B96="","",IF(VLOOKUP(B96,漢字書き!$A$2:$N$502,7,0)=0,"",VLOOKUP(B96,漢字書き!$A$2:$N$502,7,0))) -> ならべ | C100: =IF(C96="","",IF(VLOOKUP(C96,漢字書き!$A$2:$N$502,7,0)=0,"",VLOOKUP(C96,漢字書き!$A$2:$N$502,7,0))) ->  | D100: =IF(D96="","",IF(VLOOKUP(D96,漢字書き!$A$2:$N$502,7,0)=0,"",VLOOKUP(D96,漢字書き!$A$2:$N$502,7,0))) -> だん | E100: =IF(E96="","",IF(VLOOKUP(E96,漢字書き!$A$2:$N$502,7,0)=0,"",VLOOKUP(E96,漢字書き!$A$2:$N$502,7,0))) ->  | F100: =IF(F96="","",IF(VLOOKUP(F96,漢字書き!$A$2:$N$502,7,0)=0,"",VLOOKUP(F96,漢字書き!$A$2:$N$502,7,0))) ->  | G100: =IF(G96="","",IF(VLOOKUP(G96,漢字書き!$A$2:$N$502,7,0)=0,"",VLOOKUP(G96,漢字書き!$A$2:$N$502,7,0))) ->  | H100: =IF(H96="","",IF(VLOOKUP(H96,漢字書き!$A$2:$N$502,7,0)=0,"",VLOOKUP(H96,漢字書き!$A$2:$N$502,7,0))) ->  | I100: =IF(I96="","",IF(VLOOKUP(I96,漢字書き!$A$2:$N$502,7,0)=0,"",VLOOKUP(I96,漢字書き!$A$2:$N$502,7,0))) -> かんちょう | J100: =IF(J96="","",IF(VLOOKUP(J96,漢字書き!$A$2:$N$502,7,0)=0,"",VLOOKUP(J96,漢字書き!$A$2:$N$502,7,0))) ->  | K100: =IF(K96="","",IF(VLOOKUP(K96,漢字読み!$A$2:$O$502,7,0)=0,"",VLOOKUP(K96,漢字読み!$A$2:$O$502,7,0))) -> こ | L100: =IF(L96="","",IF(VLOOKUP(L96,漢字読み!$A$2:$O$502,7,0)=0,"",VLOOKUP(L96,漢字読み!$A$2:$O$502,7,0))) ->  | M100: =IF(M96="","",IF(VLOOKUP(M96,漢字読み!$A$2:$O$502,7,0)=0,"",VLOOKUP(M96,漢字読み!$A$2:$O$502,7,0))) ->  | N100: =IF(N96="","",IF(VLOOKUP(N96,漢字読み!$A$2:$O$502,7,0)=0,"",VLOOKUP(N96,漢字読み!$A$2:$O$502,7,0))) ->  | O100: =IF(O96="","",IF(VLOOKUP(O96,漢字読み!$A$2:$O$502,7,0)=0,"",VLOOKUP(O96,漢字読み!$A$2:$O$502,7,0))) -> がる | P100: =IF(P96="","",IF(VLOOKUP(P96,漢字読み!$A$2:$O$502,7,0)=0,"",VLOOKUP(P96,漢字読み!$A$2:$O$502,7,0))) ->  | Q100: =IF(Q96="","",IF(VLOOKUP(Q96,漢字読み!$A$2:$O$502,7,0)=0,"",VLOOKUP(Q96,漢字読み!$A$2:$O$502,7,0))) -> がた | R100: =IF(R96="","",IF(VLOOKUP(R96,漢字読み!$A$2:$O$502,7,0)=0,"",VLOOKUP(R96,漢字読み!$A$2:$O$502,7,0))) -> だん | S100: =IF(S96="","",IF(VLOOKUP(S96,漢字読み!$A$2:$O$502,7,0)=0,"",VLOOKUP(S96,漢字読み!$A$2:$O$502,7,0))) -> ならべ | T100: =IF(T96="","",IF(VLOOKUP(T96,漢字読み!$A$2:$O$502,7,0)=0,"",VLOOKUP(T96,漢字読み!$A$2:$O$502,7,0))) ->  | W100: 和歌山県教育委員会
A101: =INDIRECT("'関数（書き）'!C" & COLUMN(B$1)+SUM($AD$2:$AD102)) -> 92 | B101: =INDIRECT("'関数（書き）'!C" & COLUMN(C$1)+SUM($AD$2:$AD102)) -> 161 | C101: =INDIRECT("'関数（書き）'!C" & COLUMN(D$1)+SUM($AD$2:$AD102)) -> 83 | D101: =INDIRECT("'関数（書き）'!C" & COLUMN(E$1)+SUM($AD$2:$AD102)) -> 61 | E101: =INDIRECT("'関数（書き）'!C" & COLUMN(F$1)+SUM($AD$2:$AD102)) -> 48 | F101: =INDIRECT("'関数（書き）'!C" & COLUMN(G$1)+SUM($AD$2:$AD102)) -> 122 | G101: =INDIRECT("'関数（書き）'!C" & COLUMN(H$1)+SUM($AD$2:$AD102)) -> 45 | H101: =INDIRECT("'関数（書き）'!C" & COLUMN(I$1)+SUM($AD$2:$AD102)) -> 105 | I101: =INDIRECT("'関数（書き）'!C" & COLUMN(J$1)+SUM($AD$2:$AD102)) -> 37 | J101: =INDIRECT("'関数（書き）'!C" & COLUMN(K$1)+SUM($AD$2:$AD102)) -> 168 | K101: =INDIRECT("'関数（読み）'!C" & COLUMN(B$1)+SUM($AD$2:$AD102)) -> 28 | L101: =INDIRECT("'関数（読み）'!C" & COLUMN(C$1)+SUM($AD$2:$AD102)) -> 56 | M101: =INDIRECT("'関数（読み）'!C" & COLUMN(D$1)+SUM($AD$2:$AD102)) -> 15 | N101: =INDIRECT("'関数（読み）'!C" & COLUMN(E$1)+SUM($AD$2:$AD102)) -> 101 | O101: =INDIRECT("'関数（読み）'!C" & COLUMN(F$1)+SUM($AD$2:$AD102)) -> 114 | P101: =INDIRECT("'関数（読み）'!C" & COLUMN(G$1)+SUM($AD$2:$AD102)) -> 140 | Q101: =INDIRECT("'関数（読み）'!C" & COLUMN(H$1)+SUM($AD$2:$AD102)) -> 165 | R101: =INDIRECT("'関数（読み）'!C" & COLUMN(I$1)+SUM($AD$2:$AD102)) -> 168 | S101: =INDIRECT("'関数（読み）'!C" & COLUMN(J$1)+SUM($AD$2:$AD102)) -> 39 | T101: =INDIRECT("'関数（読み）'!C" & COLUMN(K$1)+SUM($AD$2:$AD102)) -> 154
A102: ⑳ | B102: ⑲ | C102: ⑱ | D102: ⑰ | E102: ⑯ | F102: ⑮ | G102: ⑭ | H102: ⑬ | I102: ⑫ | J102: ⑪ | K102: ⑩ | L102: ⑨ | M102: ⑧ | N102: ⑦ | O102: ⑥ | P102: ⑤ | Q102: ④ | R102: ③ | S102: ② | T102: ① | U102: 次の［ ］の部分の漢字には読みがなをひらがなで書き、カタカナは漢字に直しなさい。 | V102: 15 | W102: 「漢字の博士検定試験」練習問題 | AC102: ← | AD102: 10 | AE102: 問 | AF102: =AH87+1 -> 101 | AG102: ～ | AH102: =SUM($AD$2:$AD102)+10 -> 110 | AI102: 問まで | AJ102: =COUNTIF($A$1:$T$200,T103) -> 2
A103: =IF(A101="","",VLOOKUP(A101,漢字書き!$A$2:$N$506,6,0)) -> ［スイ］えい | B103: =IF(B101="","",VLOOKUP(B101,漢字書き!$A$2:$N$506,6,0)) -> ［ホン］をよむ | C103: =IF(C101="","",VLOOKUP(C101,漢字書き!$A$2:$N$506,6,0)) -> ［チイ］さいこえ | D103: =IF(D101="","",VLOOKUP(D101,漢字書き!$A$2:$N$506,6,0)) -> ［コ］どもの日 | E103: =IF(E101="","",VLOOKUP(E101,漢字書き!$A$2:$N$506,6,0)) -> ［イツ］つの子 | F103: =IF(F101="","",VLOOKUP(F101,漢字書き!$A$2:$N$506,6,0)) -> ［ムラ］のかみさま | G103: =IF(G101="","",VLOOKUP(G101,漢字書き!$A$2:$N$506,6,0)) -> ［ケンガク］する | H103: =IF(H101="","",VLOOKUP(H101,漢字書き!$A$2:$N$506,6,0)) -> ［イシ］をほる | I103: =IF(I101="","",VLOOKUP(I101,漢字書き!$A$2:$N$506,6,0)) -> ［カナ］もの | J103: =IF(J101="","",VLOOKUP(J101,漢字書き!$A$2:$N$506,6,0)) -> ［チョウリツ］の小学校 | K103: =IF(K101="","",VLOOKUP(K101,漢字読み!$A$2:$O$506,6,0)) -> ［人気］もの | L103: =IF(L101="","",VLOOKUP(L101,漢字読み!$A$2:$O$506,6,0)) -> ［校］もんを出る | M103: =IF(M101="","",VLOOKUP(M101,漢字読み!$A$2:$O$506,6,0)) -> ［下校］する | N103: =IF(N101="","",VLOOKUP(N101,漢字読み!$A$2:$O$506,6,0)) -> 子どもが［生］まれる | O103: =IF(O101="","",VLOOKUP(O101,漢字読み!$A$2:$O$506,6,0)) -> ［千円］さつ | P103: =IF(P101="","",VLOOKUP(P101,漢字読み!$A$2:$O$506,6,0)) -> ［町］ちょうになる | Q103: =IF(Q101="","",VLOOKUP(Q101,漢字読み!$A$2:$O$506,6,0)) -> ［文中］のことば | R103: =IF(R101="","",VLOOKUP(R101,漢字読み!$A$2:$O$506,6,0)) -> ［大木］をたおす | S103: =IF(S101="","",VLOOKUP(S101,漢字読み!$A$2:$O$506,6,0)) -> ［金］もちになる | T103: =IF(T101="","",VLOOKUP(T101,漢字読み!$A$2:$O$506,6,0)) -> きょうしつに［入］る | V103: 級
V104: 名前
A105: =IF(A101="","",IF(VLOOKUP(A101,漢字書き!$A$2:$N$502,7,0)=0,"",VLOOKUP(A101,漢字書き!$A$2:$N$502,7,0))) -> えい | B105: =IF(B101="","",IF(VLOOKUP(B101,漢字書き!$A$2:$N$502,7,0)=0,"",VLOOKUP(B101,漢字書き!$A$2:$N$502,7,0))) ->  | C105: =IF(C101="","",IF(VLOOKUP(C101,漢字書き!$A$2:$N$502,7,0)=0,"",VLOOKUP(C101,漢字書き!$A$2:$N$502,7,0))) -> さい | D105: =IF(D101="","",IF(VLOOKUP(D101,漢字書き!$A$2:$N$502,7,0)=0,"",VLOOKUP(D101,漢字書き!$A$2:$N$502,7,0))) -> ども | E105: =IF(E101="","",IF(VLOOKUP(E101,漢字書き!$A$2:$N$502,7,0)=0,"",VLOOKUP(E101,漢字書き!$A$2:$N$502,7,0))) -> つ | F105: =IF(F101="","",IF(VLOOKUP(F101,漢字書き!$A$2:$N$502,7,0)=0,"",VLOOKUP(F101,漢字書き!$A$2:$N$502,7,0))) ->  | G105: =IF(G101="","",IF(VLOOKUP(G101,漢字書き!$A$2:$N$502,7,0)=0,"",VLOOKUP(G101,漢字書き!$A$2:$N$502,7,0))) -> する | H105: =IF(H101="","",IF(VLOOKUP(H101,漢字書き!$A$2:$N$502,7,0)=0,"",VLOOKUP(H101,漢字書き!$A$2:$N$502,7,0))) ->  | I105: =IF(I101="","",IF(VLOOKUP(I101,漢字書き!$A$2:$N$502,7,0)=0,"",VLOOKUP(I101,漢字書き!$A$2:$N$502,7,0))) -> もの | J105: =IF(J101="","",IF(VLOOKUP(J101,漢字書き!$A$2:$N$502,7,0)=0,"",VLOOKUP(J101,漢字書き!$A$2:$N$502,7,0))) ->  | K105: =IF(K101="","",IF(VLOOKUP(K101,漢字読み!$A$2:$O$502,7,0)=0,"",VLOOKUP(K101,漢字読み!$A$2:$O$502,7,0))) -> もの | L105: =IF(L101="","",IF(VLOOKUP(L101,漢字読み!$A$2:$O$502,7,0)=0,"",VLOOKUP(L101,漢字読み!$A$2:$O$502,7,0))) -> もん | M105: =IF(M101="","",IF(VLOOKUP(M101,漢字読み!$A$2:$O$502,7,0)=0,"",VLOOKUP(M101,漢字読み!$A$2:$O$502,7,0))) -> する | N105: =IF(N101="","",IF(VLOOKUP(N101,漢字読み!$A$2:$O$502,7,0)=0,"",VLOOKUP(N101,漢字読み!$A$2:$O$502,7,0))) -> まれる | O105: =IF(O101="","",IF(VLOOKUP(O101,漢字読み!$A$2:$O$502,7,0)=0,"",VLOOKUP(O101,漢字読み!$A$2:$O$502,7,0))) -> さつ | P105: =IF(P101="","",IF(VLOOKUP(P101,漢字読み!$A$2:$O$502,7,0)=0,"",VLOOKUP(P101,漢字読み!$A$2:$O$502,7,0))) ->  | Q105: =IF(Q101="","",IF(VLOOKUP(Q101,漢字読み!$A$2:$O$502,7,0)=0,"",VLOOKUP(Q101,漢字読み!$A$2:$O$502,7,0))) ->  | R105: =IF(R101="","",IF(VLOOKUP(R101,漢字読み!$A$2:$O$502,7,0)=0,"",VLOOKUP(R101,漢字読み!$A$2:$O$502,7,0))) ->  | S105: =IF(S101="","",IF(VLOOKUP(S101,漢字読み!$A$2:$O$502,7,0)=0,"",VLOOKUP(S101,漢字読み!$A$2:$O$502,7,0))) -> もち | T105: =IF(T101="","",IF(VLOOKUP(T101,漢字読み!$A$2:$O$502,7,0)=0,"",VLOOKUP(T101,漢字読み!$A$2:$O$502,7,0))) -> る | W105: 和歌山県教育委員会
A106: =INDIRECT("'関数（書き）'!C" & COLUMN(B$1)+SUM($AD$2:$AD107)) -> 73 | B106: =INDIRECT("'関数（書き）'!C" & COLUMN(C$1)+SUM($AD$2:$AD107)) -> 70 | C106: =INDIRECT("'関数（書き）'!C" & COLUMN(D$1)+SUM($AD$2:$AD107)) -> 66 | D106: =INDIRECT("'関数（書き）'!C" & COLUMN(E$1)+SUM($AD$2:$AD107)) -> 43 | E106: =INDIRECT("'関数（書き）'!C" & COLUMN(F$1)+SUM($AD$2:$AD107)) -> 154 | F106: =INDIRECT("'関数（書き）'!C" & COLUMN(G$1)+SUM($AD$2:$AD107)) -> 36 | G106: =INDIRECT("'関数（書き）'!C" & COLUMN(H$1)+SUM($AD$2:$AD107)) -> 157 | H106: =INDIRECT("'関数（書き）'!C" & COLUMN(I$1)+SUM($AD$2:$AD107)) -> 115 | I106: =INDIRECT("'関数（書き）'!C" & COLUMN(J$1)+SUM($AD$2:$AD107)) -> 124 | J106: =INDIRECT("'関数（書き）'!C" & COLUMN(K$1)+SUM($AD$2:$AD107)) -> 165 | K106: =INDIRECT("'関数（読み）'!C" & COLUMN(B$1)+SUM($AD$2:$AD107)) -> 51 | L106: =INDIRECT("'関数（読み）'!C" & COLUMN(C$1)+SUM($AD$2:$AD107)) -> 73 | M106: =INDIRECT("'関数（読み）'!C" & COLUMN(D$1)+SUM($AD$2:$AD107)) -> 31 | N106: =INDIRECT("'関数（読み）'!C" & COLUMN(E$1)+SUM($AD$2:$AD107)) -> 9 | O106: =INDIRECT("'関数（読み）'!C" & COLUMN(F$1)+SUM($AD$2:$AD107)) -> 109 | P106: =INDIRECT("'関数（読み）'!C" & COLUMN(G$1)+SUM($AD$2:$AD107)) -> 132 | Q106: =INDIRECT("'関数（読み）'!C" & COLUMN(H$1)+SUM($AD$2:$AD107)) -> 62 | R106: =INDIRECT("'関数（読み）'!C" & COLUMN(I$1)+SUM($AD$2:$AD107)) -> 143 | S106: =INDIRECT("'関数（読み）'!C" & COLUMN(J$1)+SUM($AD$2:$AD107)) -> 86 | T106: =INDIRECT("'関数（読み）'!C" & COLUMN(K$1)+SUM($AD$2:$AD107)) -> 97
A107: ⑳ | B107: ⑲ | C107: ⑱ | D107: ⑰ | E107: ⑯ | F107: ⑮ | G107: ⑭ | H107: ⑬ | I107: ⑫ | J107: ⑪ | K107: ⑩ | L107: ⑨ | M107: ⑧ | N107: ⑦ | O107: ⑥ | P107: ⑤ | Q107: ④ | R107: ③ | S107: ② | T107: ① | U107: 次の［ ］の部分の漢字には読みがなをひらがなで書き、カタカナは漢字に直しなさい。 | V107: 15 | W107: 「漢字の博士検定試験」練習問題 | AC107: ← | AD107: 10 | AE107: 問 | AF107: =AH102+1 -> 111 | AG107: ～ | AH107: =SUM($AD$2:$AD107)+10 -> 120 | AI107: 問まで | AJ107: =COUNTIF($A$1:$T$200,T108) -> 2
A108: =IF(A106="","",VLOOKUP(A106,漢字書き!$A$2:$N$506,6,0)) -> あく［シュ］をする | B108: =IF(B106="","",VLOOKUP(B106,漢字書き!$A$2:$N$506,6,0)) -> ［ナナ］いろのにじ | C108: =IF(C106="","",VLOOKUP(C106,漢字書き!$A$2:$N$506,6,0)) -> ［ジ］をかく | D108: =IF(D106="","",VLOOKUP(D106,漢字書き!$A$2:$N$506,6,0)) -> ［イヌ］とねこ | E108: =IF(E106="","",VLOOKUP(E106,漢字書き!$A$2:$N$506,6,0)) -> ［ハチガツ］がすきだ | F108: =IF(F106="","",VLOOKUP(F106,漢字書き!$A$2:$N$506,6,0)) -> お［カネ］をはらう | G108: =IF(G106="","",VLOOKUP(G106,漢字書き!$A$2:$N$506,6,0)) -> ［ブン］をかく | H108: =IF(H106="","",VLOOKUP(H106,漢字書き!$A$2:$N$506,6,0)) -> ［ハヤ］くおきる | I108: =IF(I106="","",VLOOKUP(I106,漢字書き!$A$2:$N$506,6,0)) -> ［ダイ］きちをひく | J108: =IF(J106="","",VLOOKUP(J106,漢字書き!$A$2:$N$506,6,0)) -> ［ナ］まえをかく | K108: =IF(K106="","",VLOOKUP(K106,漢字読み!$A$2:$O$506,6,0)) -> ［五］まいのおさら | L108: =IF(L106="","",VLOOKUP(L106,漢字読み!$A$2:$O$506,6,0)) -> ［車］がおおい | M108: =IF(M106="","",VLOOKUP(M106,漢字読み!$A$2:$O$506,6,0)) -> ［学校］のかいだん | N108: =IF(N106="","",VLOOKUP(N106,漢字読み!$A$2:$O$506,6,0)) -> はだかの［王］さま | O108: =IF(O106="","",VLOOKUP(O106,漢字読み!$A$2:$O$506,6,0)) -> きれいな［夕］やけ | P108: =IF(P106="","",VLOOKUP(P106,漢字読み!$A$2:$O$506,6,0)) -> ［男女］にわかれる | Q108: =IF(Q106="","",VLOOKUP(Q106,漢字読み!$A$2:$O$506,6,0)) -> ［山］にのぼる | R108: =IF(R106="","",VLOOKUP(R106,漢字読み!$A$2:$O$506,6,0)) -> ［天］のがわ | S108: =IF(S106="","",VLOOKUP(S106,漢字読み!$A$2:$O$506,6,0)) -> ［上下］左右にふる | T108: =IF(T106="","",VLOOKUP(T106,漢字読み!$A$2:$O$506,6,0)) -> ［正］かいを出す | V108: 級
V109: 名前
A110: =IF(A106="","",IF(VLOOKUP(A106,漢字書き!$A$2:$N$502,7,0)=0,"",VLOOKUP(A106,漢字書き!$A$2:$N$502,7,0))) ->  | B110: =IF(B106="","",IF(VLOOKUP(B106,漢字書き!$A$2:$N$502,7,0)=0,"",VLOOKUP(B106,漢字書き!$A$2:$N$502,7,0))) -> いろ | C110: =IF(C106="","",IF(VLOOKUP(C106,漢字書き!$A$2:$N$502,7,0)=0,"",VLOOKUP(C106,漢字書き!$A$2:$N$502,7,0))) ->  | D110: =IF(D106="","",IF(VLOOKUP(D106,漢字書き!$A$2:$N$502,7,0)=0,"",VLOOKUP(D106,漢字書き!$A$2:$N$502,7,0))) ->  | E110: =IF(E106="","",IF(VLOOKUP(E106,漢字書き!$A$2:$N$502,7,0)=0,"",VLOOKUP(E106,漢字書き!$A$2:$N$502,7,0))) ->  | F110: =IF(F106="","",IF(VLOOKUP(F106,漢字書き!$A$2:$N$502,7,0)=0,"",VLOOKUP(F106,漢字書き!$A$2:$N$502,7,0))) ->  | G110: =IF(G106="","",IF(VLOOKUP(G106,漢字書き!$A$2:$N$502,7,0)=0,"",VLOOKUP(G106,漢字書き!$A$2:$N$502,7,0))) ->  | H110: =IF(H106="","",IF(VLOOKUP(H106,漢字書き!$A$2:$N$502,7,0)=0,"",VLOOKUP(H106,漢字書き!$A$2:$N$502,7,0))) -> く | I110: =IF(I106="","",IF(VLOOKUP(I106,漢字書き!$A$2:$N$502,7,0)=0,"",VLOOKUP(I106,漢字書き!$A$2:$N$502,7,0))) -> きち | J110: =IF(J106="","",IF(VLOOKUP(J106,漢字書き!$A$2:$N$502,7,0)=0,"",VLOOKUP(J106,漢字書き!$A$2:$N$502,7,0))) -> まえ | K110: =IF(K106="","",IF(VLOOKUP(K106,漢字読み!$A$2:$O$502,7,0)=0,"",VLOOKUP(K106,漢字読み!$A$2:$O$502,7,0))) -> まい | L110: =IF(L106="","",IF(VLOOKUP(L106,漢字読み!$A$2:$O$502,7,0)=0,"",VLOOKUP(L106,漢字読み!$A$2:$O$502,7,0))) ->  | M110: =IF(M106="","",IF(VLOOKUP(M106,漢字読み!$A$2:$O$502,7,0)=0,"",VLOOKUP(M106,漢字読み!$A$2:$O$502,7,0))) ->  | N110: =IF(N106="","",IF(VLOOKUP(N106,漢字読み!$A$2:$O$502,7,0)=0,"",VLOOKUP(N106,漢字読み!$A$2:$O$502,7,0))) -> さま | O110: =IF(O106="","",IF(VLOOKUP(O106,漢字読み!$A$2:$O$502,7,0)=0,"",VLOOKUP(O106,漢字読み!$A$2:$O$502,7,0))) -> やけ | P110: =IF(P106="","",IF(VLOOKUP(P106,漢字読み!$A$2:$O$502,7,0)=0,"",VLOOKUP(P106,漢字読み!$A$2:$O$502,7,0))) ->  | Q110: =IF(Q106="","",IF(VLOOKUP(Q106,漢字読み!$A$2:$O$502,7,0)=0,"",VLOOKUP(Q106,漢字読み!$A$2:$O$502,7,0))) ->  | R110: =IF(R106="","",IF(VLOOKUP(R106,漢字読み!$A$2:$O$502,7,0)=0,"",VLOOKUP(R106,漢字読み!$A$2:$O$502,7,0))) ->  | S110: =IF(S106="","",IF(VLOOKUP(S106,漢字読み!$A$2:$O$502,7,0)=0,"",VLOOKUP(S106,漢字読み!$A$2:$O$502,7,0))) ->  | T110: =IF(T106="","",IF(VLOOKUP(T106,漢字読み!$A$2:$O$502,7,0)=0,"",VLOOKUP(T106,漢字読み!$A$2:$O$502,7,0))) -> かい | W110: 和歌山県教育委員会
A111: =A101 -> 92 | B111: =B101 -> 161 | C111: 83 | D111: 61 | E111: 48 | F111: 122 | G111: 45 | H111: 105 | I111: 37 | J111: 168 | K111: 28 | L111: 56 | M111: 15 | N111: 101 | O111: 114 | P111: 140 | Q111: 165 | R111: 168 | S111: 39 | T111: 154
A112: ⑳ | B112: ⑲ | C112: ⑱ | D112: ⑰ | E112: ⑯ | F112: ⑮ | G112: ⑭ | H112: ⑬ | I112: ⑫ | J112: ⑪ | K112: ⑩ | L112: ⑨ | M112: ⑧ | N112: ⑦ | O112: ⑥ | P112: ⑤ | Q112: ④ | R112: ③ | S112: ② | T112: ① | U112: 次の［ ］の部分の漢字には読みがなをひらがなで書き、カタカナは漢字に直しなさい。 | V112: 15 | W112: 「漢字の博士検定試験」練習問題
A113: =IF(A111="","",VLOOKUP(A111,漢字書き!$A$2:$N$506,6,0)) -> ［スイ］えい | B113: =IF(B111="","",VLOOKUP(B111,漢字書き!$A$2:$N$506,6,0)) -> ［ホン］をよむ | C113: =IF(C111="","",VLOOKUP(C111,漢字書き!$A$2:$N$506,6,0)) -> ［チイ］さいこえ | D113: =IF(D111="","",VLOOKUP(D111,漢字書き!$A$2:$N$506,6,0)) -> ［コ］どもの日 | E113: =IF(E111="","",VLOOKUP(E111,漢字書き!$A$2:$N$506,6,0)) -> ［イツ］つの子 | F113: =IF(F111="","",VLOOKUP(F111,漢字書き!$A$2:$N$506,6,0)) -> ［ムラ］のかみさま | G113: =IF(G111="","",VLOOKUP(G111,漢字書き!$A$2:$N$506,6,0)) -> ［ケンガク］する | H113: =IF(H111="","",VLOOKUP(H111,漢字書き!$A$2:$N$506,6,0)) -> ［イシ］をほる | I113: =IF(I111="","",VLOOKUP(I111,漢字書き!$A$2:$N$506,6,0)) -> ［カナ］もの | J113: =IF(J111="","",VLOOKUP(J111,漢字書き!$A$2:$N$506,6,0)) -> ［チョウリツ］の小学校 | K113: =IF(K111="","",VLOOKUP(K111,漢字読み!$A$2:$O$506,6,0)) -> ［人気］もの | L113: =IF(L111="","",VLOOKUP(L111,漢字読み!$A$2:$O$506,6,0)) -> ［校］もんを出る | M113: =IF(M111="","",VLOOKUP(M111,漢字読み!$A$2:$O$506,6,0)) -> ［下校］する | N113: =IF(N111="","",VLOOKUP(N111,漢字読み!$A$2:$O$506,6,0)) -> 子どもが［生］まれる | O113: =IF(O111="","",VLOOKUP(O111,漢字読み!$A$2:$O$506,6,0)) -> ［千円］さつ | P113: =IF(P111="","",VLOOKUP(P111,漢字読み!$A$2:$O$506,6,0)) -> ［町］ちょうになる | Q113: =IF(Q111="","",VLOOKUP(Q111,漢字読み!$A$2:$O$506,6,0)) -> ［文中］のことば | R113: =IF(R111="","",VLOOKUP(R111,漢字読み!$A$2:$O$506,6,0)) -> ［大木］をたおす | S113: =IF(S111="","",VLOOKUP(S111,漢字読み!$A$2:$O$506,6,0)) -> ［金］もちになる | T113: =IF(T111="","",VLOOKUP(T111,漢字読み!$A$2:$O$506,6,0)) -> きょうしつに［入］る | V113: 級
A114: =IF(A$11="","",VLOOKUP(A111,漢字書き!$A$2:$O$506,8,0)) -> 水 | B114: =IF(B$11="","",VLOOKUP(B111,漢字書き!$A$2:$O$506,8,0)) -> 本 | C114: =IF(C$11="","",VLOOKUP(C111,漢字書き!$A$2:$O$506,8,0)) -> 小 | D114: =IF(D$11="","",VLOOKUP(D111,漢字書き!$A$2:$O$506,8,0)) -> 子 | E114: =IF(E$11="","",VLOOKUP(E111,漢字書き!$A$2:$O$506,8,0)) -> 五 | F114: =IF(F$11="","",VLOOKUP(F111,漢字書き!$A$2:$O$506,8,0)) -> 村 | G114: =IF(G$11="","",VLOOKUP(G111,漢字書き!$A$2:$O$506,8,0)) -> 見学 | H114: =IF(H$11="","",VLOOKUP(H111,漢字書き!$A$2:$O$506,8,0)) -> 石 | I114: =IF(I$11="","",VLOOKUP(I111,漢字書き!$A$2:$O$506,8,0)) -> 金 | J114: =IF(J$11="","",VLOOKUP(J111,漢字書き!$A$2:$O$506,8,0)) -> 町立 | K114: =IF(K$11="","",VLOOKUP(K111,漢字読み!$A$2:$O$506,8,0)) -> にんき | L114: =IF(L$11="","",VLOOKUP(L111,漢字読み!$A$2:$O$506,8,0)) -> こう | M114: =IF(M$11="","",VLOOKUP(M111,漢字読み!$A$2:$O$506,8,0)) -> げこう | N114: =IF(N$11="","",VLOOKUP(N111,漢字読み!$A$2:$O$506,8,0)) -> う | O114: =IF(O$11="","",VLOOKUP(O111,漢字読み!$A$2:$O$506,8,0)) -> せんえん | P114: =IF(P$11="","",VLOOKUP(P111,漢字読み!$A$2:$O$506,8,0)) -> ちょう | Q114: =IF(Q$11="","",VLOOKUP(Q111,漢字読み!$A$2:$O$506,8,0)) -> ぶんちゅう | R114: =IF(R$11="","",VLOOKUP(R111,漢字読み!$A$2:$O$506,8,0)) -> たいぼく | S114: =IF(S$11="","",VLOOKUP(S111,漢字読み!$A$2:$O$506,8,0)) -> かね | T114: =IF(T$11="","",VLOOKUP(T111,漢字読み!$A$2:$O$506,8,0)) -> はい | V114: 名前
A115: =IF(A111="","",IF(VLOOKUP(A111,漢字書き!$A$2:$N$502,7,0)=0,"",VLOOKUP(A111,漢字書き!$A$2:$N$502,7,0))) -> えい | B115: =IF(B111="","",IF(VLOOKUP(B111,漢字書き!$A$2:$N$502,7,0)=0,"",VLOOKUP(B111,漢字書き!$A$2:$N$502,7,0))) ->  | C115: =IF(C111="","",IF(VLOOKUP(C111,漢字書き!$A$2:$N$502,7,0)=0,"",VLOOKUP(C111,漢字書き!$A$2:$N$502,7,0))) -> さい | D115: =IF(D111="","",IF(VLOOKUP(D111,漢字書き!$A$2:$N$502,7,0)=0,"",VLOOKUP(D111,漢字書き!$A$2:$N$502,7,0))) -> ども | E115: =IF(E111="","",IF(VLOOKUP(E111,漢字書き!$A$2:$N$502,7,0)=0,"",VLOOKUP(E111,漢字書き!$A$2:$N$502,7,0))) -> つ | F115: =IF(F111="","",IF(VLOOKUP(F111,漢字書き!$A$2:$N$502,7,0)=0,"",VLOOKUP(F111,漢字書き!$A$2:$N$502,7,0))) ->  | G115: =IF(G111="","",IF(VLOOKUP(G111,漢字書き!$A$2:$N$502,7,0)=0,"",VLOOKUP(G111,漢字書き!$A$2:$N$502,7,0))) -> する | H115: =IF(H111="","",IF(VLOOKUP(H111,漢字書き!$A$2:$N$502,7,0)=0,"",VLOOKUP(H111,漢字書き!$A$2:$N$502,7,0))) ->  | I115: =IF(I111="","",IF(VLOOKUP(I111,漢字書き!$A$2:$N$502,7,0)=0,"",VLOOKUP(I111,漢字書き!$A$2:$N$502,7,0))) -> もの | J115: =IF(J111="","",IF(VLOOKUP(J111,漢字書き!$A$2:$N$502,7,0)=0,"",VLOOKUP(J111,漢字書き!$A$2:$N$502,7,0))) ->  | K115: =IF(K111="","",IF(VLOOKUP(K111,漢字読み!$A$2:$O$502,7,0)=0,"",VLOOKUP(K111,漢字読み!$A$2:$O$502,7,0))) -> もの | L115: =IF(L111="","",IF(VLOOKUP(L111,漢字読み!$A$2:$O$502,7,0)=0,"",VLOOKUP(L111,漢字読み!$A$2:$O$502,7,0))) -> もん | M115: =IF(M111="","",IF(VLOOKUP(M111,漢字読み!$A$2:$O$502,7,0)=0,"",VLOOKUP(M111,漢字読み!$A$2:$O$502,7,0))) -> する | N115: =IF(N111="","",IF(VLOOKUP(N111,漢字読み!$A$2:$O$502,7,0)=0,"",VLOOKUP(N111,漢字読み!$A$2:$O$502,7,0))) -> まれる | O115: =IF(O111="","",IF(VLOOKUP(O111,漢字読み!$A$2:$O$502,7,0)=0,"",VLOOKUP(O111,漢字読み!$A$2:$O$502,7,0))) -> さつ | P115: =IF(P111="","",IF(VLOOKUP(P111,漢字読み!$A$2:$O$502,7,0)=0,"",VLOOKUP(P111,漢字読み!$A$2:$O$502,7,0))) ->  | Q115: =IF(Q111="","",IF(VLOOKUP(Q111,漢字読み!$A$2:$O$502,7,0)=0,"",VLOOKUP(Q111,漢字読み!$A$2:$O$502,7,0))) ->  | R115: =IF(R111="","",IF(VLOOKUP(R111,漢字読み!$A$2:$O$502,7,0)=0,"",VLOOKUP(R111,漢字読み!$A$2:$O$502,7,0))) ->  | S115: =IF(S111="","",IF(VLOOKUP(S111,漢字読み!$A$2:$O$502,7,0)=0,"",VLOOKUP(S111,漢字読み!$A$2:$O$502,7,0))) -> もち | T115: =IF(T111="","",IF(VLOOKUP(T111,漢字読み!$A$2:$O$502,7,0)=0,"",VLOOKUP(T111,漢字読み!$A$2:$O$502,7,0))) -> る | W115: 和歌山県教育委員会
A116: =A106 -> 73 | B116: =B106 -> 70 | C116: 66 | D116: 43 | E116: 154 | F116: 36 | G116: 157 | H116: 115 | I116: 124 | J116: 165 | K116: 51 | L116: 73 | M116: 31 | N116: 9 | O116: 109 | P116: 132 | Q116: 62 | R116: 143 | S116: 86 | T116: 97
A117: ⑳ | B117: ⑲ | C117: ⑱ | D117: ⑰ | E117: ⑯ | F117: ⑮ | G117: ⑭ | H117: ⑬ | I117: ⑫ | J117: ⑪ | K117: ⑩ | L117: ⑨ | M117: ⑧ | N117: ⑦ | O117: ⑥ | P117: ⑤ | Q117: ④ | R117: ③ | S117: ② | T117: ① | U117: 次の［ ］の部分の漢字には読みがなをひらがなで書き、カタカナは漢字に直しなさい。 | V117: 15 | W117: 「漢字の博士検定試験」練習問題
A118: =IF(A116="","",VLOOKUP(A116,漢字書き!$A$2:$N$506,6,0)) -> あく［シュ］をする | B118: =IF(B116="","",VLOOKUP(B116,漢字書き!$A$2:$N$506,6,0)) -> ［ナナ］いろのにじ | C118: =IF(C116="","",VLOOKUP(C116,漢字書き!$A$2:$N$506,6,0)) -> ［ジ］をかく | D118: =IF(D116="","",VLOOKUP(D116,漢字書き!$A$2:$N$506,6,0)) -> ［イヌ］とねこ | E118: =IF(E116="","",VLOOKUP(E116,漢字書き!$A$2:$N$506,6,0)) -> ［ハチガツ］がすきだ | F118: =IF(F116="","",VLOOKUP(F116,漢字書き!$A$2:$N$506,6,0)) -> お［カネ］をはらう | G118: =IF(G116="","",VLOOKUP(G116,漢字書き!$A$2:$N$506,6,0)) -> ［ブン］をかく | H118: =IF(H116="","",VLOOKUP(H116,漢字書き!$A$2:$N$506,6,0)) -> ［ハヤ］くおきる | I118: =IF(I116="","",VLOOKUP(I116,漢字書き!$A$2:$N$506,6,0)) -> ［ダイ］きちをひく | J118: =IF(J116="","",VLOOKUP(J116,漢字書き!$A$2:$N$506,6,0)) -> ［ナ］まえをかく | K118: =IF(K116="","",VLOOKUP(K116,漢字読み!$A$2:$O$506,6,0)) -> ［五］まいのおさら | L118: =IF(L116="","",VLOOKUP(L116,漢字読み!$A$2:$O$506,6,0)) -> ［車］がおおい | M118: =IF(M116="","",VLOOKUP(M116,漢字読み!$A$2:$O$506,6,0)) -> ［学校］のかいだん | N118: =IF(N116="","",VLOOKUP(N116,漢字読み!$A$2:$O$506,6,0)) -> はだかの［王］さま | O118: =IF(O116="","",VLOOKUP(O116,漢字読み!$A$2:$O$506,6,0)) -> きれいな［夕］やけ | P118: =IF(P116="","",VLOOKUP(P116,漢字読み!$A$2:$O$506,6,0)) -> ［男女］にわかれる | Q118: =IF(Q116="","",VLOOKUP(Q116,漢字読み!$A$2:$O$506,6,0)) -> ［山］にのぼる | R118: =IF(R116="","",VLOOKUP(R116,漢字読み!$A$2:$O$506,6,0)) -> ［天］のがわ | S118: =IF(S116="","",VLOOKUP(S116,漢字読み!$A$2:$O$506,6,0)) -> ［上下］左右にふる | T118: =IF(T116="","",VLOOKUP(T116,漢字読み!$A$2:$O$506,6,0)) -> ［正］かいを出す | V118: 級
A119: =IF(A$16="","",VLOOKUP(A116,漢字書き!$A$2:$O$506,8,0)) -> 手 | B119: =IF(B$16="","",VLOOKUP(B116,漢字書き!$A$2:$O$506,8,0)) -> 七 | C119: =IF(C$16="","",VLOOKUP(C116,漢字書き!$A$2:$O$506,8,0)) -> 字 | D119: =IF(D$16="","",VLOOKUP(D116,漢字書き!$A$2:$O$506,8,0)) -> 犬 | E119: =IF(E$16="","",VLOOKUP(E116,漢字書き!$A$2:$O$506,8,0)) -> 八月 | F119: =IF(F$16="","",VLOOKUP(F116,漢字書き!$A$2:$O$506,8,0)) -> 金 | G119: =IF(G$16="","",VLOOKUP(G116,漢字書き!$A$2:$O$506,8,0)) -> 文 | H119: =IF(H$16="","",VLOOKUP(H116,漢字書き!$A$2:$O$506,8,0)) -> 早 | I119: =IF(I$16="","",VLOOKUP(I116,漢字書き!$A$2:$O$506,8,0)) -> 大 | J119: =IF(J$16="","",VLOOKUP(J116,漢字書き!$A$2:$O$506,8,0)) -> 名 | K119: =IF(K$16="","",VLOOKUP(K116,漢字読み!$A$2:$O$506,8,0)) -> ご | L119: =IF(L$16="","",VLOOKUP(L116,漢字読み!$A$2:$O$506,8,0)) -> くるま | M119: =IF(M$16="","",VLOOKUP(M116,漢字読み!$A$2:$O$506,8,0)) -> がっこう | N119: =IF(N$16="","",VLOOKUP(N116,漢字読み!$A$2:$O$506,8,0)) -> おう | O119: =IF(O$16="","",VLOOKUP(O116,漢字読み!$A$2:$O$506,8,0)) -> ゆう | P119: =IF(P$16="","",VLOOKUP(P116,漢字読み!$A$2:$O$506,8,0)) -> だんじょ | Q119: =IF(Q$16="","",VLOOKUP(Q116,漢字読み!$A$2:$O$506,8,0)) -> やま | R119: =IF(R$16="","",VLOOKUP(R116,漢字読み!$A$2:$O$506,8,0)) -> あま | S119: =IF(S$16="","",VLOOKUP(S116,漢字読み!$A$2:$O$506,8,0)) -> じょうげ | T119: =IF(T$16="","",VLOOKUP(T116,漢字読み!$A$2:$O$506,8,0)) -> せい | V119: 名前
A120: =IF(A116="","",IF(VLOOKUP(A116,漢字書き!$A$2:$N$502,7,0)=0,"",VLOOKUP(A116,漢字書き!$A$2:$N$502,7,0))) ->  | B120: =IF(B116="","",IF(VLOOKUP(B116,漢字書き!$A$2:$N$502,7,0)=0,"",VLOOKUP(B116,漢字書き!$A$2:$N$502,7,0))) -> いろ | C120: =IF(C116="","",IF(VLOOKUP(C116,漢字書き!$A$2:$N$502,7,0)=0,"",VLOOKUP(C116,漢字書き!$A$2:$N$502,7,0))) ->  | D120: =IF(D116="","",IF(VLOOKUP(D116,漢字書き!$A$2:$N$502,7,0)=0,"",VLOOKUP(D116,漢字書き!$A$2:$N$502,7,0))) ->  | E120: =IF(E116="","",IF(VLOOKUP(E116,漢字書き!$A$2:$N$502,7,0)=0,"",VLOOKUP(E116,漢字書き!$A$2:$N$502,7,0))) ->  | F120: =IF(F116="","",IF(VLOOKUP(F116,漢字書き!$A$2:$N$502,7,0)=0,"",VLOOKUP(F116,漢字書き!$A$2:$N$502,7,0))) ->  | G120: =IF(G116="","",IF(VLOOKUP(G116,漢字書き!$A$2:$N$502,7,0)=0,"",VLOOKUP(G116,漢字書き!$A$2:$N$502,7,0))) ->  | H120: =IF(H116="","",IF(VLOOKUP(H116,漢字書き!$A$2:$N$502,7,0)=0,"",VLOOKUP(H116,漢字書き!$A$2:$N$502,7,0))) -> く | I120: =IF(I116="","",IF(VLOOKUP(I116,漢字書き!$A$2:$N$502,7,0)=0,"",VLOOKUP(I116,漢字書き!$A$2:$N$502,7,0))) -> きち | J120: =IF(J116="","",IF(VLOOKUP(J116,漢字書き!$A$2:$N$502,7,0)=0,"",VLOOKUP(J116,漢字書き!$A$2:$N$502,7,0))) -> まえ | K120: =IF(K116="","",IF(VLOOKUP(K116,漢字読み!$A$2:$O$502,7,0)=0,"",VLOOKUP(K116,漢字読み!$A$2:$O$502,7,0))) -> まい | L120: =IF(L116="","",IF(VLOOKUP(L116,漢字読み!$A$2:$O$502,7,0)=0,"",VLOOKUP(L116,漢字読み!$A$2:$O$502,7,0))) ->  | M120: =IF(M116="","",IF(VLOOKUP(M116,漢字読み!$A$2:$O$502,7,0)=0,"",VLOOKUP(M116,漢字読み!$A$2:$O$502,7,0))) ->  | N120: =IF(N116="","",IF(VLOOKUP(N116,漢字読み!$A$2:$O$502,7,0)=0,"",VLOOKUP(N116,漢字読み!$A$2:$O$502,7,0))) -> さま | O120: =IF(O116="","",IF(VLOOKUP(O116,漢字読み!$A$2:$O$502,7,0)=0,"",VLOOKUP(O116,漢字読み!$A$2:$O$502,7,0))) -> やけ | P120: =IF(P116="","",IF(VLOOKUP(P116,漢字読み!$A$2:$O$502,7,0)=0,"",VLOOKUP(P116,漢字読み!$A$2:$O$502,7,0))) ->  | Q120: =IF(Q116="","",IF(VLOOKUP(Q116,漢字読み!$A$2:$O$502,7,0)=0,"",VLOOKUP(Q116,漢字読み!$A$2:$O$502,7,0))) ->  | R120: =IF(R116="","",IF(VLOOKUP(R116,漢字読み!$A$2:$O$502,7,0)=0,"",VLOOKUP(R116,漢字読み!$A$2:$O$502,7,0))) ->  | S120: =IF(S116="","",IF(VLOOKUP(S116,漢字読み!$A$2:$O$502,7,0)=0,"",VLOOKUP(S116,漢字読み!$A$2:$O$502,7,0))) ->  | T120: =IF(T116="","",IF(VLOOKUP(T116,漢字読み!$A$2:$O$502,7,0)=0,"",VLOOKUP(T116,漢字読み!$A$2:$O$502,7,0))) -> かい | W120: 和歌山県教育委員会
A121: =INDIRECT("'関数（書き）'!C" & COLUMN(B$1)+SUM($AD$2:$AD122)) -> 94 | B121: =INDIRECT("'関数（書き）'!C" & COLUMN(C$1)+SUM($AD$2:$AD122)) -> 82 | C121: =INDIRECT("'関数（書き）'!C" & COLUMN(D$1)+SUM($AD$2:$AD122)) -> 126 | D121: =INDIRECT("'関数（書き）'!C" & COLUMN(E$1)+SUM($AD$2:$AD122)) -> 64 | E121: =INDIRECT("'関数（書き）'!C" & COLUMN(F$1)+SUM($AD$2:$AD122)) -> 145 | F121: =INDIRECT("'関数（書き）'!C" & COLUMN(G$1)+SUM($AD$2:$AD122)) -> 147 | G121: =INDIRECT("'関数（書き）'!C" & COLUMN(H$1)+SUM($AD$2:$AD122)) -> 27 | H121: =INDIRECT("'関数（書き）'!C" & COLUMN(I$1)+SUM($AD$2:$AD122)) -> 24 | I121: =INDIRECT("'関数（書き）'!C" & COLUMN(J$1)+SUM($AD$2:$AD122)) -> 23 | J121: =INDIRECT("'関数（書き）'!C" & COLUMN(K$1)+SUM($AD$2:$AD122)) -> 10 | K121: =INDIRECT("'関数（読み）'!C" & COLUMN(B$1)+SUM($AD$2:$AD122)) -> 69 | L121: =INDIRECT("'関数（読み）'!C" & COLUMN(C$1)+SUM($AD$2:$AD122)) -> 37 | M121: =INDIRECT("'関数（読み）'!C" & COLUMN(D$1)+SUM($AD$2:$AD122)) -> 162 | N121: =INDIRECT("'関数（読み）'!C" & COLUMN(E$1)+SUM($AD$2:$AD122)) -> 67 | O121: =INDIRECT("'関数（読み）'!C" & COLUMN(F$1)+SUM($AD$2:$AD122)) -> 161 | P121: =INDIRECT("'関数（読み）'!C" & COLUMN(G$1)+SUM($AD$2:$AD122)) -> 81 | Q121: =INDIRECT("'関数（読み）'!C" & COLUMN(H$1)+SUM($AD$2:$AD122)) -> 59 | R121: =INDIRECT("'関数（読み）'!C" & COLUMN(I$1)+SUM($AD$2:$AD122)) -> 138 | S121: =INDIRECT("'関数（読み）'!C" & COLUMN(J$1)+SUM($AD$2:$AD122)) -> 147 | T121: =INDIRECT("'関数（読み）'!C" & COLUMN(K$1)+SUM($AD$2:$AD122)) -> 1
A122: ⑳ | B122: ⑲ | C122: ⑱ | D122: ⑰ | E122: ⑯ | F122: ⑮ | G122: ⑭ | H122: ⑬ | I122: ⑫ | J122: ⑪ | K122: ⑩ | L122: ⑨ | M122: ⑧ | N122: ⑦ | O122: ⑥ | P122: ⑤ | Q122: ④ | R122: ③ | S122: ② | T122: ① | U122: 次の［ ］の部分の漢字には読みがなをひらがなで書き、カタカナは漢字に直しなさい。 | V122: 15 | W122: 「漢字の博士検定試験」練習問題 | AC122: ← | AD122: 10 | AE122: 問 | AF122: =AH107+1 -> 121 | AG122: ～ | AH122: =SUM($AD$2:$AD122)+10 -> 130 | AI122: 問まで | AJ122: =COUNTIF($A$1:$T$200,T123) -> 2
A123: =IF(A121="","",VLOOKUP(A121,漢字書き!$A$2:$N$506,6,0)) -> お［ショウガツ］ | B123: =IF(B121="","",VLOOKUP(B121,漢字書き!$A$2:$N$506,6,0)) -> ［ショウガッコウ］にいく | C123: =IF(C121="","",VLOOKUP(C121,漢字書き!$A$2:$N$506,6,0)) -> ［ダンジョ］なかよし | D123: =IF(D121="","",VLOOKUP(D121,漢字書き!$A$2:$N$506,6,0)) -> くもの［イト］ | E123: =IF(E121="","",VLOOKUP(E121,漢字書き!$A$2:$N$506,6,0)) -> ［ヒ］の出をおがむ | F123: =IF(F121="","",VLOOKUP(F121,漢字書き!$A$2:$N$506,6,0)) -> ［ホンジツ］のおすすめ | G123: =IF(G121="","",VLOOKUP(G121,漢字書き!$A$2:$N$506,6,0)) -> ［キ］をつける | H123: =IF(H121="","",VLOOKUP(H121,漢字書き!$A$2:$N$506,6,0)) -> ［カイ］をひろう | I123: =IF(I121="","",VLOOKUP(I121,漢字書き!$A$2:$N$506,6,0)) -> きれいな［カイ］がら | J123: =IF(J121="","",VLOOKUP(J121,漢字書き!$A$2:$N$506,6,0)) -> ［オウジョ］のへや | K123: =IF(K121="","",VLOOKUP(K121,漢字読み!$A$2:$O$506,6,0)) -> ［耳］をすます | L123: =IF(L121="","",VLOOKUP(L121,漢字読み!$A$2:$O$506,6,0)) -> ［玉］をころがす | M123: =IF(M121="","",VLOOKUP(M121,漢字読み!$A$2:$O$506,6,0)) -> 五月［八日］ | N123: =IF(N121="","",VLOOKUP(N121,漢字読み!$A$2:$O$506,6,0)) -> ［糸車］をまわす | O123: =IF(O121="","",VLOOKUP(O121,漢字読み!$A$2:$O$506,6,0)) -> あさの［八］じ | P123: =IF(P121="","",VLOOKUP(P121,漢字読み!$A$2:$O$506,6,0)) -> ［女子］のれつ | Q123: =IF(Q121="","",VLOOKUP(Q121,漢字読み!$A$2:$O$506,6,0)) -> ［三］びきのねこ | R123: =IF(R121="","",VLOOKUP(R121,漢字読み!$A$2:$O$506,6,0)) -> チョウのよう［虫］ | S123: =IF(S121="","",VLOOKUP(S121,漢字読み!$A$2:$O$506,6,0)) -> ［土］あそび | T123: =IF(T121="","",VLOOKUP(T121,漢字読み!$A$2:$O$506,6,0)) -> ［一］ばんになる | V123: 級
V124: 名前
A125: =IF(A121="","",IF(VLOOKUP(A121,漢字書き!$A$2:$N$502,7,0)=0,"",VLOOKUP(A121,漢字書き!$A$2:$N$502,7,0))) ->  | B125: =IF(B121="","",IF(VLOOKUP(B121,漢字書き!$A$2:$N$502,7,0)=0,"",VLOOKUP(B121,漢字書き!$A$2:$N$502,7,0))) ->  | C125: =IF(C121="","",IF(VLOOKUP(C121,漢字書き!$A$2:$N$502,7,0)=0,"",VLOOKUP(C121,漢字書き!$A$2:$N$502,7,0))) ->  | D125: =IF(D121="","",IF(VLOOKUP(D121,漢字書き!$A$2:$N$502,7,0)=0,"",VLOOKUP(D121,漢字書き!$A$2:$N$502,7,0))) ->  | E125: =IF(E121="","",IF(VLOOKUP(E121,漢字書き!$A$2:$N$502,7,0)=0,"",VLOOKUP(E121,漢字書き!$A$2:$N$502,7,0))) -> の出 | F125: =IF(F121="","",IF(VLOOKUP(F121,漢字書き!$A$2:$N$502,7,0)=0,"",VLOOKUP(F121,漢字書き!$A$2:$N$502,7,0))) ->  | G125: =IF(G121="","",IF(VLOOKUP(G121,漢字書き!$A$2:$N$502,7,0)=0,"",VLOOKUP(G121,漢字書き!$A$2:$N$502,7,0))) ->  | H125: =IF(H121="","",IF(VLOOKUP(H121,漢字書き!$A$2:$N$502,7,0)=0,"",VLOOKUP(H121,漢字書き!$A$2:$N$502,7,0))) ->  | I125: =IF(I121="","",IF(VLOOKUP(I121,漢字書き!$A$2:$N$502,7,0)=0,"",VLOOKUP(I121,漢字書き!$A$2:$N$502,7,0))) -> がら | J125: =IF(J121="","",IF(VLOOKUP(J121,漢字書き!$A$2:$N$502,7,0)=0,"",VLOOKUP(J121,漢字書き!$A$2:$N$502,7,0))) ->  | K125: =IF(K121="","",IF(VLOOKUP(K121,漢字読み!$A$2:$O$502,7,0)=0,"",VLOOKUP(K121,漢字読み!$A$2:$O$502,7,0))) ->  | L125: =IF(L121="","",IF(VLOOKUP(L121,漢字読み!$A$2:$O$502,7,0)=0,"",VLOOKUP(L121,漢字読み!$A$2:$O$502,7,0))) ->  | M125: =IF(M121="","",IF(VLOOKUP(M121,漢字読み!$A$2:$O$502,7,0)=0,"",VLOOKUP(M121,漢字読み!$A$2:$O$502,7,0))) ->  | N125: =IF(N121="","",IF(VLOOKUP(N121,漢字読み!$A$2:$O$502,7,0)=0,"",VLOOKUP(N121,漢字読み!$A$2:$O$502,7,0))) ->  | O125: =IF(O121="","",IF(VLOOKUP(O121,漢字読み!$A$2:$O$502,7,0)=0,"",VLOOKUP(O121,漢字読み!$A$2:$O$502,7,0))) -> つ | P125: =IF(P121="","",IF(VLOOKUP(P121,漢字読み!$A$2:$O$502,7,0)=0,"",VLOOKUP(P121,漢字読み!$A$2:$O$502,7,0))) ->  | Q125: =IF(Q121="","",IF(VLOOKUP(Q121,漢字読み!$A$2:$O$502,7,0)=0,"",VLOOKUP(Q121,漢字読み!$A$2:$O$502,7,0))) -> が日 | R125: =IF(R121="","",IF(VLOOKUP(R121,漢字読み!$A$2:$O$502,7,0)=0,"",VLOOKUP(R121,漢字読み!$A$2:$O$502,7,0))) ->  | S125: =IF(S121="","",IF(VLOOKUP(S121,漢字読み!$A$2:$O$502,7,0)=0,"",VLOOKUP(S121,漢字読み!$A$2:$O$502,7,0))) -> あそび | T125: =IF(T121="","",IF(VLOOKUP(T121,漢字読み!$A$2:$O$502,7,0)=0,"",VLOOKUP(T121,漢字読み!$A$2:$O$502,7,0))) -> ばん | W125: 和歌山県教育委員会
A126: =INDIRECT("'関数（書き）'!C" & COLUMN(B$1)+SUM($AD$2:$AD127)) -> 103 | B126: =INDIRECT("'関数（書き）'!C" & COLUMN(C$1)+SUM($AD$2:$AD127)) -> 159 | C126: =INDIRECT("'関数（書き）'!C" & COLUMN(D$1)+SUM($AD$2:$AD127)) -> 15 | D126: =INDIRECT("'関数（書き）'!C" & COLUMN(E$1)+SUM($AD$2:$AD127)) -> 58 | E126: =INDIRECT("'関数（書き）'!C" & COLUMN(F$1)+SUM($AD$2:$AD127)) -> 33 | F126: =INDIRECT("'関数（書き）'!C" & COLUMN(G$1)+SUM($AD$2:$AD127)) -> 143 | G126: =INDIRECT("'関数（書き）'!C" & COLUMN(H$1)+SUM($AD$2:$AD127)) -> 34 | H126: =INDIRECT("'関数（書き）'!C" & COLUMN(I$1)+SUM($AD$2:$AD127)) -> 95 | I126: =INDIRECT("'関数（書き）'!C" & COLUMN(J$1)+SUM($AD$2:$AD127)) -> 149 | J126: =INDIRECT("'関数（書き）'!C" & COLUMN(K$1)+SUM($AD$2:$AD127)) -> 170 | K126: =INDIRECT("'関数（読み）'!C" & COLUMN(B$1)+SUM($AD$2:$AD127)) -> 83 | L126: =INDIRECT("'関数（読み）'!C" & COLUMN(C$1)+SUM($AD$2:$AD127)) -> 61 | M126: =INDIRECT("'関数（読み）'!C" & COLUMN(D$1)+SUM($AD$2:$AD127)) -> 179 | N126: =INDIRECT("'関数（読み）'!C" & COLUMN(E$1)+SUM($AD$2:$AD127)) -> 34 | O126: =INDIRECT("'関数（読み）'!C" & COLUMN(F$1)+SUM($AD$2:$AD127)) -> 150 | P126: =INDIRECT("'関数（読み）'!C" & COLUMN(G$1)+SUM($AD$2:$AD127)) -> 45 | Q126: =INDIRECT("'関数（読み）'!C" & COLUMN(H$1)+SUM($AD$2:$AD127)) -> 181 | R126: =INDIRECT("'関数（読み）'!C" & COLUMN(I$1)+SUM($AD$2:$AD127)) -> 88 | S126: =INDIRECT("'関数（読み）'!C" & COLUMN(J$1)+SUM($AD$2:$AD127)) -> 30 | T126: =INDIRECT("'関数（読み）'!C" & COLUMN(K$1)+SUM($AD$2:$AD127)) -> 40
A127: ⑳ | B127: ⑲ | C127: ⑱ | D127: ⑰ | E127: ⑯ | F127: ⑮ | G127: ⑭ | H127: ⑬ | I127: ⑫ | J127: ⑪ | K127: ⑩ | L127: ⑨ | M127: ⑧ | N127: ⑦ | O127: ⑥ | P127: ⑤ | Q127: ④ | R127: ③ | S127: ② | T127: ① | U127: 次の［ ］の部分の漢字には読みがなをひらがなで書き、カタカナは漢字に直しなさい。 | V127: 15 | W127: 「漢字の博士検定試験」練習問題 | AC127: ← | AD127: 10 | AE127: 問 | AF127: =AH122+1 -> 131 | AG127: ～ | AH127: =SUM($AD$2:$AD127)+10 -> 140 | AI127: 問まで | AJ127: =COUNTIF($A$1:$T$200,T128) -> 2
A128: =IF(A126="","",VLOOKUP(A126,漢字書き!$A$2:$N$506,6,0)) -> ［セキ］たんをはこぶ | B128: =IF(B126="","",VLOOKUP(B126,漢字書き!$A$2:$N$506,6,0)) -> ［モク］よう日 | C128: =IF(C126="","",VLOOKUP(C126,漢字書き!$A$2:$N$506,6,0)) -> やねの［シタ］ | D128: =IF(D126="","",VLOOKUP(D126,漢字書き!$A$2:$N$506,6,0)) -> たかい［ヤマ］ | E128: =IF(E126="","",VLOOKUP(E126,漢字書き!$A$2:$N$506,6,0)) -> ［タマ］のり | F128: =IF(F126="","",VLOOKUP(F126,漢字書き!$A$2:$N$506,6,0)) -> ［ニ］まいのかみ | G128: =IF(G126="","",VLOOKUP(G126,漢字書き!$A$2:$N$506,6,0)) -> きれいなビー［ダマ］ | H128: =IF(H126="","",VLOOKUP(H126,漢字書き!$A$2:$N$506,6,0)) -> ［セイ］かいをだす | I128: =IF(I126="","",VLOOKUP(I126,漢字書き!$A$2:$N$506,6,0)) -> あなに［ハイ］る | J128: =IF(J126="","",VLOOKUP(J126,漢字書き!$A$2:$N$506,6,0)) -> たい［リョク］がある | K128: =IF(K126="","",VLOOKUP(K126,漢字読み!$A$2:$O$506,6,0)) -> ［小学校］に入る | L128: =IF(L126="","",VLOOKUP(L126,漢字読み!$A$2:$O$506,6,0)) -> ふじ［山］ | M128: =IF(M126="","",VLOOKUP(M126,漢字読み!$A$2:$O$506,6,0)) -> ［立］ち上がる | N128: =IF(N126="","",VLOOKUP(N126,漢字読み!$A$2:$O$506,6,0)) -> たのしいふゆ［休］み | O128: =IF(O126="","",VLOOKUP(O126,漢字読み!$A$2:$O$506,6,0)) -> ［日］ようのあさ | P128: =IF(P126="","",VLOOKUP(P126,漢字読み!$A$2:$O$506,6,0)) -> ［月見］をする | Q128: =IF(Q126="","",VLOOKUP(Q126,漢字読み!$A$2:$O$506,6,0)) -> ［力］みをほぐす | R128: =IF(R126="","",VLOOKUP(R126,漢字読み!$A$2:$O$506,6,0)) -> 気おんが［上］がる | S128: =IF(S126="","",VLOOKUP(S126,漢字読み!$A$2:$O$506,6,0)) -> ［気］ぶんがよい | T128: =IF(T126="","",VLOOKUP(T126,漢字読み!$A$2:$O$506,6,0)) -> ［金］よう日 | V128: 級
V129: 名前
A130: =IF(A126="","",IF(VLOOKUP(A126,漢字書き!$A$2:$N$502,7,0)=0,"",VLOOKUP(A126,漢字書き!$A$2:$N$502,7,0))) -> たん | B130: =IF(B126="","",IF(VLOOKUP(B126,漢字書き!$A$2:$N$502,7,0)=0,"",VLOOKUP(B126,漢字書き!$A$2:$N$502,7,0))) -> よう | C130: =IF(C126="","",IF(VLOOKUP(C126,漢字書き!$A$2:$N$502,7,0)=0,"",VLOOKUP(C126,漢字書き!$A$2:$N$502,7,0))) ->  | D130: =IF(D126="","",IF(VLOOKUP(D126,漢字書き!$A$2:$N$502,7,0)=0,"",VLOOKUP(D126,漢字書き!$A$2:$N$502,7,0))) ->  | E130: =IF(E126="","",IF(VLOOKUP(E126,漢字書き!$A$2:$N$502,7,0)=0,"",VLOOKUP(E126,漢字書き!$A$2:$N$502,7,0))) -> のり | F130: =IF(F126="","",IF(VLOOKUP(F126,漢字書き!$A$2:$N$502,7,0)=0,"",VLOOKUP(F126,漢字書き!$A$2:$N$502,7,0))) -> まい | G130: =IF(G126="","",IF(VLOOKUP(G126,漢字書き!$A$2:$N$502,7,0)=0,"",VLOOKUP(G126,漢字書き!$A$2:$N$502,7,0))) ->  | H130: =IF(H126="","",IF(VLOOKUP(H126,漢字書き!$A$2:$N$502,7,0)=0,"",VLOOKUP(H126,漢字書き!$A$2:$N$502,7,0))) -> かい | I130: =IF(I126="","",IF(VLOOKUP(I126,漢字書き!$A$2:$N$502,7,0)=0,"",VLOOKUP(I126,漢字書き!$A$2:$N$502,7,0))) -> る | J130: =IF(J126="","",IF(VLOOKUP(J126,漢字書き!$A$2:$N$502,7,0)=0,"",VLOOKUP(J126,漢字書き!$A$2:$N$502,7,0))) ->  | K130: =IF(K126="","",IF(VLOOKUP(K126,漢字読み!$A$2:$O$502,7,0)=0,"",VLOOKUP(K126,漢字読み!$A$2:$O$502,7,0))) ->  | L130: =IF(L126="","",IF(VLOOKUP(L126,漢字読み!$A$2:$O$502,7,0)=0,"",VLOOKUP(L126,漢字読み!$A$2:$O$502,7,0))) ->  | M130: =IF(M126="","",IF(VLOOKUP(M126,漢字読み!$A$2:$O$502,7,0)=0,"",VLOOKUP(M126,漢字読み!$A$2:$O$502,7,0))) -> ち | N130: =IF(N126="","",IF(VLOOKUP(N126,漢字読み!$A$2:$O$502,7,0)=0,"",VLOOKUP(N126,漢字読み!$A$2:$O$502,7,0))) -> み | O130: =IF(O126="","",IF(VLOOKUP(O126,漢字読み!$A$2:$O$502,7,0)=0,"",VLOOKUP(O126,漢字読み!$A$2:$O$502,7,0))) -> よう | P130: =IF(P126="","",IF(VLOOKUP(P126,漢字読み!$A$2:$O$502,7,0)=0,"",VLOOKUP(P126,漢字読み!$A$2:$O$502,7,0))) ->  | Q130: =IF(Q126="","",IF(VLOOKUP(Q126,漢字読み!$A$2:$O$502,7,0)=0,"",VLOOKUP(Q126,漢字読み!$A$2:$O$502,7,0))) -> み | R130: =IF(R126="","",IF(VLOOKUP(R126,漢字読み!$A$2:$O$502,7,0)=0,"",VLOOKUP(R126,漢字読み!$A$2:$O$502,7,0))) -> がる | S130: =IF(S126="","",IF(VLOOKUP(S126,漢字読み!$A$2:$O$502,7,0)=0,"",VLOOKUP(S126,漢字読み!$A$2:$O$502,7,0))) -> ぶん | T130: =IF(T126="","",IF(VLOOKUP(T126,漢字読み!$A$2:$O$502,7,0)=0,"",VLOOKUP(T126,漢字読み!$A$2:$O$502,7,0))) -> よう | W130: 和歌山県教育委員会
A131: =A121 -> 94 | B131: =B121 -> 82 | C131: 126 | D131: 64 | E131: 145 | F131: 147 | G131: 27 | H131: 24 | I131: 23 | J131: 10 | K131: 69 | L131: 37 | M131: 162 | N131: 67 | O131: 161 | P131: 81 | Q131: 59 | R131: 138 | S131: 147 | T131: 1
A132: ⑳ | B132: ⑲ | C132: ⑱ | D132: ⑰ | E132: ⑯ | F132: ⑮ | G132: ⑭ | H132: ⑬ | I132: ⑫ | J132: ⑪ | K132: ⑩ | L132: ⑨ | M132: ⑧ | N132: ⑦ | O132: ⑥ | P132: ⑤ | Q132: ④ | R132: ③ | S132: ② | T132: ① | U132: 次の［ ］の部分の漢字には読みがなをひらがなで書き、カタカナは漢字に直しなさい。 | V132: 15 | W132: 「漢字の博士検定試験」練習問題
A133: =IF(A131="","",VLOOKUP(A131,漢字書き!$A$2:$N$506,6,0)) -> お［ショウガツ］ | B133: =IF(B131="","",VLOOKUP(B131,漢字書き!$A$2:$N$506,6,0)) -> ［ショウガッコウ］にいく | C133: =IF(C131="","",VLOOKUP(C131,漢字書き!$A$2:$N$506,6,0)) -> ［ダンジョ］なかよし | D133: =IF(D131="","",VLOOKUP(D131,漢字書き!$A$2:$N$506,6,0)) -> くもの［イト］ | E133: =IF(E131="","",VLOOKUP(E131,漢字書き!$A$2:$N$506,6,0)) -> ［ヒ］の出をおがむ | F133: =IF(F131="","",VLOOKUP(F131,漢字書き!$A$2:$N$506,6,0)) -> ［ホンジツ］のおすすめ | G133: =IF(G131="","",VLOOKUP(G131,漢字書き!$A$2:$N$506,6,0)) -> ［キ］をつける | H133: =IF(H131="","",VLOOKUP(H131,漢字書き!$A$2:$N$506,6,0)) -> ［カイ］をひろう | I133: =IF(I131="","",VLOOKUP(I131,漢字書き!$A$2:$N$506,6,0)) -> きれいな［カイ］がら | J133: =IF(J131="","",VLOOKUP(J131,漢字書き!$A$2:$N$506,6,0)) -> ［オウジョ］のへや | K133: =IF(K131="","",VLOOKUP(K131,漢字読み!$A$2:$O$506,6,0)) -> ［耳］をすます | L133: =IF(L131="","",VLOOKUP(L131,漢字読み!$A$2:$O$506,6,0)) -> ［玉］をころがす | M133: =IF(M131="","",VLOOKUP(M131,漢字読み!$A$2:$O$506,6,0)) -> 五月［八日］ | N133: =IF(N131="","",VLOOKUP(N131,漢字読み!$A$2:$O$506,6,0)) -> ［糸車］をまわす | O133: =IF(O131="","",VLOOKUP(O131,漢字読み!$A$2:$O$506,6,0)) -> あさの［八］じ | P133: =IF(P131="","",VLOOKUP(P131,漢字読み!$A$2:$O$506,6,0)) -> ［女子］のれつ | Q133: =IF(Q131="","",VLOOKUP(Q131,漢字読み!$A$2:$O$506,6,0)) -> ［三］びきのねこ | R133: =IF(R131="","",VLOOKUP(R131,漢字読み!$A$2:$O$506,6,0)) -> チョウのよう［虫］ | S133: =IF(S131="","",VLOOKUP(S131,漢字読み!$A$2:$O$506,6,0)) -> ［土］あそび | T133: =IF(T131="","",VLOOKUP(T131,漢字読み!$A$2:$O$506,6,0)) -> ［一］ばんになる | V133: 級
A134: =IF(A$11="","",VLOOKUP(A131,漢字書き!$A$2:$O$506,8,0)) -> 正月 | B134: =IF(B$11="","",VLOOKUP(B131,漢字書き!$A$2:$O$506,8,0)) -> 小学校 | C134: =IF(C$11="","",VLOOKUP(C131,漢字書き!$A$2:$O$506,8,0)) -> 男女 | D134: =IF(D$11="","",VLOOKUP(D131,漢字書き!$A$2:$O$506,8,0)) -> 糸 | E134: =IF(E$11="","",VLOOKUP(E131,漢字書き!$A$2:$O$506,8,0)) -> 日 | F134: =IF(F$11="","",VLOOKUP(F131,漢字書き!$A$2:$O$506,8,0)) -> 本日 | G134: =IF(G$11="","",VLOOKUP(G131,漢字書き!$A$2:$O$506,8,0)) -> 気 | H134: =IF(H$11="","",VLOOKUP(H131,漢字書き!$A$2:$O$506,8,0)) -> 貝 | I134: =IF(I$11="","",VLOOKUP(I131,漢字書き!$A$2:$O$506,8,0)) -> 貝 | J134: =IF(J$11="","",VLOOKUP(J131,漢字書き!$A$2:$O$506,8,0)) -> 王女 | K134: =IF(K$11="","",VLOOKUP(K131,漢字読み!$A$2:$O$506,8,0)) -> みみ | L134: =IF(L$11="","",VLOOKUP(L131,漢字読み!$A$2:$O$506,8,0)) -> たま | M134: =IF(M$11="","",VLOOKUP(M131,漢字読み!$A$2:$O$506,8,0)) -> ようか | N134: =IF(N$11="","",VLOOKUP(N131,漢字読み!$A$2:$O$506,8,0)) -> いとぐるま | O134: =IF(O$11="","",VLOOKUP(O131,漢字読み!$A$2:$O$506,8,0)) -> はち | P134: =IF(P$11="","",VLOOKUP(P131,漢字読み!$A$2:$O$506,8,0)) -> じょし | Q134: =IF(Q$11="","",VLOOKUP(Q131,漢字読み!$A$2:$O$506,8,0)) -> さん | R134: =IF(R$11="","",VLOOKUP(R131,漢字読み!$A$2:$O$506,8,0)) -> ちゅう | S134: =IF(S$11="","",VLOOKUP(S131,漢字読み!$A$2:$O$506,8,0)) -> つち | T134: =IF(T$11="","",VLOOKUP(T131,漢字読み!$A$2:$O$506,8,0)) -> いち | V134: 名前
A135: =IF(A131="","",IF(VLOOKUP(A131,漢字書き!$A$2:$N$502,7,0)=0,"",VLOOKUP(A131,漢字書き!$A$2:$N$502,7,0))) ->  | B135: =IF(B131="","",IF(VLOOKUP(B131,漢字書き!$A$2:$N$502,7,0)=0,"",VLOOKUP(B131,漢字書き!$A$2:$N$502,7,0))) ->  | C135: =IF(C131="","",IF(VLOOKUP(C131,漢字書き!$A$2:$N$502,7,0)=0,"",VLOOKUP(C131,漢字書き!$A$2:$N$502,7,0))) ->  | D135: =IF(D131="","",IF(VLOOKUP(D131,漢字書き!$A$2:$N$502,7,0)=0,"",VLOOKUP(D131,漢字書き!$A$2:$N$502,7,0))) ->  | E135: =IF(E131="","",IF(VLOOKUP(E131,漢字書き!$A$2:$N$502,7,0)=0,"",VLOOKUP(E131,漢字書き!$A$2:$N$502,7,0))) -> の出 | F135: =IF(F131="","",IF(VLOOKUP(F131,漢字書き!$A$2:$N$502,7,0)=0,"",VLOOKUP(F131,漢字書き!$A$2:$N$502,7,0))) ->  | G135: =IF(G131="","",IF(VLOOKUP(G131,漢字書き!$A$2:$N$502,7,0)=0,"",VLOOKUP(G131,漢字書き!$A$2:$N$502,7,0))) ->  | H135: =IF(H131="","",IF(VLOOKUP(H131,漢字書き!$A$2:$N$502,7,0)=0,"",VLOOKUP(H131,漢字書き!$A$2:$N$502,7,0))) ->  | I135: =IF(I131="","",IF(VLOOKUP(I131,漢字書き!$A$2:$N$502,7,0)=0,"",VLOOKUP(I131,漢字書き!$A$2:$N$502,7,0))) -> がら | J135: =IF(J131="","",IF(VLOOKUP(J131,漢字書き!$A$2:$N$502,7,0)=0,"",VLOOKUP(J131,漢字書き!$A$2:$N$502,7,0))) ->  | K135: =IF(K131="","",IF(VLOOKUP(K131,漢字読み!$A$2:$O$502,7,0)=0,"",VLOOKUP(K131,漢字読み!$A$2:$O$502,7,0))) ->  | L135: =IF(L131="","",IF(VLOOKUP(L131,漢字読み!$A$2:$O$502,7,0)=0,"",VLOOKUP(L131,漢字読み!$A$2:$O$502,7,0))) ->  | M135: =IF(M131="","",IF(VLOOKUP(M131,漢字読み!$A$2:$O$502,7,0)=0,"",VLOOKUP(M131,漢字読み!$A$2:$O$502,7,0))) ->  | N135: =IF(N131="","",IF(VLOOKUP(N131,漢字読み!$A$2:$O$502,7,0)=0,"",VLOOKUP(N131,漢字読み!$A$2:$O$502,7,0))) ->  | O135: =IF(O131="","",IF(VLOOKUP(O131,漢字読み!$A$2:$O$502,7,0)=0,"",VLOOKUP(O131,漢字読み!$A$2:$O$502,7,0))) -> つ | P135: =IF(P131="","",IF(VLOOKUP(P131,漢字読み!$A$2:$O$502,7,0)=0,"",VLOOKUP(P131,漢字読み!$A$2:$O$502,7,0))) ->  | Q135: =IF(Q131="","",IF(VLOOKUP(Q131,漢字読み!$A$2:$O$502,7,0)=0,"",VLOOKUP(Q131,漢字読み!$A$2:$O$502,7,0))) -> が日 | R135: =IF(R131="","",IF(VLOOKUP(R131,漢字読み!$A$2:$O$502,7,0)=0,"",VLOOKUP(R131,漢字読み!$A$2:$O$502,7,0))) ->  | S135: =IF(S131="","",IF(VLOOKUP(S131,漢字読み!$A$2:$O$502,7,0)=0,"",VLOOKUP(S131,漢字読み!$A$2:$O$502,7,0))) -> あそび | T135: =IF(T131="","",IF(VLOOKUP(T131,漢字読み!$A$2:$O$502,7,0)=0,"",VLOOKUP(T131,漢字読み!$A$2:$O$502,7,0))) -> ばん | W135: 和歌山県教育委員会
A136: =A126 -> 103 | B136: =B126 -> 159 | C136: 15 | D136: 58 | E136: 33 | F136: 143 | G136: 34 | H136: 95 | I136: 149 | J136: 170 | K136: 83 | L136: 61 | M136: 179 | N136: 34 | O136: 150 | P136: 45 | Q136: 181 | R136: 88 | S136: 30 | T136: 40
A137: ⑳ | B137: ⑲ | C137: ⑱ | D137: ⑰ | E137: ⑯ | F137: ⑮ | G137: ⑭ | H137: ⑬ | I137: ⑫ | J137: ⑪ | K137: ⑩ | L137: ⑨ | M137: ⑧ | N137: ⑦ | O137: ⑥ | P137: ⑤ | Q137: ④ | R137: ③ | S137: ② | T137: ① | U137: 次の［ ］の部分の漢字には読みがなをひらがなで書き、カタカナは漢字に直しなさい。 | V137: 15 | W137: 「漢字の博士検定試験」練習問題
A138: =IF(A136="","",VLOOKUP(A136,漢字書き!$A$2:$N$506,6,0)) -> ［セキ］たんをはこぶ | B138: =IF(B136="","",VLOOKUP(B136,漢字書き!$A$2:$N$506,6,0)) -> ［モク］よう日 | C138: =IF(C136="","",VLOOKUP(C136,漢字書き!$A$2:$N$506,6,0)) -> やねの［シタ］ | D138: =IF(D136="","",VLOOKUP(D136,漢字書き!$A$2:$N$506,6,0)) -> たかい［ヤマ］ | E138: =IF(E136="","",VLOOKUP(E136,漢字書き!$A$2:$N$506,6,0)) -> ［タマ］のり | F138: =IF(F136="","",VLOOKUP(F136,漢字書き!$A$2:$N$506,6,0)) -> ［ニ］まいのかみ | G138: =IF(G136="","",VLOOKUP(G136,漢字書き!$A$2:$N$506,6,0)) -> きれいなビー［ダマ］ | H138: =IF(H136="","",VLOOKUP(H136,漢字書き!$A$2:$N$506,6,0)) -> ［セイ］かいをだす | I138: =IF(I136="","",VLOOKUP(I136,漢字書き!$A$2:$N$506,6,0)) -> あなに［ハイ］る | J138: =IF(J136="","",VLOOKUP(J136,漢字書き!$A$2:$N$506,6,0)) -> たい［リョク］がある | K138: =IF(K136="","",VLOOKUP(K136,漢字読み!$A$2:$O$506,6,0)) -> ［小学校］に入る | L138: =IF(L136="","",VLOOKUP(L136,漢字読み!$A$2:$O$506,6,0)) -> ふじ［山］ | M138: =IF(M136="","",VLOOKUP(M136,漢字読み!$A$2:$O$506,6,0)) -> ［立］ち上がる | N138: =IF(N136="","",VLOOKUP(N136,漢字読み!$A$2:$O$506,6,0)) -> たのしいふゆ［休］み | O138: =IF(O136="","",VLOOKUP(O136,漢字読み!$A$2:$O$506,6,0)) -> ［日］ようのあさ | P138: =IF(P136="","",VLOOKUP(P136,漢字読み!$A$2:$O$506,6,0)) -> ［月見］をする | Q138: =IF(Q136="","",VLOOKUP(Q136,漢字読み!$A$2:$O$506,6,0)) -> ［力］みをほぐす | R138: =IF(R136="","",VLOOKUP(R136,漢字読み!$A$2:$O$506,6,0)) -> 気おんが［上］がる | S138: =IF(S136="","",VLOOKUP(S136,漢字読み!$A$2:$O$506,6,0)) -> ［気］ぶんがよい | T138: =IF(T136="","",VLOOKUP(T136,漢字読み!$A$2:$O$506,6,0)) -> ［金］よう日 | V138: 級
A139: =IF(A$16="","",VLOOKUP(A136,漢字書き!$A$2:$O$506,8,0)) -> 石 | B139: =IF(B$16="","",VLOOKUP(B136,漢字書き!$A$2:$O$506,8,0)) -> 木 | C139: =IF(C$16="","",VLOOKUP(C136,漢字書き!$A$2:$O$506,8,0)) -> 下 | D139: =IF(D$16="","",VLOOKUP(D136,漢字書き!$A$2:$O$506,8,0)) -> 山 | E139: =IF(E$16="","",VLOOKUP(E136,漢字書き!$A$2:$O$506,8,0)) -> 玉 | F139: =IF(F$16="","",VLOOKUP(F136,漢字書き!$A$2:$O$506,8,0)) -> 二 | G139: =IF(G$16="","",VLOOKUP(G136,漢字書き!$A$2:$O$506,8,0)) -> 玉 | H139: =IF(H$16="","",VLOOKUP(H136,漢字書き!$A$2:$O$506,8,0)) -> 正 | I139: =IF(I$16="","",VLOOKUP(I136,漢字書き!$A$2:$O$506,8,0)) -> 入 | J139: =IF(J$16="","",VLOOKUP(J136,漢字書き!$A$2:$O$506,8,0)) -> 力 | K139: =IF(K$16="","",VLOOKUP(K136,漢字読み!$A$2:$O$506,8,0)) -> しょうがっこう | L139: =IF(L$16="","",VLOOKUP(L136,漢字読み!$A$2:$O$506,8,0)) -> さん | M139: =IF(M$16="","",VLOOKUP(M136,漢字読み!$A$2:$O$506,8,0)) -> た | N139: =IF(N$16="","",VLOOKUP(N136,漢字読み!$A$2:$O$506,8,0)) -> やす | O139: =IF(O$16="","",VLOOKUP(O136,漢字読み!$A$2:$O$506,8,0)) -> にち | P139: =IF(P$16="","",VLOOKUP(P136,漢字読み!$A$2:$O$506,8,0)) -> つきみ | Q139: =IF(Q$16="","",VLOOKUP(Q136,漢字読み!$A$2:$O$506,8,0)) -> りき | R139: =IF(R$16="","",VLOOKUP(R136,漢字読み!$A$2:$O$506,8,0)) -> あ | S139: =IF(S$16="","",VLOOKUP(S136,漢字読み!$A$2:$O$506,8,0)) -> き | T139: =IF(T$16="","",VLOOKUP(T136,漢字読み!$A$2:$O$506,8,0)) -> きん | V139: 名前
A140: =IF(A136="","",IF(VLOOKUP(A136,漢字書き!$A$2:$N$502,7,0)=0,"",VLOOKUP(A136,漢字書き!$A$2:$N$502,7,0))) -> たん | B140: =IF(B136="","",IF(VLOOKUP(B136,漢字書き!$A$2:$N$502,7,0)=0,"",VLOOKUP(B136,漢字書き!$A$2:$N$502,7,0))) -> よう | C140: =IF(C136="","",IF(VLOOKUP(C136,漢字書き!$A$2:$N$502,7,0)=0,"",VLOOKUP(C136,漢字書き!$A$2:$N$502,7,0))) ->  | D140: =IF(D136="","",IF(VLOOKUP(D136,漢字書き!$A$2:$N$502,7,0)=0,"",VLOOKUP(D136,漢字書き!$A$2:$N$502,7,0))) ->  | E140: =IF(E136="","",IF(VLOOKUP(E136,漢字書き!$A$2:$N$502,7,0)=0,"",VLOOKUP(E136,漢字書き!$A$2:$N$502,7,0))) -> のり | F140: =IF(F136="","",IF(VLOOKUP(F136,漢字書き!$A$2:$N$502,7,0)=0,"",VLOOKUP(F136,漢字書き!$A$2:$N$502,7,0))) -> まい | G140: =IF(G136="","",IF(VLOOKUP(G136,漢字書き!$A$2:$N$502,7,0)=0,"",VLOOKUP(G136,漢字書き!$A$2:$N$502,7,0))) ->  | H140: =IF(H136="","",IF(VLOOKUP(H136,漢字書き!$A$2:$N$502,7,0)=0,"",VLOOKUP(H136,漢字書き!$A$2:$N$502,7,0))) -> かい | I140: =IF(I136="","",IF(VLOOKUP(I136,漢字書き!$A$2:$N$502,7,0)=0,"",VLOOKUP(I136,漢字書き!$A$2:$N$502,7,0))) -> る | J140: =IF(J136="","",IF(VLOOKUP(J136,漢字書き!$A$2:$N$502,7,0)=0,"",VLOOKUP(J136,漢字書き!$A$2:$N$502,7,0))) ->  | K140: =IF(K136="","",IF(VLOOKUP(K136,漢字読み!$A$2:$O$502,7,0)=0,"",VLOOKUP(K136,漢字読み!$A$2:$O$502,7,0))) ->  | L140: =IF(L136="","",IF(VLOOKUP(L136,漢字読み!$A$2:$O$502,7,0)=0,"",VLOOKUP(L136,漢字読み!$A$2:$O$502,7,0))) ->  | M140: =IF(M136="","",IF(VLOOKUP(M136,漢字読み!$A$2:$O$502,7,0)=0,"",VLOOKUP(M136,漢字読み!$A$2:$O$502,7,0))) -> ち | N140: =IF(N136="","",IF(VLOOKUP(N136,漢字読み!$A$2:$O$502,7,0)=0,"",VLOOKUP(N136,漢字読み!$A$2:$O$502,7,0))) -> み | O140: =IF(O136="","",IF(VLOOKUP(O136,漢字読み!$A$2:$O$502,7,0)=0,"",VLOOKUP(O136,漢字読み!$A$2:$O$502,7,0))) -> よう | P140: =IF(P136="","",IF(VLOOKUP(P136,漢字読み!$A$2:$O$502,7,0)=0,"",VLOOKUP(P136,漢字読み!$A$2:$O$502,7,0))) ->  | Q140: =IF(Q136="","",IF(VLOOKUP(Q136,漢字読み!$A$2:$O$502,7,0)=0,"",VLOOKUP(Q136,漢字読み!$A$2:$O$502,7,0))) -> み | R140: =IF(R136="","",IF(VLOOKUP(R136,漢字読み!$A$2:$O$502,7,0)=0,"",VLOOKUP(R136,漢字読み!$A$2:$O$502,7,0))) -> がる | S140: =IF(S136="","",IF(VLOOKUP(S136,漢字読み!$A$2:$O$502,7,0)=0,"",VLOOKUP(S136,漢字読み!$A$2:$O$502,7,0))) -> ぶん | T140: =IF(T136="","",IF(VLOOKUP(T136,漢字読み!$A$2:$O$502,7,0)=0,"",VLOOKUP(T136,漢字読み!$A$2:$O$502,7,0))) -> よう | W140: 和歌山県教育委員会
A141: =INDIRECT("'関数（書き）'!C" & COLUMN(B$1)+SUM($AD$2:$AD142)) -> 77 | B141: =INDIRECT("'関数（書き）'!C" & COLUMN(C$1)+SUM($AD$2:$AD142)) -> 71 | C141: =INDIRECT("'関数（書き）'!C" & COLUMN(D$1)+SUM($AD$2:$AD142)) -> 28 | D141: =INDIRECT("'関数（書き）'!C" & COLUMN(E$1)+SUM($AD$2:$AD142)) -> 166 | E141: =INDIRECT("'関数（書き）'!C" & COLUMN(F$1)+SUM($AD$2:$AD142)) -> 144 | F141: =INDIRECT("'関数（書き）'!C" & COLUMN(G$1)+SUM($AD$2:$AD142)) -> 98 | G141: =INDIRECT("'関数（書き）'!C" & COLUMN(H$1)+SUM($AD$2:$AD142)) -> 91 | H141: =INDIRECT("'関数（書き）'!C" & COLUMN(I$1)+SUM($AD$2:$AD142)) -> 76 | I141: =INDIRECT("'関数（書き）'!C" & COLUMN(J$1)+SUM($AD$2:$AD142)) -> 97 | J141: =INDIRECT("'関数（書き）'!C" & COLUMN(K$1)+SUM($AD$2:$AD142)) -> 55 | K141: =INDIRECT("'関数（読み）'!C" & COLUMN(B$1)+SUM($AD$2:$AD142)) -> 55 | L141: =INDIRECT("'関数（読み）'!C" & COLUMN(C$1)+SUM($AD$2:$AD142)) -> 35 | M141: =INDIRECT("'関数（読み）'!C" & COLUMN(D$1)+SUM($AD$2:$AD142)) -> 94 | N141: =INDIRECT("'関数（読み）'!C" & COLUMN(E$1)+SUM($AD$2:$AD142)) -> 116 | O141: =INDIRECT("'関数（読み）'!C" & COLUMN(F$1)+SUM($AD$2:$AD142)) -> 115 | P141: =INDIRECT("'関数（読み）'!C" & COLUMN(G$1)+SUM($AD$2:$AD142)) -> 19 | Q141: =INDIRECT("'関数（読み）'!C" & COLUMN(H$1)+SUM($AD$2:$AD142)) -> 151 | R141: =INDIRECT("'関数（読み）'!C" & COLUMN(I$1)+SUM($AD$2:$AD142)) -> 137 | S141: =INDIRECT("'関数（読み）'!C" & COLUMN(J$1)+SUM($AD$2:$AD142)) -> 71 | T141: =INDIRECT("'関数（読み）'!C" & COLUMN(K$1)+SUM($AD$2:$AD142)) -> 53
A142: ⑳ | B142: ⑲ | C142: ⑱ | D142: ⑰ | E142: ⑯ | F142: ⑮ | G142: ⑭ | H142: ⑬ | I142: ⑫ | J142: ⑪ | K142: ⑩ | L142: ⑨ | M142: ⑧ | N142: ⑦ | O142: ⑥ | P142: ⑤ | Q142: ④ | R142: ③ | S142: ② | T142: ① | U142: 次の［ ］の部分の漢字には読みがなをひらがなで書き、カタカナは漢字に直しなさい。 | V142: 15 | W142: 「漢字の博士検定試験」練習問題 | AC142: ← | AD142: 10 | AE142: 問 | AF142: =AH127+1 -> 141 | AG142: ～ | AH142: =SUM($AD$2:$AD142)+10 -> 150 | AI142: 問まで | AJ142: =COUNTIF($A$1:$T$200,T143) -> 2
A143: =IF(A141="","",VLOOKUP(A141,漢字書き!$A$2:$N$506,6,0)) -> ［トオ］かぞえる | B143: =IF(B141="","",VLOOKUP(B141,漢字書き!$A$2:$N$506,6,0)) -> ［シャ］どうのそば | C143: =IF(C141="","",VLOOKUP(C141,漢字書き!$A$2:$N$506,6,0)) -> 人の［ケ］はい | D143: =IF(D141="","",VLOOKUP(D141,漢字書き!$A$2:$N$506,6,0)) -> ［モク］じをさがす | E143: =IF(E141="","",VLOOKUP(E141,漢字書き!$A$2:$N$506,6,0)) -> ［フタ］つならべる | F143: =IF(F141="","",VLOOKUP(F141,漢字書き!$A$2:$N$506,6,0)) -> ［セイ］かつのじかん | G143: =IF(G141="","",VLOOKUP(G141,漢字書き!$A$2:$N$506,6,0)) -> ［ヒト］がおおい | H143: =IF(H141="","",VLOOKUP(H141,漢字書き!$A$2:$N$506,6,0)) -> ［ジッ］ぷんたつ | I143: =IF(I141="","",VLOOKUP(I141,漢字書き!$A$2:$N$506,6,0)) -> やさしい［センセイ］ | J143: =IF(J141="","",VLOOKUP(J141,漢字書き!$A$2:$N$506,6,0)) -> ［サン］びきのこぶた | K143: =IF(K141="","",VLOOKUP(K141,漢字読み!$A$2:$O$506,6,0)) -> ［校］かをうたう | L143: =IF(L141="","",VLOOKUP(L141,漢字読み!$A$2:$O$506,6,0)) -> からだを［休］める | M143: =IF(M141="","",VLOOKUP(M141,漢字読み!$A$2:$O$506,6,0)) -> ［水］よう日 | N143: =IF(N141="","",VLOOKUP(N141,漢字読み!$A$2:$O$506,6,0)) -> ［川］がながれる | O143: =IF(O141="","",VLOOKUP(O141,漢字読み!$A$2:$O$506,6,0)) -> [川]あそびをする | P143: =IF(P141="","",VLOOKUP(P141,漢字読み!$A$2:$O$506,6,0)) -> たき［火］をする | Q143: =IF(Q141="","",VLOOKUP(Q141,漢字読み!$A$2:$O$506,6,0)) -> ［夕日］がしずむ | R143: =IF(R141="","",VLOOKUP(R141,漢字読み!$A$2:$O$506,6,0)) -> ［中］をみる | S143: =IF(S141="","",VLOOKUP(S141,漢字読み!$A$2:$O$506,6,0)) -> ［七］いろのにじ | T143: =IF(T141="","",VLOOKUP(T141,漢字読み!$A$2:$O$506,6,0)) -> ［出口］がない | V143: 級
V144: 名前
A145: =IF(A141="","",IF(VLOOKUP(A141,漢字書き!$A$2:$N$502,7,0)=0,"",VLOOKUP(A141,漢字書き!$A$2:$N$502,7,0))) ->  | B145: =IF(B141="","",IF(VLOOKUP(B141,漢字書き!$A$2:$N$502,7,0)=0,"",VLOOKUP(B141,漢字書き!$A$2:$N$502,7,0))) -> どう | C145: =IF(C141="","",IF(VLOOKUP(C141,漢字書き!$A$2:$N$502,7,0)=0,"",VLOOKUP(C141,漢字書き!$A$2:$N$502,7,0))) -> はい | D145: =IF(D141="","",IF(VLOOKUP(D141,漢字書き!$A$2:$N$502,7,0)=0,"",VLOOKUP(D141,漢字書き!$A$2:$N$502,7,0))) -> じ | E145: =IF(E141="","",IF(VLOOKUP(E141,漢字書き!$A$2:$N$502,7,0)=0,"",VLOOKUP(E141,漢字書き!$A$2:$N$502,7,0))) -> つ | F145: =IF(F141="","",IF(VLOOKUP(F141,漢字書き!$A$2:$N$502,7,0)=0,"",VLOOKUP(F141,漢字書き!$A$2:$N$502,7,0))) -> かつ | G145: =IF(G141="","",IF(VLOOKUP(G141,漢字書き!$A$2:$N$502,7,0)=0,"",VLOOKUP(G141,漢字書き!$A$2:$N$502,7,0))) ->  | H145: =IF(H141="","",IF(VLOOKUP(H141,漢字書き!$A$2:$N$502,7,0)=0,"",VLOOKUP(H141,漢字書き!$A$2:$N$502,7,0))) -> ぷん | I145: =IF(I141="","",IF(VLOOKUP(I141,漢字書き!$A$2:$N$502,7,0)=0,"",VLOOKUP(I141,漢字書き!$A$2:$N$502,7,0))) ->  | J145: =IF(J141="","",IF(VLOOKUP(J141,漢字書き!$A$2:$N$502,7,0)=0,"",VLOOKUP(J141,漢字書き!$A$2:$N$502,7,0))) -> びき | K145: =IF(K141="","",IF(VLOOKUP(K141,漢字読み!$A$2:$O$502,7,0)=0,"",VLOOKUP(K141,漢字読み!$A$2:$O$502,7,0))) -> か | L145: =IF(L141="","",IF(VLOOKUP(L141,漢字読み!$A$2:$O$502,7,0)=0,"",VLOOKUP(L141,漢字読み!$A$2:$O$502,7,0))) -> める | M145: =IF(M141="","",IF(VLOOKUP(M141,漢字読み!$A$2:$O$502,7,0)=0,"",VLOOKUP(M141,漢字読み!$A$2:$O$502,7,0))) -> よう | N145: =IF(N141="","",IF(VLOOKUP(N141,漢字読み!$A$2:$O$502,7,0)=0,"",VLOOKUP(N141,漢字読み!$A$2:$O$502,7,0))) ->  | O145: =IF(O141="","",IF(VLOOKUP(O141,漢字読み!$A$2:$O$502,7,0)=0,"",VLOOKUP(O141,漢字読み!$A$2:$O$502,7,0))) -> あそび | P145: =IF(P141="","",IF(VLOOKUP(P141,漢字読み!$A$2:$O$502,7,0)=0,"",VLOOKUP(P141,漢字読み!$A$2:$O$502,7,0))) ->  | Q145: =IF(Q141="","",IF(VLOOKUP(Q141,漢字読み!$A$2:$O$502,7,0)=0,"",VLOOKUP(Q141,漢字読み!$A$2:$O$502,7,0))) ->  | R145: =IF(R141="","",IF(VLOOKUP(R141,漢字読み!$A$2:$O$502,7,0)=0,"",VLOOKUP(R141,漢字読み!$A$2:$O$502,7,0))) ->  | S145: =IF(S141="","",IF(VLOOKUP(S141,漢字読み!$A$2:$O$502,7,0)=0,"",VLOOKUP(S141,漢字読み!$A$2:$O$502,7,0))) -> いろ | T145: =IF(T141="","",IF(VLOOKUP(T141,漢字読み!$A$2:$O$502,7,0)=0,"",VLOOKUP(T141,漢字読み!$A$2:$O$502,7,0))) ->  | W145: 和歌山県教育委員会
A146: =INDIRECT("'関数（書き）'!C" & COLUMN(B$1)+SUM($AD$2:$AD147)) -> 130 | B146: =INDIRECT("'関数（書き）'!C" & COLUMN(C$1)+SUM($AD$2:$AD147)) -> 79 | C146: =INDIRECT("'関数（書き）'!C" & COLUMN(D$1)+SUM($AD$2:$AD147)) -> 163 | D146: =INDIRECT("'関数（書き）'!C" & COLUMN(E$1)+SUM($AD$2:$AD147)) -> 81 | E146: =INDIRECT("'関数（書き）'!C" & COLUMN(F$1)+SUM($AD$2:$AD147)) -> 74 | F146: =INDIRECT("'関数（書き）'!C" & COLUMN(G$1)+SUM($AD$2:$AD147)) -> 111 | G146: =INDIRECT("'関数（書き）'!C" & COLUMN(H$1)+SUM($AD$2:$AD147)) -> 67 | H146: =INDIRECT("'関数（書き）'!C" & COLUMN(I$1)+SUM($AD$2:$AD147)) -> 26 | I146: =INDIRECT("'関数（書き）'!C" & COLUMN(J$1)+SUM($AD$2:$AD147)) -> 119 | J146: =INDIRECT("'関数（書き）'!C" & COLUMN(K$1)+SUM($AD$2:$AD147)) -> 137 | K146: =INDIRECT("'関数（読み）'!C" & COLUMN(B$1)+SUM($AD$2:$AD147)) -> 46 | L146: =INDIRECT("'関数（読み）'!C" & COLUMN(C$1)+SUM($AD$2:$AD147)) -> 149 | M146: =INDIRECT("'関数（読み）'!C" & COLUMN(D$1)+SUM($AD$2:$AD147)) -> 22 | N146: =INDIRECT("'関数（読み）'!C" & COLUMN(E$1)+SUM($AD$2:$AD147)) -> 170 | O146: =INDIRECT("'関数（読み）'!C" & COLUMN(F$1)+SUM($AD$2:$AD147)) -> 92 | P146: =INDIRECT("'関数（読み）'!C" & COLUMN(G$1)+SUM($AD$2:$AD147)) -> 103 | Q146: =INDIRECT("'関数（読み）'!C" & COLUMN(H$1)+SUM($AD$2:$AD147)) -> 44 | R146: =INDIRECT("'関数（読み）'!C" & COLUMN(I$1)+SUM($AD$2:$AD147)) -> 84 | S146: =INDIRECT("'関数（読み）'!C" & COLUMN(J$1)+SUM($AD$2:$AD147)) -> 42 | T146: =INDIRECT("'関数（読み）'!C" & COLUMN(K$1)+SUM($AD$2:$AD147)) -> 33
A147: ⑳ | B147: ⑲ | C147: ⑱ | D147: ⑰ | E147: ⑯ | F147: ⑮ | G147: ⑭ | H147: ⑬ | I147: ⑫ | J147: ⑪ | K147: ⑩ | L147: ⑨ | M147: ⑧ | N147: ⑦ | O147: ⑥ | P147: ⑤ | Q147: ④ | R147: ③ | S147: ② | T147: ① | U147: 次の［ ］の部分の漢字には読みがなをひらがなで書き、カタカナは漢字に直しなさい。 | V147: 15 | W147: 「漢字の博士検定試験」練習問題 | AC147: ← | AD147: 10 | AE147: 問 | AF147: =AH142+1 -> 151 | AG147: ～ | AH147: =SUM($AD$2:$AD147)+10 -> 160 | AI147: 問まで | AJ147: =COUNTIF($A$1:$T$200,T148) -> 2
A148: =IF(A146="","",VLOOKUP(A146,漢字書き!$A$2:$N$506,6,0)) -> ［ダイチュウショウ］ | B148: =IF(B146="","",VLOOKUP(B146,漢字書き!$A$2:$N$506,6,0)) -> めいろから［デ］る | C148: =IF(C146="","",VLOOKUP(C146,漢字書き!$A$2:$N$506,6,0)) -> ［メイ］ぶつをさがす | D148: =IF(D146="","",VLOOKUP(D146,漢字書き!$A$2:$N$506,6,0)) -> ゆき［オンナ］ | E148: =IF(E146="","",VLOOKUP(E146,漢字書き!$A$2:$N$506,6,0)) -> ［テ］をあらう | F148: =IF(F146="","",VLOOKUP(F146,漢字書き!$A$2:$N$506,6,0)) -> ［オガワ］がながれる | G148: =IF(G146="","",VLOOKUP(G146,漢字書き!$A$2:$N$506,6,0)) -> ［ミミ］をすます | H148: =IF(H146="","",VLOOKUP(H146,漢字書き!$A$2:$N$506,6,0)) -> しっかり［マナ］ぶ | I148: =IF(I146="","",VLOOKUP(I146,漢字書き!$A$2:$N$506,6,0)) -> えん［ソク］にいく | J148: =IF(J146="","",VLOOKUP(J146,漢字書き!$A$2:$N$506,6,0)) -> ［テンキ］よほう | K148: =IF(K146="","",VLOOKUP(K146,漢字読み!$A$2:$O$506,6,0)) -> もうどう［犬］ | L148: =IF(L146="","",VLOOKUP(L146,漢字読み!$A$2:$O$506,6,0)) -> ［二］つにわける | M148: =IF(M146="","",VLOOKUP(M146,漢字読み!$A$2:$O$506,6,0)) -> ［花］がさく | N148: =IF(N146="","",VLOOKUP(N146,漢字読み!$A$2:$O$506,6,0)) -> ［五本］のゆび | O148: =IF(O146="","",VLOOKUP(O146,漢字読み!$A$2:$O$506,6,0)) -> ［人気］もの | P148: =IF(P146="","",VLOOKUP(P146,漢字読み!$A$2:$O$506,6,0)) -> メダカの[一生] | Q148: =IF(Q146="","",VLOOKUP(Q146,漢字読み!$A$2:$O$506,6,0)) -> ［月］ようになる | R148: =IF(R146="","",VLOOKUP(R146,漢字読み!$A$2:$O$506,6,0)) -> ［小］さくなる | S148: =IF(S146="","",VLOOKUP(S146,漢字読み!$A$2:$O$506,6,0)) -> きれいな［青空］ | T148: =IF(T146="","",VLOOKUP(T146,漢字読み!$A$2:$O$506,6,0)) -> ［休］けいをする | V148: 級
V149: 名前
A150: =IF(A146="","",IF(VLOOKUP(A146,漢字書き!$A$2:$N$502,7,0)=0,"",VLOOKUP(A146,漢字書き!$A$2:$N$502,7,0))) ->  | B150: =IF(B146="","",IF(VLOOKUP(B146,漢字書き!$A$2:$N$502,7,0)=0,"",VLOOKUP(B146,漢字書き!$A$2:$N$502,7,0))) -> る | C150: =IF(C146="","",IF(VLOOKUP(C146,漢字書き!$A$2:$N$502,7,0)=0,"",VLOOKUP(C146,漢字書き!$A$2:$N$502,7,0))) -> ぶつ | D150: =IF(D146="","",IF(VLOOKUP(D146,漢字書き!$A$2:$N$502,7,0)=0,"",VLOOKUP(D146,漢字書き!$A$2:$N$502,7,0))) ->  | E150: =IF(E146="","",IF(VLOOKUP(E146,漢字書き!$A$2:$N$502,7,0)=0,"",VLOOKUP(E146,漢字書き!$A$2:$N$502,7,0))) ->  | F150: =IF(F146="","",IF(VLOOKUP(F146,漢字書き!$A$2:$N$502,7,0)=0,"",VLOOKUP(F146,漢字書き!$A$2:$N$502,7,0))) ->  | G150: =IF(G146="","",IF(VLOOKUP(G146,漢字書き!$A$2:$N$502,7,0)=0,"",VLOOKUP(G146,漢字書き!$A$2:$N$502,7,0))) ->  | H150: =IF(H146="","",IF(VLOOKUP(H146,漢字書き!$A$2:$N$502,7,0)=0,"",VLOOKUP(H146,漢字書き!$A$2:$N$502,7,0))) -> ぶ | I150: =IF(I146="","",IF(VLOOKUP(I146,漢字書き!$A$2:$N$502,7,0)=0,"",VLOOKUP(I146,漢字書き!$A$2:$N$502,7,0))) ->  | J150: =IF(J146="","",IF(VLOOKUP(J146,漢字書き!$A$2:$N$502,7,0)=0,"",VLOOKUP(J146,漢字書き!$A$2:$N$502,7,0))) -> よほう | K150: =IF(K146="","",IF(VLOOKUP(K146,漢字読み!$A$2:$O$502,7,0)=0,"",VLOOKUP(K146,漢字読み!$A$2:$O$502,7,0))) ->  | L150: =IF(L146="","",IF(VLOOKUP(L146,漢字読み!$A$2:$O$502,7,0)=0,"",VLOOKUP(L146,漢字読み!$A$2:$O$502,7,0))) -> つ | M150: =IF(M146="","",IF(VLOOKUP(M146,漢字読み!$A$2:$O$502,7,0)=0,"",VLOOKUP(M146,漢字読み!$A$2:$O$502,7,0))) ->  | N150: =IF(N146="","",IF(VLOOKUP(N146,漢字読み!$A$2:$O$502,7,0)=0,"",VLOOKUP(N146,漢字読み!$A$2:$O$502,7,0))) ->  | O150: =IF(O146="","",IF(VLOOKUP(O146,漢字読み!$A$2:$O$502,7,0)=0,"",VLOOKUP(O146,漢字読み!$A$2:$O$502,7,0))) -> もの | P150: =IF(P146="","",IF(VLOOKUP(P146,漢字読み!$A$2:$O$502,7,0)=0,"",VLOOKUP(P146,漢字読み!$A$2:$O$502,7,0))) ->  | Q150: =IF(Q146="","",IF(VLOOKUP(Q146,漢字読み!$A$2:$O$502,7,0)=0,"",VLOOKUP(Q146,漢字読み!$A$2:$O$502,7,0))) -> よう | R150: =IF(R146="","",IF(VLOOKUP(R146,漢字読み!$A$2:$O$502,7,0)=0,"",VLOOKUP(R146,漢字読み!$A$2:$O$502,7,0))) -> さく | S150: =IF(S146="","",IF(VLOOKUP(S146,漢字読み!$A$2:$O$502,7,0)=0,"",VLOOKUP(S146,漢字読み!$A$2:$O$502,7,0))) ->  | T150: =IF(T146="","",IF(VLOOKUP(T146,漢字読み!$A$2:$O$502,7,0)=0,"",VLOOKUP(T146,漢字読み!$A$2:$O$502,7,0))) -> けい | W150: 和歌山県教育委員会
A151: =A141 -> 77 | B151: =B141 -> 71 | C151: 28 | D151: 166 | E151: 144 | F151: 98 | G151: 91 | H151: 76 | I151: 97 | J151: 55 | K151: 55 | L151: 35 | M151: 94 | N151: 116 | O151: 115 | P151: 19 | Q151: 151 | R151: 137 | S151: 71 | T151: 53
A152: ⑳ | B152: ⑲ | C152: ⑱ | D152: ⑰ | E152: ⑯ | F152: ⑮ | G152: ⑭ | H152: ⑬ | I152: ⑫ | J152: ⑪ | K152: ⑩ | L152: ⑨ | M152: ⑧ | N152: ⑦ | O152: ⑥ | P152: ⑤ | Q152: ④ | R152: ③ | S152: ② | T152: ① | U152: 次の［ ］の部分の漢字には読みがなをひらがなで書き、カタカナは漢字に直しなさい。 | V152: 15 | W152: 「漢字の博士検定試験」練習問題
A153: =IF(A151="","",VLOOKUP(A151,漢字書き!$A$2:$N$506,6,0)) -> ［トオ］かぞえる | B153: =IF(B151="","",VLOOKUP(B151,漢字書き!$A$2:$N$506,6,0)) -> ［シャ］どうのそば | C153: =IF(C151="","",VLOOKUP(C151,漢字書き!$A$2:$N$506,6,0)) -> 人の［ケ］はい | D153: =IF(D151="","",VLOOKUP(D151,漢字書き!$A$2:$N$506,6,0)) -> ［モク］じをさがす | E153: =IF(E151="","",VLOOKUP(E151,漢字書き!$A$2:$N$506,6,0)) -> ［フタ］つならべる | F153: =IF(F151="","",VLOOKUP(F151,漢字書き!$A$2:$N$506,6,0)) -> ［セイ］かつのじかん | G153: =IF(G151="","",VLOOKUP(G151,漢字書き!$A$2:$N$506,6,0)) -> ［ヒト］がおおい | H153: =IF(H151="","",VLOOKUP(H151,漢字書き!$A$2:$N$506,6,0)) -> ［ジッ］ぷんたつ | I153: =IF(I151="","",VLOOKUP(I151,漢字書き!$A$2:$N$506,6,0)) -> やさしい［センセイ］ | J153: =IF(J151="","",VLOOKUP(J151,漢字書き!$A$2:$N$506,6,0)) -> ［サン］びきのこぶた | K153: =IF(K151="","",VLOOKUP(K151,漢字読み!$A$2:$O$506,6,0)) -> ［校］かをうたう | L153: =IF(L151="","",VLOOKUP(L151,漢字読み!$A$2:$O$506,6,0)) -> からだを［休］める | M153: =IF(M151="","",VLOOKUP(M151,漢字読み!$A$2:$O$506,6,0)) -> ［水］よう日 | N153: =IF(N151="","",VLOOKUP(N151,漢字読み!$A$2:$O$506,6,0)) -> ［川］がながれる | O153: =IF(O151="","",VLOOKUP(O151,漢字読み!$A$2:$O$506,6,0)) -> [川]あそびをする | P153: =IF(P151="","",VLOOKUP(P151,漢字読み!$A$2:$O$506,6,0)) -> たき［火］をする | Q153: =IF(Q151="","",VLOOKUP(Q151,漢字読み!$A$2:$O$506,6,0)) -> ［夕日］がしずむ | R153: =IF(R151="","",VLOOKUP(R151,漢字読み!$A$2:$O$506,6,0)) -> ［中］をみる | S153: =IF(S151="","",VLOOKUP(S151,漢字読み!$A$2:$O$506,6,0)) -> ［七］いろのにじ | T153: =IF(T151="","",VLOOKUP(T151,漢字読み!$A$2:$O$506,6,0)) -> ［出口］がない | V153: 級
A154: =IF(A$11="","",VLOOKUP(A151,漢字書き!$A$2:$O$506,8,0)) -> 十 | B154: =IF(B$11="","",VLOOKUP(B151,漢字書き!$A$2:$O$506,8,0)) -> 車 | C154: =IF(C$11="","",VLOOKUP(C151,漢字書き!$A$2:$O$506,8,0)) -> 気 | D154: =IF(D$11="","",VLOOKUP(D151,漢字書き!$A$2:$O$506,8,0)) -> 目 | E154: =IF(E$11="","",VLOOKUP(E151,漢字書き!$A$2:$O$506,8,0)) -> 二 | F154: =IF(F$11="","",VLOOKUP(F151,漢字書き!$A$2:$O$506,8,0)) -> 生 | G154: =IF(G$11="","",VLOOKUP(G151,漢字書き!$A$2:$O$506,8,0)) -> 人 | H154: =IF(H$11="","",VLOOKUP(H151,漢字書き!$A$2:$O$506,8,0)) -> 十 | I154: =IF(I$11="","",VLOOKUP(I151,漢字書き!$A$2:$O$506,8,0)) -> 先生 | J154: =IF(J$11="","",VLOOKUP(J151,漢字書き!$A$2:$O$506,8,0)) -> 三 | K154: =IF(K$11="","",VLOOKUP(K151,漢字読み!$A$2:$O$506,8,0)) -> こう | L154: =IF(L$11="","",VLOOKUP(L151,漢字読み!$A$2:$O$506,8,0)) -> やす | M154: =IF(M$11="","",VLOOKUP(M151,漢字読み!$A$2:$O$506,8,0)) -> すい | N154: =IF(N$11="","",VLOOKUP(N151,漢字読み!$A$2:$O$506,8,0)) -> かわ | O154: =IF(O$11="","",VLOOKUP(O151,漢字読み!$A$2:$O$506,8,0)) -> かわ | P154: =IF(P$11="","",VLOOKUP(P151,漢字読み!$A$2:$O$506,8,0)) -> び | Q154: =IF(Q$11="","",VLOOKUP(Q151,漢字読み!$A$2:$O$506,8,0)) -> ゆうひ | R154: =IF(R$11="","",VLOOKUP(R151,漢字読み!$A$2:$O$506,8,0)) -> なか | S154: =IF(S$11="","",VLOOKUP(S151,漢字読み!$A$2:$O$506,8,0)) -> なな | T154: =IF(T$11="","",VLOOKUP(T151,漢字読み!$A$2:$O$506,8,0)) -> でぐち | V154: 名前
A155: =IF(A151="","",IF(VLOOKUP(A151,漢字書き!$A$2:$N$502,7,0)=0,"",VLOOKUP(A151,漢字書き!$A$2:$N$502,7,0))) ->  | B155: =IF(B151="","",IF(VLOOKUP(B151,漢字書き!$A$2:$N$502,7,0)=0,"",VLOOKUP(B151,漢字書き!$A$2:$N$502,7,0))) -> どう | C155: =IF(C151="","",IF(VLOOKUP(C151,漢字書き!$A$2:$N$502,7,0)=0,"",VLOOKUP(C151,漢字書き!$A$2:$N$502,7,0))) -> はい | D155: =IF(D151="","",IF(VLOOKUP(D151,漢字書き!$A$2:$N$502,7,0)=0,"",VLOOKUP(D151,漢字書き!$A$2:$N$502,7,0))) -> じ | E155: =IF(E151="","",IF(VLOOKUP(E151,漢字書き!$A$2:$N$502,7,0)=0,"",VLOOKUP(E151,漢字書き!$A$2:$N$502,7,0))) -> つ | F155: =IF(F151="","",IF(VLOOKUP(F151,漢字書き!$A$2:$N$502,7,0)=0,"",VLOOKUP(F151,漢字書き!$A$2:$N$502,7,0))) -> かつ | G155: =IF(G151="","",IF(VLOOKUP(G151,漢字書き!$A$2:$N$502,7,0)=0,"",VLOOKUP(G151,漢字書き!$A$2:$N$502,7,0))) ->  | H155: =IF(H151="","",IF(VLOOKUP(H151,漢字書き!$A$2:$N$502,7,0)=0,"",VLOOKUP(H151,漢字書き!$A$2:$N$502,7,0))) -> ぷん | I155: =IF(I151="","",IF(VLOOKUP(I151,漢字書き!$A$2:$N$502,7,0)=0,"",VLOOKUP(I151,漢字書き!$A$2:$N$502,7,0))) ->  | J155: =IF(J151="","",IF(VLOOKUP(J151,漢字書き!$A$2:$N$502,7,0)=0,"",VLOOKUP(J151,漢字書き!$A$2:$N$502,7,0))) -> びき | K155: =IF(K151="","",IF(VLOOKUP(K151,漢字読み!$A$2:$O$502,7,0)=0,"",VLOOKUP(K151,漢字読み!$A$2:$O$502,7,0))) -> か | L155: =IF(L151="","",IF(VLOOKUP(L151,漢字読み!$A$2:$O$502,7,0)=0,"",VLOOKUP(L151,漢字読み!$A$2:$O$502,7,0))) -> める | M155: =IF(M151="","",IF(VLOOKUP(M151,漢字読み!$A$2:$O$502,7,0)=0,"",VLOOKUP(M151,漢字読み!$A$2:$O$502,7,0))) -> よう | N155: =IF(N151="","",IF(VLOOKUP(N151,漢字読み!$A$2:$O$502,7,0)=0,"",VLOOKUP(N151,漢字読み!$A$2:$O$502,7,0))) ->  | O155: =IF(O151="","",IF(VLOOKUP(O151,漢字読み!$A$2:$O$502,7,0)=0,"",VLOOKUP(O151,漢字読み!$A$2:$O$502,7,0))) -> あそび | P155: =IF(P151="","",IF(VLOOKUP(P151,漢字読み!$A$2:$O$502,7,0)=0,"",VLOOKUP(P151,漢字読み!$A$2:$O$502,7,0))) ->  | Q155: =IF(Q151="","",IF(VLOOKUP(Q151,漢字読み!$A$2:$O$502,7,0)=0,"",VLOOKUP(Q151,漢字読み!$A$2:$O$502,7,0))) ->  | R155: =IF(R151="","",IF(VLOOKUP(R151,漢字読み!$A$2:$O$502,7,0)=0,"",VLOOKUP(R151,漢字読み!$A$2:$O$502,7,0))) ->  | S155: =IF(S151="","",IF(VLOOKUP(S151,漢字読み!$A$2:$O$502,7,0)=0,"",VLOOKUP(S151,漢字読み!$A$2:$O$502,7,0))) -> いろ | T155: =IF(T151="","",IF(VLOOKUP(T151,漢字読み!$A$2:$O$502,7,0)=0,"",VLOOKUP(T151,漢字読み!$A$2:$O$502,7,0))) ->  | W155: 和歌山県教育委員会
A156: =A146 -> 130 | B156: =B146 -> 79 | C156: 163 | D156: 81 | E156: 74 | F156: 111 | G156: 67 | H156: 26 | I156: 119 | J156: 137 | K156: 46 | L156: 149 | M156: 22 | N156: 170 | O156: 92 | P156: 103 | Q156: 44 | R156: 84 | S156: 42 | T156: 33
A157: ⑳ | B157: ⑲ | C157: ⑱ | D157: ⑰ | E157: ⑯ | F157: ⑮ | G157: ⑭ | H157: ⑬ | I157: ⑫ | J157: ⑪ | K157: ⑩ | L157: ⑨ | M157: ⑧ | N157: ⑦ | O157: ⑥ | P157: ⑤ | Q157: ④ | R157: ③ | S157: ② | T157: ① | U157: 次の［ ］の部分の漢字には読みがなをひらがなで書き、カタカナは漢字に直しなさい。 | V157: 15 | W157: 「漢字の博士検定試験」練習問題
A158: =IF(A156="","",VLOOKUP(A156,漢字書き!$A$2:$N$506,6,0)) -> ［ダイチュウショウ］ | B158: =IF(B156="","",VLOOKUP(B156,漢字書き!$A$2:$N$506,6,0)) -> めいろから［デ］る | C158: =IF(C156="","",VLOOKUP(C156,漢字書き!$A$2:$N$506,6,0)) -> ［メイ］ぶつをさがす | D158: =IF(D156="","",VLOOKUP(D156,漢字書き!$A$2:$N$506,6,0)) -> ゆき［オンナ］ | E158: =IF(E156="","",VLOOKUP(E156,漢字書き!$A$2:$N$506,6,0)) -> ［テ］をあらう | F158: =IF(F156="","",VLOOKUP(F156,漢字書き!$A$2:$N$506,6,0)) -> ［オガワ］がながれる | G158: =IF(G156="","",VLOOKUP(G156,漢字書き!$A$2:$N$506,6,0)) -> ［ミミ］をすます | H158: =IF(H156="","",VLOOKUP(H156,漢字書き!$A$2:$N$506,6,0)) -> しっかり［マナ］ぶ | I158: =IF(I156="","",VLOOKUP(I156,漢字書き!$A$2:$N$506,6,0)) -> えん［ソク］にいく | J158: =IF(J156="","",VLOOKUP(J156,漢字書き!$A$2:$N$506,6,0)) -> ［テンキ］よほう | K158: =IF(K156="","",VLOOKUP(K156,漢字読み!$A$2:$O$506,6,0)) -> もうどう［犬］ | L158: =IF(L156="","",VLOOKUP(L156,漢字読み!$A$2:$O$506,6,0)) -> ［二］つにわける | M158: =IF(M156="","",VLOOKUP(M156,漢字読み!$A$2:$O$506,6,0)) -> ［花］がさく | N158: =IF(N156="","",VLOOKUP(N156,漢字読み!$A$2:$O$506,6,0)) -> ［五本］のゆび | O158: =IF(O156="","",VLOOKUP(O156,漢字読み!$A$2:$O$506,6,0)) -> ［人気］もの | P158: =IF(P156="","",VLOOKUP(P156,漢字読み!$A$2:$O$506,6,0)) -> メダカの[一生] | Q158: =IF(Q156="","",VLOOKUP(Q156,漢字読み!$A$2:$O$506,6,0)) -> ［月］ようになる | R158: =IF(R156="","",VLOOKUP(R156,漢字読み!$A$2:$O$506,6,0)) -> ［小］さくなる | S158: =IF(S156="","",VLOOKUP(S156,漢字読み!$A$2:$O$506,6,0)) -> きれいな［青空］ | T158: =IF(T156="","",VLOOKUP(T156,漢字読み!$A$2:$O$506,6,0)) -> ［休］けいをする | V158: 級
A159: =IF(A$16="","",VLOOKUP(A156,漢字書き!$A$2:$O$506,8,0)) -> 大中小 | B159: =IF(B$16="","",VLOOKUP(B156,漢字書き!$A$2:$O$506,8,0)) -> 出 | C159: =IF(C$16="","",VLOOKUP(C156,漢字書き!$A$2:$O$506,8,0)) -> 名 | D159: =IF(D$16="","",VLOOKUP(D156,漢字書き!$A$2:$O$506,8,0)) -> 女 | E159: =IF(E$16="","",VLOOKUP(E156,漢字書き!$A$2:$O$506,8,0)) -> 手 | F159: =IF(F$16="","",VLOOKUP(F156,漢字書き!$A$2:$O$506,8,0)) -> 小川 | G159: =IF(G$16="","",VLOOKUP(G156,漢字書き!$A$2:$O$506,8,0)) -> 耳 | H159: =IF(H$16="","",VLOOKUP(H156,漢字書き!$A$2:$O$506,8,0)) -> 学 | I159: =IF(I$16="","",VLOOKUP(I156,漢字書き!$A$2:$O$506,8,0)) -> 足 | J159: =IF(J$16="","",VLOOKUP(J156,漢字書き!$A$2:$O$506,8,0)) -> 天気 | K159: =IF(K$16="","",VLOOKUP(K156,漢字読み!$A$2:$O$506,8,0)) -> けん | L159: =IF(L$16="","",VLOOKUP(L156,漢字読み!$A$2:$O$506,8,0)) -> ふた | M159: =IF(M$16="","",VLOOKUP(M156,漢字読み!$A$2:$O$506,8,0)) -> はな | N159: =IF(N$16="","",VLOOKUP(N156,漢字読み!$A$2:$O$506,8,0)) -> ごほん | O159: =IF(O$16="","",VLOOKUP(O156,漢字読み!$A$2:$O$506,8,0)) -> にんき | P159: =IF(P$16="","",VLOOKUP(P156,漢字読み!$A$2:$O$506,8,0)) -> いっしょう | Q159: =IF(Q$16="","",VLOOKUP(Q156,漢字読み!$A$2:$O$506,8,0)) -> げつ | R159: =IF(R$16="","",VLOOKUP(R156,漢字読み!$A$2:$O$506,8,0)) -> ちい | S159: =IF(S$16="","",VLOOKUP(S156,漢字読み!$A$2:$O$506,8,0)) -> あおぞら | T159: =IF(T$16="","",VLOOKUP(T156,漢字読み!$A$2:$O$506,8,0)) -> きゅう | V159: 名前
A160: =IF(A156="","",IF(VLOOKUP(A156,漢字書き!$A$2:$N$502,7,0)=0,"",VLOOKUP(A156,漢字書き!$A$2:$N$502,7,0))) ->  | B160: =IF(B156="","",IF(VLOOKUP(B156,漢字書き!$A$2:$N$502,7,0)=0,"",VLOOKUP(B156,漢字書き!$A$2:$N$502,7,0))) -> る | C160: =IF(C156="","",IF(VLOOKUP(C156,漢字書き!$A$2:$N$502,7,0)=0,"",VLOOKUP(C156,漢字書き!$A$2:$N$502,7,0))) -> ぶつ | D160: =IF(D156="","",IF(VLOOKUP(D156,漢字書き!$A$2:$N$502,7,0)=0,"",VLOOKUP(D156,漢字書き!$A$2:$N$502,7,0))) ->  | E160: =IF(E156="","",IF(VLOOKUP(E156,漢字書き!$A$2:$N$502,7,0)=0,"",VLOOKUP(E156,漢字書き!$A$2:$N$502,7,0))) ->  | F160: =IF(F156="","",IF(VLOOKUP(F156,漢字書き!$A$2:$N$502,7,0)=0,"",VLOOKUP(F156,漢字書き!$A$2:$N$502,7,0))) ->  | G160: =IF(G156="","",IF(VLOOKUP(G156,漢字書き!$A$2:$N$502,7,0)=0,"",VLOOKUP(G156,漢字書き!$A$2:$N$502,7,0))) ->  | H160: =IF(H156="","",IF(VLOOKUP(H156,漢字書き!$A$2:$N$502,7,0)=0,"",VLOOKUP(H156,漢字書き!$A$2:$N$502,7,0))) -> ぶ | I160: =IF(I156="","",IF(VLOOKUP(I156,漢字書き!$A$2:$N$502,7,0)=0,"",VLOOKUP(I156,漢字書き!$A$2:$N$502,7,0))) ->  | J160: =IF(J156="","",IF(VLOOKUP(J156,漢字書き!$A$2:$N$502,7,0)=0,"",VLOOKUP(J156,漢字書き!$A$2:$N$502,7,0))) -> よほう | K160: =IF(K156="","",IF(VLOOKUP(K156,漢字読み!$A$2:$O$502,7,0)=0,"",VLOOKUP(K156,漢字読み!$A$2:$O$502,7,0))) ->  | L160: =IF(L156="","",IF(VLOOKUP(L156,漢字読み!$A$2:$O$502,7,0)=0,"",VLOOKUP(L156,漢字読み!$A$2:$O$502,7,0))) -> つ | M160: =IF(M156="","",IF(VLOOKUP(M156,漢字読み!$A$2:$O$502,7,0)=0,"",VLOOKUP(M156,漢字読み!$A$2:$O$502,7,0))) ->  | N160: =IF(N156="","",IF(VLOOKUP(N156,漢字読み!$A$2:$O$502,7,0)=0,"",VLOOKUP(N156,漢字読み!$A$2:$O$502,7,0))) ->  | O160: =IF(O156="","",IF(VLOOKUP(O156,漢字読み!$A$2:$O$502,7,0)=0,"",VLOOKUP(O156,漢字読み!$A$2:$O$502,7,0))) -> もの | P160: =IF(P156="","",IF(VLOOKUP(P156,漢字読み!$A$2:$O$502,7,0)=0,"",VLOOKUP(P156,漢字読み!$A$2:$O$502,7,0))) ->  | Q160: =IF(Q156="","",IF(VLOOKUP(Q156,漢字読み!$A$2:$O$502,7,0)=0,"",VLOOKUP(Q156,漢字読み!$A$2:$O$502,7,0))) -> よう | R160: =IF(R156="","",IF(VLOOKUP(R156,漢字読み!$A$2:$O$502,7,0)=0,"",VLOOKUP(R156,漢字読み!$A$2:$O$502,7,0))) -> さく | S160: =IF(S156="","",IF(VLOOKUP(S156,漢字読み!$A$2:$O$502,7,0)=0,"",VLOOKUP(S156,漢字読み!$A$2:$O$502,7,0))) ->  | T160: =IF(T156="","",IF(VLOOKUP(T156,漢字読み!$A$2:$O$502,7,0)=0,"",VLOOKUP(T156,漢字読み!$A$2:$O$502,7,0))) -> けい | W160: 和歌山県教育委員会
A161: =INDIRECT("'関数（書き）'!C" & COLUMN(B$1)+SUM($AD$2:$AD162)) -> 101 | B161: =INDIRECT("'関数（書き）'!C" & COLUMN(C$1)+SUM($AD$2:$AD162)) -> 49 | C161: =INDIRECT("'関数（書き）'!C" & COLUMN(D$1)+SUM($AD$2:$AD162)) -> 52 | D161: =INDIRECT("'関数（書き）'!C" & COLUMN(E$1)+SUM($AD$2:$AD162)) -> 135 | E161: =INDIRECT("'関数（書き）'!C" & COLUMN(F$1)+SUM($AD$2:$AD162)) -> 96 | F161: =INDIRECT("'関数（書き）'!C" & COLUMN(G$1)+SUM($AD$2:$AD162)) -> 100 | G161: =INDIRECT("'関数（書き）'!C" & COLUMN(H$1)+SUM($AD$2:$AD162)) -> 56 | H161: =INDIRECT("'関数（書き）'!C" & COLUMN(I$1)+SUM($AD$2:$AD162)) -> 54 | I161: =INDIRECT("'関数（書き）'!C" & COLUMN(J$1)+SUM($AD$2:$AD162)) -> 51 | J161: =INDIRECT("'関数（書き）'!C" & COLUMN(K$1)+SUM($AD$2:$AD162)) -> 19 | K161: =INDIRECT("'関数（読み）'!C" & COLUMN(B$1)+SUM($AD$2:$AD162)) -> 113 | L161: =INDIRECT("'関数（読み）'!C" & COLUMN(C$1)+SUM($AD$2:$AD162)) -> 5 | M161: =INDIRECT("'関数（読み）'!C" & COLUMN(D$1)+SUM($AD$2:$AD162)) -> 41 | N161: =INDIRECT("'関数（読み）'!C" & COLUMN(E$1)+SUM($AD$2:$AD162)) -> 123 | O161: =INDIRECT("'関数（読み）'!C" & COLUMN(F$1)+SUM($AD$2:$AD162)) -> 49 | P161: =INDIRECT("'関数（読み）'!C" & COLUMN(G$1)+SUM($AD$2:$AD162)) -> 158 | Q161: =INDIRECT("'関数（読み）'!C" & COLUMN(H$1)+SUM($AD$2:$AD162)) -> 54 | R161: =INDIRECT("'関数（読み）'!C" & COLUMN(I$1)+SUM($AD$2:$AD162)) -> 163 | S161: =INDIRECT("'関数（読み）'!C" & COLUMN(J$1)+SUM($AD$2:$AD162)) -> 135 | T161: =INDIRECT("'関数（読み）'!C" & COLUMN(K$1)+SUM($AD$2:$AD162)) -> 112
A162: ⑳ | B162: ⑲ | C162: ⑱ | D162: ⑰ | E162: ⑯ | F162: ⑮ | G162: ⑭ | H162: ⑬ | I162: ⑫ | J162: ⑪ | K162: ⑩ | L162: ⑨ | M162: ⑧ | N162: ⑦ | O162: ⑥ | P162: ⑤ | Q162: ④ | R162: ③ | S162: ② | T162: ① | U162: 次の［ ］の部分の漢字には読みがなをひらがなで書き、カタカナは漢字に直しなさい。 | V162: 15 | W162: 「漢字の博士検定試験」練習問題 | AC162: ← | AD162: 10 | AE162: 問 | AF162: =AH147+1 -> 161 | AG162: ～ | AH162: =SUM($AD$2:$AD162)+10 -> 170 | AI162: 問まで | AJ162: =COUNTIF($A$1:$T$200,T163) -> 2
A163: =IF(A161="","",VLOOKUP(A161,漢字書き!$A$2:$N$506,6,0)) -> ［アオゾラ］を見る | B163: =IF(B161="","",VLOOKUP(B161,漢字書き!$A$2:$N$506,6,0)) -> ［クチ］から出す | C163: =IF(C161="","",VLOOKUP(C161,漢字書き!$A$2:$N$506,6,0)) -> ［コウ］もんに入る | D163: =IF(D161="","",VLOOKUP(D161,漢字書き!$A$2:$N$506,6,0)) -> ［チョウ］ないかい | E163: =IF(E161="","",VLOOKUP(E161,漢字書き!$A$2:$N$506,6,0)) -> ［タダ］しいこたえ | F163: =IF(F161="","",VLOOKUP(F161,漢字書き!$A$2:$N$506,6,0)) -> ［アオ］いうみ | G163: =IF(G161="","",VLOOKUP(G161,漢字書き!$A$2:$N$506,6,0)) -> ［ミッ］つある | H163: =IF(H161="","",VLOOKUP(H161,漢字書き!$A$2:$N$506,6,0)) -> ［ヒダリ］にまがる | I163: =IF(I161="","",VLOOKUP(I161,漢字書き!$A$2:$N$506,6,0)) -> ［ガッコウ］にいく | J163: =IF(J161="","",VLOOKUP(J161,漢字書き!$A$2:$N$506,6,0)) -> ［カ］ようび | K163: =IF(K161="","",VLOOKUP(K161,漢字読み!$A$2:$O$506,6,0)) -> ねこの［赤］ちゃん | L163: =IF(L161="","",VLOOKUP(L161,漢字読み!$A$2:$O$506,6,0)) -> ［雨天］にちゅうい | M163: =IF(M161="","",VLOOKUP(M161,漢字読み!$A$2:$O$506,6,0)) -> ［上空］をとぶ | N163: =IF(N161="","",VLOOKUP(N161,漢字読み!$A$2:$O$506,6,0)) -> ［草］むらであそぶ | O163: =IF(O161="","",VLOOKUP(O161,漢字読み!$A$2:$O$506,6,0)) -> とけいを［見］る | P163: =IF(P161="","",VLOOKUP(P161,漢字読み!$A$2:$O$506,6,0)) -> こう［白］のはた | Q163: =IF(Q161="","",VLOOKUP(Q161,漢字読み!$A$2:$O$506,6,0)) -> ［口］をあける | R163: =IF(R161="","",VLOOKUP(R161,漢字読み!$A$2:$O$506,6,0)) -> ［百円］のおかし | S163: =IF(S161="","",VLOOKUP(S161,漢字読み!$A$2:$O$506,6,0)) -> ［竹］とんぼ | T163: =IF(T161="","",VLOOKUP(T161,漢字読み!$A$2:$O$506,6,0)) -> ［赤］はんをたく | V163: 級
V164: 名前
A165: =IF(A161="","",IF(VLOOKUP(A161,漢字書き!$A$2:$N$502,7,0)=0,"",VLOOKUP(A161,漢字書き!$A$2:$N$502,7,0))) ->  | B165: =IF(B161="","",IF(VLOOKUP(B161,漢字書き!$A$2:$N$502,7,0)=0,"",VLOOKUP(B161,漢字書き!$A$2:$N$502,7,0))) ->  | C165: =IF(C161="","",IF(VLOOKUP(C161,漢字書き!$A$2:$N$502,7,0)=0,"",VLOOKUP(C161,漢字書き!$A$2:$N$502,7,0))) -> もん | D165: =IF(D161="","",IF(VLOOKUP(D161,漢字書き!$A$2:$N$502,7,0)=0,"",VLOOKUP(D161,漢字書き!$A$2:$N$502,7,0))) -> ない | E165: =IF(E161="","",IF(VLOOKUP(E161,漢字書き!$A$2:$N$502,7,0)=0,"",VLOOKUP(E161,漢字書き!$A$2:$N$502,7,0))) -> しい | F165: =IF(F161="","",IF(VLOOKUP(F161,漢字書き!$A$2:$N$502,7,0)=0,"",VLOOKUP(F161,漢字書き!$A$2:$N$502,7,0))) -> い | G165: =IF(G161="","",IF(VLOOKUP(G161,漢字書き!$A$2:$N$502,7,0)=0,"",VLOOKUP(G161,漢字書き!$A$2:$N$502,7,0))) -> つ | H165: =IF(H161="","",IF(VLOOKUP(H161,漢字書き!$A$2:$N$502,7,0)=0,"",VLOOKUP(H161,漢字書き!$A$2:$N$502,7,0))) ->  | I165: =IF(I161="","",IF(VLOOKUP(I161,漢字書き!$A$2:$N$502,7,0)=0,"",VLOOKUP(I161,漢字書き!$A$2:$N$502,7,0))) ->  | J165: =IF(J161="","",IF(VLOOKUP(J161,漢字書き!$A$2:$N$502,7,0)=0,"",VLOOKUP(J161,漢字書き!$A$2:$N$502,7,0))) -> ようび | K165: =IF(K161="","",IF(VLOOKUP(K161,漢字読み!$A$2:$O$502,7,0)=0,"",VLOOKUP(K161,漢字読み!$A$2:$O$502,7,0))) -> ちゃん | L165: =IF(L161="","",IF(VLOOKUP(L161,漢字読み!$A$2:$O$502,7,0)=0,"",VLOOKUP(L161,漢字読み!$A$2:$O$502,7,0))) ->  | M165: =IF(M161="","",IF(VLOOKUP(M161,漢字読み!$A$2:$O$502,7,0)=0,"",VLOOKUP(M161,漢字読み!$A$2:$O$502,7,0))) ->  | N165: =IF(N161="","",IF(VLOOKUP(N161,漢字読み!$A$2:$O$502,7,0)=0,"",VLOOKUP(N161,漢字読み!$A$2:$O$502,7,0))) -> むら | O165: =IF(O161="","",IF(VLOOKUP(O161,漢字読み!$A$2:$O$502,7,0)=0,"",VLOOKUP(O161,漢字読み!$A$2:$O$502,7,0))) -> る | P165: =IF(P161="","",IF(VLOOKUP(P161,漢字読み!$A$2:$O$502,7,0)=0,"",VLOOKUP(P161,漢字読み!$A$2:$O$502,7,0))) ->  | Q165: =IF(Q161="","",IF(VLOOKUP(Q161,漢字読み!$A$2:$O$502,7,0)=0,"",VLOOKUP(Q161,漢字読み!$A$2:$O$502,7,0))) ->  | R165: =IF(R161="","",IF(VLOOKUP(R161,漢字読み!$A$2:$O$502,7,0)=0,"",VLOOKUP(R161,漢字読み!$A$2:$O$502,7,0))) ->  | S165: =IF(S161="","",IF(VLOOKUP(S161,漢字読み!$A$2:$O$502,7,0)=0,"",VLOOKUP(S161,漢字読み!$A$2:$O$502,7,0))) -> とんぼ | T165: =IF(T161="","",IF(VLOOKUP(T161,漢字読み!$A$2:$O$502,7,0)=0,"",VLOOKUP(T161,漢字読み!$A$2:$O$502,7,0))) -> はん | W165: 和歌山県教育委員会
A166: =INDIRECT("'関数（書き）'!C" & COLUMN(B$1)+SUM($AD$2:$AD167)) -> 155 | B166: =INDIRECT("'関数（書き）'!C" & COLUMN(C$1)+SUM($AD$2:$AD167)) -> 68 | C166: =INDIRECT("'関数（書き）'!C" & COLUMN(D$1)+SUM($AD$2:$AD167)) -> 72 | D166: =INDIRECT("'関数（書き）'!C" & COLUMN(E$1)+SUM($AD$2:$AD167)) -> 30 | E166: =INDIRECT("'関数（書き）'!C" & COLUMN(F$1)+SUM($AD$2:$AD167)) -> 162 | F166: =INDIRECT("'関数（書き）'!C" & COLUMN(G$1)+SUM($AD$2:$AD167)) -> 0 | G166: =INDIRECT("'関数（書き）'!C" & COLUMN(H$1)+SUM($AD$2:$AD167)) -> 0 | H166: =INDIRECT("'関数（書き）'!C" & COLUMN(I$1)+SUM($AD$2:$AD167)) -> 0 | I166: =INDIRECT("'関数（書き）'!C" & COLUMN(J$1)+SUM($AD$2:$AD167)) -> 0 | J166: =INDIRECT("'関数（書き）'!C" & COLUMN(K$1)+SUM($AD$2:$AD167)) -> 0 | K166: =INDIRECT("'関数（読み）'!C" & COLUMN(B$1)+SUM($AD$2:$AD167)) -> 166 | L166: =INDIRECT("'関数（読み）'!C" & COLUMN(C$1)+SUM($AD$2:$AD167)) -> 178 | M166: =INDIRECT("'関数（読み）'!C" & COLUMN(D$1)+SUM($AD$2:$AD167)) -> 58 | N166: =INDIRECT("'関数（読み）'!C" & COLUMN(E$1)+SUM($AD$2:$AD167)) -> 169 | O166: =INDIRECT("'関数（読み）'!C" & COLUMN(F$1)+SUM($AD$2:$AD167)) -> 60 | P166: =INDIRECT("'関数（読み）'!C" & COLUMN(G$1)+SUM($AD$2:$AD167)) -> 82 | Q166: =INDIRECT("'関数（読み）'!C" & COLUMN(H$1)+SUM($AD$2:$AD167)) -> 13 | R166: =INDIRECT("'関数（読み）'!C" & COLUMN(I$1)+SUM($AD$2:$AD167)) -> 47 | S166: =INDIRECT("'関数（読み）'!C" & COLUMN(J$1)+SUM($AD$2:$AD167)) -> 176 | T166: =INDIRECT("'関数（読み）'!C" & COLUMN(K$1)+SUM($AD$2:$AD167)) -> 120
A167: ⑳ | B167: ⑲ | C167: ⑱ | D167: ⑰ | E167: ⑯ | F167: ⑮ | G167: ⑭ | H167: ⑬ | I167: ⑫ | J167: ⑪ | K167: ⑩ | L167: ⑨ | M167: ⑧ | N167: ⑦ | O167: ⑥ | P167: ⑤ | Q167: ④ | R167: ③ | S167: ② | T167: ① | U167: 次の［ ］の部分の漢字には読みがなをひらがなで書き、カタカナは漢字に直しなさい。 | V167: 15 | W167: 「漢字の博士検定試験」練習問題 | AC167: ← | AD167: 10 | AE167: 問 | AF167: =AH162+1 -> 171 | AG167: ～ | AH167: =SUM($AD$2:$AD167)+10 -> 180 | AI167: 問まで | AJ167: =COUNTIF($A$1:$T$200,T168) -> 2
A168: =IF(A166="","",VLOOKUP(A166,漢字書き!$A$2:$N$506,6,0)) -> ［ヒャクヤッ］つ | B168: =IF(B166="","",VLOOKUP(B166,漢字書き!$A$2:$N$506,6,0)) -> ［ミミ］かきをする | C168: =IF(C166="","",VLOOKUP(C166,漢字書き!$A$2:$N$506,6,0)) -> ［クルマ］にのる | D168: =IF(D166="","",VLOOKUP(D166,漢字書き!$A$2:$N$506,6,0)) -> ［ココノ］つ | E168: =IF(E166="","",VLOOKUP(E166,漢字書き!$A$2:$N$506,6,0)) -> ［ホンブン］をよむ | F168: =IF(F166="","",VLOOKUP(F166,漢字書き!$A$2:$N$506,6,0)) ->  | G168: =IF(G166="","",VLOOKUP(G166,漢字書き!$A$2:$N$506,6,0)) ->  | H168: =IF(H166="","",VLOOKUP(H166,漢字書き!$A$2:$N$506,6,0)) ->  | I168: =IF(I166="","",VLOOKUP(I166,漢字書き!$A$2:$N$506,6,0)) ->  | J168: =IF(J166="","",VLOOKUP(J166,漢字書き!$A$2:$N$506,6,0)) ->  | K168: =IF(K166="","",VLOOKUP(K166,漢字読み!$A$2:$O$506,6,0)) -> ［文学］をよむ | L168: =IF(L166="","",VLOOKUP(L166,漢字読み!$A$2:$O$506,6,0)) -> ［立］たいもけい | M168: =IF(M166="","",VLOOKUP(M166,漢字読み!$A$2:$O$506,6,0)) -> ［左手］をあげる | N168: =IF(N166="","",VLOOKUP(N166,漢字読み!$A$2:$O$506,6,0)) -> ［木］のぼり | O168: =IF(O166="","",VLOOKUP(O166,漢字読み!$A$2:$O$506,6,0)) -> ［三］つのねがい | P168: =IF(P166="","",VLOOKUP(P166,漢字読み!$A$2:$O$506,6,0)) -> ［女］の子 | Q168: =IF(Q166="","",VLOOKUP(Q166,漢字読み!$A$2:$O$506,6,0)) -> ［音］がひびく | R168: =IF(R166="","",VLOOKUP(R166,漢字読み!$A$2:$O$506,6,0)) -> ［犬］をかう | S168: =IF(S166="","",VLOOKUP(S166,漢字読み!$A$2:$O$506,6,0)) -> ［目］ひょうをもつ | T168: =IF(T166="","",VLOOKUP(T166,漢字読み!$A$2:$O$506,6,0)) -> ［早］ちょうれんしゅう | V168: 級
V169: 名前
A170: =IF(A166="","",IF(VLOOKUP(A166,漢字書き!$A$2:$N$502,7,0)=0,"",VLOOKUP(A166,漢字書き!$A$2:$N$502,7,0))) -> つ | B170: =IF(B166="","",IF(VLOOKUP(B166,漢字書き!$A$2:$N$502,7,0)=0,"",VLOOKUP(B166,漢字書き!$A$2:$N$502,7,0))) -> かき | C170: =IF(C166="","",IF(VLOOKUP(C166,漢字書き!$A$2:$N$502,7,0)=0,"",VLOOKUP(C166,漢字書き!$A$2:$N$502,7,0))) ->  | D170: =IF(D166="","",IF(VLOOKUP(D166,漢字書き!$A$2:$N$502,7,0)=0,"",VLOOKUP(D166,漢字書き!$A$2:$N$502,7,0))) -> つ | E170: =IF(E166="","",IF(VLOOKUP(E166,漢字書き!$A$2:$N$502,7,0)=0,"",VLOOKUP(E166,漢字書き!$A$2:$N$502,7,0))) ->  | F170: =IF(F166="","",IF(VLOOKUP(F166,漢字書き!$A$2:$N$502,7,0)=0,"",VLOOKUP(F166,漢字書き!$A$2:$N$502,7,0))) ->  | G170: =IF(G166="","",IF(VLOOKUP(G166,漢字書き!$A$2:$N$502,7,0)=0,"",VLOOKUP(G166,漢字書き!$A$2:$N$502,7,0))) ->  | H170: =IF(H166="","",IF(VLOOKUP(H166,漢字書き!$A$2:$N$502,7,0)=0,"",VLOOKUP(H166,漢字書き!$A$2:$N$502,7,0))) ->  | I170: =IF(I166="","",IF(VLOOKUP(I166,漢字書き!$A$2:$N$502,7,0)=0,"",VLOOKUP(I166,漢字書き!$A$2:$N$502,7,0))) ->  | J170: =IF(J166="","",IF(VLOOKUP(J166,漢字書き!$A$2:$N$502,7,0)=0,"",VLOOKUP(J166,漢字書き!$A$2:$N$502,7,0))) ->  | K170: =IF(K166="","",IF(VLOOKUP(K166,漢字読み!$A$2:$O$502,7,0)=0,"",VLOOKUP(K166,漢字読み!$A$2:$O$502,7,0))) ->  | L170: =IF(L166="","",IF(VLOOKUP(L166,漢字読み!$A$2:$O$502,7,0)=0,"",VLOOKUP(L166,漢字読み!$A$2:$O$502,7,0))) -> たい | M170: =IF(M166="","",IF(VLOOKUP(M166,漢字読み!$A$2:$O$502,7,0)=0,"",VLOOKUP(M166,漢字読み!$A$2:$O$502,7,0))) ->  | N170: =IF(N166="","",IF(VLOOKUP(N166,漢字読み!$A$2:$O$502,7,0)=0,"",VLOOKUP(N166,漢字読み!$A$2:$O$502,7,0))) -> のぼり | O170: =IF(O166="","",IF(VLOOKUP(O166,漢字読み!$A$2:$O$502,7,0)=0,"",VLOOKUP(O166,漢字読み!$A$2:$O$502,7,0))) -> つ | P170: =IF(P166="","",IF(VLOOKUP(P166,漢字読み!$A$2:$O$502,7,0)=0,"",VLOOKUP(P166,漢字読み!$A$2:$O$502,7,0))) ->  | Q170: =IF(Q166="","",IF(VLOOKUP(Q166,漢字読み!$A$2:$O$502,7,0)=0,"",VLOOKUP(Q166,漢字読み!$A$2:$O$502,7,0))) ->  | R170: =IF(R166="","",IF(VLOOKUP(R166,漢字読み!$A$2:$O$502,7,0)=0,"",VLOOKUP(R166,漢字読み!$A$2:$O$502,7,0))) ->  | S170: =IF(S166="","",IF(VLOOKUP(S166,漢字読み!$A$2:$O$502,7,0)=0,"",VLOOKUP(S166,漢字読み!$A$2:$O$502,7,0))) -> ひょう | T170: =IF(T166="","",IF(VLOOKUP(T166,漢字読み!$A$2:$O$502,7,0)=0,"",VLOOKUP(T166,漢字読み!$A$2:$O$502,7,0))) -> ちょう | W170: 和歌山県教育委員会
A171: =A161 -> 101 | B171: =B161 -> 49 | C171: 52 | D171: 135 | E171: 96 | F171: 100 | G171: 56 | H171: 54 | I171: 51 | J171: 19 | K171: 113 | L171: 5 | M171: 41 | N171: 123 | O171: 49 | P171: 158 | Q171: 54 | R171: 163 | S171: 135 | T171: 112
A172: ⑳ | B172: ⑲ | C172: ⑱ | D172: ⑰ | E172: ⑯ | F172: ⑮ | G172: ⑭ | H172: ⑬ | I172: ⑫ | J172: ⑪ | K172: ⑩ | L172: ⑨ | M172: ⑧ | N172: ⑦ | O172: ⑥ | P172: ⑤ | Q172: ④ | R172: ③ | S172: ② | T172: ① | U172: 次の［ ］の部分の漢字には読みがなをひらがなで書き、カタカナは漢字に直しなさい。 | V172: 15 | W172: 「漢字の博士検定試験」練習問題
A173: =IF(A171="","",VLOOKUP(A171,漢字書き!$A$2:$N$506,6,0)) -> ［アオゾラ］を見る | B173: =IF(B171="","",VLOOKUP(B171,漢字書き!$A$2:$N$506,6,0)) -> ［クチ］から出す | C173: =IF(C171="","",VLOOKUP(C171,漢字書き!$A$2:$N$506,6,0)) -> ［コウ］もんに入る | D173: =IF(D171="","",VLOOKUP(D171,漢字書き!$A$2:$N$506,6,0)) -> ［チョウ］ないかい | E173: =IF(E171="","",VLOOKUP(E171,漢字書き!$A$2:$N$506,6,0)) -> ［タダ］しいこたえ | F173: =IF(F171="","",VLOOKUP(F171,漢字書き!$A$2:$N$506,6,0)) -> ［アオ］いうみ | G173: =IF(G171="","",VLOOKUP(G171,漢字書き!$A$2:$N$506,6,0)) -> ［ミッ］つある | H173: =IF(H171="","",VLOOKUP(H171,漢字書き!$A$2:$N$506,6,0)) -> ［ヒダリ］にまがる | I173: =IF(I171="","",VLOOKUP(I171,漢字書き!$A$2:$N$506,6,0)) -> ［ガッコウ］にいく | J173: =IF(J171="","",VLOOKUP(J171,漢字書き!$A$2:$N$506,6,0)) -> ［カ］ようび | K173: =IF(K171="","",VLOOKUP(K171,漢字読み!$A$2:$O$506,6,0)) -> ねこの［赤］ちゃん | L173: =IF(L171="","",VLOOKUP(L171,漢字読み!$A$2:$O$506,6,0)) -> ［雨天］にちゅうい | M173: =IF(M171="","",VLOOKUP(M171,漢字読み!$A$2:$O$506,6,0)) -> ［上空］をとぶ | N173: =IF(N171="","",VLOOKUP(N171,漢字読み!$A$2:$O$506,6,0)) -> ［草］むらであそぶ | O173: =IF(O171="","",VLOOKUP(O171,漢字読み!$A$2:$O$506,6,0)) -> とけいを［見］る | P173: =IF(P171="","",VLOOKUP(P171,漢字読み!$A$2:$O$506,6,0)) -> こう［白］のはた | Q173: =IF(Q171="","",VLOOKUP(Q171,漢字読み!$A$2:$O$506,6,0)) -> ［口］をあける | R173: =IF(R171="","",VLOOKUP(R171,漢字読み!$A$2:$O$506,6,0)) -> ［百円］のおかし | S173: =IF(S171="","",VLOOKUP(S171,漢字読み!$A$2:$O$506,6,0)) -> ［竹］とんぼ | T173: =IF(T171="","",VLOOKUP(T171,漢字読み!$A$2:$O$506,6,0)) -> ［赤］はんをたく | V173: 級
A174: =IF(A$11="","",VLOOKUP(A171,漢字書き!$A$2:$O$506,8,0)) -> 青空 | B174: =IF(B$11="","",VLOOKUP(B171,漢字書き!$A$2:$O$506,8,0)) -> 口 | C174: =IF(C$11="","",VLOOKUP(C171,漢字書き!$A$2:$O$506,8,0)) -> 校 | D174: =IF(D$11="","",VLOOKUP(D171,漢字書き!$A$2:$O$506,8,0)) -> 町 | E174: =IF(E$11="","",VLOOKUP(E171,漢字書き!$A$2:$O$506,8,0)) -> 正 | F174: =IF(F$11="","",VLOOKUP(F171,漢字書き!$A$2:$O$506,8,0)) -> 青 | G174: =IF(G$11="","",VLOOKUP(G171,漢字書き!$A$2:$O$506,8,0)) -> 三 | H174: =IF(H$11="","",VLOOKUP(H171,漢字書き!$A$2:$O$506,8,0)) -> 左 | I174: =IF(I$11="","",VLOOKUP(I171,漢字書き!$A$2:$O$506,8,0)) -> 学校 | J174: =IF(J$11="","",VLOOKUP(J171,漢字書き!$A$2:$O$506,8,0)) -> 火 | K174: =IF(K$11="","",VLOOKUP(K171,漢字読み!$A$2:$O$506,8,0)) -> あか | L174: =IF(L$11="","",VLOOKUP(L171,漢字読み!$A$2:$O$506,8,0)) -> うてん | M174: =IF(M$11="","",VLOOKUP(M171,漢字読み!$A$2:$O$506,8,0)) -> じょうくう | N174: =IF(N$11="","",VLOOKUP(N171,漢字読み!$A$2:$O$506,8,0)) -> くさ | O174: =IF(O$11="","",VLOOKUP(O171,漢字読み!$A$2:$O$506,8,0)) -> み | P174: =IF(P$11="","",VLOOKUP(P171,漢字読み!$A$2:$O$506,8,0)) -> はく | Q174: =IF(Q$11="","",VLOOKUP(Q171,漢字読み!$A$2:$O$506,8,0)) -> くち | R174: =IF(R$11="","",VLOOKUP(R171,漢字読み!$A$2:$O$506,8,0)) -> ひゃくえん | S174: =IF(S$11="","",VLOOKUP(S171,漢字読み!$A$2:$O$506,8,0)) -> たけ | T174: =IF(T$11="","",VLOOKUP(T171,漢字読み!$A$2:$O$506,8,0)) -> せき | V174: 名前
A175: =IF(A171="","",IF(VLOOKUP(A171,漢字書き!$A$2:$N$502,7,0)=0,"",VLOOKUP(A171,漢字書き!$A$2:$N$502,7,0))) ->  | B175: =IF(B171="","",IF(VLOOKUP(B171,漢字書き!$A$2:$N$502,7,0)=0,"",VLOOKUP(B171,漢字書き!$A$2:$N$502,7,0))) ->  | C175: =IF(C171="","",IF(VLOOKUP(C171,漢字書き!$A$2:$N$502,7,0)=0,"",VLOOKUP(C171,漢字書き!$A$2:$N$502,7,0))) -> もん | D175: =IF(D171="","",IF(VLOOKUP(D171,漢字書き!$A$2:$N$502,7,0)=0,"",VLOOKUP(D171,漢字書き!$A$2:$N$502,7,0))) -> ない | E175: =IF(E171="","",IF(VLOOKUP(E171,漢字書き!$A$2:$N$502,7,0)=0,"",VLOOKUP(E171,漢字書き!$A$2:$N$502,7,0))) -> しい | F175: =IF(F171="","",IF(VLOOKUP(F171,漢字書き!$A$2:$N$502,7,0)=0,"",VLOOKUP(F171,漢字書き!$A$2:$N$502,7,0))) -> い | G175: =IF(G171="","",IF(VLOOKUP(G171,漢字書き!$A$2:$N$502,7,0)=0,"",VLOOKUP(G171,漢字書き!$A$2:$N$502,7,0))) -> つ | H175: =IF(H171="","",IF(VLOOKUP(H171,漢字書き!$A$2:$N$502,7,0)=0,"",VLOOKUP(H171,漢字書き!$A$2:$N$502,7,0))) ->  | I175: =IF(I171="","",IF(VLOOKUP(I171,漢字書き!$A$2:$N$502,7,0)=0,"",VLOOKUP(I171,漢字書き!$A$2:$N$502,7,0))) ->  | J175: =IF(J171="","",IF(VLOOKUP(J171,漢字書き!$A$2:$N$502,7,0)=0,"",VLOOKUP(J171,漢字書き!$A$2:$N$502,7,0))) -> ようび | K175: =IF(K171="","",IF(VLOOKUP(K171,漢字読み!$A$2:$O$502,7,0)=0,"",VLOOKUP(K171,漢字読み!$A$2:$O$502,7,0))) -> ちゃん | L175: =IF(L171="","",IF(VLOOKUP(L171,漢字読み!$A$2:$O$502,7,0)=0,"",VLOOKUP(L171,漢字読み!$A$2:$O$502,7,0))) ->  | M175: =IF(M171="","",IF(VLOOKUP(M171,漢字読み!$A$2:$O$502,7,0)=0,"",VLOOKUP(M171,漢字読み!$A$2:$O$502,7,0))) ->  | N175: =IF(N171="","",IF(VLOOKUP(N171,漢字読み!$A$2:$O$502,7,0)=0,"",VLOOKUP(N171,漢字読み!$A$2:$O$502,7,0))) -> むら | O175: =IF(O171="","",IF(VLOOKUP(O171,漢字読み!$A$2:$O$502,7,0)=0,"",VLOOKUP(O171,漢字読み!$A$2:$O$502,7,0))) -> る | P175: =IF(P171="","",IF(VLOOKUP(P171,漢字読み!$A$2:$O$502,7,0)=0,"",VLOOKUP(P171,漢字読み!$A$2:$O$502,7,0))) ->  | Q175: =IF(Q171="","",IF(VLOOKUP(Q171,漢字読み!$A$2:$O$502,7,0)=0,"",VLOOKUP(Q171,漢字読み!$A$2:$O$502,7,0))) ->  | R175: =IF(R171="","",IF(VLOOKUP(R171,漢字読み!$A$2:$O$502,7,0)=0,"",VLOOKUP(R171,漢字読み!$A$2:$O$502,7,0))) ->  | S175: =IF(S171="","",IF(VLOOKUP(S171,漢字読み!$A$2:$O$502,7,0)=0,"",VLOOKUP(S171,漢字読み!$A$2:$O$502,7,0))) -> とんぼ | T175: =IF(T171="","",IF(VLOOKUP(T171,漢字読み!$A$2:$O$502,7,0)=0,"",VLOOKUP(T171,漢字読み!$A$2:$O$502,7,0))) -> はん | W175: 和歌山県教育委員会
A176: =A166 -> 155 | B176: =B166 -> 68 | C176: 72 | D176: 30 | E176: 162 | F176: 0 | G176: 0 | H176: 0 | I176: 0 | J176: 0 | K176: 166 | L176: 178 | M176: 58 | N176: 169 | O176: 60 | P176: 82 | Q176: 13 | R176: 47 | S176: 176 | T176: 120
A177: ⑳ | B177: ⑲ | C177: ⑱ | D177: ⑰ | E177: ⑯ | F177: ⑮ | G177: ⑭ | H177: ⑬ | I177: ⑫ | J177: ⑪ | K177: ⑩ | L177: ⑨ | M177: ⑧ | N177: ⑦ | O177: ⑥ | P177: ⑤ | Q177: ④ | R177: ③ | S177: ② | T177: ① | U177: 次の［ ］の部分の漢字には読みがなをひらがなで書き、カタカナは漢字に直しなさい。 | V177: 15 | W177: 「漢字の博士検定試験」練習問題
A178: =IF(A176="","",VLOOKUP(A176,漢字書き!$A$2:$N$506,6,0)) -> ［ヒャクヤッ］つ | B178: =IF(B176="","",VLOOKUP(B176,漢字書き!$A$2:$N$506,6,0)) -> ［ミミ］かきをする | C178: =IF(C176="","",VLOOKUP(C176,漢字書き!$A$2:$N$506,6,0)) -> ［クルマ］にのる | D178: =IF(D176="","",VLOOKUP(D176,漢字書き!$A$2:$N$506,6,0)) -> ［ココノ］つ | E178: =IF(E176="","",VLOOKUP(E176,漢字書き!$A$2:$N$506,6,0)) -> ［ホンブン］をよむ | F178: =IF(F176="","",VLOOKUP(F176,漢字書き!$A$2:$N$506,6,0)) ->  | G178: =IF(G176="","",VLOOKUP(G176,漢字書き!$A$2:$N$506,6,0)) ->  | H178: =IF(H176="","",VLOOKUP(H176,漢字書き!$A$2:$N$506,6,0)) ->  | I178: =IF(I176="","",VLOOKUP(I176,漢字書き!$A$2:$N$506,6,0)) ->  | J178: =IF(J176="","",VLOOKUP(J176,漢字書き!$A$2:$N$506,6,0)) ->  | K178: =IF(K176="","",VLOOKUP(K176,漢字読み!$A$2:$O$506,6,0)) -> ［文学］をよむ | L178: =IF(L176="","",VLOOKUP(L176,漢字読み!$A$2:$O$506,6,0)) -> ［立］たいもけい | M178: =IF(M176="","",VLOOKUP(M176,漢字読み!$A$2:$O$506,6,0)) -> ［左手］をあげる | N178: =IF(N176="","",VLOOKUP(N176,漢字読み!$A$2:$O$506,6,0)) -> ［木］のぼり | O178: =IF(O176="","",VLOOKUP(O176,漢字読み!$A$2:$O$506,6,0)) -> ［三］つのねがい | P178: =IF(P176="","",VLOOKUP(P176,漢字読み!$A$2:$O$506,6,0)) -> ［女］の子 | Q178: =IF(Q176="","",VLOOKUP(Q176,漢字読み!$A$2:$O$506,6,0)) -> ［音］がひびく | R178: =IF(R176="","",VLOOKUP(R176,漢字読み!$A$2:$O$506,6,0)) -> ［犬］をかう | S178: =IF(S176="","",VLOOKUP(S176,漢字読み!$A$2:$O$506,6,0)) -> ［目］ひょうをもつ | T178: =IF(T176="","",VLOOKUP(T176,漢字読み!$A$2:$O$506,6,0)) -> ［早］ちょうれんしゅう | V178: 級
A179: =IF(A$16="","",VLOOKUP(A176,漢字書き!$A$2:$O$506,8,0)) -> 百八 | B179: =IF(B$16="","",VLOOKUP(B176,漢字書き!$A$2:$O$506,8,0)) -> 耳 | C179: =IF(C$16="","",VLOOKUP(C176,漢字書き!$A$2:$O$506,8,0)) -> 車 | D179: =IF(D$16="","",VLOOKUP(D176,漢字書き!$A$2:$O$506,8,0)) -> 九 | E179: =IF(E$16="","",VLOOKUP(E176,漢字書き!$A$2:$O$506,8,0)) -> 本文 | F179: =IF(F$16="","",VLOOKUP(F176,漢字書き!$A$2:$O$506,8,0)) ->  | G179: =IF(G$16="","",VLOOKUP(G176,漢字書き!$A$2:$O$506,8,0)) ->  | H179: =IF(H$16="","",VLOOKUP(H176,漢字書き!$A$2:$O$506,8,0)) ->  | I179: =IF(I$16="","",VLOOKUP(I176,漢字書き!$A$2:$O$506,8,0)) ->  | J179: =IF(J$16="","",VLOOKUP(J176,漢字書き!$A$2:$O$506,8,0)) ->  | K179: =IF(K$16="","",VLOOKUP(K176,漢字読み!$A$2:$O$506,8,0)) -> ぶんがく | L179: =IF(L$16="","",VLOOKUP(L176,漢字読み!$A$2:$O$506,8,0)) -> りっ | M179: =IF(M$16="","",VLOOKUP(M176,漢字読み!$A$2:$O$506,8,0)) -> ひだりて | N179: =IF(N$16="","",VLOOKUP(N176,漢字読み!$A$2:$O$506,8,0)) -> き | O179: =IF(O$16="","",VLOOKUP(O176,漢字読み!$A$2:$O$506,8,0)) -> みっ | P179: =IF(P$16="","",VLOOKUP(P176,漢字読み!$A$2:$O$506,8,0)) -> おんな | Q179: =IF(Q$16="","",VLOOKUP(Q176,漢字読み!$A$2:$O$506,8,0)) -> おと | R179: =IF(R$16="","",VLOOKUP(R176,漢字読み!$A$2:$O$506,8,0)) -> いぬ | S179: =IF(S$16="","",VLOOKUP(S176,漢字読み!$A$2:$O$506,8,0)) -> もく | T179: =IF(T$16="","",VLOOKUP(T176,漢字読み!$A$2:$O$506,8,0)) -> そう | V179: 名前
A180: =IF(A176="","",IF(VLOOKUP(A176,漢字書き!$A$2:$N$502,7,0)=0,"",VLOOKUP(A176,漢字書き!$A$2:$N$502,7,0))) -> つ | B180: =IF(B176="","",IF(VLOOKUP(B176,漢字書き!$A$2:$N$502,7,0)=0,"",VLOOKUP(B176,漢字書き!$A$2:$N$502,7,0))) -> かき | C180: =IF(C176="","",IF(VLOOKUP(C176,漢字書き!$A$2:$N$502,7,0)=0,"",VLOOKUP(C176,漢字書き!$A$2:$N$502,7,0))) ->  | D180: =IF(D176="","",IF(VLOOKUP(D176,漢字書き!$A$2:$N$502,7,0)=0,"",VLOOKUP(D176,漢字書き!$A$2:$N$502,7,0))) -> つ | E180: =IF(E176="","",IF(VLOOKUP(E176,漢字書き!$A$2:$N$502,7,0)=0,"",VLOOKUP(E176,漢字書き!$A$2:$N$502,7,0))) ->  | F180: =IF(F176="","",IF(VLOOKUP(F176,漢字書き!$A$2:$N$502,7,0)=0,"",VLOOKUP(F176,漢字書き!$A$2:$N$502,7,0))) ->  | G180: =IF(G176="","",IF(VLOOKUP(G176,漢字書き!$A$2:$N$502,7,0)=0,"",VLOOKUP(G176,漢字書き!$A$2:$N$502,7,0))) ->  | H180: =IF(H176="","",IF(VLOOKUP(H176,漢字書き!$A$2:$N$502,7,0)=0,"",VLOOKUP(H176,漢字書き!$A$2:$N$502,7,0))) ->  | I180: =IF(I176="","",IF(VLOOKUP(I176,漢字書き!$A$2:$N$502,7,0)=0,"",VLOOKUP(I176,漢字書き!$A$2:$N$502,7,0))) ->  | J180: =IF(J176="","",IF(VLOOKUP(J176,漢字書き!$A$2:$N$502,7,0)=0,"",VLOOKUP(J176,漢字書き!$A$2:$N$502,7,0))) ->  | K180: =IF(K176="","",IF(VLOOKUP(K176,漢字読み!$A$2:$O$502,7,0)=0,"",VLOOKUP(K176,漢字読み!$A$2:$O$502,7,0))) ->  | L180: =IF(L176="","",IF(VLOOKUP(L176,漢字読み!$A$2:$O$502,7,0)=0,"",VLOOKUP(L176,漢字読み!$A$2:$O$502,7,0))) -> たい | M180: =IF(M176="","",IF(VLOOKUP(M176,漢字読み!$A$2:$O$502,7,0)=0,"",VLOOKUP(M176,漢字読み!$A$2:$O$502,7,0))) ->  | N180: =IF(N176="","",IF(VLOOKUP(N176,漢字読み!$A$2:$O$502,7,0)=0,"",VLOOKUP(N176,漢字読み!$A$2:$O$502,7,0))) -> のぼり | O180: =IF(O176="","",IF(VLOOKUP(O176,漢字読み!$A$2:$O$502,7,0)=0,"",VLOOKUP(O176,漢字読み!$A$2:$O$502,7,0))) -> つ | P180: =IF(P176="","",IF(VLOOKUP(P176,漢字読み!$A$2:$O$502,7,0)=0,"",VLOOKUP(P176,漢字読み!$A$2:$O$502,7,0))) ->  | Q180: =IF(Q176="","",IF(VLOOKUP(Q176,漢字読み!$A$2:$O$502,7,0)=0,"",VLOOKUP(Q176,漢字読み!$A$2:$O$502,7,0))) ->  | R180: =IF(R176="","",IF(VLOOKUP(R176,漢字読み!$A$2:$O$502,7,0)=0,"",VLOOKUP(R176,漢字読み!$A$2:$O$502,7,0))) ->  | S180: =IF(S176="","",IF(VLOOKUP(S176,漢字読み!$A$2:$O$502,7,0)=0,"",VLOOKUP(S176,漢字読み!$A$2:$O$502,7,0))) -> ひょう | T180: =IF(T176="","",IF(VLOOKUP(T176,漢字読み!$A$2:$O$502,7,0)=0,"",VLOOKUP(T176,漢字読み!$A$2:$O$502,7,0))) -> ちょう | W180: 和歌山県教育委員会
A181: =INDIRECT("'関数（書き）'!C" & COLUMN(B$1)+SUM($AD$2:$AD182)) -> 0 | B181: =INDIRECT("'関数（書き）'!C" & COLUMN(C$1)+SUM($AD$2:$AD182)) -> 0 | C181: =INDIRECT("'関数（書き）'!C" & COLUMN(D$1)+SUM($AD$2:$AD182)) -> 0 | D181: =INDIRECT("'関数（書き）'!C" & COLUMN(E$1)+SUM($AD$2:$AD182)) -> 0 | E181: =INDIRECT("'関数（書き）'!C" & COLUMN(F$1)+SUM($AD$2:$AD182)) -> 0 | F181: =INDIRECT("'関数（書き）'!C" & COLUMN(G$1)+SUM($AD$2:$AD182)) -> 0 | G181: =INDIRECT("'関数（書き）'!C" & COLUMN(H$1)+SUM($AD$2:$AD182)) -> 0 | H181: =INDIRECT("'関数（書き）'!C" & COLUMN(I$1)+SUM($AD$2:$AD182)) -> 0 | I181: =INDIRECT("'関数（書き）'!C" & COLUMN(J$1)+SUM($AD$2:$AD182)) -> 0 | J181: =INDIRECT("'関数（書き）'!C" & COLUMN(K$1)+SUM($AD$2:$AD182)) -> 0 | K181: =INDIRECT("'関数（読み）'!C" & COLUMN(B$1)+SUM($AD$2:$AD182)) -> 146 | L181: =INDIRECT("'関数（読み）'!C" & COLUMN(C$1)+SUM($AD$2:$AD182)) -> 48 | M181: =INDIRECT("'関数（読み）'!C" & COLUMN(D$1)+SUM($AD$2:$AD182)) -> 186 | N181: =INDIRECT("'関数（読み）'!C" & COLUMN(E$1)+SUM($AD$2:$AD182)) -> 142 | O181: =INDIRECT("'関数（読み）'!C" & COLUMN(F$1)+SUM($AD$2:$AD182)) -> 102 | P181: =INDIRECT("'関数（読み）'!C" & COLUMN(G$1)+SUM($AD$2:$AD182)) -> 63 | Q181: =INDIRECT("'関数（読み）'!C" & COLUMN(H$1)+SUM($AD$2:$AD182)) -> 0 | R181: =INDIRECT("'関数（読み）'!C" & COLUMN(I$1)+SUM($AD$2:$AD182)) -> 0 | S181: =INDIRECT("'関数（読み）'!C" & COLUMN(J$1)+SUM($AD$2:$AD182)) -> 0 | T181: =INDIRECT("'関数（読み）'!C" & COLUMN(K$1)+SUM($AD$2:$AD182)) -> 0
A182: ⑳ | B182: ⑲ | C182: ⑱ | D182: ⑰ | E182: ⑯ | F182: ⑮ | G182: ⑭ | H182: ⑬ | I182: ⑫ | J182: ⑪ | K182: ⑩ | L182: ⑨ | M182: ⑧ | N182: ⑦ | O182: ⑥ | P182: ⑤ | Q182: ④ | R182: ③ | S182: ② | T182: ① | U182: 次の［ ］の部分の漢字には読みがなをひらがなで書き、カタカナは漢字に直しなさい。 | V182: 15 | W182: 「漢字の博士検定試験」練習問題 | AC182: ← | AD182: 10 | AE182: 問 | AF182: =AH167+1 -> 181 | AG182: ～ | AH182: =SUM($AD$2:$AD182)+10 -> 190 | AI182: 問まで | AJ182: =COUNTIF($A$1:$T$200,T183) -> 195
A183: =IF(A181="","",VLOOKUP(A181,漢字書き!$A$2:$N$506,6,0)) ->  | B183: =IF(B181="","",VLOOKUP(B181,漢字書き!$A$2:$N$506,6,0)) ->  | C183: =IF(C181="","",VLOOKUP(C181,漢字書き!$A$2:$N$506,6,0)) ->  | D183: =IF(D181="","",VLOOKUP(D181,漢字書き!$A$2:$N$506,6,0)) ->  | E183: =IF(E181="","",VLOOKUP(E181,漢字書き!$A$2:$N$506,6,0)) ->  | F183: =IF(F181="","",VLOOKUP(F181,漢字書き!$A$2:$N$506,6,0)) ->  | G183: =IF(G181="","",VLOOKUP(G181,漢字書き!$A$2:$N$506,6,0)) ->  | H183: =IF(H181="","",VLOOKUP(H181,漢字書き!$A$2:$N$506,6,0)) ->  | I183: =IF(I181="","",VLOOKUP(I181,漢字書き!$A$2:$N$506,6,0)) ->  | J183: =IF(J181="","",VLOOKUP(J181,漢字書き!$A$2:$N$506,6,0)) ->  | K183: =IF(K181="","",VLOOKUP(K181,漢字読み!$A$2:$O$506,6,0)) -> かみねん［土］ | L183: =IF(L181="","",VLOOKUP(L181,漢字読み!$A$2:$O$506,6,0)) -> こうじょうの［見学］ | M183: =IF(M181="","",VLOOKUP(M181,漢字読み!$A$2:$O$506,6,0)) -> ［六］つならぶ | N183: =IF(N181="","",VLOOKUP(N181,漢字読み!$A$2:$O$506,6,0)) -> ［天］たいかんそく | O183: =IF(O181="","",VLOOKUP(O181,漢字読み!$A$2:$O$506,6,0)) -> はが［生］える | P183: =IF(P181="","",VLOOKUP(P181,漢字読み!$A$2:$O$506,6,0)) -> ［子］ねこのせわ | Q183: =IF(Q181="","",VLOOKUP(Q181,漢字読み!$A$2:$O$506,6,0)) ->  | R183: =IF(R181="","",VLOOKUP(R181,漢字読み!$A$2:$O$506,6,0)) ->  | S183: =IF(S181="","",VLOOKUP(S181,漢字読み!$A$2:$O$506,6,0)) ->  | T183: =IF(T181="","",VLOOKUP(T181,漢字読み!$A$2:$O$506,6,0)) ->  | V183: 級
V184: 名前
A185: =IF(A181="","",IF(VLOOKUP(A181,漢字書き!$A$2:$N$502,7,0)=0,"",VLOOKUP(A181,漢字書き!$A$2:$N$502,7,0))) ->  | B185: =IF(B181="","",IF(VLOOKUP(B181,漢字書き!$A$2:$N$502,7,0)=0,"",VLOOKUP(B181,漢字書き!$A$2:$N$502,7,0))) ->  | C185: =IF(C181="","",IF(VLOOKUP(C181,漢字書き!$A$2:$N$502,7,0)=0,"",VLOOKUP(C181,漢字書き!$A$2:$N$502,7,0))) ->  | D185: =IF(D181="","",IF(VLOOKUP(D181,漢字書き!$A$2:$N$502,7,0)=0,"",VLOOKUP(D181,漢字書き!$A$2:$N$502,7,0))) ->  | E185: =IF(E181="","",IF(VLOOKUP(E181,漢字書き!$A$2:$N$502,7,0)=0,"",VLOOKUP(E181,漢字書き!$A$2:$N$502,7,0))) ->  | F185: =IF(F181="","",IF(VLOOKUP(F181,漢字書き!$A$2:$N$502,7,0)=0,"",VLOOKUP(F181,漢字書き!$A$2:$N$502,7,0))) ->  | G185: =IF(G181="","",IF(VLOOKUP(G181,漢字書き!$A$2:$N$502,7,0)=0,"",VLOOKUP(G181,漢字書き!$A$2:$N$502,7,0))) ->  | H185: =IF(H181="","",IF(VLOOKUP(H181,漢字書き!$A$2:$N$502,7,0)=0,"",VLOOKUP(H181,漢字書き!$A$2:$N$502,7,0))) ->  | I185: =IF(I181="","",IF(VLOOKUP(I181,漢字書き!$A$2:$N$502,7,0)=0,"",VLOOKUP(I181,漢字書き!$A$2:$N$502,7,0))) ->  | J185: =IF(J181="","",IF(VLOOKUP(J181,漢字書き!$A$2:$N$502,7,0)=0,"",VLOOKUP(J181,漢字書き!$A$2:$N$502,7,0))) ->  | K185: =IF(K181="","",IF(VLOOKUP(K181,漢字読み!$A$2:$O$502,7,0)=0,"",VLOOKUP(K181,漢字読み!$A$2:$O$502,7,0))) ->  | L185: =IF(L181="","",IF(VLOOKUP(L181,漢字読み!$A$2:$O$502,7,0)=0,"",VLOOKUP(L181,漢字読み!$A$2:$O$502,7,0))) ->  | M185: =IF(M181="","",IF(VLOOKUP(M181,漢字読み!$A$2:$O$502,7,0)=0,"",VLOOKUP(M181,漢字読み!$A$2:$O$502,7,0))) -> つ | N185: =IF(N181="","",IF(VLOOKUP(N181,漢字読み!$A$2:$O$502,7,0)=0,"",VLOOKUP(N181,漢字読み!$A$2:$O$502,7,0))) -> たい | O185: =IF(O181="","",IF(VLOOKUP(O181,漢字読み!$A$2:$O$502,7,0)=0,"",VLOOKUP(O181,漢字読み!$A$2:$O$502,7,0))) -> える | P185: =IF(P181="","",IF(VLOOKUP(P181,漢字読み!$A$2:$O$502,7,0)=0,"",VLOOKUP(P181,漢字読み!$A$2:$O$502,7,0))) -> ねこ | Q185: =IF(Q181="","",IF(VLOOKUP(Q181,漢字読み!$A$2:$O$502,7,0)=0,"",VLOOKUP(Q181,漢字読み!$A$2:$O$502,7,0))) ->  | R185: =IF(R181="","",IF(VLOOKUP(R181,漢字読み!$A$2:$O$502,7,0)=0,"",VLOOKUP(R181,漢字読み!$A$2:$O$502,7,0))) ->  | S185: =IF(S181="","",IF(VLOOKUP(S181,漢字読み!$A$2:$O$502,7,0)=0,"",VLOOKUP(S181,漢字読み!$A$2:$O$502,7,0))) ->  | T185: =IF(T181="","",IF(VLOOKUP(T181,漢字読み!$A$2:$O$502,7,0)=0,"",VLOOKUP(T181,漢字読み!$A$2:$O$502,7,0))) ->  | W185: 和歌山県教育委員会
A186: =INDIRECT("'関数（書き）'!C" & COLUMN(B$1)+SUM($AD$2:$AD187)) -> 0 | B186: =INDIRECT("'関数（書き）'!C" & COLUMN(C$1)+SUM($AD$2:$AD187)) -> 0 | C186: =INDIRECT("'関数（書き）'!C" & COLUMN(D$1)+SUM($AD$2:$AD187)) -> 0 | D186: =INDIRECT("'関数（書き）'!C" & COLUMN(E$1)+SUM($AD$2:$AD187)) -> 0 | E186: =INDIRECT("'関数（書き）'!C" & COLUMN(F$1)+SUM($AD$2:$AD187)) -> 0 | F186: =INDIRECT("'関数（書き）'!C" & COLUMN(G$1)+SUM($AD$2:$AD187)) -> 0 | G186: =INDIRECT("'関数（書き）'!C" & COLUMN(H$1)+SUM($AD$2:$AD187)) -> 0 | H186: =INDIRECT("'関数（書き）'!C" & COLUMN(I$1)+SUM($AD$2:$AD187)) -> 0 | I186: =INDIRECT("'関数（書き）'!C" & COLUMN(J$1)+SUM($AD$2:$AD187)) -> 0 | J186: =INDIRECT("'関数（書き）'!C" & COLUMN(K$1)+SUM($AD$2:$AD187)) -> 0 | K186: =INDIRECT("'関数（読み）'!C" & COLUMN(B$1)+SUM($AD$2:$AD187)) -> 0 | L186: =INDIRECT("'関数（読み）'!C" & COLUMN(C$1)+SUM($AD$2:$AD187)) -> 0 | M186: =INDIRECT("'関数（読み）'!C" & COLUMN(D$1)+SUM($AD$2:$AD187)) -> 0 | N186: =INDIRECT("'関数（読み）'!C" & COLUMN(E$1)+SUM($AD$2:$AD187)) -> 0 | O186: =INDIRECT("'関数（読み）'!C" & COLUMN(F$1)+SUM($AD$2:$AD187)) -> 0 | P186: =INDIRECT("'関数（読み）'!C" & COLUMN(G$1)+SUM($AD$2:$AD187)) -> 0 | Q186: =INDIRECT("'関数（読み）'!C" & COLUMN(H$1)+SUM($AD$2:$AD187)) -> 0 | R186: =INDIRECT("'関数（読み）'!C" & COLUMN(I$1)+SUM($AD$2:$AD187)) -> 0 | S186: =INDIRECT("'関数（読み）'!C" & COLUMN(J$1)+SUM($AD$2:$AD187)) -> 0 | T186: =INDIRECT("'関数（読み）'!C" & COLUMN(K$1)+SUM($AD$2:$AD187)) -> 0
A187: ⑳ | B187: ⑲ | C187: ⑱ | D187: ⑰ | E187: ⑯ | F187: ⑮ | G187: ⑭ | H187: ⑬ | I187: ⑫ | J187: ⑪ | K187: ⑩ | L187: ⑨ | M187: ⑧ | N187: ⑦ | O187: ⑥ | P187: ⑤ | Q187: ④ | R187: ③ | S187: ② | T187: ① | U187: 次の［ ］の部分の漢字には読みがなをひらがなで書き、カタカナは漢字に直しなさい。 | V187: 15 | W187: 「漢字の博士検定試験」練習問題 | AC187: ← | AD187: 10 | AE187: 問 | AF187: =AH182+1 -> 191 | AG187: ～ | AH187: =SUM($AD$2:$AD187)+10 -> 200 | AI187: 問まで | AJ187: =COUNTIF($A$1:$T$200,T188) -> 195
A188: =IF(A186="","",VLOOKUP(A186,漢字書き!$A$2:$N$506,6,0)) ->  | B188: =IF(B186="","",VLOOKUP(B186,漢字書き!$A$2:$N$506,6,0)) ->  | C188: =IF(C186="","",VLOOKUP(C186,漢字書き!$A$2:$N$506,6,0)) ->  | D188: =IF(D186="","",VLOOKUP(D186,漢字書き!$A$2:$N$506,6,0)) ->  | E188: =IF(E186="","",VLOOKUP(E186,漢字書き!$A$2:$N$506,6,0)) ->  | F188: =IF(F186="","",VLOOKUP(F186,漢字書き!$A$2:$N$506,6,0)) ->  | G188: =IF(G186="","",VLOOKUP(G186,漢字書き!$A$2:$N$506,6,0)) ->  | H188: =IF(H186="","",VLOOKUP(H186,漢字書き!$A$2:$N$506,6,0)) ->  | I188: =IF(I186="","",VLOOKUP(I186,漢字書き!$A$2:$N$506,6,0)) ->  | J188: =IF(J186="","",VLOOKUP(J186,漢字書き!$A$2:$N$506,6,0)) ->  | K188: =IF(K186="","",VLOOKUP(K186,漢字読み!$A$2:$O$506,6,0)) ->  | L188: =IF(L186="","",VLOOKUP(L186,漢字読み!$A$2:$O$506,6,0)) ->  | M188: =IF(M186="","",VLOOKUP(M186,漢字読み!$A$2:$O$506,6,0)) ->  | N188: =IF(N186="","",VLOOKUP(N186,漢字読み!$A$2:$O$506,6,0)) ->  | O188: =IF(O186="","",VLOOKUP(O186,漢字読み!$A$2:$O$506,6,0)) ->  | P188: =IF(P186="","",VLOOKUP(P186,漢字読み!$A$2:$O$506,6,0)) ->  | Q188: =IF(Q186="","",VLOOKUP(Q186,漢字読み!$A$2:$O$506,6,0)) ->  | R188: =IF(R186="","",VLOOKUP(R186,漢字読み!$A$2:$O$506,6,0)) ->  | S188: =IF(S186="","",VLOOKUP(S186,漢字読み!$A$2:$O$506,6,0)) ->  | T188: =IF(T186="","",VLOOKUP(T186,漢字読み!$A$2:$O$506,6,0)) ->  | V188: 級
V189: 名前
A190: =IF(A186="","",IF(VLOOKUP(A186,漢字書き!$A$2:$N$502,7,0)=0,"",VLOOKUP(A186,漢字書き!$A$2:$N$502,7,0))) ->  | B190: =IF(B186="","",IF(VLOOKUP(B186,漢字書き!$A$2:$N$502,7,0)=0,"",VLOOKUP(B186,漢字書き!$A$2:$N$502,7,0))) ->  | C190: =IF(C186="","",IF(VLOOKUP(C186,漢字書き!$A$2:$N$502,7,0)=0,"",VLOOKUP(C186,漢字書き!$A$2:$N$502,7,0))) ->  | D190: =IF(D186="","",IF(VLOOKUP(D186,漢字書き!$A$2:$N$502,7,0)=0,"",VLOOKUP(D186,漢字書き!$A$2:$N$502,7,0))) ->  | E190: =IF(E186="","",IF(VLOOKUP(E186,漢字書き!$A$2:$N$502,7,0)=0,"",VLOOKUP(E186,漢字書き!$A$2:$N$502,7,0))) ->  | F190: =IF(F186="","",IF(VLOOKUP(F186,漢字書き!$A$2:$N$502,7,0)=0,"",VLOOKUP(F186,漢字書き!$A$2:$N$502,7,0))) ->  | G190: =IF(G186="","",IF(VLOOKUP(G186,漢字書き!$A$2:$N$502,7,0)=0,"",VLOOKUP(G186,漢字書き!$A$2:$N$502,7,0))) ->  | H190: =IF(H186="","",IF(VLOOKUP(H186,漢字書き!$A$2:$N$502,7,0)=0,"",VLOOKUP(H186,漢字書き!$A$2:$N$502,7,0))) ->  | I190: =IF(I186="","",IF(VLOOKUP(I186,漢字書き!$A$2:$N$502,7,0)=0,"",VLOOKUP(I186,漢字書き!$A$2:$N$502,7,0))) ->  | J190: =IF(J186="","",IF(VLOOKUP(J186,漢字書き!$A$2:$N$502,7,0)=0,"",VLOOKUP(J186,漢字書き!$A$2:$N$502,7,0))) ->  | K190: =IF(K186="","",IF(VLOOKUP(K186,漢字読み!$A$2:$O$502,7,0)=0,"",VLOOKUP(K186,漢字読み!$A$2:$O$502,7,0))) ->  | L190: =IF(L186="","",IF(VLOOKUP(L186,漢字読み!$A$2:$O$502,7,0)=0,"",VLOOKUP(L186,漢字読み!$A$2:$O$502,7,0))) ->  | M190: =IF(M186="","",IF(VLOOKUP(M186,漢字読み!$A$2:$O$502,7,0)=0,"",VLOOKUP(M186,漢字読み!$A$2:$O$502,7,0))) ->  | N190: =IF(N186="","",IF(VLOOKUP(N186,漢字読み!$A$2:$O$502,7,0)=0,"",VLOOKUP(N186,漢字読み!$A$2:$O$502,7,0))) ->  | O190: =IF(O186="","",IF(VLOOKUP(O186,漢字読み!$A$2:$O$502,7,0)=0,"",VLOOKUP(O186,漢字読み!$A$2:$O$502,7,0))) ->  | P190: =IF(P186="","",IF(VLOOKUP(P186,漢字読み!$A$2:$O$502,7,0)=0,"",VLOOKUP(P186,漢字読み!$A$2:$O$502,7,0))) ->  | Q190: =IF(Q186="","",IF(VLOOKUP(Q186,漢字読み!$A$2:$O$502,7,0)=0,"",VLOOKUP(Q186,漢字読み!$A$2:$O$502,7,0))) ->  | R190: =IF(R186="","",IF(VLOOKUP(R186,漢字読み!$A$2:$O$502,7,0)=0,"",VLOOKUP(R186,漢字読み!$A$2:$O$502,7,0))) ->  | S190: =IF(S186="","",IF(VLOOKUP(S186,漢字読み!$A$2:$O$502,7,0)=0,"",VLOOKUP(S186,漢字読み!$A$2:$O$502,7,0))) ->  | T190: =IF(T186="","",IF(VLOOKUP(T186,漢字読み!$A$2:$O$502,7,0)=0,"",VLOOKUP(T186,漢字読み!$A$2:$O$502,7,0))) ->  | W190: 和歌山県教育委員会
A191: =A181 -> 0 | B191: =B181 -> 0 | C191: 0 | D191: 0 | E191: 0 | F191: 0 | G191: 0 | H191: 0 | I191: 0 | J191: 0 | K191: 146 | L191: 48 | M191: 186 | N191: 142 | O191: 102 | P191: 63 | Q191: 0 | R191: 0 | S191: 0 | T191: 0
A192: ⑳ | B192: ⑲ | C192: ⑱ | D192: ⑰ | E192: ⑯ | F192: ⑮ | G192: ⑭ | H192: ⑬ | I192: ⑫ | J192: ⑪ | K192: ⑩ | L192: ⑨ | M192: ⑧ | N192: ⑦ | O192: ⑥ | P192: ⑤ | Q192: ④ | R192: ③ | S192: ② | T192: ① | U192: 次の［ ］の部分の漢字には読みがなをひらがなで書き、カタカナは漢字に直しなさい。 | V192: 15 | W192: 「漢字の博士検定試験」練習問題
A193: =IF(A191="","",VLOOKUP(A191,漢字書き!$A$2:$N$506,6,0)) ->  | B193: =IF(B191="","",VLOOKUP(B191,漢字書き!$A$2:$N$506,6,0)) ->  | C193: =IF(C191="","",VLOOKUP(C191,漢字書き!$A$2:$N$506,6,0)) ->  | D193: =IF(D191="","",VLOOKUP(D191,漢字書き!$A$2:$N$506,6,0)) ->  | E193: =IF(E191="","",VLOOKUP(E191,漢字書き!$A$2:$N$506,6,0)) ->  | F193: =IF(F191="","",VLOOKUP(F191,漢字書き!$A$2:$N$506,6,0)) ->  | G193: =IF(G191="","",VLOOKUP(G191,漢字書き!$A$2:$N$506,6,0)) ->  | H193: =IF(H191="","",VLOOKUP(H191,漢字書き!$A$2:$N$506,6,0)) ->  | I193: =IF(I191="","",VLOOKUP(I191,漢字書き!$A$2:$N$506,6,0)) ->  | J193: =IF(J191="","",VLOOKUP(J191,漢字書き!$A$2:$N$506,6,0)) ->  | K193: =IF(K191="","",VLOOKUP(K191,漢字読み!$A$2:$O$506,6,0)) -> かみねん［土］ | L193: =IF(L191="","",VLOOKUP(L191,漢字読み!$A$2:$O$506,6,0)) -> こうじょうの［見学］ | M193: =IF(M191="","",VLOOKUP(M191,漢字読み!$A$2:$O$506,6,0)) -> ［六］つならぶ | N193: =IF(N191="","",VLOOKUP(N191,漢字読み!$A$2:$O$506,6,0)) -> ［天］たいかんそく | O193: =IF(O191="","",VLOOKUP(O191,漢字読み!$A$2:$O$506,6,0)) -> はが［生］える | P193: =IF(P191="","",VLOOKUP(P191,漢字読み!$A$2:$O$506,6,0)) -> ［子］ねこのせわ | Q193: =IF(Q191="","",VLOOKUP(Q191,漢字読み!$A$2:$O$506,6,0)) ->  | R193: =IF(R191="","",VLOOKUP(R191,漢字読み!$A$2:$O$506,6,0)) ->  | S193: =IF(S191="","",VLOOKUP(S191,漢字読み!$A$2:$O$506,6,0)) ->  | T193: =IF(T191="","",VLOOKUP(T191,漢字読み!$A$2:$O$506,6,0)) ->  | V193: 級
A194: =IF(A$11="","",VLOOKUP(A191,漢字書き!$A$2:$O$506,8,0)) ->  | B194: =IF(B$11="","",VLOOKUP(B191,漢字書き!$A$2:$O$506,8,0)) ->  | C194: =IF(C$11="","",VLOOKUP(C191,漢字書き!$A$2:$O$506,8,0)) ->  | D194: =IF(D$11="","",VLOOKUP(D191,漢字書き!$A$2:$O$506,8,0)) ->  | E194: =IF(E$11="","",VLOOKUP(E191,漢字書き!$A$2:$O$506,8,0)) ->  | F194: =IF(F$11="","",VLOOKUP(F191,漢字書き!$A$2:$O$506,8,0)) ->  | G194: =IF(G$11="","",VLOOKUP(G191,漢字書き!$A$2:$O$506,8,0)) ->  | H194: =IF(H$11="","",VLOOKUP(H191,漢字書き!$A$2:$O$506,8,0)) ->  | I194: =IF(I$11="","",VLOOKUP(I191,漢字書き!$A$2:$O$506,8,0)) ->  | J194: =IF(J$11="","",VLOOKUP(J191,漢字書き!$A$2:$O$506,8,0)) ->  | K194: =IF(K$11="","",VLOOKUP(K191,漢字読み!$A$2:$O$506,8,0)) -> ど | L194: =IF(L$11="","",VLOOKUP(L191,漢字読み!$A$2:$O$506,8,0)) -> けんがく | M194: =IF(M$11="","",VLOOKUP(M191,漢字読み!$A$2:$O$506,8,0)) -> むっ | N194: =IF(N$11="","",VLOOKUP(N191,漢字読み!$A$2:$O$506,8,0)) -> てん | O194: =IF(O$11="","",VLOOKUP(O191,漢字読み!$A$2:$O$506,8,0)) -> は | P194: =IF(P$11="","",VLOOKUP(P191,漢字読み!$A$2:$O$506,8,0)) -> こ | Q194: =IF(Q$11="","",VLOOKUP(Q191,漢字読み!$A$2:$O$506,8,0)) ->  | R194: =IF(R$11="","",VLOOKUP(R191,漢字読み!$A$2:$O$506,8,0)) ->  | S194: =IF(S$11="","",VLOOKUP(S191,漢字読み!$A$2:$O$506,8,0)) ->  | T194: =IF(T$11="","",VLOOKUP(T191,漢字読み!$A$2:$O$506,8,0)) ->  | V194: 名前
A195: =IF(A191="","",IF(VLOOKUP(A191,漢字書き!$A$2:$N$502,7,0)=0,"",VLOOKUP(A191,漢字書き!$A$2:$N$502,7,0))) ->  | B195: =IF(B191="","",IF(VLOOKUP(B191,漢字書き!$A$2:$N$502,7,0)=0,"",VLOOKUP(B191,漢字書き!$A$2:$N$502,7,0))) ->  | C195: =IF(C191="","",IF(VLOOKUP(C191,漢字書き!$A$2:$N$502,7,0)=0,"",VLOOKUP(C191,漢字書き!$A$2:$N$502,7,0))) ->  | D195: =IF(D191="","",IF(VLOOKUP(D191,漢字書き!$A$2:$N$502,7,0)=0,"",VLOOKUP(D191,漢字書き!$A$2:$N$502,7,0))) ->  | E195: =IF(E191="","",IF(VLOOKUP(E191,漢字書き!$A$2:$N$502,7,0)=0,"",VLOOKUP(E191,漢字書き!$A$2:$N$502,7,0))) ->  | F195: =IF(F191="","",IF(VLOOKUP(F191,漢字書き!$A$2:$N$502,7,0)=0,"",VLOOKUP(F191,漢字書き!$A$2:$N$502,7,0))) ->  | G195: =IF(G191="","",IF(VLOOKUP(G191,漢字書き!$A$2:$N$502,7,0)=0,"",VLOOKUP(G191,漢字書き!$A$2:$N$502,7,0))) ->  | H195: =IF(H191="","",IF(VLOOKUP(H191,漢字書き!$A$2:$N$502,7,0)=0,"",VLOOKUP(H191,漢字書き!$A$2:$N$502,7,0))) ->  | I195: =IF(I191="","",IF(VLOOKUP(I191,漢字書き!$A$2:$N$502,7,0)=0,"",VLOOKUP(I191,漢字書き!$A$2:$N$502,7,0))) ->  | J195: =IF(J191="","",IF(VLOOKUP(J191,漢字書き!$A$2:$N$502,7,0)=0,"",VLOOKUP(J191,漢字書き!$A$2:$N$502,7,0))) ->  | K195: =IF(K191="","",IF(VLOOKUP(K191,漢字読み!$A$2:$O$502,7,0)=0,"",VLOOKUP(K191,漢字読み!$A$2:$O$502,7,0))) ->  | L195: =IF(L191="","",IF(VLOOKUP(L191,漢字読み!$A$2:$O$502,7,0)=0,"",VLOOKUP(L191,漢字読み!$A$2:$O$502,7,0))) ->  | M195: =IF(M191="","",IF(VLOOKUP(M191,漢字読み!$A$2:$O$502,7,0)=0,"",VLOOKUP(M191,漢字読み!$A$2:$O$502,7,0))) -> つ | N195: =IF(N191="","",IF(VLOOKUP(N191,漢字読み!$A$2:$O$502,7,0)=0,"",VLOOKUP(N191,漢字読み!$A$2:$O$502,7,0))) -> たい | O195: =IF(O191="","",IF(VLOOKUP(O191,漢字読み!$A$2:$O$502,7,0)=0,"",VLOOKUP(O191,漢字読み!$A$2:$O$502,7,0))) -> える | P195: =IF(P191="","",IF(VLOOKUP(P191,漢字読み!$A$2:$O$502,7,0)=0,"",VLOOKUP(P191,漢字読み!$A$2:$O$502,7,0))) -> ねこ | Q195: =IF(Q191="","",IF(VLOOKUP(Q191,漢字読み!$A$2:$O$502,7,0)=0,"",VLOOKUP(Q191,漢字読み!$A$2:$O$502,7,0))) ->  | R195: =IF(R191="","",IF(VLOOKUP(R191,漢字読み!$A$2:$O$502,7,0)=0,"",VLOOKUP(R191,漢字読み!$A$2:$O$502,7,0))) ->  | S195: =IF(S191="","",IF(VLOOKUP(S191,漢字読み!$A$2:$O$502,7,0)=0,"",VLOOKUP(S191,漢字読み!$A$2:$O$502,7,0))) ->  | T195: =IF(T191="","",IF(VLOOKUP(T191,漢字読み!$A$2:$O$502,7,0)=0,"",VLOOKUP(T191,漢字読み!$A$2:$O$502,7,0))) ->  | W195: 和歌山県教育委員会
A196: =A186 -> 0 | B196: =B186 -> 0 | C196: 0 | D196: 0 | E196: 0 | F196: 0 | G196: 0 | H196: 0 | I196: 0 | J196: 0 | K196: 0 | L196: 0 | M196: 0 | N196: 0 | O196: 0 | P196: 0 | Q196: 0 | R196: 0 | S196: 0 | T196: 0
A197: ⑳ | B197: ⑲ | C197: ⑱ | D197: ⑰ | E197: ⑯ | F197: ⑮ | G197: ⑭ | H197: ⑬ | I197: ⑫ | J197: ⑪ | K197: ⑩ | L197: ⑨ | M197: ⑧ | N197: ⑦ | O197: ⑥ | P197: ⑤ | Q197: ④ | R197: ③ | S197: ② | T197: ① | U197: 次の［ ］の部分の漢字には読みがなをひらがなで書き、カタカナは漢字に直しなさい。 | V197: 15 | W197: 「漢字の博士検定試験」練習問題
A198: =IF(A196="","",VLOOKUP(A196,漢字書き!$A$2:$N$506,6,0)) ->  | B198: =IF(B196="","",VLOOKUP(B196,漢字書き!$A$2:$N$506,6,0)) ->  | C198: =IF(C196="","",VLOOKUP(C196,漢字書き!$A$2:$N$506,6,0)) ->  | D198: =IF(D196="","",VLOOKUP(D196,漢字書き!$A$2:$N$506,6,0)) ->  | E198: =IF(E196="","",VLOOKUP(E196,漢字書き!$A$2:$N$506,6,0)) ->  | F198: =IF(F196="","",VLOOKUP(F196,漢字書き!$A$2:$N$506,6,0)) ->  | G198: =IF(G196="","",VLOOKUP(G196,漢字書き!$A$2:$N$506,6,0)) ->  | H198: =IF(H196="","",VLOOKUP(H196,漢字書き!$A$2:$N$506,6,0)) ->  | I198: =IF(I196="","",VLOOKUP(I196,漢字書き!$A$2:$N$506,6,0)) ->  | J198: =IF(J196="","",VLOOKUP(J196,漢字書き!$A$2:$N$506,6,0)) ->  | K198: =IF(K196="","",VLOOKUP(K196,漢字読み!$A$2:$O$506,6,0)) ->  | L198: =IF(L196="","",VLOOKUP(L196,漢字読み!$A$2:$O$506,6,0)) ->  | M198: =IF(M196="","",VLOOKUP(M196,漢字読み!$A$2:$O$506,6,0)) ->  | N198: =IF(N196="","",VLOOKUP(N196,漢字読み!$A$2:$O$506,6,0)) ->  | O198: =IF(O196="","",VLOOKUP(O196,漢字読み!$A$2:$O$506,6,0)) ->  | P198: =IF(P196="","",VLOOKUP(P196,漢字読み!$A$2:$O$506,6,0)) ->  | Q198: =IF(Q196="","",VLOOKUP(Q196,漢字読み!$A$2:$O$506,6,0)) ->  | R198: =IF(R196="","",VLOOKUP(R196,漢字読み!$A$2:$O$506,6,0)) ->  | S198: =IF(S196="","",VLOOKUP(S196,漢字読み!$A$2:$O$506,6,0)) ->  | T198: =IF(T196="","",VLOOKUP(T196,漢字読み!$A$2:$O$506,6,0)) ->  | V198: 級
A199: =IF(A$16="","",VLOOKUP(A196,漢字書き!$A$2:$O$506,8,0)) ->  | B199: =IF(B$16="","",VLOOKUP(B196,漢字書き!$A$2:$O$506,8,0)) ->  | C199: =IF(C$16="","",VLOOKUP(C196,漢字書き!$A$2:$O$506,8,0)) ->  | D199: =IF(D$16="","",VLOOKUP(D196,漢字書き!$A$2:$O$506,8,0)) ->  | E199: =IF(E$16="","",VLOOKUP(E196,漢字書き!$A$2:$O$506,8,0)) ->  | F199: =IF(F$16="","",VLOOKUP(F196,漢字書き!$A$2:$O$506,8,0)) ->  | G199: =IF(G$16="","",VLOOKUP(G196,漢字書き!$A$2:$O$506,8,0)) ->  | H199: =IF(H$16="","",VLOOKUP(H196,漢字書き!$A$2:$O$506,8,0)) ->  | I199: =IF(I$16="","",VLOOKUP(I196,漢字書き!$A$2:$O$506,8,0)) ->  | J199: =IF(J$16="","",VLOOKUP(J196,漢字書き!$A$2:$O$506,8,0)) ->  | K199: =IF(K$16="","",VLOOKUP(K196,漢字読み!$A$2:$O$506,8,0)) ->  | L199: =IF(L$16="","",VLOOKUP(L196,漢字読み!$A$2:$O$506,8,0)) ->  | M199: =IF(M$16="","",VLOOKUP(M196,漢字読み!$A$2:$O$506,8,0)) ->  | N199: =IF(N$16="","",VLOOKUP(N196,漢字読み!$A$2:$O$506,8,0)) ->  | O199: =IF(O$16="","",VLOOKUP(O196,漢字読み!$A$2:$O$506,8,0)) ->  | P199: =IF(P$16="","",VLOOKUP(P196,漢字読み!$A$2:$O$506,8,0)) ->  | Q199: =IF(Q$16="","",VLOOKUP(Q196,漢字読み!$A$2:$O$506,8,0)) ->  | R199: =IF(R$16="","",VLOOKUP(R196,漢字読み!$A$2:$O$506,8,0)) ->  | S199: =IF(S$16="","",VLOOKUP(S196,漢字読み!$A$2:$O$506,8,0)) ->  | T199: =IF(T$16="","",VLOOKUP(T196,漢字読み!$A$2:$O$506,8,0)) ->  | V199: 名前
A200: =IF(A196="","",IF(VLOOKUP(A196,漢字書き!$A$2:$N$502,7,0)=0,"",VLOOKUP(A196,漢字書き!$A$2:$N$502,7,0))) ->  | B200: =IF(B196="","",IF(VLOOKUP(B196,漢字書き!$A$2:$N$502,7,0)=0,"",VLOOKUP(B196,漢字書き!$A$2:$N$502,7,0))) ->  | C200: =IF(C196="","",IF(VLOOKUP(C196,漢字書き!$A$2:$N$502,7,0)=0,"",VLOOKUP(C196,漢字書き!$A$2:$N$502,7,0))) ->  | D200: =IF(D196="","",IF(VLOOKUP(D196,漢字書き!$A$2:$N$502,7,0)=0,"",VLOOKUP(D196,漢字書き!$A$2:$N$502,7,0))) ->  | E200: =IF(E196="","",IF(VLOOKUP(E196,漢字書き!$A$2:$N$502,7,0)=0,"",VLOOKUP(E196,漢字書き!$A$2:$N$502,7,0))) ->  | F200: =IF(F196="","",IF(VLOOKUP(F196,漢字書き!$A$2:$N$502,7,0)=0,"",VLOOKUP(F196,漢字書き!$A$2:$N$502,7,0))) ->  | G200: =IF(G196="","",IF(VLOOKUP(G196,漢字書き!$A$2:$N$502,7,0)=0,"",VLOOKUP(G196,漢字書き!$A$2:$N$502,7,0))) ->  | H200: =IF(H196="","",IF(VLOOKUP(H196,漢字書き!$A$2:$N$502,7,0)=0,"",VLOOKUP(H196,漢字書き!$A$2:$N$502,7,0))) ->  | I200: =IF(I196="","",IF(VLOOKUP(I196,漢字書き!$A$2:$N$502,7,0)=0,"",VLOOKUP(I196,漢字書き!$A$2:$N$502,7,0))) ->  | J200: =IF(J196="","",IF(VLOOKUP(J196,漢字書き!$A$2:$N$502,7,0)=0,"",VLOOKUP(J196,漢字書き!$A$2:$N$502,7,0))) ->  | K200: =IF(K196="","",IF(VLOOKUP(K196,漢字読み!$A$2:$O$502,7,0)=0,"",VLOOKUP(K196,漢字読み!$A$2:$O$502,7,0))) ->  | L200: =IF(L196="","",IF(VLOOKUP(L196,漢字読み!$A$2:$O$502,7,0)=0,"",VLOOKUP(L196,漢字読み!$A$2:$O$502,7,0))) ->  | M200: =IF(M196="","",IF(VLOOKUP(M196,漢字読み!$A$2:$O$502,7,0)=0,"",VLOOKUP(M196,漢字読み!$A$2:$O$502,7,0))) ->  | N200: =IF(N196="","",IF(VLOOKUP(N196,漢字読み!$A$2:$O$502,7,0)=0,"",VLOOKUP(N196,漢字読み!$A$2:$O$502,7,0))) ->  | O200: =IF(O196="","",IF(VLOOKUP(O196,漢字読み!$A$2:$O$502,7,0)=0,"",VLOOKUP(O196,漢字読み!$A$2:$O$502,7,0))) ->  | P200: =IF(P196="","",IF(VLOOKUP(P196,漢字読み!$A$2:$O$502,7,0)=0,"",VLOOKUP(P196,漢字読み!$A$2:$O$502,7,0))) ->  | Q200: =IF(Q196="","",IF(VLOOKUP(Q196,漢字読み!$A$2:$O$502,7,0)=0,"",VLOOKUP(Q196,漢字読み!$A$2:$O$502,7,0))) ->  | R200: =IF(R196="","",IF(VLOOKUP(R196,漢字読み!$A$2:$O$502,7,0)=0,"",VLOOKUP(R196,漢字読み!$A$2:$O$502,7,0))) ->  | S200: =IF(S196="","",IF(VLOOKUP(S196,漢字読み!$A$2:$O$502,7,0)=0,"",VLOOKUP(S196,漢字読み!$A$2:$O$502,7,0))) ->  | T200: =IF(T196="","",IF(VLOOKUP(T196,漢字読み!$A$2:$O$502,7,0)=0,"",VLOOKUP(T196,漢字読み!$A$2:$O$502,7,0))) ->  | W200: 和歌山県教育委員会
... 220 more rows

Sheet 漢字読み
A1: 通し番号 | B1: 問題番号 | C1: 漢字 | D1: 読み | E1: 音訓 | F1: 問題 | G1: 送り仮名 | H1: 読み
A2: 1 | B2: 1 | C2: 一 | D2: イチ | E2: 1 | F2: ［一］ばんになる | G2: ばん | H2: いち
A3: 2 | B3: 1 | C3: 一 | D3: イチ | E3: 2 | F3: ［一］つの花 | G3: つ | H3: ひと
A4: 3 | B4: 2 | C4: 右 | D4: ウ | E4: 2 | F4: まわれ［右］ | H4: みぎ
A5: 4 | B5: 2 | C5: 右 | D5: ウ | E5: 2 | F5: ［右］にまがる | H5: みぎ
A6: 5 | B6: 3 | C6: 雨 | D6: ウ | E6: 1 | F6: ［雨天］にちゅうい | H6: うてん
A7: 6 | B7: 3 | C7: 雨 | D7: ウ | E7: 2 | F7: ［雨］がふる | H7: あめ
A8: 7 | B8: 4 | C8: 円 | D8: エン | E8: 1 | F8: ［千円］さつ | G8: さつ | H8: せんえん
A9: 8 | B9: 4 | C9: 円 | D9: エン | E9: 1 | F9: ［円］のかたち | H9: えん
A10: 9 | B10: 5 | C10: 王 | D10: オウ | E10: 1 | F10: はだかの［王］さま | G10: さま | H10: おう
A11: 10 | B11: 5 | C11: 王 | D11: オウ | E11: 1 | F11: ［王子］になる | H11: おうじ
A12: 11 | B12: 5 | C12: 王 | D12: オウ | E12: 1 | F12: ［女王］のへや | H12: じょおう
A13: 12 | B13: 6 | C13: 音 | D13: オン | E13: 1 | F13: ［音］がくしつ | G13: がく | H13: おん
A14: 13 | B14: 6 | C14: 音 | D14: オン | E14: 2 | F14: ［音］がひびく | H14: おと
A15: 14 | B15: 7 | C15: 下 | D15: カ | E15: 1 | F15: 川の［下］りゅう | G15: りゅう | H15: か
A16: 15 | B16: 7 | C16: 下 | D16: カ | E16: 1 | F16: ［下校］する | G16: する | H16: げこう
A17: 16 | B17: 7 | C17: 下 | D17: カ | E17: 2 | F17: つくえの［下］ | H17: した
A18: 17 | B18: 7 | C18: 下 | D18: カ | E18: 2 | F18: 気おんが［下］がる | G18: がる | H18: さ
A19: 18 | B19: 8 | C19: 火 | D19: カ | E19: 1 | F19: ［火］よう日 | G19: よう | H19: か
A20: 19 | B20: 8 | C20: 火 | D20: カ | E20: 2 | F20: たき［火］をする | H20: び
A21: 20 | B21: 9 | C21: 花 | D21: カ | E21: 1 | F21: ［花］だんのせわ | G21: だん | H21: か
A22: 21 | B22: 9 | C22: 花 | D22: カ | E22: 2 | F22: コスモスの［花］ | H22: はな
A23: 22 | B23: 9 | C23: 花 | D23: カ | E23: 2 | F23: ［花］がさく | H23: はな
A24: 23 | B24: 10 | C24: 貝 | D24: かい | E24: 2 | F24: ［貝］がらをあつめる | G24: がら | H24: かい
A25: 24 | B25: 10 | C25: 貝 | D25: かい | E25: 2 | F25: ［貝］のもよう | H25: かい
A26: 25 | B26: 11 | C26: 学 | D26: ガク | E26: 1 | F26: ［見学］する | G26: する | H26: けんがく
A27: 26 | B27: 11 | C27: 学 | D27: ガク | E27: 1 | F27: ［入学］しき | G27: しき | H27: にゅうがく
A28: 27 | B28: 11 | C28: 学 | D28: ガク | E28: 2 | F28: ［学］びをふかめる | G28: び | H28: まな
A29: 28 | B29: 12 | C29: 気 | D29: キ | E29: 1 | F29: ［人気］もの | G29: もの | H29: にんき
A30: 29 | B30: 12 | C30: 気 | D30: キ | E30: 1 | F30: やさしい［気］もち | G30: もち | H30: き
A31: 30 | B31: 12 | C31: 気 | D31: キ | E31: 1 | F31: ［気］ぶんがよい | G31: ぶん | H31: き
A32: 31 | B32: 13 | C32: 校 | E32: 1 | F32: ［学校］のかいだん | H32: がっこう
A33: 32 | B33: 14 | C33: 休 | D33: キュウ | E33: 1 | F33: ［一休］さん | G33: さん | H33: いっきゅう
A34: 33 | B34: 14 | C34: 休 | D34: キュウ | E34: 1 | F34: ［休］けいをする | G34: けい | H34: きゅう
A35: 34 | B35: 14 | C35: 休 | D35: キュウ | E35: 2 | F35: たのしいふゆ［休］み | G35: み | H35: やす
A36: 35 | B36: 14 | C36: 休 | D36: キュウ | E36: 2 | F36: からだを［休］める | G36: める | H36: やす
A37: 36 | B37: 15 | C37: 玉 | D37: ギョク | E37: 2 | F37: しゃぼん［玉］ | H37: だま | I37: ☆
A38: 37 | B38: 15 | C38: 玉 | D38: ギョク | E38: 2 | F38: ［玉］をころがす | H38: たま
A39: 38 | B39: 16 | C39: 金 | D39: キン | E39: 1 | F39: ［金］ぎょをかう | G39: ぎょ | H39: きん
A40: 39 | B40: 16 | C40: 金 | D40: キン | E40: 2 | F40: ［金］もちになる | G40: もち | H40: かね
A41: 40 | B41: 16 | C41: 金 | D41: キン | E41: 1 | F41: ［金］よう日 | G41: よう | H41: きん | I41: ☆☆
A42: 41 | B42: 17 | C42: 空 | D42: クウ | E42: 1 | F42: ［上空］をとぶ | H42: じょうくう
A43: 42 | B43: 17 | C43: 空 | D43: クウ | E43: 2 | F43: きれいな［青空］ | H43: あおぞら
A44: 43 | B44: 18 | C44: 月 | D44: ゲツ | E44: 1 | F44: ［一月］九日 | H44: いちがつ
A45: 44 | B45: 18 | C45: 月 | D45: ゲツ | E45: 1 | F45: ［月］ようになる | G45: よう | H45: げつ
A46: 45 | B46: 18 | C46: 月 | D46: ゲツ | E46: 2 | F46: ［月見］をする | H46: つきみ
A47: 46 | B47: 19 | C47: 犬 | D47: ケン | E47: 1 | F47: もうどう［犬］ | H47: けん
A48: 47 | B48: 19 | C48: 犬 | D48: ケン | E48: 2 | F48: ［犬］をかう | H48: いぬ
A49: 48 | B49: 20 | C49: 見 | D49: ケン | E49: 1 | F49: こうじょうの［見学］ | H49: けんがく
A50: 49 | B50: 20 | C50: 見 | D50: ケン | E50: 2 | F50: とけいを［見］る | G50: る | H50: み
A51: 50 | B51: 20 | C51: 見 | D51: ケン | E51: 2 | F51: 先が［見］えない | G51: えない | H51: み
A52: 51 | B52: 21 | C52: 五 | D52: ゴ | E52: 1 | F52: ［五］まいのおさら | G52: まい | H52: ご
A53: 52 | B53: 21 | C53: 五 | D53: ゴ | E53: 2 | F53: ［五］つ子 | G53: つ | H53: いつ
A54: 53 | B54: 22 | C54: 口 | D54: コウ | E54: 1 | F54: ［出口］がない | H54: でぐち | I54: ☆
A55: 54 | B55: 22 | C55: 口 | D55: コウ | E55: 2 | F55: ［口］をあける | H55: くち
A56: 55 | B56: 23 | C56: 校 | D56: コウ | E56: 1 | F56: ［校］かをうたう | G56: か | H56: こう
A57: 56 | B57: 23 | C57: 校 | D57: コウ | E57: 1 | F57: ［校］もんを出る | G57: もん | H57: こう
A58: 57 | B58: 24 | C58: 左 | D58: サ | E58: 1 | F58: ［左右］のかくにん | H58: さゆう | I58: ☆
A59: 58 | B59: 24 | C59: 左 | D59: サ | E59: 2 | F59: ［左手］をあげる | H59: ひだりて
A60: 59 | B60: 25 | C60: 三 | D60: サン | E60: 1 | F60: ［三］びきのねこ | G60: が日 | H60: さん | I60: ☆
A61: 60 | B61: 25 | C61: 三 | D61: サン | E61: 2 | F61: ［三］つのねがい | G61: つ | H61: みっ
A62: 61 | B62: 26 | C62: 山 | D62: サン | E62: 1 | F62: ふじ［山］ | H62: さん
A63: 62 | B63: 26 | C63: 山 | D63: サン | E63: 2 | F63: ［山］にのぼる | H63: やま
A64: 63 | B64: 27 | C64: 子 | D64: シ | E64: 2 | F64: ［子］ねこのせわ | G64: ねこ | H64: こ
A65: 64 | B65: 28 | C65: 四 | D65: シ | E65: 1 | F65: ［四月］になる | H65: しがつ
A66: 65 | B66: 28 | C66: 四 | D66: シ | E66: 2 | F66: ［四］つばのクローバー | G66: つば | H66: よ
A67: 66 | B67: 29 | C67: 糸 | D67: シ | E67: 2 | F67: ［糸］でんわ | H67: いと
A68: 67 | B68: 29 | C68: 糸 | D68: シ | E68: 2 | F68: ［糸車］をまわす | H68: いとぐるま | I68: ☆
A69: 68 | B69: 30 | C69: 字 | D69: ジ | E69: 1 | F69: きれいな［字］ | H69: じ
A70: 69 | B70: 31 | C70: 耳 | D70: ジ | E70: 2 | F70: ［耳］をすます | H70: みみ
A71: 70 | B71: 32 | C71: 七 | D71: シチ | E71: 1 | F71: ［七］ならべをする | G71: ならべ | H71: しち
A72: 71 | B72: 32 | C72: 七 | D72: シチ | E72: 2 | F72: ［七］いろのにじ | G72: いろ | H72: なな
A73: 72 | B73: 33 | C73: 車 | D73: シャ | E73: 1 | F73: きゅうきゅう［車］ | H73: しゃ
A74: 73 | B74: 33 | C74: 車 | D74: シャ | E74: 2 | F74: ［車］がおおい | H74: くるま
A75: 74 | B75: 34 | C75: 手 | D75: シュ | E75: 1 | F75: あく［手］をする | H75: しゅ
A76: 75 | B76: 34 | C76: 手 | D76: シュ | E76: 2 | F76: ［手］をあらう | H76: て
A77: 76 | B77: 35 | C77: 十 | D77: ジュウ | E77: 1 | F77: ［十二］までかぞえる | H77: じゅうに
A78: 77 | B78: 35 | C78: 十 | D78: ジュウ | E78: 1 | F78: おはじきが［十］こ | G78: こ | H78: じっ
A79: 78 | B79: 35 | C79: 十 | D79: ジュウ | E79: 2 | F79: ［十日］がたつ | H79: とうか | I79: ☆
A80: 79 | B80: 36 | C80: 出 | D80: シュツ | E80: 1 | F80: ［出］ぱつする | H80: しゅっ
A81: 80 | B81: 36 | C81: 出 | D81: シュツ | E81: 2 | F81: はがきを［出］す | G81: す | H81: だ
A82: 81 | B82: 37 | C82: 女 | D82: ジョ | E82: 1 | F82: ［女子］のれつ | H82: じょし
A83: 82 | B83: 37 | C83: 女 | D83: ジョ | E83: 2 | F83: ［女］の子 | H83: おんな
A84: 83 | B84: 38 | C84: 小 | D84: ショウ | E84: 1 | F84: ［小学校］に入る | H84: しょうがっこう
A85: 84 | B85: 38 | C85: 小 | D85: ショウ | E85: 2 | F85: ［小］さくなる | G85: さく | H85: ちい
A86: 85 | B86: 38 | C86: 小 | D86: ショウ | E86: 2 | F86: ［小］とりをかう | H86: こ | I86: ☆☆
A87: 86 | B87: 39 | C87: 上 | D87: ジョウ | E87: 1 | F87: ［上下］左右にふる | H87: じょうげ
A88: 87 | B88: 39 | C88: 上 | D88: ジョウ | E88: 2 | F88: ［上］をむく | H88: うえ
A89: 88 | B89: 39 | C89: 上 | D89: ジョウ | E89: 2 | F89: 気おんが［上］がる | G89: がる | H89: あ
A90: 89 | B90: 40 | C90: 森 | D90: シン | E90: 1 | F90: ［森林］にいく | G90: よく | H90: しんりん | I90: ☆
A91: 90 | B91: 40 | C91: 森 | D91: シン | E91: 2 | F91: ［森］の中 | H91: もり
A92: 91 | B92: 41 | C92: 人 | D92: ジン | E92: 1 | F92: ［日本人］ | H92: にほんじん
A93: 92 | B93: 41 | C93: 人 | D93: ジン | E93: 1 | F93: ［人気］もの | G93: もの | H93: にんき | I93: ☆
A94: 93 | B94: 41 | C94: 人 | D94: ジン | E94: 2 | F94: ［人］がおおい | H94: ひと
A95: 94 | B95: 42 | C95: 水 | D95: スイ | E95: 1 | F95: ［水］よう日 | G95: よう | H95: すい
A96: 95 | B96: 42 | C96: 水 | D96: スイ | E96: 2 | F96: ［水］あそび | G96: あそび | H96: みず
A97: 96 | B97: 43 | C97: 正 | D97: セイ | E97: 1 | F97: ［正］じきな人 | G97: じき | H97: しょう
A98: 97 | B98: 43 | C98: 正 | D98: セイ | E98: 1 | F98: ［正］かいを出す | G98: かい | H98: せい
A99: 98 | B99: 43 | C99: 正 | D99: セイ | E99: 2 | F99: ［正］しいこたえ | G99: しい | H99: ただ
A100: 99 | B100: 44 | C100: 生 | D100: セイ | E100: 1 | F100: あたらしい［生］めい | G100: めい | H100: せい
A101: 100 | B101: 44 | C101: 生 | D101: セイ | E101: 1 | F101: たん［生日］をいわう | H101: じょうび
A102: 101 | B102: 44 | C102: 生 | D102: セイ | E102: 2 | F102: 子どもが［生］まれる | G102: まれる | H102: う
A103: 102 | B103: 44 | C103: 生 | D103: セイ | E103: 2 | F103: はが［生］える | G103: える | H103: は
A104: 103 | B104: 44 | C104: 生 | D104: セイ | E104: 1 | F104: メダカの[一生] | H104: いっしょう | I104: ☆
A105: 104 | B105: 44 | C105: 生 | D105: セイ | E105: 2 | F105: ［生］クリーム | G105: クリーム | H105: なま
A106: 105 | B106: 44 | C106: 生 | D106: セイ | E106: 2 | F106: 百さいまで[生]きる | G106: きる | H106: い
A107: 106 | B107: 45 | C107: 青 | D107: セイ | E107: 1 | F107: ［青］しゅんの日々 | G107: しゅん | H107: せい
A108: 107 | B108: 45 | C108: 青 | D108: セイ | E108: 2 | F108: ［青］いぼうし | G108: い | H108: あお
A109: 108 | B109: 46 | C109: 夕 | D109: セキ | E109: 2 | F109: ［夕］がたの空 | G109: がた | H109: ゆう | I109: ☆☆
A110: 109 | B110: 46 | C110: 夕 | D110: セキ | E110: 2 | F110: きれいな［夕］やけ | G110: やけ | H110: ゆう
A111: 110 | B111: 47 | C111: 石 | D111: セキ | E111: 1 | F111: ［石］たんをほる | G111: たん | H111: せき
A112: 111 | B112: 47 | C112: 石 | D112: セキ | E112: 2 | F112: ［石］をける | H112: いし
A113: 112 | B113: 48 | C113: 赤 | D113: セキ | E113: 1 | F113: ［赤］はんをたく | G113: はん | H113: せき | I113: ☆
A114: 113 | B114: 48 | C114: 赤 | D114: セキ | E114: 2 | F114: ねこの［赤］ちゃん | G114: ちゃん | H114: あか
A115: 114 | B115: 49 | C115: 千 | D115: セン | E115: 1 | F115: ［千円］さつ | G115: さつ | H115: せんえん
A116: 115 | B116: 50 | C116: 川 | D116: セン | E116: 2 | F116: [川]あそびをする | G116: あそび | H116: かわ
A117: 116 | B117: 50 | C117: 川 | D117: セン | E117: 2 | F117: ［川］がながれる | H117: かわ
A118: 117 | B118: 50 | C118: 川 | D118: セン | E118: 2 | F118: ［小川］がながれる | H118: おがわ
A119: 118 | B119: 51 | C119: 先 | D119: セン | E119: 1 | F119: ［先生］におそわる | H119: せんせい | I119: ☆☆
A120: 119 | B120: 51 | C120: 先 | D120: セン | E120: 2 | F120: ［先］にいく | H120: さき
A121: 120 | B121: 52 | C121: 早 | D121: ソウ | E121: 1 | F121: ［早］ちょうれんしゅう | G121: ちょう | H121: そう | I121: ☆
A122: 121 | B122: 52 | C122: 早 | D122: ソウ | E122: 2 | F122: あさ［早］くおきる | G122: く | H122: はや
A123: 122 | B123: 53 | C123: 草 | D123: ソウ | E123: 1 | F123: ［草］げんをあるく | G123: げん | H123: そう | I123: ☆
A124: 123 | B124: 53 | C124: 草 | D124: ソウ | E124: 2 | F124: ［草］むらであそぶ | G124: むら | H124: くさ
A125: 124 | B125: 54 | C125: 足 | D125: ソク | E125: 1 | F125: ねこの［足］あと | G125: あと | H125: あし
A126: 125 | B126: 54 | C126: 足 | D126: ソク | E126: 1 | F126: ［足］をあらう | H126: あし
A127: 126 | B127: 54 | C127: 足 | D127: ソク | E127: 1 | F127: ［土足］はきんしだ | H127: どそく
A128: 127 | B128: 55 | C128: 村 | D128: ソン | E128: 1 | F128: ［村］ちょうさん | G128: ちょうさん | H128: そん
A129: 128 | B129: 55 | C129: 村 | D129: ソン | E129: 2 | F129: ［村］にすむ | H129: むら
A130: 129 | B130: 56 | C130: 大 | D130: ダイ | E130: 1 | F130: ［大］すきなたべもの | G130: すき | H130: だい
A131: 130 | B131: 56 | C131: 大 | D131: ダイ | E131: 1 | F131: ［大学］にすすむ | H131: だいがく
A132: 131 | B132: 56 | C132: 大 | D132: ダイ | E132: 2 | F132: ［大］きなかぶ | G132: きな | H132: おお
A133: 132 | B133: 57 | C133: 男 | D133: ダン | E133: 1 | F133: ［男女］にわかれる | H133: だんじょ
A134: 133 | B134: 57 | C134: 男 | D134: ダン | E134: 2 | F134: ［男］の子 | G134: の子 | H134: おとこ
A135: 134 | B135: 58 | C135: 竹 | D135: チク | E135: 1 | F135: ［竹］わをたべる | G135: わ | H135: ちく | I135: ☆
A136: 135 | B136: 58 | C136: 竹 | D136: チク | E136: 2 | F136: ［竹］とんぼ | G136: とんぼ | H136: たけ
A137: 136 | B137: 59 | C137: 中 | D137: チュウ | E137: 1 | F137: べんきょう［中］ | H137: ちゅう
A138: 137 | B138: 59 | C138: 中 | D138: チュウ | E138: 2 | F138: ［中］をみる | H138: なか
A139: 138 | B139: 60 | C139: 虫 | D139: チュウ | E139: 1 | F139: チョウのよう［虫］ | H139: ちゅう
A140: 139 | B140: 60 | C140: 虫 | D140: チュウ | E140: 2 | F140: ［虫］をとる | H140: むし
A141: 140 | B141: 61 | C141: 町 | D141: チョウ | E141: 1 | F141: ［町］ちょうになる | H141: ちょう
A142: 141 | B142: 61 | C142: 町 | D142: チョウ | E142: 2 | F142: ［町］にでかける | H142: まち
A143: 142 | B143: 62 | C143: 天 | D143: テン | E143: 1 | F143: ［天］たいかんそく | G143: たい | H143: てん
A144: 143 | B144: 62 | C144: 天 | D144: テン | E144: 2 | F144: ［天］のがわ | H144: あま | I144: ☆
A145: 144 | B145: 63 | C145: 田 | D145: デン | E145: 1 | F145: ［田］えんふうけい | G145: えん | H145: でん | I145: ☆
A146: 145 | B146: 63 | C146: 田 | D146: デン | E146: 2 | F146: ［田］うえをする | G146: うえ | H146: た
A147: 146 | B147: 64 | C147: 土 | D147: ド | E147: 1 | F147: かみねん［土］ | H147: ど
A148: 147 | B148: 64 | C148: 土 | D148: ド | E148: 2 | F148: ［土］あそび | G148: あそび | H148: つち
A149: 148 | B149: 65 | C149: 二 | D149: ニ | E149: 1 | F149: ［二年］生になる | G149: 生 | H149: にねん
A150: 149 | B150: 65 | C150: 二 | D150: ニ | E150: 2 | F150: ［二］つにわける | G150: つ | H150: ふた
A151: 150 | B151: 66 | C151: 日 | D151: ニチ | E151: 1 | F151: ［日］ようのあさ | G151: よう | H151: にち
A152: 151 | B152: 66 | C152: 日 | D152: ニチ | E152: 2 | F152: ［夕日］がしずむ | H152: ゆうひ
A153: 152 | B153: 66 | C153: 日 | D153: ニチ | E153: 2 | F153: ［日本］のくに | H153: にほん
A154: 153 | B154: 67 | C154: 入 | D154: ニュウ | E154: 1 | F154: ［入学］手つづき | H154: にゅうがく
A155: 154 | B155: 67 | C155: 入 | D155: ニュウ | E155: 2 | F155: きょうしつに［入］る | G155: る | H155: はい
A156: 155 | B156: 68 | C156: 年 | D156: ネン | E156: 1 | F156: ［一年］生になる | G156: 生 | H156: いちねん
A157: 156 | B157: 68 | C157: 年 | D157: ネン | E157: 2 | F157: お［年玉］ | H157: としだま
A158: 157 | B158: 68 | C158: 年 | D158: ネン | E158: 2 | F158: ［年］をとる | H158: とし
A159: 158 | B159: 69 | C159: 白 | D159: ハク | E159: 1 | F159: こう［白］のはた | H159: はく
A160: 159 | B160: 69 | C160: 白 | D160: ハク | E160: 2 | F160: ［白］いくも | G160: い | H160: しろ
A161: 160 | B161: 70 | C161: 八 | D161: ハチ | E161: 1 | F161: ［八月］がすき | H161: はちがつ
A162: 161 | B162: 70 | C162: 八 | D162: ハチ | E162: 2 | F162: あさの［八］じ | G162: つ | H162: はち
A163: 162 | B163: 70 | C163: 八 | D163: ハチ | E163: 2 | F163: 五月［八日］ | H163: ようか | I163: ☆
A164: 163 | B164: 71 | C164: 百 | D164: ヒャク | E164: 1 | F164: ［百円］のおかし | H164: ひゃくえん
A165: 164 | B165: 71 | C165: 百 | D165: ヒャク | E165: 1 | F165: ［百］てんのテスト | G165: てん | H165: ひゃく | I165: ☆
A166: 165 | B166: 72 | C166: 文 | D166: ブン | E166: 1 | F166: ［文中］のことば | H166: ぶんちゅう | I166: ☆
A167: 166 | B167: 72 | C167: 文 | D167: ブン | E167: 1 | F167: ［文学］をよむ | H167: ぶんがく
A168: 167 | B168: 73 | C168: 木 | D168: モク | E168: 1 | F168: ［木目］にそう | H168: もくめ | I168: ☆
A169: 168 | B169: 73 | C169: 木 | D169: モク | E169: 1 | F169: ［大木］をたおす | H169: たいぼく | I169: ☆☆
A170: 169 | B170: 73 | C170: 木 | D170: モク | E170: 2 | F170: ［木］のぼり | G170: のぼり | H170: き
A171: 170 | B171: 74 | C171: 本 | D171: ホン | E171: 1 | F171: ［五本］のゆび | H171: ごほん
A172: 171 | B172: 74 | C172: 本 | D172: ホン | E172: 1 | F172: ［本気］をだす | H172: ほんき | I172: ☆
A173: 172 | B173: 74 | C173: 本 | D173: ホン | E173: 1 | F173: ［本］をよむ | H173: ほん
A174: 173 | B174: 75 | C174: 名 | D174: メイ | E174: 1 | F174: しょうぎの［名人］ | H174: めいじん | I174: ☆☆
A175: 174 | B175: 75 | C175: 名 | D175: メイ | E175: 1 | F175: ［名字］をきく | H175: みょうじ | I175: ☆☆
A176: 175 | B176: 75 | C176: 名 | D176: メイ | E176: 2 | F176: ［名］まえをかく | G176: まえ | H176: な
A177: 176 | B177: 76 | C177: 目 | D177: モク | E177: 1 | F177: ［目］ひょうをもつ | G177: ひょう | H177: もく
A178: 177 | B178: 76 | C178: 目 | D178: モク | E178: 2 | F178: ［目］がさめる | H178: め
A179: 178 | B179: 77 | C179: 立 | D179: リツ | E179: 1 | F179: ［立］たいもけい | G179: たい | H179: りっ | I179: ☆
A180: 179 | B180: 77 | C180: 立 | D180: リツ | E180: 2 | F180: ［立］ち上がる | G180: ち | H180: た
A181: 180 | B181: 78 | C181: 力 | D181: リョク | E181: 1 | F181: ［学力］がつく | H181: がくりょく
A182: 181 | B182: 78 | C182: 力 | D182: リョク | E182: 1 | F182: ［力］みをほぐす | G182: み | H182: りき | I182: ☆☆
A183: 182 | B183: 78 | C183: 力 | D183: リキ | E183: 2 | F183: ［力］いっぱい | H183: ちから
A184: 183 | B184: 79 | C184: 林 | D184: リン | E184: 1 | F184: ［林］かん学校 | G184: かん | H184: りん
A185: 184 | B185: 79 | C185: 林 | D185: リン | E185: 2 | F185: ［林］をあるく | H185: はやし
A186: 185 | B186: 80 | C186: 六 | D186: ロク | E186: 1 | F186: ［六年］生をおくる | G186: 生 | H186: ろくねん
A187: 186 | B187: 80 | C187: 六 | D187: ロク | E187: 2 | F187: ［六］つならぶ | G187: つ | H187: むっ

Sheet 漢字書き
A1: 通し番号 | B1: 問題番号 | C1: 漢字 | D1: 読み | E1: 音訓 | F1: 問題 | G1: 送り仮名 | H1: 漢字
A2: 1 | B2: 1 | C2: 一 | D2: イチ | E2: 1 | F2: ［イチ］ばんぼし | G2: ばん | H2: 一
A3: 2 | B3: 1 | C3: 一 | D3: イチ | E3: 2 | F3: ［ヒト］つの花 | G3: つ | H3: 一
A4: 3 | B4: 2 | C4: 右 | D4: ウ | E4: 1 | F4: ［サユウ］を見る | H4: 左右
A5: 4 | B5: 2 | C5: 右 | D5: ウ | E5: 2 | F5: ［ミギ］にまがる | H5: 右
A6: 5 | B6: 3 | C6: 雨 | D6: ウ | E6: 1 | F6: ［ウ］りょうがふえる | G6: りょう | H6: 雨 | I6: ☆
A7: 6 | B7: 3 | C7: 雨 | D7: ウ | E7: 2 | F7: ［アメ］がふる | H7: 雨
A8: 7 | B8: 3 | C8: 雨 | D8: ウ | E8: 2 | F8: はげしい［アメ］ | H8: 雨
A9: 8 | B9: 4 | C9: 円 | D9: エン | E9: 1 | F9: ［イチエン］玉 | G9: 玉 | H9: 一円
A10: 9 | B10: 5 | C10: 王 | D10: オウ | E10: 1 | F10: はだかの［オウ］さま | G10: さま | H10: 王
A11: 10 | B11: 5 | C11: 王 | D11: オウ | E11: 1 | F11: ［オウジョ］のへや | H11: 王女 | I11: ☆
A12: 11 | B12: 6 | C12: 音 | D12: オン | E12: 1 | F12: ［オン］がくしつ | G12: がく | H12: 音
A13: 12 | B13: 6 | C13: 音 | D13: オン | E13: 2 | F13: ［オト］がする | H13: 音
A14: 13 | B14: 6 | C14: 音 | D14: オン | E14: 2 | F14: たいこの［オト］ | H14: 音
A15: 14 | B15: 7 | C15: 下 | D15: カ | E15: 1 | F15: ［ゲコウ］する | G15: する | H15: 下校
A16: 15 | B16: 7 | C16: 下 | D16: カ | E16: 2 | F16: やねの［シタ］ | H16: 下
A17: 16 | B17: 7 | C17: 下 | D17: カ | E17: 2 | F17: ［カワシモ］の町 | H17: 川下 | I17: ☆☆
A18: 17 | B18: 8 | C18: 火 | D18: カ | E18: 1 | F18: ［ヒ］のようじん | H18: 火
A19: 18 | B19: 8 | C19: 火 | D19: カ | E19: 1 | F19: ［カリョク］がよわい | H19: 火力
A20: 19 | B20: 8 | C20: 火 | D20: カ | E20: 1 | F20: ［カ］ようび | G20: ようび | H20: 火
A21: 20 | B21: 9 | C21: 花 | D21: カ | E21: 1 | F21: ［カ］だんの水やり | G21: だん | H21: 花 | I21: ☆
A22: 21 | B22: 9 | C22: 花 | D22: カ | E22: 2 | F22: さくらの［ハナ］ | H22: 花
A23: 22 | B23: 9 | C23: 花 | D23: カ | E23: 2 | F23: きれいな［ハナビ］ | H23: 花火 | I23: ☆
A24: 23 | B24: 10 | C24: 貝 | D24: かい | E24: 2 | F24: きれいな［カイ］がら | G24: がら | H24: 貝
A25: 24 | B25: 10 | C25: 貝 | D25: かい | E25: 2 | F25: ［カイ］をひろう | H25: 貝
A26: 25 | B26: 11 | C26: 学 | D26: ガク | E26: 1 | F26: ［ガクリョク］があがる | H26: 学力
A27: 26 | B27: 11 | C27: 学 | D27: ガク | E27: 2 | F27: しっかり［マナ］ぶ | G27: ぶ | H27: 学
A28: 27 | B28: 12 | C28: 気 | D28: キ | E28: 1 | F28: ［キ］をつける | H28: 気
A29: 28 | B29: 12 | C29: 気 | D29: キ | E29: 1 | F29: 人の［ケ］はい | G29: はい | H29: 気 | I29: ☆☆
A30: 29 | B30: 13 | C30: 九 | D30: キュウ | E30: 1 | F30: ［キュウ］かんちょう | G30: かんちょう | H30: 九 | I30: ☆
A31: 30 | B31: 13 | C31: 九 | D31: キュウ | E31: 2 | F31: ［ココノ］つ | G31: つ | H31: 九
A32: 31 | B32: 14 | C32: 休 | D32: キュウ | E32: 1 | F32: ［キュウ］けいじかん | G32: けい | H32: 休
A33: 32 | B33: 14 | C33: 休 | D33: キュウ | E33: 2 | F33: ［ヤス］みじかん | G33: み | H33: 休
A34: 33 | B34: 15 | C34: 玉 | D34: ギョク | E34: 2 | F34: ［タマ］のり | G34: のり | H34: 玉
A35: 34 | B35: 15 | C35: 玉 | D35: ギョク | E35: 2 | F35: きれいなビー［ダマ］ | H35: 玉
A36: 35 | B36: 16 | C36: 金 | D36: キン | E36: 1 | F36: ［キン］しょう | G36: しょう | H36: 金
A37: 36 | B37: 16 | C37: 金 | D37: キン | E37: 2 | F37: お［カネ］をはらう | H37: 金
A38: 37 | B38: 16 | C38: 金 | D38: キン | E38: 2 | F38: ［カナ］もの | G38: もの | H38: 金 | I38: ☆
A39: 38 | B39: 17 | C39: 空 | D39: クウ | E39: 1 | F39: ［クウキ］がきれい | H39: 空気
A40: 39 | B40: 17 | C40: 空 | D40: クウ | E40: 2 | F40: 青い［ソラ］ | H40: 空
A41: 40 | B41: 18 | C41: 月 | D41: ゲツ | E41: 1 | F41: ［ゲツ］よう日 | G41: よう | H41: 月
A42: 41 | B42: 18 | C42: 月 | D42: ゲツ | E42: 2 | F42: ［ツキ］へのたび | H42: 月
A43: 42 | B43: 19 | C43: 犬 | D43: ケン | E43: 1 | F43: きしゅう［ケン］をかう | H43: 犬
A44: 43 | B44: 19 | C44: 犬 | D44: ケン | E44: 2 | F44: ［イヌ］とねこ | H44: 犬
A45: 44 | B45: 19 | C45: 犬 | D45: ケン | E45: 2 | F45: こわい［イヌ］ | H45: 犬
A46: 45 | B46: 20 | C46: 見 | D46: ケン | E46: 1 | F46: ［ケンガク］する | G46: する | H46: 見学
A47: 46 | B47: 20 | C47: 見 | D47: ケン | E47: 2 | F47: まえを［ミ］る | G47: る | H47: 見
A48: 47 | B48: 21 | C48: 五 | D48: ゴ | E48: 1 | F48: ［ゴネン］生になる | G48: 生 | H48: 五年
A49: 48 | B49: 21 | C49: 五 | D49: ゴ | E49: 2 | F49: ［イツ］つの子 | G49: つ | H49: 五
A50: 49 | B50: 22 | C50: 口 | D50: コウ | E50: 2 | F50: ［クチ］から出す | H50: 口
A51: 50 | B51: 22 | C51: 口 | D51: コウ | E51: 2 | F51: ［クチ］に入れる | H51: 口
A52: 51 | B52: 23 | C52: 校 | D52: コウ | E52: 1 | F52: ［ガッコウ］にいく | H52: 学校
A53: 52 | B53: 23 | C53: 校 | D53: コウ | E53: 1 | F53: ［コウ］もんに入る | G53: もん | H53: 校
A54: 53 | B54: 24 | C54: 左 | D54: サ | E54: 1 | F54: ［サユウ］を見る | H54: 左右 | I54: ☆
A55: 54 | B55: 24 | C55: 左 | D55: サ | E55: 2 | F55: ［ヒダリ］にまがる | H55: 左
A56: 55 | B56: 25 | C56: 三 | D56: サン | E56: 1 | F56: ［サン］びきのこぶた | G56: びき | H56: 三
A57: 56 | B57: 25 | C57: 三 | D57: サン | E57: 2 | F57: ［ミッ］つある | G57: つ | H57: 三
A58: 57 | B58: 26 | C58: 山 | D58: サン | E58: 1 | F58: ふじ［サン］ | H58: 山
A59: 58 | B59: 26 | C59: 山 | D59: サン | E59: 2 | F59: たかい［ヤマ］ | H59: 山
A60: 59 | B60: 26 | C60: 山 | D60: サン | E60: 2 | F60: ［ヤマ］にのぼる | H60: 山
A61: 60 | B61: 27 | C61: 子 | D61: シ | E61: 1 | F61: ［ダンシ］トイレ | G61: トイレ | H61: 男子
A62: 61 | B62: 27 | C62: 子 | D62: シ | E62: 2 | F62: ［コ］どもの日 | G62: ども | H62: 子
A63: 62 | B63: 28 | C63: 四 | D63: シ | E63: 1 | F63: ［シ］かくのず | G63: かく | H63: 四
A64: 63 | B64: 28 | C64: 四 | D64: シ | E64: 2 | F64: ［ヨッ］つのやくそく | G64: つ | H64: 四
A65: 64 | B65: 29 | C65: 糸 | D65: シ | E65: 2 | F65: くもの［イト］ | H65: 糸
A66: 65 | B66: 29 | C66: 糸 | D66: シ | E66: 2 | F66: たぬきの［イトグルマ］ | H66: 糸車
A67: 66 | B67: 30 | C67: 字 | D67: ジ | E67: 1 | F67: ［ジ］をかく | H67: 字
A68: 67 | B68: 31 | C68: 耳 | D68: ジ | E68: 2 | F68: ［ミミ］をすます | H68: 耳
A69: 68 | B69: 31 | C69: 耳 | D69: ジ | E69: 2 | F69: ［ミミ］かきをする | G69: かき | H69: 耳
A70: 69 | B70: 32 | C70: 七 | D70: シチ | E70: 1 | F70: ［シチ］ならべ | G70: ならべ | H70: 七
A71: 70 | B71: 32 | C71: 七 | D71: シチ | E71: 2 | F71: ［ナナ］いろのにじ | G71: いろ | H71: 七 | I71: ☆
A72: 71 | B72: 33 | C72: 車 | D72: シャ | E72: 1 | F72: ［シャ］どうのそば | G72: どう | H72: 車 | I72: ☆
A73: 72 | B73: 33 | C73: 車 | D73: シャ | E73: 2 | F73: ［クルマ］にのる | H73: 車
A74: 73 | B74: 34 | C74: 手 | D74: シュ | E74: 1 | F74: あく［シュ］をする | H74: 手
A75: 74 | B75: 34 | C75: 手 | D75: シュ | E75: 2 | F75: ［テ］をあらう | H75: 手
A76: 75 | B76: 35 | C76: 十 | D76: ジュウ | E76: 1 | F76: ［ジュウネン］先 | G76: 先 | H76: 十年
A77: 76 | B77: 35 | C77: 十 | D77: ジュウ | E77: 1 | F77: ［ジッ］ぷんたつ | G77: ぷん | H77: 十 | I77: ☆
A78: 77 | B78: 35 | C78: 十 | D78: ジュウ | E78: 2 | F78: ［トオ］かぞえる | H78: 十
A79: 78 | B79: 36 | C79: 出 | D79: シュツ | E79: 1 | F79: ［シュツ］じょうする | G79: じょう | H79: 出 | I79: ☆
A80: 79 | B80: 36 | C80: 出 | D80: シュツ | E80: 2 | F80: めいろから［デ］る | G80: る | H80: 出
A81: 80 | B81: 37 | C81: 女 | D81: ジョ | E81: 1 | F81: ［ジョシ］のれつ | H81: 女子
A82: 81 | B82: 37 | C82: 女 | D82: ジョ | E82: 2 | F82: ゆき［オンナ］ | H82: 女
A83: 82 | B83: 38 | C83: 小 | D83: ショウ | E83: 1 | F83: ［ショウガッコウ］にいく | H83: 小学校
A84: 83 | B84: 38 | C84: 小 | D84: ショウ | E84: 2 | F84: ［チイ］さいこえ | G84: さい | H84: 小
A85: 84 | B85: 38 | C85: 小 | D85: ショウ | E85: 2 | F85: ［チイ］さな子 | G85: さな | H85: 小
A86: 85 | B86: 39 | C86: 上 | D86: ジョウ | E86: 1 | F86: ［ジョウ］たつする | G86: たつ | H86: 上 | I86: ☆
A87: 86 | B87: 39 | C87: 上 | D87: ジョウ | E87: 2 | F87: つくえの［ウエ］ | H87: 上
A88: 87 | B88: 40 | C88: 森 | D88: シン | E88: 1 | F88: ［シンリン］こうえん | H88: 森林 | I88: ☆
A89: 88 | B89: 40 | C89: 森 | D89: シン | E89: 2 | F89: ［モリ］のくまさん | H89: 森
A90: 89 | B90: 41 | C90: 人 | D90: ジン | E90: 1 | F90: がいこく［ジン］ | H90: 人
A91: 90 | B91: 41 | C91: 人 | D91: ジン | E91: 1 | F91: ［ヒャクニン］ならぶ | H91: 百人
A92: 91 | B92: 41 | C92: 人 | D92: ジン | E92: 2 | F92: ［ヒト］がおおい | H92: 人
A93: 92 | B93: 42 | C93: 水 | D93: スイ | E93: 1 | F93: ［スイ］えい | G93: えい | H93: 水
A94: 93 | B94: 42 | C94: 水 | D94: スイ | E94: 2 | F94: ［ミズ］がきれい | H94: 水
A95: 94 | B95: 43 | C95: 正 | D95: セイ | E95: 1 | F95: お［ショウガツ］ | H95: 正月
A96: 95 | B96: 43 | C96: 正 | D96: セイ | E96: 1 | F96: ［セイ］かいをだす | G96: かい | H96: 正
A97: 96 | B97: 43 | C97: 正 | D97: セイ | E97: 2 | F97: ［タダ］しいこたえ | G97: しい | H97: 正
A98: 97 | B98: 44 | C98: 生 | D98: セイ | E98: 1 | F98: やさしい［センセイ］ | H98: 先生
A99: 98 | B99: 44 | C99: 生 | D99: セイ | E99: 1 | F99: ［セイ］かつのじかん | G99: かつ | H99: 生
A100: 99 | B100: 44 | C100: 生 | D100: セイ | E100: 2 | F100: たのしく［イ］きる | G100: きる | H100: 生
A101: 100 | B101: 45 | C101: 青 | D101: セイ | E101: 2 | F101: ［アオ］いうみ | G101: い | H101: 青
A102: 101 | B102: 45 | C102: 青 | D102: セイ | E102: 2 | F102: ［アオゾラ］を見る | H102: 青空
A103: 102 | B103: 46 | C103: 夕 | D103: ユウ | E103: 1 | F103: ［ユウ］がた | G103: がた | H103: 夕
A104: 103 | B104: 47 | C104: 石 | D104: セキ | E104: 1 | F104: ［セキ］たんをはこぶ | G104: たん | H104: 石 | I104: ☆
A105: 104 | B105: 47 | C105: 石 | D105: セキ | E105: 1 | F105: ［セキ］ゆを大せつに | G105: ゆ | H105: 石 | I105: ☆
A106: 105 | B106: 47 | C106: 石 | D106: セキ | E106: 2 | F106: ［イシ］をほる | H106: 石
A107: 106 | B107: 48 | C107: 赤 | D107: セキ | E107: 1 | F107: ［セキ］はんをたく | G107: はん | H107: 赤 | I107: ☆
A108: 107 | B108: 48 | C108: 赤 | D108: セキ | E108: 2 | F108: ［アカ］い花 | G108: い | H108: 赤
A109: 108 | B109: 48 | C109: 赤 | D109: セキ | E109: 2 | F109: ［アカ］ちゃんがなく | G109: ちゃん | H109: 赤
A110: 109 | B110: 49 | C110: 千 | D110: セン | E110: 1 | F110: ［セン］のかぜになる | H110: 千
A111: 110 | B111: 50 | C111: 川 | D111: セン | E111: 2 | F111: ふかい［カワ］ | H111: 川
A112: 111 | B112: 50 | C112: 川 | D112: セン | E112: 2 | F112: ［オガワ］がながれる | H112: 小川
A113: 112 | B113: 51 | C113: 先 | D113: セン | E113: 1 | F113: ［センセイ］にはなす | H113: 先生
A114: 113 | B114: 51 | C114: 先 | D114: セン | E114: 2 | F114: ［サキ］にいく | H114: 先
A115: 114 | B115: 52 | C115: 早 | D115: ソウ | E115: 1 | F115: ［ソウ］ちょう | G115: ちょう | H115: 早 | I115: ☆
A116: 115 | B116: 52 | C116: 早 | D116: ソウ | E116: 2 | F116: ［ハヤ］くおきる | G116: く | H116: 早
A117: 116 | B117: 53 | C117: 草 | D117: ソウ | E117: 1 | F117: ざっ［ソウ］をぬく | H117: 草
A118: 117 | B118: 53 | C118: 草 | D118: ソウ | E118: 2 | F118: ［クサ］をかる | H118: 草
A119: 118 | B119: 53 | C119: 草 | D119: ソウ | E119: 2 | F119: にわの［クサ］とり | G119: とり | H119: 草
A120: 119 | B120: 54 | C120: 足 | D120: ソク | E120: 1 | F120: えん［ソク］にいく | H120: 足
A121: 120 | B121: 54 | C121: 足 | D121: ソク | E121: 2 | F121: ［ミギアシ］をあげる | H121: 右足
A122: 121 | B122: 55 | C122: 村 | D122: ソン | E122: 1 | F122: ［ソン］ちょうさん | G122: ちょう | H122: 村 | I122: ☆
A123: 122 | B123: 55 | C123: 村 | D123: ソン | E123: 2 | F123: ［ムラ］のかみさま | H123: 村
A124: 123 | B124: 55 | C124: 村 | D124: ソン | E124: 2 | F124: ［ムラ］のまつり | H124: 村
A125: 124 | B125: 56 | C125: 大 | D125: ダイ | E125: 1 | F125: ［ダイ］きちをひく | G125: きち | H125: 大 | I125: ☆
A126: 125 | B126: 56 | C126: 大 | D126: ダイ | E126: 2 | F126: ［オオ］きいはこ | G126: きい | H126: 大
A127: 126 | B127: 57 | C127: 男 | D127: ダン | E127: 1 | F127: ［ダンジョ］なかよし | H127: 男女
A128: 127 | B128: 57 | C128: 男 | D128: ダン | E128: 2 | F128: ［オトコ］の子 | H128: 男
A129: 128 | B129: 58 | C129: 竹 | D129: チク | E129: 2 | F129: ［タケ］やぶやけた | G129: やぶ | H129: 竹
A130: 129 | B130: 58 | C130: 竹 | D130: チク | E130: 2 | F130: ［タケ］をわる | H130: 竹
A131: 130 | B131: 59 | C131: 中 | D131: チュウ | E131: 1 | F131: ［ダイチュウショウ］ | H131: 大中小
A132: 131 | B132: 59 | C132: 中 | D132: チュウ | E132: 2 | F132: かばんの［ナカ］ | H132: 中
A133: 132 | B133: 60 | C133: 虫 | D133: チュウ | E133: 1 | F133: こん［チュウ］ | H133: 虫
A134: 133 | B134: 60 | C134: 虫 | D134: チュウ | E134: 2 | F134: かぶと［ムシ］ | H134: 虫
A135: 134 | B135: 60 | C135: 虫 | D135: チュウ | E135: 2 | F135: ［ムシ］をさがす | H135: 虫
A136: 135 | B136: 61 | C136: 町 | D136: チョウ | E136: 1 | F136: ［チョウ］ないかい | G136: ない | H136: 町 | I136: ☆
A137: 136 | B137: 61 | C137: 町 | D137: チョウ | E137: 2 | F137: ［マチ］へいく | H137: 町
A138: 137 | B138: 62 | C138: 天 | D138: テン | E138: 1 | F138: ［テンキ］よほう | G138: よほう | H138: 天気
A139: 138 | B139: 62 | C139: 天 | D139: テン | E139: 2 | F139: ［アマ］の川 | H139: 天
A140: 139 | B140: 63 | C140: 田 | D140: デン | E140: 1 | F140: ［デン］えん | G140: えん | H140: 田 | I140: ☆
A141: 140 | B141: 63 | C141: 田 | D141: デン | E141: 2 | F141: はたけと［タ］んぼ | G141: んぼ | H141: 田
A142: 141 | B142: 64 | C142: 土 | D142: ド | E142: 1 | F142: ねん［ド］であそぶ | H142: 土
A143: 142 | B143: 64 | C143: 土 | D143: ド | E143: 2 | F143: ［ツチ］をはこぶ | H143: 土
A144: 143 | B144: 65 | C144: 二 | D144: ニ | E144: 1 | F144: ［ニ］まいのかみ | G144: まい | H144: 二
A145: 144 | B145: 65 | C145: 二 | D145: ニ | E145: 2 | F145: ［フタ］つならべる | G145: つ | H145: 二
A146: 145 | B146: 66 | C146: 日 | D146: ニチ | E146: 1 | F146: ［ヒ］の出をおがむ | G146: の出 | H146: 日
A147: 146 | B147: 66 | C147: 日 | D147: ニチ | E147: 1 | F147: まい［ニチ］あそぶ | H147: 日
A148: 147 | B148: 66 | C148: 日 | D148: ニチ | E148: 1 | F148: ［ホンジツ］のおすすめ | H148: 本日 | I148: ☆
A149: 148 | B149: 67 | C149: 入 | D149: ニュウ | E149: 1 | F149: ［ニュウガク］しき | G149: しき | H149: 入学
A150: 149 | B150: 67 | C150: 入 | D150: ニュウ | E150: 2 | F150: あなに［ハイ］る | G150: る | H150: 入
A151: 150 | B151: 68 | C151: 年 | D151: ネン | E151: 1 | F151: ［ネン］がじょう | G151: がじょう | H151: 年
A152: 151 | B152: 68 | C152: 年 | D152: ネン | E152: 2 | F152: あたらしい［トシ］ | H152: 年
A153: 152 | B153: 69 | C153: 白 | D153: ハク | E153: 1 | F153: ［ハク］まいをたべる | G153: まい | H153: 白 | I153: ☆
A154: 153 | B154: 69 | C154: 白 | D154: ハク | E154: 2 | F154: ［シロ］いけむり | G154: い | H154: 白
A155: 154 | B155: 70 | C155: 八 | D155: ハチ | E155: 1 | F155: ［ハチガツ］がすきだ | H155: 八月
A156: 155 | B156: 70 | C156: 八 | D156: ハチ | E156: 2 | F156: ［ヒャクヤッ］つ | G156: つ | H156: 百八 | I156: ☆
A157: 156 | B157: 71 | C157: 百 | D157: ヒャク | E157: 1 | F157: ［ゴヒャクエン］玉 | G157: 玉 | H157: 五百円
A158: 157 | B158: 72 | C158: 文 | D158: ブン | E158: 1 | F158: ［ブン］をかく | H158: 文
A159: 158 | B159: 72 | C159: 文 | D159: ブン | E159: 1 | F159: ［ブンガク］をよむ | H159: 文学
A160: 159 | B160: 73 | C160: 木 | D160: モク | E160: 1 | F160: ［モク］よう日 | G160: よう | H160: 木
A161: 160 | B161: 73 | C161: 木 | D161: モク | E161: 2 | F161: 大きな［キ］の下 | H161: 木
A162: 161 | B162: 74 | C162: 本 | D162: ホン | E162: 1 | F162: ［ホン］をよむ | H162: 本
A163: 162 | B163: 74 | C163: 本 | D163: ホン | E163: 1 | F163: ［ホンブン］をよむ | H163: 本文 | I163: ☆
A164: 163 | B164: 75 | C164: 名 | D164: メイ | E164: 1 | F164: ［メイ］ぶつをさがす | G164: ぶつ | H164: 名 | I164: ☆
A165: 164 | B165: 75 | C165: 名 | D165: メイ | E165: 2 | F165: ［ナ］ふだをつける | G165: ふだ | H165: 名
A166: 165 | B166: 75 | C166: 名 | D166: メイ | E166: 2 | F166: ［ナ］まえをかく | G166: まえ | H166: 名
A167: 166 | B167: 76 | C167: 目 | D167: モク | E167: 1 | F167: ［モク］じをさがす | G167: じ | H167: 目 | I167: ☆
A168: 167 | B168: 76 | C168: 目 | D168: モク | E168: 2 | F168: ［メ］をさます | H168: 目
A169: 168 | B169: 77 | C169: 立 | D169: リツ | E169: 1 | F169: ［チョウリツ］の小学校 | H169: 町立 | I169: ☆
A170: 169 | B170: 77 | C170: 立 | D170: リツ | E170: 2 | F170: いすから［タ］つ | G170: つ | H170: 立
A171: 170 | B171: 78 | C171: 力 | D171: リョク | E171: 1 | F171: たい［リョク］がある | H171: 力
A172: 171 | B172: 78 | C172: 力 | D172: リョク | E172: 2 | F172: ［チカラ］いっぱい | H172: 力
A173: 172 | B173: 79 | C173: 林 | D173: リン | E173: 1 | F173: ［リン］かん学校 | G173: かん | H173: 林 | I173: ☆
A174: 173 | B174: 79 | C174: 林 | D174: リン | E174: 2 | F174: すぎの［ハヤシ］ | H174: 林
A175: 174 | B175: 80 | C175: 六 | D175: ロク | E175: 1 | F175: ［ムッ］つかぞえる | G175: つ | H175: 六
A176: 175 | B176: 80 | C176: 六 | D176: ロク | E176: 2 | F176: ［ロク］年生 | G176: 年 | H176: 六

Sheet 関数（読み）
A1: 番号 | B1: ランダム | C1: 順位
A2: 1 | B2: =RAND() -> 0.02672704081 | C2: =RANK(B2,$B$2:$B$187) -> 182
A3: 2 | B3: =RAND() -> 0.8345512098 | C3: =RANK(B3,$B$2:$B$187) -> 24
A4: 3 | B4: 0.07449042666 | C4: 171
A5: 4 | B5: 0.1753448491 | C5: 153
A6: 5 | B6: 0.01220749572 | C6: 184
A7: 6 | B7: 0.07224747256 | C7: 172
A8: 7 | B8: 0.8367305864 | C8: 23
A9: 8 | B9: 0.1116394962 | C9: 164
A10: 9 | B10: 0.3997403931 | C10: 104
A11: 10 | B11: 0.06317413402 | C11: 174
A12: 11 | B12: 0.1461171112 | C12: 159
A13: 12 | B13: 0.1455867773 | C13: 160
A14: 13 | B14: 0.4556295134 | C14: 91
A15: 14 | B15: 0.08914700706 | C15: 167
A16: 15 | B16: 0.6188418947 | C16: 66
A17: 16 | B17: 0.5978994816 | C17: 72
A18: 17 | B18: 0.3902015465 | C18: 110
A19: 18 | B19: 0.3217294901 | C19: 127
A20: 19 | B20: 0.2346864056 | C20: 139
A21: 20 | B21: 0.9488163112 | C21: 12
A22: 21 | B22: 0.9912827901 | C22: 2
A23: 22 | B23: 0.4237505989 | C23: 100
A24: 23 | B24: 0.1754359591 | C24: 152
A25: 24 | B25: 0.3995259977 | C25: 105
A26: 25 | B26: 0.8321405235 | C26: 25
A27: 26 | B27: 0.3944961597 | C27: 106
A28: 27 | B28: 0.3482607239 | C28: 121
A29: 28 | B29: 0.4754029406 | C29: 85
A30: 29 | B30: 0.2950409256 | C30: 131
A31: 30 | B31: 0.6945158009 | C31: 52
A32: 31 | B32: 0.7792617723 | C32: 36
A33: 32 | B33: 0.1866849561 | C33: 148
A34: 33 | B34: 0.1517904381 | C34: 157
A35: 34 | B35: 0.9527018464 | C35: 11
A36: 35 | B36: 0.4311386706 | C36: 96
A37: 36 | B37: 0.9580494889 | C37: 10
A38: 37 | B38: 0.9906684094 | C38: 4
A39: 38 | B39: 0.155237787 | C39: 156
A40: 39 | B40: 0.2097611152 | C40: 144
A41: 40 | B41: 0.3304518083 | C41: 124
A42: 41 | B42: 0.3003507121 | C42: 129
A43: 42 | B43: 0.359893416 | C43: 117
A44: 43 | B44: 0.3943721392 | C44: 107
A45: 44 | B45: 0.9210308997 | C45: 16
A46: 45 | B46: 0.9911562596 | C46: 3
A47: 46 | B47: 0.5813558244 | C47: 75
A48: 47 | B48: 0.8182813076 | C48: 27
A49: 48 | B49: 0.5673846675 | C49: 76
A50: 49 | B50: 0.6956829797 | C50: 50
A51: 50 | B51: 0.7363712778 | C51: 43
A52: 51 | B52: 0.2847121629 | C52: 133
A53: 52 | B53: 0.3468695556 | C53: 122
A54: 53 | B54: 0.4716381753 | C54: 87
A55: 54 | B55: 0.8190503465 | C55: 26
A56: 55 | B56: 0.3112847231 | C56: 128
A57: 56 | B57: 0.801515106 | C57: 32
A58: 57 | B58: 0.2642415765 | C58: 134
A59: 58 | B59: 0.5316951358 | C59: 79
A60: 59 | B60: 0.02595851476 | C60: 183
A61: 60 | B61: 0.05725600221 | C61: 175
A62: 61 | B62: 0.465871816 | C62: 89
A63: 62 | B63: 0.6223653118 | C63: 65
A64: 63 | B64: 0.3295296122 | C64: 125
A65: 64 | B65: 0.810285332 | C65: 29
A66: 65 | B66: 0.9612945332 | C66: 7
A67: 66 | B67: =RAND() -> 0.3567663758 | C67: =RANK(B67,$B$2:$B$187) -> 119
A68: 67 | B68: 0.7719351852 | C68: 38
A69: 68 | B69: 0.1611285757 | C69: 155
A70: 69 | B70: 0.2528080983 | C70: 136
A71: 70 | B71: 0.6270127644 | C71: 64
A72: 71 | B72: 0.6818293679 | C72: 57
A73: 72 | B73: 0.002895611844 | C73: 185
A74: 73 | B74: 0.4318920948 | C74: 95
A75: 74 | B75: 0.5262999847 | C75: 80
A76: 75 | B76: 0.4254609161 | C76: 99
A77: 76 | B77: 0.8668549742 | C77: 21
A78: 77 | B78: 0.2230682177 | C78: 141
A79: 78 | B79: 0.9352772252 | C79: 14
A80: 79 | B80: 0.359686113 | C80: 118
A81: 80 | B81: 0.5328478004 | C81: 78
A82: 81 | B82: 0.3895708467 | C82: 111
A83: 82 | B83: 0.5862066572 | C83: 74
A84: 83 | B84: 0.1990820155 | C84: 145
A85: 84 | B85: 0.07183297295 | C85: 173
A86: 85 | B86: 0.9634430574 | C86: 6
A87: 86 | B87: 0.9151510829 | C87: 18
A88: 87 | B88: 0.04819921816 | C88: 177
A89: 88 | B89: 0.04129842946 | C89: 180
A90: 89 | B90: 0.4255521912 | C90: 98
A91: 90 | B91: 0.4410597493 | C91: 93
A92: 91 | B92: 0.5453209763 | C92: 77
A93: 92 | B93: 0.9605644816 | C93: 8
A94: 93 | B94: 0.616167129 | C94: 68
A95: 94 | B95: 0.2997247329 | C95: 130
A96: 95 | B96: 0.9184487848 | C96: 17
A97: 96 | B97: 0.3230752805 | C97: 126
A98: 97 | B98: 0.3943005964 | C98: 108
A99: 98 | B99: 0.8735426815 | C99: 20
A100: 99 | B100: 0.601741943 | C100: 70
A101: 100 | B101: 0.4648117107 | C101: 90
A102: 101 | B102: 0.818141221 | C102: 28
A103: 102 | B103: 0.6831358475 | C103: 56
A104: 103 | B104: 0.9241339334 | C104: 15
A105: 104 | B105: 0.4160184515 | C105: 101
A106: 105 | B106: 0.3853125047 | C106: 114
A107: 106 | B107: 0.2258215971 | C107: 140
A108: 107 | B108: 0.09567569566 | C108: 165
A109: 108 | B109: 0.08637823289 | C109: 168
A110: 109 | B110: 0.7696514952 | C110: 39
A111: 110 | B111: 0.1724763025 | C111: 154
A112: 111 | B112: 0.6952927241 | C112: 51
A113: 112 | B113: 0.5873537241 | C113: 73
A114: 113 | B114: 0.801949848 | C114: 31
A115: 114 | B115: 0.9603262622 | C115: 9
A116: 115 | B116: 0.393758629 | C116: 109
A117: 116 | B117: 0.2852224432 | C117: 132
A118: 117 | B118: 0.6307375714 | C118: 62
A119: 118 | B119: 0.2143885394 | C119: 143
A120: 119 | B120: 0.4728547085 | C120: 86
A121: 120 | B121: 0.4265448496 | C121: 97
A122: 121 | B122: 0.6106518585 | C122: 69
A123: 122 | B123: 0.7788624826 | C123: 37
A124: 123 | B124: 0.1359283916 | C124: 162
A125: 124 | B125: 0.6176625431 | C125: 67
A126: 125 | B126: 0.1444183017 | C126: 161
A127: 126 | B127: 0.5186214134 | C127: 81
A128: 127 | B128: 0.6610317506 | C128: 59
A129: 128 | B129: 0.2418608717 | C129: 138
A130: 129 | B130: 0.1913862215 | C130: 147
A131: 130 | B131: =RAND() -> 0.9939132364 | C131: =RANK(B131,$B$2:$B$187) -> 1
A132: 131 | B132: 0.4851920631 | C132: 83
A133: 132 | B133: 0.636953927 | C133: 61
A134: 133 | B134: 0.04205119427 | C134: 179
A135: 134 | B135: 0.7919264499 | C135: 34
A136: 135 | B136: 0.1795430958 | C136: 150
A137: 136 | B137: 0.7203540519 | C137: 45
A138: 137 | B138: 0.03517707456 | C138: 181
A139: 138 | B139: 0.4715881882 | C139: 88
A140: 139 | B140: 0.8092660408 | C140: 30
A141: 140 | B141: 0.7692878467 | C141: 40
A142: 141 | B142: 0.6903851361 | C142: 55
A143: 142 | B143: 0.7893401428 | C143: 35
A144: 143 | B144: 0.4363542516 | C144: 94
A145: 144 | B145: 0.3786828842 | C145: 116
A146: 145 | B146: 0.3806538188 | C146: 115
A147: 146 | B147: 0.877114098 | C147: 19
A148: 147 | B148: 0.1762651953 | C148: 151
A149: 148 | B149: 0.2466225736 | C149: 137
A150: 149 | B150: 0.6016467894 | C150: 71
A151: 150 | B151: 0.693465807 | C151: 53
A152: 151 | B152: 0.7197278208 | C152: 46
A153: 152 | B153: 0.1826624393 | C153: 149
A154: 153 | B154: 0.8425784611 | C154: 22
A155: 154 | B155: 0.07571483131 | C155: 170
A156: 155 | B156: 0.4431531473 | C156: 92
A157: 156 | B157: 0.4127930325 | C157: 103
A158: 157 | B158: 0.7218269347 | C158: 44
A159: 158 | B159: 0.4793423907 | C159: 84
A160: 159 | B160: 0.7547713341 | C160: 42
A161: 160 | B161: 0.7948884115 | C161: 33
A162: 161 | B162: 0.3855348317 | C162: 113
A163: 162 | B163: 0.9726572062 | C163: 5
A164: 163 | B164: 0.764783705 | C164: 41
A165: 164 | B165: 0.3308559992 | C165: 123
A166: 165 | B166: 0.6977715206 | C166: 49
A167: 166 | B167: 0.146388985 | C167: 158
A168: 167 | B168: 0.6924601078 | C168: 54
A169: 168 | B169: 0.118573483 | C169: 163
A170: 169 | B170: 0.2627433395 | C170: 135
A171: 170 | B171: 0.3856064751 | C171: 112
A172: 171 | B172: 0.09009982282 | C172: 166
A173: 172 | B173: 0.04461436577 | C173: 178
A174: 173 | B174: 0.6797025126 | C174: 58
A175: 174 | B175: 0.07739205184 | C175: 169
A176: 175 | B176: 0.6403505246 | C176: 60
A177: 176 | B177: 0.4879918921 | C177: 82
A178: 177 | B178: 0.9480753818 | C178: 13
A179: 178 | B179: 0.7156827142 | C179: 47
A180: 179 | B180: 0.05472482559 | C180: 176
A181: 180 | B181: 0.3519665994 | C181: 120
A182: 181 | B182: 0.1915031506 | C182: 146
A183: 182 | B183: 0.699769398 | C183: 48
A184: 183 | B184: 0.0005830476832 | C184: 186
A185: 184 | B185: 0.2204047654 | C185: 142
A186: 185 | B186: 0.4141038687 | C186: 102
A187: 186 | B187: 0.6284434451 | C187: 63

Sheet 関数（書き）
A1: 番号 | B1: ランダム | C1: 順位
A2: 1 | B2: =RAND() -> 0.02536677162 | C2: =RANK(B2,$B$2:$B$176) -> 171
A3: 2 | B3: =RAND() -> 0.3016971507 | C3: =RANK(B3,$B$2:$B$176) -> 118
A4: 3 | B4: 0.3093037223 | C4: 114
A5: 4 | B5: 0.3188845876 | C5: 110
A6: 5 | B6: 0.4811868275 | C6: 85
A7: 6 | B7: 0.7221179704 | C7: 44
A8: 7 | B8: 0.9649231041 | C8: 6
A9: 8 | B9: 0.6591087016 | C9: 50
A10: 9 | B10: 0.9309057868 | C10: 8
A11: 10 | B11: 0.2811644405 | C11: 123
A12: 11 | B12: 0.4754654555 | C12: 88
A13: 12 | B13: 0.731547403 | C13: 41
A14: 13 | B14: 0.1580106097 | C14: 151
A15: 14 | B15: 0.1098937901 | C15: 158
A16: 15 | B16: 0.7340760432 | C16: 40
A17: 16 | B17: 0.309985073 | C17: 112
A18: 17 | B18: 0.7200455867 | C18: 46
A19: 18 | B19: 0.526633254 | C19: 75
A20: 19 | B20: 0.00518198294 | C20: 175
A21: 20 | B21: 0.1990098599 | C21: 141
A22: 21 | B22: 0.9025992958 | C22: 11
A23: 22 | B23: 0.02989696282 | C23: 169
A24: 23 | B24: 0.1123809549 | C24: 156
A25: 24 | B25: 0.2701853137 | C25: 127
A26: 25 | B26: 0.2443723693 | C26: 132
A27: 26 | B27: 0.5997515435 | C27: 60
A28: 27 | B28: 0.3028627829 | C28: 116
A29: 28 | B29: 0.9288159004 | C29: 9
A30: 29 | B30: 0.8043219212 | C30: 21
A31: 30 | B31: 0.2439284746 | C31: 133
A32: 31 | B32: 0.9700324378 | C32: 5
A33: 32 | B33: 0.02531781124 | C33: 172
A34: 33 | B34: 0.9760814608 | C34: 3
A35: 34 | B35: 0.608548335 | C35: 57
A36: 35 | B36: 0.3270693688 | C36: 108
A37: 36 | B37: 0.4772349473 | C37: 87
A38: 37 | B38: 0.7471820971 | C38: 31
A39: 38 | B39: 0.009003525775 | C39: 174
A40: 39 | B40: 0.5779085297 | C40: 63
A41: 40 | B41: 0.1431123637 | C41: 153
A42: 41 | B42: 0.4348011645 | C42: 93
A43: 42 | B43: 0.5774921261 | C43: 65
A44: 43 | B44: 0.8829245666 | C44: 14
A45: 44 | B45: 0.8415792115 | C45: 17
A46: 45 | B46: 0.2191498114 | C46: 139
A47: 46 | B47: 0.7461495516 | C47: 32
A48: 47 | B48: 0.7856158758 | C48: 25
A49: 48 | B49: 0.3679510363 | C49: 102
A50: 49 | B50: 0.05428518344 | C50: 164
A51: 50 | B51: 0.7934184342 | C51: 22
A52: 51 | B52: 0.1981547184 | C52: 142
A53: 52 | B53: 0.4689988123 | C53: 89
A54: 53 | B54: 0.2210244172 | C54: 138
A55: 54 | B55: 0.3248882212 | C55: 109
A56: 55 | B56: 0.978656059 | C56: 2
A57: 56 | B57: 0.6788117054 | C57: 47
A58: 57 | B58: 0.2670989656 | C58: 129
A59: 58 | B59: 0.509500972 | C59: 78
A60: 59 | B60: 0.3886045007 | C60: 99
A61: 60 | B61: 0.3383641268 | C61: 106
A62: 61 | B62: 0.1599633389 | C62: 150
A63: 62 | B63: 0.6016751899 | C63: 59
A64: 63 | B64: 0.4794230156 | C64: 86
A65: 64 | B65: 0.2185112108 | C65: 140
A66: 65 | B66: 0.3017904604 | C66: 117
A67: 66 | B67: =RAND() -> 0.9012582382 | C67: =RANK(B67,$B$2:$B$176) -> 12
A68: 67 | B68: 0.9461571321 | C68: 7
A69: 68 | B69: 0.8773818913 | C69: 16
A70: 69 | B70: 0.1463361399 | C70: 152
A71: 70 | B71: 0.726819654 | C71: 42
A72: 71 | B72: 0.3094022577 | C72: 113
A73: 72 | B73: 0.2637205117 | C73: 131
A74: 73 | B74: 0.3315320296 | C74: 107
A75: 74 | B75: 0.269679748 | C75: 128
A76: 75 | B76: 0.04643264201 | C76: 167
A77: 76 | B77: 0.8889303188 | C77: 13
A78: 77 | B78: 0.2276033486 | C78: 136
A79: 78 | B79: 0.2930706315 | C79: 121
A80: 79 | B80: 0.7408683411 | C80: 35
A81: 80 | B81: 0.2714174244 | C81: 125
A82: 81 | B82: 0.3415569043 | C82: 104
A83: 82 | B83: 0.9882764111 | C83: 1
A84: 83 | B84: 0.46443725 | C84: 90
A85: 84 | B85: 0.4839665514 | C85: 84
A86: 85 | B86: 0.01944422551 | C86: 173
A87: 86 | B87: 0.8279437234 | C87: 18
A88: 87 | B88: 0.1874665771 | C88: 146
A89: 88 | B89: 0.1740761618 | C89: 148
A90: 89 | B90: 0.6225035074 | C90: 53
A91: 90 | B91: 0.5954814961 | C91: 62
A92: 91 | B92: 0.9702377987 | C92: 4
A93: 92 | B93: 0.572794666 | C93: 69
A94: 93 | B94: 0.09911075848 | C94: 160
A95: 94 | B95: 0.8186623215 | C95: 20
A96: 95 | B96: 0.4962683494 | C96: 80
A97: 96 | B97: 0.7381933924 | C97: 38
A98: 97 | B98: 0.297246307 | C98: 120
A99: 98 | B99: 0.2416114519 | C99: 134
A100: 99 | B100: 0.7552843222 | C100: 29
A101: 100 | B101: 0.7358543149 | C101: 39
A102: 101 | B102: 0.4545623127 | C102: 92
A103: 102 | B103: 0.09601068472 | C103: 161
A104: 103 | B104: 0.4849931681 | C104: 83
A105: 104 | B105: 0.5983681477 | C105: 61
A106: 105 | B106: 0.6747858441 | C106: 48
A107: 106 | B107: 0.2925203469 | C107: 122
A108: 107 | B108: 0.7202410218 | C108: 45
A109: 108 | B109: 0.338479716 | C109: 105
A110: 109 | B110: 0.7393193283 | C110: 37
A111: 110 | B111: 0.03861327929 | C111: 168
A112: 111 | B112: 0.5465933948 | C112: 73
A113: 112 | B113: 0.569938913 | C113: 70
A114: 113 | B114: 0.5761755733 | C114: 66
A115: 114 | B115: 0.7247008235 | C115: 43
A116: 115 | B116: 0.1254507403 | C116: 154
A117: 116 | B117: 0.740000104 | C117: 36
A118: 117 | B118: 0.1115507565 | C118: 157
A119: 118 | B119: 0.308622918 | C119: 115
A120: 119 | B120: 0.2760175185 | C120: 124
A121: 120 | B121: 0.04829913532 | C121: 165
A122: 121 | B122: 0.4206901387 | C122: 94
A123: 122 | B123: 0.4895488087 | C123: 82
A124: 123 | B124: 0.2704671432 | C124: 126
A125: 124 | B125: 0.577836502 | C125: 64
A126: 125 | B126: 0.1919001254 | C126: 145
A127: 126 | B127: 0.1836655294 | C127: 147
A128: 127 | B128: 0.7754461368 | C128: 27
A129: 128 | B129: 0.790907654 | C129: 24
A130: 129 | B130: 0.7911443078 | C130: 23
A131: 130 | B131: =RAND() -> 0.9262926752 | C131: =RANK(B131,$B$2:$B$176) -> 10
A132: 131 | B132: 0.3418789797 | C132: 103
A133: 132 | B133: 0.1055326261 | C133: 159
A134: 133 | B134: 0.8825920839 | C134: 15
A135: 134 | B135: 0.6061958573 | C135: 58
A136: 135 | B136: 0.7456270337 | C136: 33
A137: 136 | B137: 0.1967978229 | C137: 143
A138: 137 | B138: 0.7435218813 | C138: 34
A139: 138 | B139: 0.415826174 | C139: 95
A140: 139 | B140: 0.1711000792 | C140: 149
A141: 140 | B141: 0.0255285198 | C141: 170
A142: 141 | B142: 0.5098342772 | C142: 77
A143: 142 | B143: 0.5600768557 | C143: 71
A144: 143 | B144: 0.7624129182 | C144: 28
A145: 144 | B145: 0.048064708 | C145: 166
A146: 145 | B146: 0.1934647286 | C146: 144
A147: 146 | B147: 0.3973865444 | C147: 98
A148: 147 | B148: 0.454961362 | C148: 91
A149: 148 | B149: 0.5099175865 | C149: 76
A150: 149 | B150: 0.4012134722 | C150: 97
A151: 150 | B151: 0.6198207347 | C151: 55
A152: 151 | B152: 0.2639386422 | C152: 130
A153: 152 | B153: 0.5074435416 | C153: 79
A154: 153 | B154: 0.05842463045 | C154: 163
A155: 154 | B155: 0.4920429414 | C155: 81
A156: 155 | B156: 0.5448980316 | C156: 74
A157: 156 | B157: 0.3142111628 | C157: 111
A158: 157 | B158: 0.5746832189 | C158: 67
A159: 158 | B159: 0.7779084328 | C159: 26
A160: 159 | B160: 0.2986312476 | C160: 119
A161: 160 | B161: 0.2221114213 | C161: 137
A162: 161 | B162: 0.377945219 | C162: 101
A163: 162 | B163: 0.672739389 | C163: 49
A164: 163 | B164: 0.6485926256 | C164: 52
A165: 164 | B165: 0.2388948699 | C165: 135
A166: 165 | B166: 0.4139391204 | C166: 96
A167: 166 | B167: 0.3881227484 | C167: 100
A168: 167 | B168: 0.6166603201 | C168: 56
A169: 168 | B169: 0.6216517403 | C169: 54
A170: 169 | B170: 0.6556098329 | C170: 51
A171: 170 | B171: 0.8246190455 | C171: 19
A172: 171 | B172: 0.1202661414 | C172: 155
A173: 172 | B173: 0.5741731757 | C173: 68
A174: 173 | B174: 0.5470025754 | C174: 72
A175: 174 | B175: 0.7487470703 | C175: 30
A176: 175 | B176: 0.06927354682 | C176: 162
